Workbook

Sheet Auslegetool
B1: Tel. +49 (0)711 8201-100 Fax: -720 | U1: Email: | V1: Raumluft@LTG.de | AM1: =IF(AND(IF(OR(C45<C56,C46<C56,C52<C56,C53<C56,C45>C57,C46>C57,C52>C57,C53>C57),,),COUNT(C45:C53)=4),"Grenzwerte","") ->  | AN1: Primärdruck | AO1: Primärvol. | AP1: Volumenstrom | AQ1: Drehzahl | AW1: Auslegung | AX1: 1 | AY1: 2 | AZ1: 3 | BA1: 4 | BC1: Raumluft | BD1: Passwort eingeben, um Adminbereich einzublenden | BG1: =AV21 -> Baugröße 630 | BJ1: =CONCATENATE(X6," - nicht kondensierend - ",I17," ",J17," ", K17) -> Baugröße 800 - nicht kondensierend - Primärdruck 120 Pa | BK1: =IF(BL1=BM1,1,IF(BL2=BM1,2,IF(BL3=BM1,3,IF(BL4=BM1,4,0)))) -> 1 | BL1: Deutsch | BM1: Deutsch | BO1: Akustik-Zielwertsuche ausführen | BP1: Volumenströme zurücksetzen | CJ1: Vergleich, ob für Enthalphieberechnung Taupunkttemperatur Ansaug genommen werden kann
B2: LTG Aktiengesellschaft | AA2: Abfrage | AB2: 1 | AC2: 2-Leiter | AN2: [Pa] | AO2: [m³/h] | AP2: [m³/h] | AQ2: [1/min] | AT2: Sollwert Schallleistungspegel LWA [dB(A)] | AX2: 35 | AY2: 40 | AZ2: 45 | BA2: 50 | BD2: Dialogaufforderung | BE2: In Inputbox eingetragener Text | BG2: =AV40 -> Baugröße 800 | BJ2: =CONCATENATE(X6," - kondensierend - ",I17," ",J17," ", K17) -> Baugröße 800 - kondensierend - Primärdruck 120 Pa | BL2: Englisch | BO2: calculate: target value (acoustic) | BP2: reset flow rates | CJ2: Wasservorlauf | CK2: 5
B3: =Y3 -> Auslegetool: HFBsf, 4L, | Y3: =CONCATENATE(Y5,": ",Y6,", ",Y7,", ", Y8,Y9,Y10) -> Auslegetool: HFBsf, 4L, | AB3: 2 | AC3: 4-Leiter | AN3: Pa | AO3: m³/h | AV3: 0 | AW3: 1 | AX3: 2 | AY3: 3 | AZ3: 4 | BA3: 5 | BB3: 6 | BC3: 7 | BD3: 8 | BE3: 9 | BF3: 10 | BG3: =AV59 -> Baugröße 1000 | BJ3: =CONCATENATE(X6," - ",I17," ",J17," ", K17) -> Baugröße 800 - Primärdruck 120 Pa | BL3: Franzoesisch | BO3: calculate: target value (acoustic) | BP3: réinitialiser le volume des flux | CJ3: rF | CK3: 50
AV4: =IF($X$6=$BG$1,AV21,IF($X$6=$BG$2,AV40,IF($X$6=$BG$3,AV59,0))) -> Baugröße 800 | BL4: Italienisch | BO4: calculate: target value (acoustic) | BP4: ripristino del volume dei flussi
H5: Kühlfall: | O5: Heizfall: | X5: Diagramme | Y5: Auslegetool | Z5: mit Filter | AV5: =IF($X$6=$BG$1,AV22,IF($X$6=$BG$2,AV41,IF($X$6=$BG$3,AV60,0))) -> Schieberstellung | AW5: =IF($X$6=$BG$1,AW22,IF($X$6=$BG$2,AW41,IF($X$6=$BG$3,AW60,0))) -> QPK Primärleistung | AX5: QSK1) Sekundärleistung | AY5: QKges1) Gesamtleistung | AZ5: QSK2) Sekundärleistung | BA5: QKges2) Gesamtleistung | BB5: QPH Primärleistung | BC5: QSH Sekundärleistung | BD5: QGes Gesamtleistung | BE5: LWA - Schallleistung | BG5: Abfrage | CJ5: Torr | CK5: 760
B6: Projekt: | I6: Ansaugtemperatur: | J6: 26 | K6: °C | P6: Ansaugtemperatur: | Q6: 20 | R6: °C | X6: Baugröße 800 | Y6: HFBsf | Z6: ohne Filter | AB6: Auslegungsgrenzen | AP6: Auslegetool | AQ6: Abfrage | AT6: Tabellenblatt | AV6: =IF($X$6=$BG$1,AV23,IF($X$6=$BG$2,AV42,IF($X$6=$BG$3,AV61,0))) -> 0 | AW6: =IF($X$6=$BG$1,AW23,IF($X$6=$BG$2,AW42,IF($X$6=$BG$3,AW61,0))) -> 0 | AX6: 0 | AY6: 0 | AZ6: 0 | BA6: 0 | BB6: 0 | BC6: 0 | BD6: 0 | BE6: 0
I7: Kühlwasservorlauf ¹: | J7: 16 | K7: °C | P7: Heizwasservorlauf: | Q7: 60 | R7: °C | Y7: =IF(AN11=2,"4L","2L") -> 4L | Z7: mit 3D-Strömung | AC7: T_Ansaug | AD7: T_Vorlauf | AE7: T_Vorlauf2 | AF7: rF [%] | AM7: 2 | AO7: 1 | AP7: Volumenstrom vorgeben | AQ7: 2 | AT7: =MID(CELL("dateiname",B1),FIND("]",CELL("dateiname",B1))+1,255) -> Auslegetool | AV7: =IF($X$6=$BG$1,AV24,IF($X$6=$BG$2,AV43,IF($X$6=$BG$3,AV62,0))) -> Schieberstellung | AW7: =IF($X$6=$BG$1,AW24,IF($X$6=$BG$2,AW43,IF($X$6=$BG$3,AW62,0))) -> QPK | AX7: QSK1) | AY7: QKges1) | AZ7: QSensibel,K2) | BA7: QKges2) | BB7: QPH | BC7: QSH | BD7: Qhges | BE7: LWA | BF7: =IF($X$6=$BG$1,BF24,IF($X$6=$BG$2,BF43,IF($X$6=$BG$3,BF62,0))) -> QKges2) ; QKges1) | BG7: Zeile | BH7: Zeile | BI7: Spalte | CJ7: Volumenstrom | CK7: Taupunkt Ansaug | CL7: Taupunkt im Kasten
B8: Datum: | H8: Kühlwasservorlauf kondensierender Betrieb ²: | J8: 6 | K8: °C | Z8: ohne 3D-Strömung | AA8: Taupunkt Ansaugbed. | AB8: Kühlfall | AM8: FALSE | AN8: =IF(AM8=TRUE,1,2) -> 2 | AO8: 2 | AP8: Druck vorgeben | AV8: =IF($X$6=$BG$1,AV25,IF($X$6=$BG$2,AV44,IF($X$6=$BG$3,AV63,0))) -> 0 | AW8: =IF($X$6=$BG$1,AW25,IF($X$6=$BG$2,AW44,IF($X$6=$BG$3,AW63,0))) -> [W] | AX8: [W] | AY8: [W] | AZ8: [W] | BA8: [W] | BB8: [W] | BC8: [W] | BD8: [W] | BE8: [dB(A)] | CJ8: [m³/h] | CK8: [°C] | CL8: [°C]
B9: Bearbeiter: | I9: relative Feuchte ²: | J9: 50 | K9: % | Y9: =IF(AM9=TRUE,L_mit3D,"") ->  | Z9: mit Schalldämmung | AA9: [°C] | AB9: Minimal | AC9: =Auslegung_BG800_kondensierend!O115 -> 21 | AD9: 16 | AE9: =Auslegung_BG800_kondensierend!Q115 -> 3 | AF9: =Auslegung_BG800_kondensierend!R115 -> 1 | AM9: FALSE | AN9: =IF(AM9=TRUE,1,2) -> 2 | AU9: Für Diagramme -> Damit keine Fehlermeldung auftritt (Dias brauchen immer einen Wert) | AV9: 1 | BH9: =IF($X$6=$BG$1,BH26,IF($X$6=$BG$2,BH45,IF($X$6=$BG$3,BH64,0))) -> 45 | BI9: 48 | CJ9: 55.342685 | CK9: 7.232929224 | CL9: 7.288735573
I10: projektierte Leistung: | J10: 0 | K10: W | P10: projektierte Leistung: | R10: W | Y10: =IF(AM10=TRUE,L_mitSchalld,"") ->  | Z10: ohne Schalldämmung | AA10: =BM36 ->  | AB10: Maximal | AC10: =Auslegung_BG800_kondensierend!O116 -> 27 | AD10: 24 | AE10: =Auslegung_BG800_kondensierend!Q116 -> 16 | AF10: =Auslegung_BG800_kondensierend!R116 -> 99 | AM10: FALSE | AN10: =IF(AM10=TRUE,1,2) -> 2 | AV10: =IFERROR(CELL("inhalt",INDIRECT(ADDRESS($BH9,$BI9+AV$3))),"") -> 5 | AW10: 220 | AX10: 411.3421858 | AY10: 631.3421858 | AZ10: 765.6657095 | BA10: 985.6657095 | BB10: 0 | BC10: 883.7392322 | BD10: 883.7392322 | BE10: =IF(IFERROR(CELL("inhalt",INDIRECT(ADDRESS($BH9,$BI9+BE$3))),"")="<20",20,IFERROR(CELL("inhalt",INDIRECT(ADDRESS($BH9,$BI9+BE$3))),"")) -> 28.28311069 | BF10: =IFERROR(CELL("inhalt",INDIRECT(ADDRESS($BH9,$BI9+BF$3))),"") -> 986W ; 631W | BH10: 46 | BI10: 48 | CJ10: 109.5249661 | CK10: 9.0297887 | CL10: 9.05981947
AM11: =IF(AN11=1,TRUE,FALSE) -> FALSE | AN11: =IF(C15=AC2,AB2,AB3) -> 2 | AV11: =IFERROR(CELL("inhalt",INDIRECT(ADDRESS($BH11,$BI11+AV$3))),"") -> 4 | AW11: 160 | AX11: 263.0371513 | AY11: 423.0371513 | AZ11: 501.9992869 | BA11: 661.9992869 | BB11: 0 | BC11: 629.0326329 | BD11: 629.0326329 | BE11: =IF(IFERROR(CELL("inhalt",INDIRECT(ADDRESS($BH11,$BI11+BE$3))),"")="<20",20,IFERROR(CELL("inhalt",INDIRECT(ADDRESS($BH11,$BI11+BE$3))),"")) -> 26.91399675 | BF11: =IFERROR(CELL("inhalt",INDIRECT(ADDRESS($BH11,$BI11+BF$3))),"") -> 662W ; 423W | BH11: 47 | BI11: 48 | CJ11: 163.2600707 | CK11: 10.20861136 | CL11: 10.22649143
I12: Nennwassermenge: | J12: 200 | K12: kg/h | P12: Nennwassermenge: | Q12: 100 | R12: kg/h | AB12: Heizfall | AV12: =IFERROR(CELL("inhalt",INDIRECT(ADDRESS($BH13,$BI13+AV$3))),"") -> 3 | AW12: 110 | AX12: 216.2034877 | AY12: 326.2034877 | AZ12: 414.6891157 | BA12: 524.6891157 | BB12: 0 | BC12: 529.8342994 | BD12: 529.8342994 | BE12: =IF(IFERROR(CELL("inhalt",INDIRECT(ADDRESS($BH13,$BI13+BE$3))),"")="<20",20,IFERROR(CELL("inhalt",INDIRECT(ADDRESS($BH13,$BI13+BE$3))),"")) -> 28.35083142 | BF12: =IFERROR(CELL("inhalt",INDIRECT(ADDRESS($BH13,$BI13+BF$3))),"") -> 525W ; 326W | BH12: 48 | BI12: 48 | CJ12: 216.72807 | CK12: 11.02820352 | CL12: 11.03964151
I13: Wassermenge Kühlen: | J13: 200 | K13: kg/h | P13: Wassermenge Heizen: | Q13: 100 | R13: kg/h | AB13: Minimal | AC13: 19 | AD13: 30 | AV13: =IFERROR(CELL("inhalt",INDIRECT(ADDRESS($BH15,$BI15+AV$3))),"") -> 2 | AW13: 50 | AX13: 124.8028899 | AY13: 174.8028899 | AZ13: 241.5486778 | BA13: 291.5486778 | BB13: 0 | BC13: 320.4478729 | BD13: 320.4478729 | BE13: =IF(IFERROR(CELL("inhalt",INDIRECT(ADDRESS($BH15,$BI15+BE$3))),"")="<20",20,IFERROR(CELL("inhalt",INDIRECT(ADDRESS($BH15,$BI15+BE$3))),"")) -> 20.8546051 | BF13: =IFERROR(CELL("inhalt",INDIRECT(ADDRESS($BH15,$BI15+BF$3))),"") -> 292W ; 175W | BH13: 49 | BI13: 48
AB14: Maximal | AC14: 27 | AD14: 80 | BH14: 50 | BI14: 48
B15: Wärmetauscher: | C15: 4-Leiter | I15: Raumtemperatur | J15: 26 | K15: °C | P15: Raumtemperatur | Q15: 20 | R15: °C | BH15: 51 | BI15: 48
I16: Primärlufttemperatur | J16: 18 | K16: °C | P16: Primärlufttemperatur | Q16: 20 | R16: °C
I17: =C24 -> Primärdruck | J17: 120 | K17: =IF($AQ$7=1,$AO$3,$AN$3) -> Pa | P17: =C24 -> Primärdruck | Q17: =J17 -> 120 | R17: =K17 -> Pa | BK17: =INDIRECT("BB"&12) -> 0
AV21: =L_BG630 -> Baugröße 630
B22: Baugröße 630 | Y22: lt. Wikipedia 15-20ml / Tropfen | AV22: Schieberstellung | AW22: QPK Primärleistung | AX22: QSK1) Sekundärleistung | AY22: QKges1) Gesamtleistung | AZ22: QSK2) Sekundärleistung | BA22: QKges2) Gesamtleistung | BB22: QPH Primärleistung | BC22: QSH Sekundärleistung | BD22: QGes Gesamtleistung | BE22: LWA - Schallleistung | BP22: =Torr_in_Pa(760) -> 
A24: Auswahl | B24: Schieberstellung | C24: =IF($AQ$7=1,$AO$1,$AN$1) -> Primärdruck | D24: =IF($AQ$7=2,$AO$1,$AN$1) -> Primärvol. | E24: =L_primaervol -> Primärvol. | F24: =L_primaerdruck -> Primärdruck | G24: Sekundärvolumenstrom | H24: LWA | I24: LA18 | J24: QPK | K24: QSK1 | L24: QKges1 | M24: QTotal2 | N24: QSensibel,K2 | O24: QKges2 | P24: QPH | Q24: QSH | R24: Qhges | S24: tKWRL | T24: tKWRL2 | U24: tWWRL | V24: Kondensat ² | W24: Zulufttemp.² | Y24: Tropfen | Z24: Zulufttemp. | AA24: Taupunkt nach WT | AB24: qSK1) | AC24: qSH | AD24: qSK2) | AE24: qtotal2) | AF24: =Auswertung_Leistung!AD274 -> Primärdruck Baugröße 800; S5 | AH24: =Auswertung_Leistung!AF274 -> Kühlleistung "mit" Schieber im Vergleich zu "ohne Schieber" | AI24: Primärvolumenstrom Minimal | AJ24: Primärvolumenstrom Minimal | AK24: Primärdruck Minimal | AL24: Primärdruck Maximal | AV24: Schieberstellung | AW24: QPK | AX24: QSK1) | AY24: QKges1) | AZ24: QSensibel,K2) | BA24: QKges2) | BB24: QPH | BC24: QSH | BD24: Qhges | BE24: LWA | BF24: QKges2) ; QKges1) | BG24: Zeile | BH24: Zeile | BI24: Spalte | BL24: Randparameter: | BQ24: Wassermenge Gesamt in der Luft | BR24: latente Leistung | BS24: Verdampfungsenthalpie | BV24: Kondensatmenge | BW24: Volumenstrom Wasser (Ansaug) | BX24: Volumenstrom Luft (Ansaug) | BY24: Masse Luft | BZ24: Masse Wasser (im Volumenstrom) - Kasten | CA24: Zulufttemperatur | CB24: Dichte Luft (Kasten) | CC24: Dichte Wasser (Kasten) | CD24: Volumenstrom Luft | CE24: Volumenstrom Wasser | CF24: Massenstrom Kasten | CG24: Volumenstrom Kasten | CH24: Dichte Misch(Kasten) | CI24: phi_x (kg_H20/kg_Gesamt Wassergehalt) | CJ24: Feuchte nach WT (Kasten) | CK24: Taupunkt im Kasten
C25: =IF($AQ$7=1,$AO$2,$AN$2) -> [Pa] | D25: =IF($AQ$7=2,$AO$2,$AN$2) -> [m³/h] | E25: [m³/h] | F25: [Pa] | G25: [m³/h] | H25: [dB(A)] | I25: [dB(A)] | J25: [W] | K25: [W] | L25: [W] | M25: [W] | N25: [W] | O25: [W] | P25: [W] | Q25: [W] | R25: [W] | S25: [°C] | T25: [°C] | U25: [°C] | V25: [kg/h] bzw. [l / h] | W25: [°C] | Y25: [Anzahl / min] | Z25: =CA25 -> [°C] | AA25: [°C] | AB25: [W] | AC25: [W] | AD25: [W] | AE25: [W] | AF25: =Auswertung_Leistung!AD275 -> [Pa] | AH25: =Auswertung_Leistung!AF275 -> 0 | AI25: [m³/h] | AJ25: [m³/h] | AK25: [m³/h] | AL25: [m³/h] | AM25: Grenzen der Auslegung | AP25: Abhängig von Abfrage | AT25: heizen | AW25: [W] | AX25: [W] | AY25: [W] | AZ25: [W] | BA25: [W] | BB25: [W] | BC25: [W] | BD25: [W] | BE25: [dB(A)] | BL25: rel. Feuchte | BM25: =J9 -> 50 | BN25: % | BQ25: kg H20 / h | BR25: W bzw. J / s | BS25: kJ/mol | BT25: kJ/g | BU25: J/kg | BV25: kg / h bzw.l / h | BW25: [m³/h] | BX25: [m³/h] | BY25: [kg/h] | BZ25: [kg/h] | CA25: [°C] | CB25: [kg/m³] | CC25: [kg/m³] | CD25: [m³/h] | CE25: [m³/h] | CF25: [kg/h] | CG25: [m³/h] | CH25: [kg/m³] | CJ25: rF [%] | CK25: [°C]
A26: x | B26: 5 | C26: =$J$17 -> 120 | D26: =Auswertung_Leistung!C276 -> 58.08653168 | E26: =IF(C26="","",IF($AQ$7=1,C26,D26)) -> 58.08653168 | F26: =Auswertung_Leistung!H276 -> 120 | G26: =Auswertung_Leistung!K276 -> 118.0175782 | H26: =IFERROR(IF(OR(C26="",C26=0,Auswertung_Leistung!T276<20),"<20",Auswertung_Leistung!T276),"") -> 26.85349228 | I26: =IFERROR(IF(C26="","",H26-6.5),"") -> 20.35349228 | J26: =ROUND(E26*1.2*1004.5*($J$16-$J$15)/3600,-1) -> -160 | K26: =IF(C26="","",IF(C26=0,,IFERROR((AB26*($J$7-$J$6)),""))) -> -299.3971621 | L26: =J26+K26 -> -459.3971621 | M26: =IFERROR(AE26*($J$8-$J$6),"") -> -850.5027917 | N26: =IFERROR(AD26*($J$8-$J$6),"") -> -557.293048 | O26: =J26+N26 -> -717.293048 | P26: =ROUND(E26*1.2*1004.5*($Q$16-$Q$15)/3600,-1) -> 0 | Q26: =IF(G26=0,,IFERROR((AC26*($Q$7-$Q$6)),"")) -> 639.790749 | R26: =Q26+P26 -> 639.790749 | S26: =IF(IFERROR(IF(K26=0,,$J$7-((K26/(4.2*$J$13/3.6)))),)=0,"",IFERROR(IF(K26=0,,$J$7-((K26/(4.2*$J$13/3.6)))),)) -> 17.28313069 | T26: =IF(IFERROR(IF(N26=0,,$J$8-((N26/(4.2*$J$13/3.6)))),)=0,"",IFERROR(IF(N26=0,,$J$8-((N26/(4.2*$J$13/3.6)))),)) -> 8.388398777 | U26: =IF(C26="","",IFERROR(IF(Q26=0,,($Q$7-((Q26/(4.2*$Q$13/3.6))))),)) -> 54.51607929 | V26: =IFERROR(BV26,"") -> 0.4250475007 | W26: =Z26 -> 11.83364301 | Y26: =IFERROR(V26*1000/15/60,"") -> 0.4722750008 | Z26: =IFERROR(CA26,"") -> 11.83364301 | AA26: =IFERROR(CK26,"") ->  | AB26: =Auswertung_Leistung!Q276 -> 29.93971621 | AC26: =IF($AN$11=1,AB26*Auswertung_Leistung!Y276,AB26*Auswertung_Leistung!AB276) -> 15.99476873 | AD26: =Auswertung_Leistung!R276 -> 27.8646524 | AE26: =Auswertung_Leistung!S276 -> 42.52513959 | AF26: =Auswertung_Leistung!AD276 -> 120.0016282 | AH26: =Auswertung_Leistung!AF276 -> -7.488003677e-06 | AI26: =Auswertung_Leistung!U276 -> 35.82961221 | AJ26: =Auswertung_Leistung!V276 -> 91.96825567 | AK26: =Auswertung_Leistung!W276 -> 45 | AL26: =Auswertung_Leistung!X276 -> 305 | AM26: =$AM$96 -> Primärdurck | AN26: Primärvolumenstrom | AO26: =$AO$96 -> Wassermassenstrom | AP26: =IF($AQ$7=1,AN26,AM26) -> Primärdurck | AQ26: Einheit | AR26: =IF($AQ$7=2,AN26,AM26) -> Primärvolumenstrom | AS26: Einheit | AT26: =$AO$96 -> Wassermassenstrom | AV26: =IF(OR(F26<$AM$27,F26>$AM$28),"",B26) -> 5 | AW26: =IF(AV26="","",ABS(J26)) -> 160 | AX26: =IF(AV26="","",ABS(K26)) -> 299.3971621 | AY26: =IF(AV26="","",ABS(L26)) -> 459.3971621 | AZ26: =IF(AV26="","",ABS(N26)) -> 557.293048 | BA26: =IF(AV26="","",(AW26+AZ26)) -> 717.293048 | BB26: =IF(AV26="","",(P26)) -> 0 | BC26: =IF(AV26="","",ABS(Q26)) -> 639.790749 | BD26: =IF(AV26="","",(BB26+BC26)) -> 639.790749 | BE26: =IF(AV26="","",H26) -> 26.85349228 | BF26: =IF(AV26="","",CONCATENATE(ROUND(BA26,0)," ; ",ROUND(AY26,0))) -> 717 ; 459 | BG26: =IF(AV26="","",ROW(AV26)) -> 26 | BH26: =MIN(BG26:BG34) -> 26 | BI26: =COLUMN(AV26) -> 48 | BL26: Druck | BM26: 760 | BN26: Torr | BQ26: =$BM$37*(G26*$BM$28) ->  | BR26: =M26-N26 -> -293.2097437 | BS26: =50.09-0.9298*(273.15+$J$8)/1000-65.19*((273.15+$J$8)/1000)^2 -> 44.75053367 | BT26: =BS26/$BM$31 -> 2.483381447 | BU26: =BT26*1000000 -> 2483381.447 | BV26: =ABS(BR26)/BU26*3600 -> 0.4250475007 | BW26: =BQ26/$BM$53 ->  | BX26: =G26-BW26 ->  | BY26: =BX26*$BM$52 ->  | BZ26: =BQ26-BV26 ->  | CA26: =N26*3/G26+$BM$27 -> 11.83364301 | CB26: =dichteLuft(0,Torr_in_Pa($BM$26),CA26) ->  | CC26: =999.972-7*10^(-3)*(CA26-4)^2 -> 999.5424383 | CD26: =BY26/CB26*$BM$52 ->  | CE26: =BZ26/CC26*$BM$52 ->  | CF26: =BZ26+BY26 ->  | CG26: =CD26+CE26 ->  | CH26: =CF26/CG26 ->  | CI26: =BZ26/CG26/CH26 ->  | CJ26: =rf_prozent_von_T_grad_x_hf_gH2O_kg_trLuft(CA26,CI26*1000) ->  | CK26: =td_T_grad_rf_prozent(CA26,CJ26) -> 
B27: 4.5 | C27: =C26 -> 120 | D27: =Auswertung_Leistung!C277 -> 69.75300716 | E27: 69.75300716 | F27: =Auswertung_Leistung!H277 -> 120 | G27: =Auswertung_Leistung!K277 -> 111.4490618 | H27: =IFERROR(IF(OR(C27="",C27=0,Auswertung_Leistung!T277<20),"<20",Auswertung_Leistung!T277),"") -> 26.59999493 | I27: =IFERROR(IF(C27="","",H27-6.5),"") -> 20.09999493 | J27: =ROUND(E27*1.2*1004.5*($J$16-$J$15)/3600,-1) -> -190 | K27: -274.9568112 | L27: =J27+K27 -> -464.9568112 | M27: =IFERROR(AE27*($J$8-$J$6),"") -> -787.2244498 | N27: =IFERROR(AD27*($J$8-$J$6),"") -> -513.5216909 | O27: =J27+N27 -> -703.5216909 | P27: 0 | Q27: 593.6405546 | R27: =Q27+P27 -> 593.6405546 | S27: 17.17838633 | T27: 8.200807247 | U27: 54.91165239 | V27: =IFERROR(BV27,"") -> 0.3967694666 | W27: =Z27 -> 12.1769579 | Y27: =IFERROR(V27*1000/15/60,"") -> 0.4408549629 | Z27: =IFERROR(CA27,"") -> 12.1769579 | AA27: =IFERROR(CK27,"") ->  | AB27: =Auswertung_Leistung!Q277 -> 27.49568112 | AC27: =IF($AN$11=1,AB27*Auswertung_Leistung!Y277,AB27*Auswertung_Leistung!AB277) -> 14.84101387 | AD27: =Auswertung_Leistung!R277 -> 25.67608455 | AE27: =Auswertung_Leistung!S277 -> 39.36122249 | AF27: =Auswertung_Leistung!AD277 -> 173.9965511 | AH27: =Auswertung_Leistung!AF277 -> -0.2294409468 | AI27: =Auswertung_Leistung!U277 -> 42.37663003 | AJ27: =Auswertung_Leistung!V277 -> 112.0483357 | AK27: =Auswertung_Leistung!W277 -> 45 | AL27: =Auswertung_Leistung!X277 -> 305 | AM27: =AM97 -> 45 | AN27: =MIN(AI26:AI34) -> 8.198895071 | AO27: =AO97 -> 50 | AP27: =IF($AQ$7=1,AN27,AM27) -> 45 | AQ27: =IF($AQ$7=1,"m³/h","Pa") -> Pa | AR27: =IF($AQ$7=2,AN27,AM27) -> 8.198895071 | AS27: =IF($AQ$7=2,"m³/h","Pa") -> m³/h | AT27: =AT97 -> 50 | AV27: =IF(OR(F27<$AM$27,F27>$AM$28),"",B27) -> 4.5 | AW27: =IF(AV27="","",ABS(J27)) -> 190 | AX27: =IF(AV27="","",ABS(K27)) -> 274.9568112 | AY27: =IF(AV27="","",ABS(L27)) -> 464.9568112 | AZ27: =IF(AV27="","",ABS(N27)) -> 513.5216909 | BA27: =IF(AV27="","",(AW27+AZ27)) -> 703.5216909 | BB27: =IF(AV27="","",(P27)) -> 0 | BC27: =IF(AV27="","",ABS(Q27)) -> 593.6405546 | BD27: =IF(AV27="","",(BB27+BC27)) -> 593.6405546 | BE27: 26.59999493 | BF27: =IF(AV27="","",CONCATENATE(ROUND(BA27,0)," ; ",ROUND(AY27,0))) -> 704 ; 465 | BG27: =IF(AV27="","",ROW(AV27)) -> 27 | BH27: =IF(COUNTIF($BG$26:$BG$34,BH26+1)=1,BH26+1,IF(COUNTIF($BG$26:$BG$34,BH26+2)=1,BH26+2,IF(COUNTIF($BG$26:$BG$34,BH26+3)=1,BH26+3,IF(COUNTIF($BG$26:$BG$34,BH26+4)=1,BH26+4,IF(COUNTIF($BG$26:$BG$34,BH26+5)=1,BH26+5,IF(COUNTIF($BG$26:$BG$34,BH26+6)=1,BH26+6,IF(COUNTIF($BG$26:$BG$34,BH26+7)=1,BH26+7,IF(COUNTIF($BG$26:$BG$34,BH26+8)=1,BH26+8,"")))))))) -> 27 | BI27: =COLUMN(AV27) -> 48 | BL27: (Ansaug) Temperatur | BM27: =J6 -> 26 | BN27: °C | BR27: =M27-N27 -> -273.7027589 | BS27: =50.09-0.9298*(273.15+$J$8)/1000-65.19*((273.15+$J$8)/1000)^2 -> 44.75053367 | BT27: =BS27/$BM$31 -> 2.483381447 | BU27: =BT27*1000000 -> 2483381.447 | BV27: =ABS(BR27)/BU27*3600 -> 0.3967694666 | BW27: =BQ27/$BM$53 ->  | BY27: =BX27*$BM$52 ->  | BZ27: =BQ27-BV27 ->  | CA27: 12.1769579 | CC27: =999.972-7*10^(-3)*(CA27-4)^2 -> 999.5039615 | CD27: =BY27/CB27*$BM$52 ->  | CE27: =BZ27/CC27*$BM$52 ->  | CF27: =BZ27+BY27 ->  | CG27: =CD27+CE27 ->  | CH27: =CF27/CG27 ->  | CI27: =BZ27/CG27/CH27 ->  | CJ27: =rf_prozent_von_T_grad_x_hf_gH2O_kg_trLuft(CA27,CI27*1000) ->  | CK27: =td_T_grad_rf_prozent(CA27,CJ27) -> 
B28: 4 | C28: =C27 -> 120 | D28: =Auswertung_Leistung!C278 -> 43.73213711 | E28: 43.73213711 | F28: =Auswertung_Leistung!H278 -> 120 | G28: =Auswertung_Leistung!K278 -> 71.17874135 | H28: =IFERROR(IF(OR(C28="",C28=0,Auswertung_Leistung!T278<20),"<20",Auswertung_Leistung!T278),"") -> 25.48437834 | I28: =IFERROR(IF(C28="","",H28-6.5),"") -> 18.98437834 | J28: -120 | K28: -192.2910593 | L28: -312.2910593 | M28: -577.1187036 | N28: -366.9822843 | O28: -486.9822843 | P28: 0 | Q28: 444.525169 | R28: 444.525169 | S28: 16.82410454 | T28: 7.572781218 | U28: 56.18978427 | V28: =IFERROR(BV28,"") -> 0.3046213906 | W28: 10.53264511 | Y28: =IFERROR(V28*1000/15/60,"") -> 0.3384682117 | Z28: =IFERROR(CA28,"") -> 10.53264511 | AA28: =IFERROR(CK28,"") ->  | AB28: =Auswertung_Leistung!Q278 -> 19.22910593 | AC28: =IF($AN$11=1,AB28*Auswertung_Leistung!Y278,AB28*Auswertung_Leistung!AB278) -> 11.11312922 | AD28: =Auswertung_Leistung!R278 -> 18.34911422 | AE28: =Auswertung_Leistung!S278 -> 28.85593518 | AF28: =Auswertung_Leistung!AD278 -> 67.44486219 | AH28: =Auswertung_Leistung!AF278 -> -0.0660699084 | AI28: =Auswertung_Leistung!U278 -> 26.35631206 | AJ28: =Auswertung_Leistung!V278 -> 70.78681989 | AK28: =Auswertung_Leistung!W278 -> 45 | AL28: =Auswertung_Leistung!X278 -> 305 | AM28: =AM98 -> 305 | AN28: =MAX(AJ26:AJ34) -> 112.0483357 | AO28: =AO98 -> 300 | AP28: =IF($AQ$7=1,AN28,AM28) -> 305 | AQ28: =IF($AQ$7=1,"m³/h","Pa") -> Pa | AR28: =IF($AQ$7=2,AN28,AM28) -> 112.0483357 | AS28: =IF($AQ$7=2,"m³/h","Pa") -> m³/h | AT28: =AT98 -> 300 | AV28: 4 | AW28: 120 | AX28: 192.2910593 | AY28: 312.2910593 | AZ28: 366.9822843 | BA28: 486.9822843 | BB28: 0 | BC28: 444.525169 | BD28: 444.525169 | BE28: 25.48437834 | BF28: 487 ; 312 | BG28: =IF(AV28="","",ROW(AV28)) -> 28 | BH28: =IF(COUNTIF($BG$26:$BG$34,BH27+1)=1,BH27+1,IF(COUNTIF($BG$26:$BG$34,BH27+2)=1,BH27+2,IF(COUNTIF($BG$26:$BG$34,BH27+3)=1,BH27+3,IF(COUNTIF($BG$26:$BG$34,BH27+4)=1,BH27+4,IF(COUNTIF($BG$26:$BG$34,BH27+5)=1,BH27+5,IF(COUNTIF($BG$26:$BG$34,BH27+6)=1,BH27+6,IF(COUNTIF($BG$26:$BG$34,BH27+7)=1,BH27+7,IF(COUNTIF($BG$26:$BG$34,BH27+8)=1,BH27+8,"")))))))) -> 28 | BI28: 48 | BL28: Dichte | BM28: =dichteLuft(BM25,Torr_in_Pa(BM26),BM27) ->  | BN28: kg/m³ | BR28: -210.1364193 | BS28: 44.75053367 | BT28: 2.483381447 | BU28: 2483381.447 | BV28: 0.3046213906 | CA28: 10.53264511 | CC28: 999.6732718
B29: 3.5 | C29: 120 | D29: =Auswertung_Leistung!C279 -> 43.64437415 | E29: 43.64437415 | F29: =Auswertung_Leistung!H279 -> 120 | G29: =Auswertung_Leistung!K279 -> 58.73166737 | H29: =IFERROR(IF(OR(C29="",C29=0,Auswertung_Leistung!T279<20),"<20",Auswertung_Leistung!T279),"") -> 26.59070357 | I29: =IFERROR(IF(C29="","",H29-6.5),"") -> 20.09070357 | J29: -120 | K29: -148.1409469 | L29: -268.1409469 | M29: -450.8967575 | N29: -284.6780622 | O29: -404.6780622 | P29: 0 | Q29: 350.3313257 | R29: 350.3313257 | S29: 16.63488977 | T29: 7.220048838 | U29: 56.99716007 | V29: 0.2409566616 | W29: 11.45871035 | Y29: =IFERROR(V29*1000/15/60,"") -> 0.267729624 | Z29: =IFERROR(CA29,"") -> 11.45871035 | AA29: =IFERROR(CK29,"") ->  | AB29: =Auswertung_Leistung!Q279 -> 14.81409469 | AC29: =IF($AN$11=1,AB29*Auswertung_Leistung!Y279,AB29*Auswertung_Leistung!AB279) -> 8.758283144 | AD29: =Auswertung_Leistung!R279 -> 14.23390311 | AE29: =Auswertung_Leistung!S279 -> 22.54483787 | AF29: =Auswertung_Leistung!AD279 -> 67.17039526 | AH29: =Auswertung_Leistung!AF279 -> -0.2806393354 | AI29: =Auswertung_Leistung!U279 -> 26.09823588 | AJ29: =Auswertung_Leistung!V279 -> 71.17288258 | AK29: =Auswertung_Leistung!W279 -> 45 | AL29: =Auswertung_Leistung!X279 -> 305 | AP29: =AVERAGE(AP27:AP28) -> 175 | AR29: =AVERAGE(AR27:AR28) -> 60.12361537 | AV29: 3.5 | AW29: 120 | AX29: 148.1409469 | AY29: 268.1409469 | AZ29: 284.6780622 | BA29: 404.6780622 | BB29: 0 | BC29: 350.3313257 | BD29: 350.3313257 | BE29: 26.59070357 | BF29: 405 ; 268 | BG29: =IF(AV29="","",ROW(AV29)) -> 29 | BH29: 29 | BI29: 48 | BL29: Verdampfungsenthalpie | BM29: =50.09-0.9298*(273.15+BM36)/1000-65.19*((273.15+BM36)/1000)^2 ->  | BN29: kJ/mol | BR29: =M29-N29 -> -166.2186953 | BS29: 44.75053367 | BT29: 2.483381447 | BU29: =BT29*1000000 -> 2483381.447 | BV29: =ABS(BR29)/BU29*3600 -> 0.2409566616 | BW29: =BQ29/$BM$53 ->  | BY29: =BX29*$BM$52 ->  | BZ29: =BQ29-BV29 ->  | CA29: 11.45871035 | CC29: =999.972-7*10^(-3)*(CA29-4)^2 -> 999.5825735 | CD29: =BY29/CB29*$BM$52 ->  | CE29: =BZ29/CC29*$BM$52 ->  | CF29: =BZ29+BY29 ->  | CG29: =CD29+CE29 ->  | CH29: =CF29/CG29 ->  | CI29: =BZ29/CG29/CH29 ->  | CJ29: =rf_prozent_von_T_grad_x_hf_gH2O_kg_trLuft(CA29,CI29*1000) ->  | CK29: =td_T_grad_rf_prozent(CA29,CJ29) -> 
B30: 3 | C30: 120 | D30: =Auswertung_Leistung!C280 -> 28.75392883 | E30: 28.75392883 | F30: =Auswertung_Leistung!H280 -> 120 | G30: =Auswertung_Leistung!K280 -> 62.13055002 | H30: =IFERROR(IF(OR(C30="",C30=0,Auswertung_Leistung!T280<20),"<20",Auswertung_Leistung!T280),"") -> 26.92121301 | I30: =IFERROR(IF(C30="","",H30-6.5),"") -> 20.42121301 | J30: -80 | K30: -158.4363392 | L30: -238.4363392 | M30: -480.4036601 | N30: -303.8888321 | O30: -383.8888321 | P30: 0 | Q30: 372.3368412 | R30: 372.3368412 | S30: 16.67901288 | T30: 7.302380709 | U30: 56.80854136 | V30: 0.2558823097 | W30: 11.32659865 | Y30: =IFERROR(V30*1000/15/60,"") -> 0.2843136775 | Z30: =IFERROR(CA30,"") -> 11.32659865 | AA30: =IFERROR(CK30,"") ->  | AB30: =Auswertung_Leistung!Q280 -> 15.84363392 | AC30: =IF($AN$11=1,AB30*Auswertung_Leistung!Y280,AB30*Auswertung_Leistung!AB280) -> 9.308421029 | AD30: =Auswertung_Leistung!R280 -> 15.19444161 | AE30: =Auswertung_Leistung!S280 -> 24.020183 | AF30: =Auswertung_Leistung!AD280 -> 28.79338554 | AH30: =Auswertung_Leistung!AF280 -> 0.5571058189 | AI30: =Auswertung_Leistung!U280 -> 17.06966837 | AJ30: =Auswertung_Leistung!V280 -> 47.21544001 | AK30: =Auswertung_Leistung!W280 -> 45 | AL30: =Auswertung_Leistung!X280 -> 305 | AV30: 3 | AW30: 80 | AX30: 158.4363392 | AY30: 238.4363392 | AZ30: 303.8888321 | BA30: 383.8888321 | BB30: 0 | BC30: 372.3368412 | BD30: 372.3368412 | BE30: 26.92121301 | BF30: 384 ; 238 | BG30: 30 | BH30: 30 | BI30: 48 | BR30: -176.5148279 | BS30: 44.75053367 | BT30: 2.483381447 | BU30: 2483381.447 | BV30: 0.2558823097 | CA30: 11.32659865 | CC30: 999.5962467
B31: 2.5 | C31: 120 | D31: =Auswertung_Leistung!C281 -> 36.42080121 | E31: 36.42080121 | F31: =Auswertung_Leistung!H281 -> 120 | G31: =Auswertung_Leistung!K281 -> 57.41876273 | H31: =IFERROR(IF(OR(C31="",C31=0,Auswertung_Leistung!T281<20),"<20",Auswertung_Leistung!T281),"") -> 24.83579747 | I31: 18.33579747 | J31: -100 | K31: -145.3464301 | L31: -245.3464301 | M31: -443.0379186 | N31: -279.5115723 | O31: -379.5115723 | P31: 0 | Q31: 344.5604246 | R31: 344.5604246 | S31: 16.62291327 | T31: 7.197906739 | U31: 57.04662493 | V31: 0.2370537347 | W31: 11.39615489 | Y31: 0.2633930385 | Z31: 11.39615489 | AB31: =Auswertung_Leistung!Q281 -> 14.53464301 | AC31: =IF($AN$11=1,AB31*Auswertung_Leistung!Y281,AB31*Auswertung_Leistung!AB281) -> 8.614010614 | AD31: =Auswertung_Leistung!R281 -> 13.97557862 | AE31: =Auswertung_Leistung!S281 -> 22.15189593 | AF31: =Auswertung_Leistung!AD281 -> 46.52314058 | AH31: =Auswertung_Leistung!AF281 -> -0.05688839648 | AI31: =Auswertung_Leistung!U281 -> 21.60016955 | AJ31: =Auswertung_Leistung!V281 -> 59.85990178 | AK31: =Auswertung_Leistung!W281 -> 45 | AL31: =Auswertung_Leistung!X281 -> 305 | AV31: 2.5 | AW31: 100 | AX31: 145.3464301 | AY31: 245.3464301 | AZ31: 279.5115723 | BA31: 379.5115723 | BB31: 0 | BC31: 344.5604246 | BD31: 344.5604246 | BE31: 24.83579747 | BF31: 380 ; 245 | BG31: 31 | BH31: 31 | BI31: 48 | BL31: molare Masse Wasser | BM31: 18.02 | BN31: g/mol | BR31: -163.5263463 | BS31: 44.75053367 | BT31: 2.483381447 | BU31: 2483381.447 | BV31: 0.2370537347 | CA31: 11.39615489 | CC31: 999.5890782
B32: 2 | C32: 120 | D32: =Auswertung_Leistung!C282 -> 14.18502701 | E32: 14.18502701 | F32: =Auswertung_Leistung!H282 -> 120 | G32: =Auswertung_Leistung!K282 -> 45.87319994 | H32: =IFERROR(IF(OR(C32="",C32=0,Auswertung_Leistung!T282<20),"<20",Auswertung_Leistung!T282),"") -> <20 | J32: -40 | K32: -92.01815244 | L32: -132.0181524 | M32: -284.0619828 | N32: -178.0957401 | O32: -218.0957401 | P32: 0 | Q32: 222.9235169 | R32: 222.9235169 | S32: 16.39436351 | T32: 6.763267458 | U32: 58.089227 | V32: 0.1536125165 | W32: 14.35295508 | Y32: 0.1706805739 | Z32: 14.35295508 | AB32: =Auswertung_Leistung!Q282 -> 9.201815244 | AC32: =IF($AN$11=1,AB32*Auswertung_Leistung!Y282,AB32*Auswertung_Leistung!AB282) -> 5.573087922 | AD32: =Auswertung_Leistung!R282 -> 8.904787006 | AE32: =Auswertung_Leistung!S282 -> 14.20309914 | AF32: =Auswertung_Leistung!AD282 -> 6.86082322 | AH32: =Auswertung_Leistung!AF282 -> 2.48127943 | AI32: =Auswertung_Leistung!U282 -> 8.198895071 | AJ32: =Auswertung_Leistung!V282 -> 23.89196217 | AK32: =Auswertung_Leistung!W282 -> 45 | AL32: =Auswertung_Leistung!X282 -> 305 | AV32: 2 | AW32: 40 | AX32: 92.01815244 | AY32: 132.0181524 | AZ32: 178.0957401 | BA32: 218.0957401 | BB32: 0 | BC32: 222.9235169 | BD32: 222.9235169 | BE32: <20 | BF32: 218 ; 132 | BG32: 32 | BH32: 32 | BI32: 48 | BL32: Verdampfungsenthalpie | BM32: =BM29/BM31 ->  | BN32: kJ/g | BR32: -105.9662426 | BS32: 44.75053367 | BT32: 2.483381447 | BU32: 2483381.447 | BV32: 0.1536125165 | CA32: 14.35295508 | CC32: 999.2217142
B33: 2 | C33: =C32 -> 120 | D33: =Auswertung_Leistung!C283 -> 14.18502701 | E33: 14.18502701 | F33: =Auswertung_Leistung!H283 -> 120 | G33: =Auswertung_Leistung!K283 -> 45.87319994 | H33: =IFERROR(IF(OR(C33="",C33=0,Auswertung_Leistung!T283<20),"<20",Auswertung_Leistung!T283),"") -> 22.07316493 | I33: 15.57316493 | J33: -40 | K33: -92.01815244 | L33: -132.0181524 | M33: -284.0619828 | N33: -178.0957401 | O33: =J33+N33 -> -218.0957401 | P33: 0 | Q33: 222.9235169 | R33: 222.9235169 | S33: 16.39436351 | T33: 6.763267458 | U33: 58.089227 | V33: =IFERROR(BV33,"") -> 0.1536125165 | W33: 14.35295508 | Y33: 0.1706805739 | Z33: 14.35295508 | AB33: =Auswertung_Leistung!Q283 -> 9.201815244 | AC33: =IF($AN$11=1,AB33*Auswertung_Leistung!Y283,AB33*Auswertung_Leistung!AB283) -> 5.573087922 | AD33: =Auswertung_Leistung!R283 -> 8.904787006 | AE33: =Auswertung_Leistung!S283 -> 14.20309914 | AG33: =IF(C33="","",$BH$10*F33^$BI$10) -> 2.907084409e+101 | AI33: =Auswertung_Leistung!U283 -> 8.198895071 | AJ33: =Auswertung_Leistung!V283 -> 23.89196217 | AK33: =Auswertung_Leistung!W283 -> 45 | AL33: =Auswertung_Leistung!X283 -> 305 | AV33: 2 | AW33: 40 | AX33: 92.01815244 | AY33: 132.0181524 | AZ33: 178.0957401 | BA33: 218.0957401 | BB33: 0 | BC33: 222.9235169 | BD33: 222.9235169 | BE33: 22.07316493 | BF33: 218 ; 132 | BG33: 33 | BH33: 33 | BI33: 48 | BL33: Verdampfungsenthalpie | BM33: =BM32*1000000 ->  | BN33: J/kg | BR33: -105.9662426 | BS33: 44.75053367 | BT33: 2.483381447 | BU33: 2483381.447 | BV33: 0.1536125165 | CA33: 14.35295508 | CC33: 999.2217142
B34: 2 | C34: 120 | D34: =Auswertung_Leistung!C284 -> 14.18502701 | E34: 14.18502701 | F34: =Auswertung_Leistung!H284 -> 120 | G34: =Auswertung_Leistung!K284 -> 45.87319994 | H34: =IFERROR(IF(OR(C34="",C34=0,Auswertung_Leistung!T284<20),"<20",Auswertung_Leistung!T284),"") -> 22.07316493 | I34: =IFERROR(IF(C34="","",H34-6.5),"") -> 15.57316493 | J34: -40 | K34: -92.01815244 | L34: -132.0181524 | M34: -284.0619828 | N34: -178.0957401 | O34: -218.0957401 | P34: 0 | Q34: 222.9235169 | R34: 222.9235169 | S34: 16.39436351 | T34: 6.763267458 | U34: 58.089227 | V34: =IFERROR(BV34,"") -> 0.1536125165 | W34: 14.35295508 | Y34: =IFERROR(V34*1000/15/60,"") -> 0.1706805739 | Z34: =IFERROR(CA34,"") -> 14.35295508 | AA34: =IFERROR(CK34,"") ->  | AB34: =Auswertung_Leistung!Q284 -> 9.201815244 | AC34: =IF($AN$11=1,AB34*Auswertung_Leistung!Y284,AB34*Auswertung_Leistung!AB284) -> 5.573087922 | AD34: =Auswertung_Leistung!R284 -> 8.904787006 | AE34: =Auswertung_Leistung!S284 -> 14.20309914 | AG34: =IF(C34="","",$BH$10*F34^$BI$10) -> 2.907084409e+101 | AI34: =Auswertung_Leistung!U284 -> 11.3950745 | AJ34: =Auswertung_Leistung!V284 -> 23.89196217 | AK34: =Auswertung_Leistung!W284 -> 45 | AL34: =Auswertung_Leistung!X284 -> 305 | AV34: 2 | AW34: 40 | AX34: 92.01815244 | AY34: 132.0181524 | AZ34: 178.0957401 | BA34: 218.0957401 | BB34: 0 | BC34: 222.9235169 | BD34: 222.9235169 | BE34: 22.07316493 | BF34: 218 ; 132 | BG34: 34 | BH34: 34 | BI34: 48 | BR34: -105.9662426 | BS34: 44.75053367 | BT34: 2.483381447 | BU34: 2483381.447 | BV34: 0.1536125165 | CA34: 14.35295508 | CC34: 999.2217142
B36: =IF(OR(C26<C37,C27<C37,C28<C37,C34<C37,C26>C38,C27>C38,C28>C38,C34>C38),"Grenzwerte","") ->  | K36: DpK = | L36: =Auswertung_Leistung!E271 -> 23.0737973 | M36: [kPa] | BL36: Taupunkttemperatur | BM36: =td_T_grad_rf_prozent(BM27,BM25) ->  | BN36: °C
B37: Minimal | C37: =AP27 -> 45 | D37: =AQ27 -> Pa | K37: DpH = | L37: =Auswertung_Leistung!E272 -> 1.3 | M37: [kPa] | BL37: phi_x (kg_H20/kg_Gesamt Wassergehalt) | BM37: =phi_x($BM$25,Torr_in_Pa($BM$26),$BM$27) ->  | BN37: kg_H20/kg_Gesamt
B38: Maximal | C38: =AP28 -> 305 | D38: =AQ28 -> Pa | BL38: universelle Gaskonstante | BM38: 8.3144598 | BN38: J/ mol K
AV40: =L_BG800 -> Baugröße 800
B41: Baugröße 800 | AV41: Schieberstellung | AW41: QPK Primärleistung | AX41: QSK1) Sekundärleistung | AY41: QKges1) Gesamtleistung | AZ41: QSK2) Sekundärleistung | BA41: QKges2) Gesamtleistung | BB41: QPH Primärleistung | BC41: QSH Sekundärleistung | BD41: QGes Gesamtleistung | BE41: LWA - Schallleistung
A43: =L_Auswahl -> Auswahl | B43: =L_Auslegung -> Schieberstellung | C43: =IF($AQ$7=1,$AO$1,$AN$1) -> Primärdruck | D43: =IF($AQ$7=2,$AO$1,$AN$1) -> Primärvol. | E43: =E24 -> Primärvol. | F43: =L_primaerdruck -> Primärdruck | G43: =L_sekundaervol -> Sekundärvolumenstrom | H43: LWA | I43: LA18 | J43: QPK | K43: QSK1 | L43: QKges1 | M43: QTotal2 | N43: QSensibel,K2 | O43: QKges2 | P43: QPH | Q43: QSH | R43: Qhges | S43: tKWRL | T43: tKWRL2 | U43: tWWRL | V43: =V24 -> Kondensat ² | W43: =W24 -> Zulufttemp.² | Y43: Tropfen | Z43: Zulufttemp. | AA43: Taupunkt nach WT | AB43: qSK1) | AC43: qSH | AD43: qSK2) | AE43: qtotal2) | AF43: =Auswertung_Leistung!AD293 -> Primärdruck Baugröße 800; S5 | AG43: =Auswertung_Leistung!AE293 -> qSK1) - aus Primärdruck der gemessenen BG | AH43: =Auswertung_Leistung!AF293 -> Kühlleistung "mit Schieber" im Vergleich zu "ohne Schieber" | AI43: Primärvolumenstrom Minimal | AJ43: Primärvolumenstrom Minimal | AK43: Primärdruck Minimal | AL43: Primärdruck Maximal | AV43: Schieberstellung | AW43: QPK | AX43: QSK1) | AY43: QKges1) | AZ43: QSensibel,K2) | BA43: QKges2) | BB43: QPH | BC43: QSH | BD43: Qhges | BE43: LWA | BF43: QKges2) ; QKges1) | BG43: Zeile | BH43: Zeile | BI43: Spalte | BQ43: Wassermenge Gesamt in der Luft | BR43: latente Leistung | BV43: Kondensatmenge | CA43: Zulufttemperatur | CK43: Taupunkt im Kasten
C44: =IF($AQ$7=1,$AO$2,$AN$2) -> [Pa] | D44: =IF($AQ$7=2,$AO$2,$AN$2) -> [m³/h] | E44: [m³/h] | F44: [Pa] | G44: [m³/h] | H44: [dB(A)] | I44: [dB(A)] | J44: [W] | K44: [W] | L44: [W] | M44: [W] | N44: [W] | O44: [W] | P44: [W] | Q44: [W] | R44: [W] | S44: [°C] | T44: [°C] | U44: [°C] | V44: [kg/h] bzw. [l / h] | W44: [°C] | Y44: [Anzahl / min] | Z44: =CA44 -> [°C] | AA44: [°C] | AB44: [W] | AC44: [W] | AD44: [W] | AE44: [W] | AF44: =Auswertung_Leistung!AD294 -> [Pa] | AG44: =Auswertung_Leistung!AE294 -> [W/K] | AH44: =Auswertung_Leistung!AF294 -> 0 | AI44: [m³/h] | AJ44: [m³/h] | AK44: [m³/h] | AL44: [m³/h] | AM44: Grenzen der Auslegung | AP44: Abhängig von Abfrage | AT44: heizen | AW44: [W] | AX44: [W] | AY44: [W] | AZ44: [W] | BA44: [W] | BB44: [W] | BC44: [W] | BD44: [W] | BE44: [dB(A)] | BQ44: kg H20 / h | BR44: W bzw. J / s | BV44: kg / h bzw.l / h | CA44: [°C] | CK44: [°C]
B45: 5 | C45: =$J$17 -> 120 | D45: =Auswertung_Leistung!C295 -> 80.73043386 | E45: =IF(C45="","",IF($AQ$7=1,C45,D45)) -> 80.73043386 | F45: =IF(C45="","",IF($AQ$7=1,D45,C45)) -> 120 | G45: =Auswertung_Leistung!K295 -> 164.0244308 | H45: =IFERROR(IF(OR(C45="",C45=0,Auswertung_Leistung!T295<20),"<20",Auswertung_Leistung!T295),"") -> 28.28311069 | I45: =IFERROR(IF(C45="","",H45-6.5),"") -> 21.78311069 | J45: =ROUND(E45*1.2*1004.5*($J$16-$J$15)/3600,-1) -> -220 | K45: =IF(C45="","",IF(C45=0,,IFERROR((AB45*($J$7-$J$6)),""))) -> -411.3421858 | L45: =J45+K45 -> -631.3421858 | M45: =IFERROR(AE45*($J$8-$J$6),"") -> -1168.506992 | N45: =IFERROR(AD45*($J$8-$J$6),"") -> -765.6657095 | O45: =J45+N45 -> -985.6657095 | P45: =ROUND(E45*1.2*1004.5*($Q$16-$Q$15)/3600,-1) -> 0 | Q45: =IF(G45=0,,IFERROR((AC45*($Q$7-$Q$6)),"")) -> 883.7392322 | R45: =Q45+P45 -> 883.7392322 | S45: =IF(IFERROR(IF(K45=0,,$J$7-((K45/(4.2*$J$13/3.6)))),)=0,"",IFERROR(IF(K45=0,,$J$7-((K45/(4.2*$J$13/3.6)))),)) -> 17.76289508 | T45: =IF(IFERROR(IF(N45=0,,$J$8-((N45/(4.2*$J$13/3.6)))),)=0,"",IFERROR(IF(N45=0,,$J$8-((N45/(4.2*$J$13/3.6)))),)) -> 9.281424469 | U45: =IF(C45="","",IFERROR(IF(Q45=0,,($Q$7-((Q45/(4.2*$Q$13/3.6))))),)) -> 52.4250923 | V45: =IFERROR(BV45,"") -> 0.5839733644 | W45: =Z45 -> 11.9960061 | Y45: =IFERROR(V45*1000/15/60,"") -> 0.6488592938 | Z45: =IFERROR(CA45,"") -> 11.9960061 | AA45: =IFERROR(CK45,"") ->  | AB45: =Auswertung_Leistung!Q295 -> 41.13421858 | AC45: =IF($AN$11=1,AB45*Auswertung_Leistung!Y295,AB45*Auswertung_Leistung!AB295) -> 22.09348081 | AD45: =Auswertung_Leistung!R295 -> 38.28328547 | AE45: =Auswertung_Leistung!S295 -> 58.42534962 | AF45: =Auswertung_Leistung!AD295 -> 120.0016282 | AG45: =Auswertung_Leistung!AE295 -> 41.13452659 | AH45: =Auswertung_Leistung!AF295 -> 7.488059747e-06 | AI45: =Auswertung_Leistung!U295 -> 49.79708815 | AJ45: =Auswertung_Leistung!V295 -> 127.8202875 | AK45: =Auswertung_Leistung!W295 -> 45 | AL45: =Auswertung_Leistung!X295 -> 305 | AM45: =$AM$96 -> Primärdurck | AN45: Primärvolumenstrom | AO45: =$AO$96 -> Wassermassenstrom | AP45: =IF($AQ$7=1,AN45,AM45) -> Primärdurck | AQ45: Einheit | AR45: =IF($AQ$7=2,AN45,AM45) -> Primärvolumenstrom | AS45: Einheit | AT45: =$AO$96 -> Wassermassenstrom | AV45: =IF(OR(F45<$AM$46,F45>$AM$47),"",B45) -> 5 | AW45: =IF(AV45="","",ABS(J45)) -> 220 | AX45: =IF(AV45="","",ABS(K45)) -> 411.3421858 | AY45: =IF(AV45="","",ABS(L45)) -> 631.3421858 | AZ45: =IF(AV45="","",ABS(N45)) -> 765.6657095 | BA45: =IF(AV45="","",(AW45+AZ45)) -> 985.6657095 | BB45: =IF(AV45="","",(P45)) -> 0 | BC45: =IF(AV45="","",ABS(Q45)) -> 883.7392322 | BD45: =IF(AV45="","",(BB45+BC45)) -> 883.7392322 | BE45: =IF(AV45="","",H45) -> 28.28311069 | BF45: =IF(AV45="","",CONCATENATE(ROUND(BA45,0),"W ; ",ROUND(AY45,0), "W")) -> 986W ; 631W | BG45: =IF(AV45="","",ROW(AV45)) -> 45 | BH45: =MIN(BG45:BG53) -> 45 | BI45: =COLUMN(AV45) -> 48 | BQ45: =$BM$37*(G45*$BM$28) ->  | BR45: =M45-N45 -> -402.8412829 | BS45: =50.09-0.9298*(273.15+$J$8)/1000-65.19*((273.15+$J$8)/1000)^2 -> 44.75053367 | BT45: =BS45/$BM$31 -> 2.483381447 | BU45: =BT45*1000000 -> 2483381.447 | BV45: =ABS(BR45)/BU45*3600 -> 0.5839733644 | BW45: =BQ45/$BM$53 ->  | BX45: =G45-BW45 ->  | BY45: =BX45*$BM$52 ->  | BZ45: =BQ45-BV45 ->  | CA45: =N45*3/G45+$BM$27 -> 11.9960061 | CB45: =dichteLuft(0,Torr_in_Pa($BM$26),CA45) ->  | CC45: =999.972-7*10^(-3)*(CA45-4)^2 -> 999.5244472 | CD45: =BY45/CB45*$BM$52 ->  | CE45: =BZ45/CC45*$BM$52 ->  | CF45: =BZ45+BY45 ->  | CG45: =CD45+CE45 ->  | CH45: =CF45/CG45 ->  | CI45: =BZ45/CG45/CH45 ->  | CJ45: =rf_prozent_von_T_grad_x_hf_gH2O_kg_trLuft(CA45,CI45*1000) ->  | CK45: =td_T_grad_rf_prozent(CA45,CJ45) -> 
B46: 4.5 | C46: =C45 -> 120 | D46: =Auswertung_Leistung!C296 -> 96.94485741 | E46: =IF(C46="","",IF($AQ$7=1,C46,D46)) -> 96.94485741 | F46: =IF(C46="","",IF($AQ$7=1,D46,C46)) -> 120 | G46: =Auswertung_Leistung!K296 -> 154.8953062 | H46: =IFERROR(IF(OR(C46="",C46=0,Auswertung_Leistung!T296<20),"<20",Auswertung_Leistung!T296),"") -> 28.02961334 | I46: =IFERROR(IF(C46="","",H46-6.5),"") -> 21.52961334 | J46: =ROUND(E46*1.2*1004.5*($J$16-$J$15)/3600,-1) -> -260 | K46: -377.5795515 | L46: =J46+K46 -> -637.5795515 | M46: -1081.041976 | N46: =IFERROR(AD46*($J$8-$J$6),"") -> -705.1845301 | O46: =J46+N46 -> -965.1845301 | P46: 0 | Q46: 821.7673973 | R46: =Q46+P46 -> 821.7673973 | S46: 17.61819808 | T46: 9.022219415 | U46: 52.95627945 | V46: =IFERROR(BV46,"") -> 0.5448566142 | W46: =Z46 -> 12.34204197 | Y46: =IFERROR(V46*1000/15/60,"") -> 0.605396238 | Z46: =IFERROR(CA46,"") -> 12.34204197 | AA46: =IFERROR(CK46,"") ->  | AB46: =Auswertung_Leistung!Q296 -> 37.75795515 | AC46: =IF($AN$11=1,AB46*Auswertung_Leistung!Y296,AB46*Auswertung_Leistung!AB296) -> 20.54418493 | AD46: =Auswertung_Leistung!R296 -> 35.2592265 | AE46: =Auswertung_Leistung!S296 -> 54.05209882 | AF46: =Auswertung_Leistung!AD296 -> 173.9965511 | AG46: =Auswertung_Leistung!AE296 -> 49.00072874 | AH46: =Auswertung_Leistung!AF296 -> 0.2977590697 | AI46: =Auswertung_Leistung!U296 -> 58.89633326 | AJ46: =Auswertung_Leistung!V296 -> 155.7281953 | AK46: =Auswertung_Leistung!W296 -> 45 | AL46: =Auswertung_Leistung!X296 -> 305 | AM46: =AM97 -> 45 | AN46: =MIN(AI45:AI53) -> 11.3950745 | AO46: =AO97 -> 50 | AP46: =IF($AQ$7=1,AN46,AM46) -> 45 | AQ46: =IF($AQ$7=1,"m³/h","Pa") -> Pa | AR46: =IF($AQ$7=2,AN46,AM46) -> 11.3950745 | AS46: =IF($AQ$7=2,"m³/h","Pa") -> m³/h | AT46: =AT97 -> 50 | AV46: =IF(OR(F46<$AM$46,F46>$AM$47),"",B46) -> 4.5 | AW46: =IF(AV46="","",ABS(J46)) -> 260 | AX46: 377.5795515 | AY46: 637.5795515 | AZ46: 705.1845301 | BA46: 965.1845301 | BB46: 0 | BC46: 821.7673973 | BD46: 821.7673973 | BE46: =IF(AV46="","",H46) -> 28.02961334 | BF46: =IF(AV46="","",CONCATENATE(ROUND(BA46,0),"W ; ",ROUND(AY46,0), "W")) -> 965W ; 638W | BG46: =IF(AV46="","",ROW(AV46)) -> 46 | BH46: =IF(COUNTIF($BG$45:$BG$53,BH45+1)=1,BH45+1,IF(COUNTIF($BG$45:$BG$53,BH45+2)=1,BH45+2,IF(COUNTIF($BG$45:$BG$53,BH45+3)=1,BH45+3,IF(COUNTIF($BG$45:$BG$53,BH45+4)=1,BH45+4,IF(COUNTIF($BG$45:$BG$53,BH45+5)=1,BH45+5,IF(COUNTIF($BG$45:$BG$53,BH45+6)=1,BH45+6,IF(COUNTIF($BG$45:$BG$53,BH45+7)=1,BH45+7,IF(COUNTIF($BG$45:$BG$53,BH45+8)=1,BH45+8,"")))))))) -> 46 | BI46: 48 | BR46: =M46-N46 -> -375.8574464 | BS46: 44.75053367 | BT46: 2.483381447 | BU46: =BT46*1000000 -> 2483381.447 | BV46: =ABS(BR46)/BU46*3600 -> 0.5448566142 | BW46: =BQ46/$BM$53 ->  | BY46: =BX46*$BM$52 ->  | BZ46: =BQ46-BV46 ->  | CA46: =N46*3/G46+$BM$27 -> 12.34204197 | CC46: =999.972-7*10^(-3)*(CA46-4)^2 -> 999.4848724 | CD46: =BY46/CB46*$BM$52 ->  | CE46: =BZ46/CC46*$BM$52 ->  | CF46: =BZ46+BY46 ->  | CG46: =CD46+CE46 ->  | CH46: =CF46/CG46 ->  | CI46: =BZ46/CG46/CH46 ->  | CJ46: =rf_prozent_von_T_grad_x_hf_gH2O_kg_trLuft(CA46,CI46*1000) ->  | CK46: =td_T_grad_rf_prozent(CA46,CJ46) -> 
B47: 4 | C47: =C46 -> 120 | D47: =Auswertung_Leistung!C297 -> 60.78025836 | E47: 60.78025836 | F47: =IF(C47="","",IF($AQ$7=1,D47,C47)) -> 120 | G47: =Auswertung_Leistung!K297 -> 98.92638629 | H47: =IFERROR(IF(OR(C47="",C47=0,Auswertung_Leistung!T297<20),"<20",Auswertung_Leistung!T297),"") -> 26.91399675 | I47: =IFERROR(IF(C47="","",H47-6.5),"") -> 20.41399675 | J47: -160 | K47: -263.0371513 | L47: -423.0371513 | M47: -789.4473115 | N47: -501.9992869 | O47: -661.9992869 | P47: 0 | Q47: 629.0326329 | R47: 629.0326329 | S47: 17.12730208 | T47: 8.151425515 | U47: 54.60829172 | V47: =IFERROR(BV47,"") -> 0.4166951033 | W47: =Z47 -> 10.77658067 | Y47: =IFERROR(V47*1000/15/60,"") -> 0.4629945592 | Z47: =IFERROR(CA47,"") -> 10.77658067 | AA47: =IFERROR(CK47,"") ->  | AB47: =Auswertung_Leistung!Q297 -> 26.30371513 | AC47: =IF($AN$11=1,AB47*Auswertung_Leistung!Y297,AB47*Auswertung_Leistung!AB297) -> 15.72581582 | AD47: =Auswertung_Leistung!R297 -> 25.09996435 | AE47: =Auswertung_Leistung!S297 -> 39.47236557 | AF47: =Auswertung_Leistung!AD297 -> 67.44486219 | AG47: =Auswertung_Leistung!AE297 -> 28.16454397 | AH47: =Auswertung_Leistung!AF297 -> 0.07074395503 | AI47: =Auswertung_Leistung!U297 -> 36.63080659 | AJ47: =Auswertung_Leistung!V297 -> 98.38168189 | AK47: =Auswertung_Leistung!W297 -> 45 | AL47: =Auswertung_Leistung!X297 -> 305 | AM47: =AM98 -> 305 | AN47: =MAX(AJ45:AJ53) -> 155.7281953 | AO47: =AO98 -> 300 | AP47: =IF($AQ$7=1,AN47,AM47) -> 305 | AQ47: =IF($AQ$7=1,"m³/h","Pa") -> Pa | AR47: =IF($AQ$7=2,AN47,AM47) -> 155.7281953 | AS47: =IF($AQ$7=2,"m³/h","Pa") -> m³/h | AT47: =AT98 -> 300 | AV47: 4 | AW47: 160 | AX47: 263.0371513 | AY47: 423.0371513 | AZ47: 501.9992869 | BA47: 661.9992869 | BB47: 0 | BC47: 629.0326329 | BD47: 629.0326329 | BE47: 26.91399675 | BF47: 662W ; 423W | BG47: =IF(AV47="","",ROW(AV47)) -> 47 | BH47: =IF(COUNTIF($BG$45:$BG$53,BH46+1)=1,BH46+1,IF(COUNTIF($BG$45:$BG$53,BH46+2)=1,BH46+2,IF(COUNTIF($BG$45:$BG$53,BH46+3)=1,BH46+3,IF(COUNTIF($BG$45:$BG$53,BH46+4)=1,BH46+4,IF(COUNTIF($BG$45:$BG$53,BH46+5)=1,BH46+5,IF(COUNTIF($BG$45:$BG$53,BH46+6)=1,BH46+6,IF(COUNTIF($BG$45:$BG$53,BH46+7)=1,BH46+7,IF(COUNTIF($BG$45:$BG$53,BH46+8)=1,BH46+8,"")))))))) -> 47 | BI47: 48 | BR47: =M47-N47 -> -287.4480245 | BS47: 44.75053367 | BT47: 2.483381447 | BU47: =BT47*1000000 -> 2483381.447 | BV47: =ABS(BR47)/BU47*3600 -> 0.4166951033 | BW47: =BQ47/$BM$53 ->  | BY47: =BX47*$BM$52 ->  | BZ47: =BQ47-BV47 ->  | CA47: 10.77658067 | CC47: =999.972-7*10^(-3)*(CA47-4)^2 -> 999.6505457 | CD47: =BY47/CB47*$BM$52 ->  | CE47: =BZ47/CC47*$BM$52 ->  | CF47: =BZ47+BY47 ->  | CG47: =CD47+CE47 ->  | CH47: =CF47/CG47 ->  | CI47: =BZ47/CG47/CH47 ->  | CJ47: =rf_prozent_von_T_grad_x_hf_gH2O_kg_trLuft(CA47,CI47*1000) ->  | CK47: =td_T_grad_rf_prozent(CA47,CJ47) -> 
B48: 3.5 | C48: 120 | D48: =Auswertung_Leistung!C298 -> 60.65828271 | E48: 60.65828271 | F48: 120 | G48: =Auswertung_Leistung!K298 -> 81.62706313 | H48: =IFERROR(IF(OR(C48="",C48=0,Auswertung_Leistung!T298<20),"<20",Auswertung_Leistung!T298),"") -> 28.02032197 | I48: 21.52032197 | J48: -160 | K48: -201.9880401 | L48: -361.9880401 | M48: -614.7912121 | N48: -388.1544235 | O48: -548.1544235 | P48: 0 | Q48: 499.7084128 | R48: 499.7084128 | S48: 16.86566303 | T48: 7.663518958 | U48: 55.71678503 | V48: 0.3285409256 | W48: 11.73434807 | Y48: =IFERROR(V48*1000/15/60,"") -> 0.3650454729 | Z48: =IFERROR(CA48,"") -> 11.73434807 | AA48: =IFERROR(CK48,"") ->  | AB48: =Auswertung_Leistung!Q298 -> 20.19880401 | AC48: =IF($AN$11=1,AB48*Auswertung_Leistung!Y298,AB48*Auswertung_Leistung!AB298) -> 12.49271032 | AD48: =Auswertung_Leistung!R298 -> 19.40772117 | AE48: =Auswertung_Leistung!S298 -> 30.73956061 | AF48: =Auswertung_Leistung!AD298 -> 67.17039526 | AG48: =Auswertung_Leistung!AE298 -> 28.0788275 | AH48: =Auswertung_Leistung!AF298 -> 0.3901232709 | AI48: =Auswertung_Leistung!U298 -> 36.27212445 | AJ48: =Auswertung_Leistung!V298 -> 98.91824358 | AK48: =Auswertung_Leistung!W298 -> 45 | AL48: =Auswertung_Leistung!X298 -> 305 | AP48: =AVERAGE(AP46:AP47) -> 175 | AR48: =AVERAGE(AR46:AR47) -> 83.56163493 | AV48: 3.5 | AW48: 160 | AX48: 201.9880401 | AY48: 361.9880401 | AZ48: 388.1544235 | BA48: 548.1544235 | BB48: 0 | BC48: 499.7084128 | BD48: 499.7084128 | BE48: 28.02032197 | BF48: 548W ; 362W | BG48: 48 | BH48: 48 | BI48: 48 | BR48: -226.6367887 | BS48: 44.75053367 | BT48: 2.483381447 | BU48: 2483381.447 | BV48: 0.3285409256 | CA48: 11.73434807 | CC48: 999.553259
B49: 3 | C49: 120 | D49: =Auswertung_Leistung!C299 -> 39.96308752 | E49: 39.96308752 | F49: 120 | G49: =Auswertung_Leistung!K299 -> 86.35093392 | H49: =IFERROR(IF(OR(C49="",C49=0,Auswertung_Leistung!T299<20),"<20",Auswertung_Leistung!T299),"") -> 28.35083142 | I49: 21.85083142 | J49: -110 | K49: -216.2034877 | L49: -326.2034877 | M49: -655.5626528 | N49: -414.6891157 | O49: -524.6891157 | P49: 0 | Q49: 529.8342994 | R49: 529.8342994 | S49: 16.92658638 | T49: 7.777239067 | U49: 55.45856315 | V49: 0.3491790336 | W49: 11.59289065 | Y49: 0.387976704 | Z49: 11.59289065 | AB49: =Auswertung_Leistung!Q299 -> 21.62034877 | AC49: =IF($AN$11=1,AB49*Auswertung_Leistung!Y299,AB49*Auswertung_Leistung!AB299) -> 13.24585749 | AD49: =Auswertung_Leistung!R299 -> 20.73445578 | AE49: =Auswertung_Leistung!S299 -> 32.77813264 | AF49: =Auswertung_Leistung!AD299 -> 28.79338554 | AG49: =Auswertung_Leistung!AE299 -> 13.88495792 | AH49: =Auswertung_Leistung!AF299 -> -0.3577828894 | AI49: =Auswertung_Leistung!U299 -> 23.72394587 | AJ49: =Auswertung_Leistung!V299 -> 65.62145899 | AK49: =Auswertung_Leistung!W299 -> 45 | AL49: =Auswertung_Leistung!X299 -> 305 | AV49: 3 | AW49: 110 | AX49: 216.2034877 | AY49: 326.2034877 | AZ49: 414.6891157 | BA49: 524.6891157 | BB49: 0 | BC49: 529.8342994 | BD49: 529.8342994 | BE49: 28.35083142 | BF49: 525W ; 326W | BG49: 49 | BH49: 49 | BI49: 48 | BR49: -240.8735371 | BS49: 44.75053367 | BT49: 2.483381447 | BU49: 2483381.447 | BV49: 0.3491790336 | CA49: 11.59289065 | CC49: 999.5684361
B50: 2.5 | C50: 120 | D50: =Auswertung_Leistung!C300 -> 50.61874067 | E50: 50.61874067 | F50: 120 | G50: =Auswertung_Leistung!K300 -> 79.8023482 | H50: =IFERROR(IF(OR(C50="",C50=0,Auswertung_Leistung!T300<20),"<20",Auswertung_Leistung!T300),"") -> 26.26541588 | I50: 19.76541588 | J50: -140 | K50: -198.1320692 | L50: -338.1320692 | M50: -603.9365364 | N50: -381.0221288 | O50: -521.0221288 | P50: 0 | Q50: 491.9855746 | R50: 491.9855746 | S50: 16.84913744 | T50: 7.63295198 | U50: 55.78298079 | V50: 0.3231448268 | W50: 11.67628131 | Y50: 0.3590498075 | Z50: 11.67628131 | AB50: =Auswertung_Leistung!Q300 -> 19.81320692 | AC50: =IF($AN$11=1,AB50*Auswertung_Leistung!Y300,AB50*Auswertung_Leistung!AB300) -> 12.29963936 | AD50: =Auswertung_Leistung!R300 -> 19.05110644 | AE50: =Auswertung_Leistung!S300 -> 30.19682682 | AF50: =Auswertung_Leistung!AD300 -> 46.52314058 | AG50: =Auswertung_Leistung!AE300 -> 21.00833756 | AH50: =Auswertung_Leistung!AF300 -> 0.0603198988 | AI50: =Auswertung_Leistung!U300 -> 30.02057463 | AJ50: =Auswertung_Leistung!V300 -> 83.19511773 | AK50: =Auswertung_Leistung!W300 -> 45 | AL50: =Auswertung_Leistung!X300 -> 305 | AV50: 2.5 | AW50: 140 | AX50: 198.1320692 | AY50: 338.1320692 | AZ50: 381.0221288 | BA50: 521.0221288 | BB50: 0 | BC50: 491.9855746 | BD50: 491.9855746 | BE50: 26.26541588 | BF50: 521W ; 338W | BG50: 50 | BH50: 50 | BI50: 48 | BR50: -222.9144076 | BS50: 44.75053367 | BT50: 2.483381447 | BU50: 2483381.447 | BV50: 0.3231448268 | CA50: 11.67628131 | CC50: 999.5595229
B51: 2 | C51: 120 | D51: =Auswertung_Leistung!C301 -> 19.7147833 | E51: 19.7147833 | F51: 120 | G51: =Auswertung_Leistung!K301 -> 63.7559728 | H51: =IFERROR(IF(OR(C51="",C51=0,Auswertung_Leistung!T301<20),"<20",Auswertung_Leistung!T301),"") -> 20.8546051 | I51: 14.3546051 | J51: -50 | K51: -124.8028899 | L51: -174.8028899 | M51: -385.2691608 | N51: -241.5486778 | O51: -291.5486778 | P51: 0 | Q51: 320.4478729 | R51: 320.4478729 | S51: 16.53486953 | T51: 7.035208619 | U51: 57.25330395 | V51: 0.2083424355 | W51: =Z51 -> 14.63406828 | Y51: 0.231491595 | Z51: =IFERROR(CA51,"") -> 14.63406828 | AB51: =Auswertung_Leistung!Q301 -> 12.48028899 | AC51: =IF($AN$11=1,AB51*Auswertung_Leistung!Y301,AB51*Auswertung_Leistung!AB301) -> 8.011196823 | AD51: =Auswertung_Leistung!R301 -> 12.07743389 | AE51: =Auswertung_Leistung!S301 -> 19.26345804 | AF51: =Auswertung_Leistung!AD301 -> 6.86082322 | AG51: =Auswertung_Leistung!AE301 -> 3.584971917 | AH51: =Auswertung_Leistung!AF301 -> -0.7127492866 | AI51: =Auswertung_Leistung!U301 -> 11.3950745 | AJ51: =Auswertung_Leistung!V301 -> 33.20577792 | AK51: =Auswertung_Leistung!W301 -> 45 | AL51: =Auswertung_Leistung!X301 -> 305 | AV51: 2 | AW51: 50 | AX51: 124.8028899 | AY51: 174.8028899 | AZ51: 241.5486778 | BA51: 291.5486778 | BB51: 0 | BC51: 320.4478729 | BD51: 320.4478729 | BE51: 20.8546051 | BF51: 292W ; 175W | BG51: 51 | BH51: 51 | BI51: 48 | BR51: -143.720483 | BS51: 44.75053367 | BT51: 2.483381447 | BU51: 2483381.447 | BV51: 0.2083424355 | CA51: =N51*3/G51+$BM$27 -> 14.63406828 | CC51: 999.1804161
B52: 2 | C52: =C51 -> 120 | D52: =Auswertung_Leistung!C302 -> 19.7147833 | E52: 19.7147833 | F52: =IF(C52="","",IF($AQ$7=1,D52,C52)) -> 120 | G52: =Auswertung_Leistung!K302 -> 63.7559728 | H52: =IFERROR(IF(OR(C52="",C52=0,Auswertung_Leistung!T302<20),"<20",Auswertung_Leistung!T302),"") -> 23.50278333 | I52: =IFERROR(IF(C52="","",H52-6.5),"") -> 17.00278333 | J52: -50 | K52: -124.8028899 | L52: -174.8028899 | M52: -385.2691608 | N52: -241.5486778 | O52: -291.5486778 | P52: 0 | Q52: 320.4478729 | R52: 320.4478729 | S52: 16.53486953 | T52: 7.035208619 | U52: 57.25330395 | V52: =IFERROR(BV52,"") -> 0.2083424355 | W52: 14.63406828 | Y52: 0.231491595 | Z52: 14.63406828 | AB52: =Auswertung_Leistung!Q302 -> 12.48028899 | AC52: =IF($AN$11=1,AB52*Auswertung_Leistung!Y302,AB52*Auswertung_Leistung!AB302) -> 8.011196823 | AD52: =Auswertung_Leistung!R302 -> 12.07743389 | AE52: =Auswertung_Leistung!S302 -> 19.26345804 | AG52: =IF(C52="","",$BH$10*F52^$BI$10) -> 2.907084409e+101 | AI52: =Auswertung_Leistung!U302 -> 11.3950745 | AJ52: =Auswertung_Leistung!V302 -> 33.20577792 | AK52: =Auswertung_Leistung!W302 -> 45 | AL52: =Auswertung_Leistung!X302 -> 305 | AV52: 2 | AW52: 50 | AX52: 124.8028899 | AY52: 174.8028899 | AZ52: 241.5486778 | BA52: 291.5486778 | BB52: 0 | BC52: 320.4478729 | BD52: 320.4478729 | BE52: 23.50278333 | BF52: 292W ; 175W | BG52: 52 | BH52: 52 | BI52: 48 | BL52: Dichte Luft_Trocken (T_Anszaug_Druck) | BM52: =dichteLuft(0,Torr_in_Pa(BM26),BM27) ->  | BN52: kg/m³ | BR52: -143.720483 | BS52: 44.75053367 | BT52: 2.483381447 | BU52: 2483381.447 | BV52: 0.2083424355 | CA52: 14.63406828 | CC52: 999.1804161
B53: 2 | C53: 120 | D53: =Auswertung_Leistung!C303 -> 19.7147833 | E53: 19.7147833 | F53: =IF(C53="","",IF($AQ$7=1,D53,C53)) -> 120 | G53: =Auswertung_Leistung!K303 -> 63.7559728 | H53: =IFERROR(IF(OR(C53="",C53=0,Auswertung_Leistung!T303<20),"<20",Auswertung_Leistung!T303),"") -> 23.50278333 | I53: =IFERROR(IF(C53="","",H53-6.5),"") -> 17.00278333 | J53: -50 | K53: -124.8028899 | L53: -174.8028899 | M53: -385.2691608 | N53: -241.5486778 | O53: -291.5486778 | P53: 0 | Q53: 320.4478729 | R53: 320.4478729 | S53: 16.53486953 | T53: 7.035208619 | U53: 57.25330395 | V53: =IFERROR(BV53,"") -> 0.2083424355 | W53: 14.63406828 | Y53: =IFERROR(V53*1000/15/60,"") -> 0.231491595 | Z53: =IFERROR(CA53,"") -> 14.63406828 | AA53: =IFERROR(CK53,"") ->  | AB53: =Auswertung_Leistung!Q303 -> 12.48028899 | AC53: =IF($AN$11=1,AB53*Auswertung_Leistung!Y303,AB53*Auswertung_Leistung!AB303) -> 8.011196823 | AD53: =Auswertung_Leistung!R303 -> 12.07743389 | AE53: =Auswertung_Leistung!S303 -> 19.26345804 | AG53: 2.907084409e+101 | AI53: =Auswertung_Leistung!U303 -> 11.3950745 | AJ53: =Auswertung_Leistung!V303 -> 33.20577792 | AK53: =Auswertung_Leistung!W303 -> 45 | AL53: =Auswertung_Leistung!X303 -> 305 | AV53: 2 | AW53: 50 | AX53: 124.8028899 | AY53: 174.8028899 | AZ53: 241.5486778 | BA53: 291.5486778 | BB53: 0 | BC53: 320.4478729 | BD53: 320.4478729 | BE53: 23.50278333 | BF53: 292W ; 175W | BG53: 53 | BH53: 53 | BI53: 48 | BL53: Dichte Wasser (T_Ansuag_Druck) | BM53: =999.972-7*10^(-3)*(BM27-4)^2 -> 996.584 | BN53: kg/m³ | BR53: -143.720483 | BS53: 44.75053367 | BT53: 2.483381447 | BU53: 2483381.447 | BV53: 0.2083424355 | CA53: 14.63406828 | CC53: 999.1804161
B55: =IF(OR(C45<C56,C46<C56,C47<C56,C53<C56,C45>C57,C46>C57,C47>C57,C53>C57),"Grenzwerte","") ->  | C55: 0 | K55: DpK = | L55: =Auswertung_Leistung!E290 -> 28.20130781 | M55: [kPa]
B56: Minimal | C56: =AP46 -> 45 | D56: =AQ46 -> Pa | K56: DpH = | L56: =Auswertung_Leistung!E291 -> 1.6 | M56: [kPa]
B57: Maximal | C57: =AP47 -> 305 | D57: =AQ47 -> Pa
AV59: =L_BG1000 -> Baugröße 1000
B60: Baugröße 1000 | AV60: Schieberstellung | AW60: QPK Primärleistung | AX60: QSK1) Sekundärleistung | AY60: QKges1) Gesamtleistung | AZ60: QSK2) Sekundärleistung | BA60: QKges2) Gesamtleistung | BB60: QPH Primärleistung | BC60: QSH Sekundärleistung | BD60: QGes Gesamtleistung | BE60: LWA - Schallleistung
A62: =A43 -> Auswahl | B62: =L_Auslegung -> Schieberstellung | C62: =IF($AQ$7=1,$AO$1,$AN$1) -> Primärdruck | D62: =IF($AQ$7=2,$AO$1,$AN$1) -> Primärvol. | E62: =E43 -> Primärvol. | F62: =L_primaerdruck -> Primärdruck | G62: =G43 -> Sekundärvolumenstrom | H62: LWA | I62: LA18 | J62: QPK | K62: QSK1 | L62: QKges1 | M62: QTotal2 | N62: QSensibel,K2 | O62: QKges2 | P62: QPH | Q62: QSH | R62: Qhges | S62: tKWRL | T62: tKWRL2 | U62: tWWRL | V62: =V24 -> Kondensat ² | W62: =W24 -> Zulufttemp.² | Y62: Tropfen | Z62: Zulufttemp. | AA62: Taupunkt nach WT | AB62: qSK1) | AC62: qSH | AD62: qSK2) | AE62: qtotal2) | AF62: =Auswertung_Leistung!AD312 -> Primärdruck Baugröße 800; S5 | AH62: =Auswertung_Leistung!AF312 -> Kühlleistung "mit" Schieber im Vergleich zu "ohne Schieber" | AI62: Primärvolumenstrom Minimal | AJ62: Primärvolumenstrom Minimal | AK62: Primärdruck Minimal | AL62: Primärdruck Maximal | AV62: Schieberstellung | AW62: QPK | AX62: QSK1) | AY62: QKges1) | AZ62: QSensibel,K2) | BA62: QKges2) | BB62: QPH | BC62: QSH | BD62: Qhges | BE62: LWA | BF62: QKges2) ; QKges1) | BG62: Zeile | BH62: Zeile | BI62: Spalte | BQ62: Wassermenge Gesamt in der Luft | BR62: latente Leistung | BV62: Kondensatmenge | CA62: Zulufttemperatur | CK62: Taupunkt im Kasten
C63: =IF($AQ$7=1,$AO$2,$AN$2) -> [Pa] | D63: =IF($AQ$7=2,$AO$2,$AN$2) -> [m³/h] | E63: [m³/h] | F63: [Pa] | G63: [m³/h] | H63: [dB(A)] | I63: [dB(A)] | J63: [W] | K63: [W] | L63: [W] | M63: [W] | N63: [W] | O63: [W] | P63: [W] | Q63: [W] | R63: [W] | S63: [°C] | T63: [°C] | U63: [°C] | V63: [kg/h] bzw. [l / h] | W63: [°C] | Y63: [Anzahl / min] | Z63: =CA63 -> [°C] | AA63: [°C] | AB63: [W] | AC63: [W] | AD63: [W] | AE63: [W] | AF63: =Auswertung_Leistung!AD313 -> [Pa] | AH63: =Auswertung_Leistung!AF313 -> 0 | AI63: [m³/h] | AJ63: [m³/h] | AK63: [m³/h] | AL63: [m³/h] | AM63: Grenzen der Auslegung | AP63: Abhängig von Abfrage | AT63: heizen | AW63: [W] | AX63: [W] | AY63: [W] | AZ63: [W] | BA63: [W] | BB63: [W] | BC63: [W] | BD63: [W] | BE63: [dB(A)] | BQ63: kg H20 / h | BR63: W bzw. J / s | BV63: kg / h bzw.l / h | CA63: [°C] | CK63: [°C]
B64: 5 | C64: =$J$17 -> 120 | D64: =Auswertung_Leistung!C314 -> 96.48271364 | E64: =IF(C64="","",IF($AQ$7=1,C64,D64)) -> 96.48271364 | F64: =IF(C64="","",IF($AQ$7=1,D64,C64)) -> 120 | G64: =Auswertung_Leistung!K314 -> 196.0291977 | H64: =IFERROR(IF(OR(C64="",C64=0,Auswertung_Leistung!T314<20),"<20",Auswertung_Leistung!T314),"") -> 29.05723292 | I64: =IFERROR(IF(C64="","",H64-6.5),"") -> 22.55723292 | J64: =ROUND(E64*1.2*1004.5*($J$16-$J$15)/3600,-1) -> -260 | K64: =IF(C64="","",IF(C64=0,,IFERROR((AB64*($J$7-$J$6)),""))) -> -509.2850707 | L64: =J64+K64 -> -769.2850707 | M64: =IFERROR(AE64*($J$8-$J$6),"") -> -1446.735071 | N64: =IFERROR(AD64*($J$8-$J$6),"") -> -947.9750155 | O64: =J64+N64 -> -1207.975016 | P64: =ROUND(E64*1.2*1004.5*($Q$16-$Q$15)/3600,-1) -> 0 | Q64: =IF(G64=0,,IFERROR((AC64*($Q$7-$Q$6)),"")) -> 1097.937406 | R64: =Q64+P64 -> 1097.937406 | S64: =IF(IFERROR(IF(K64=0,,$J$7-((K64/(4.2*$J$13/3.6)))),)=0,"",IFERROR(IF(K64=0,,$J$7-((K64/(4.2*$J$13/3.6)))),)) -> 18.1826503 | T64: =IF(IFERROR(IF(N64=0,,$J$8-((N64/(4.2*$J$13/3.6)))),)=0,"",IFERROR(IF(N64=0,,$J$8-((N64/(4.2*$J$13/3.6)))),)) -> 10.06275007 | U64: =IF(C64="","",IFERROR(IF(Q64=0,,($Q$7-((Q64/(4.2*$Q$13/3.6))))),)) -> 50.58910795 | V64: =IFERROR(BV64,"") -> 0.7230207025 | W64: =Z64 -> 11.49233951 | Y64: =IFERROR(V64*1000/15/60,"") -> 0.8033563361 | Z64: =IFERROR(CA64,"") -> 11.49233951 | AA64: =IFERROR(CK64,"") ->  | AB64: =Auswertung_Leistung!Q314 -> 50.92850707 | AC64: =IF($AN$11=1,AB64*Auswertung_Leistung!Y314,AB64*Auswertung_Leistung!AB314) -> 27.44843515 | AD64: =Auswertung_Leistung!R314 -> 47.39875078 | AE64: =Auswertung_Leistung!S314 -> 72.33675353 | AF64: =Auswertung_Leistung!AD314 -> 120.0016282 | AH64: =Auswertung_Leistung!AF314 -> -7.488003677e-06 | AI64: =Auswertung_Leistung!U314 -> 59.51359316 | AJ64: =Auswertung_Leistung!V314 -> 152.7608315 | AK64: =Auswertung_Leistung!W314 -> 45 | AL64: =Auswertung_Leistung!X314 -> 305 | AM64: =$AM$96 -> Primärdurck | AN64: Primärvolumenstrom | AO64: =$AO$96 -> Wassermassenstrom | AP64: =IF($AQ$7=1,AN64,AM64) -> Primärdurck | AQ64: Einheit | AR64: =IF($AQ$7=2,AN64,AM64) -> Primärvolumenstrom | AS64: Einheit | AT64: =AT96 -> Wassermassenstrom | AV64: =IF(OR(F64<$AM$65,F64>$AM$66),"",B64) -> 5 | AW64: =IF(AV64="","",ABS(J64)) -> 260 | AX64: =IF(AV64="","",ABS(K64)) -> 509.2850707 | AY64: =IF(AV64="","",ABS(L64)) -> 769.2850707 | AZ64: =IF(AV64="","",ABS(N64)) -> 947.9750155 | BA64: =IF(AV64="","",(AW64+AZ64)) -> 1207.975016 | BB64: =IF(AV64="","",(P64)) -> 0 | BC64: =IF(AV64="","",ABS(Q64)) -> 1097.937406 | BD64: =IF(AV64="","",(BB64+BC64)) -> 1097.937406 | BE64: =IF(AV64="","",H64) -> 29.05723292 | BF64: =IF(AV64="","",CONCATENATE(ROUND(BA64,0)," ; ",ROUND(AY64,0))) -> 1208 ; 769 | BG64: =IF(AV64="","",ROW(AV64)) -> 64 | BH64: =MIN(BG64:BG72) -> 64 | BI64: =COLUMN(AV64) -> 48 | BQ64: =$BM$37*(G64*$BM$28) ->  | BR64: =M64-N64 -> -498.7600551 | BS64: =50.09-0.9298*(273.15+$J$8)/1000-65.19*((273.15+$J$8)/1000)^2 -> 44.75053367 | BT64: =BS64/$BM$31 -> 2.483381447 | BU64: =BT64*1000000 -> 2483381.447 | BV64: =ABS(BR64)/BU64*3600 -> 0.7230207025 | BW64: =BQ64/$BM$53 ->  | BX64: =G64-BW64 ->  | BY64: =BX64*$BM$52 ->  | BZ64: =BQ64-BV64 ->  | CA64: =N64*3/G64+$BM$27 -> 11.49233951 | CB64: =dichteLuft(0,Torr_in_Pa($BM$26),CA64) ->  | CC64: =999.972-7*10^(-3)*(CA64-4)^2 -> 999.5790539 | CD64: =BY64/CB64*$BM$52 ->  | CE64: =BZ64/CC64*$BM$52 ->  | CF64: =BZ64+BY64 ->  | CG64: =CD64+CE64 ->  | CH64: =CF64/CG64 ->  | CI64: =BZ64/CG64/CH64 ->  | CJ64: =rf_prozent_von_T_grad_x_hf_gH2O_kg_trLuft(CA64,CI64*1000) ->  | CK64: =td_T_grad_rf_prozent(CA64,CJ64) -> 
B65: 4.5 | C65: =C64 -> 120 | D65: =Auswertung_Leistung!C315 -> 115.8609271 | E65: 115.8609271 | F65: =IF(C65="","",IF($AQ$7=1,D65,C65)) -> 120 | G65: =Auswertung_Leistung!K315 -> 185.1187805 | H65: =IFERROR(IF(OR(C65="",C65=0,Auswertung_Leistung!T315<20),"<20",Auswertung_Leistung!T315),"") -> 28.80373558 | I65: =IFERROR(IF(C65="","",H65-6.5),"") -> 22.30373558 | J65: =ROUND(E65*1.2*1004.5*($J$16-$J$15)/3600,-1) -> -310 | K65: -468.3352937 | L65: =J65+K65 -> -778.3352937 | M65: -1340.883291 | N65: -874.6840307 | O65: =J65+N65 -> -1184.684031 | P65: 0 | Q65: 1022.962281 | R65: =Q65+P65 -> 1022.962281 | S65: 18.00715126 | T65: 9.748645846 | U65: 51.23175188 | V65: =IFERROR(BV65,"") -> 0.6758193908 | W65: =Z65 -> 11.82503577 | Y65: =IFERROR(V65*1000/15/60,"") -> 0.7509104342 | Z65: =IFERROR(CA65,"") -> 11.82503577 | AA65: =IFERROR(CK65,"") ->  | AB65: =Auswertung_Leistung!Q315 -> 46.83352937 | AC65: =IF($AN$11=1,AB65*Auswertung_Leistung!Y315,AB65*Auswertung_Leistung!AB315) -> 25.57405703 | AD65: =Auswertung_Leistung!R315 -> 43.73420153 | AE65: =Auswertung_Leistung!S315 -> 67.04416454 | AF65: =Auswertung_Leistung!AD315 -> 173.9965511 | AH65: =Auswertung_Leistung!AF315 -> -0.2294409468 | AI65: =Auswertung_Leistung!U315 -> 70.38830073 | AJ65: =Auswertung_Leistung!V315 -> 186.1141847 | AK65: =Auswertung_Leistung!W315 -> 45 | AL65: =Auswertung_Leistung!X315 -> 305 | AM65: =AM97 -> 45 | AN65: =MIN(AI64:AI72) -> 13.61850368 | AO65: =AO97 -> 50 | AP65: =IF($AQ$7=1,AN65,AM65) -> 45 | AQ65: =IF($AQ$7=1,"m³/h","Pa") -> Pa | AR65: =IF($AQ$7=2,AN65,AM65) -> 13.61850368 | AS65: =IF($AQ$7=2,"m³/h","Pa") -> m³/h | AT65: =AT97 -> 50 | AV65: =IF(OR(F65<$AM$65,F65>$AM$66),"",B65) -> 4.5 | AW65: =IF(AV65="","",ABS(J65)) -> 310 | AX65: 468.3352937 | AY65: 778.3352937 | AZ65: 874.6840307 | BA65: 1184.684031 | BB65: 0 | BC65: 1022.962281 | BD65: 1022.962281 | BE65: 28.80373558 | BF65: =IF(AV65="","",CONCATENATE(ROUND(BA65,0)," ; ",ROUND(AY65,0))) -> 1185 ; 778 | BG65: =IF(AV65="","",ROW(AV65)) -> 65 | BH65: =IF(COUNTIF($BG$64:$BG$72,BH64+1)=1,BH64+1,IF(COUNTIF($BG$64:$BG$72,BH64+2)=1,BH64+2,IF(COUNTIF($BG$64:$BG$72,BH64+3)=1,BH64+3,IF(COUNTIF($BG$64:$BG$72,BH64+4)=1,BH64+4,IF(COUNTIF($BG$64:$BG$72,BH64+5)=1,BH64+5,IF(COUNTIF($BG$64:$BG$72,BH64+6)=1,BH64+6,IF(COUNTIF($BG$64:$BG$72,BH64+7)=1,BH64+7,IF(COUNTIF($BG$64:$BG$72,BH64+8)=1,BH64+8,"")))))))) -> 65 | BI65: 48 | BR65: =M65-N65 -> -466.1992601 | BS65: 44.75053367 | BT65: 2.483381447 | BU65: =BT65*1000000 -> 2483381.447 | BV65: =ABS(BR65)/BU65*3600 -> 0.6758193908 | BW65: =BQ65/$BM$53 ->  | BY65: =BX65*$BM$52 ->  | BZ65: =BQ65-BV65 ->  | CA65: 11.82503577 | CC65: =999.972-7*10^(-3)*(CA65-4)^2 -> 999.5433817 | CD65: =BY65/CB65*$BM$52 ->  | CE65: =BZ65/CC65*$BM$52 ->  | CF65: =BZ65+BY65 ->  | CG65: =CD65+CE65 ->  | CH65: =CF65/CG65 ->  | CI65: =BZ65/CG65/CH65 ->  | CJ65: =rf_prozent_von_T_grad_x_hf_gH2O_kg_trLuft(CA65,CI65*1000) ->  | CK65: =td_T_grad_rf_prozent(CA65,CJ65) -> 
B66: 4 | C66: =C65 -> 120 | D66: =Auswertung_Leistung!C316 -> 72.63982096 | E66: 72.63982096 | F66: 120 | G66: =Auswertung_Leistung!K316 -> 118.2290958 | H66: =IFERROR(IF(OR(C66="",C66=0,Auswertung_Leistung!T316<20),"<20",Auswertung_Leistung!T316),"") -> 27.68811899 | I66: 21.18811899 | J66: -190 | K66: -327.7829184 | L66: -517.7829184 | M66: -983.7672829 | N66: -625.5648317 | O66: -815.5648317 | P66: 0 | Q66: 794.3180985 | R66: 794.3180985 | S66: 17.40478394 | T66: 8.680992136 | U66: 53.19155916 | V66: =IFERROR(BV66,"") -> 0.5192632916 | W66: 10.12662736 | Y66: =IFERROR(V66*1000/15/60,"") -> 0.5769592129 | Z66: =IFERROR(CA66,"") -> 10.12662736 | AA66: =IFERROR(CK66,"") ->  | AB66: =Auswertung_Leistung!Q316 -> 32.77829184 | AC66: =IF($AN$11=1,AB66*Auswertung_Leistung!Y316,AB66*Auswertung_Leistung!AB316) -> 19.85795246 | AD66: =Auswertung_Leistung!R316 -> 31.27824158 | AE66: =Auswertung_Leistung!S316 -> 49.18836414 | AF66: =Auswertung_Leistung!AD316 -> 67.44486219 | AH66: =Auswertung_Leistung!AF316 -> -0.0660699084 | AI66: =Auswertung_Leistung!U316 -> 43.77828104 | AJ66: =Auswertung_Leistung!V316 -> 117.5781076 | AK66: =Auswertung_Leistung!W316 -> 45 | AL66: =Auswertung_Leistung!X316 -> 305 | AM66: =AM98 -> 305 | AN66: =MAX(AJ64:AJ72) -> 186.1141847 | AO66: =AO98 -> 300 | AP66: =IF($AQ$7=1,AN66,AM66) -> 305 | AQ66: =IF($AQ$7=1,"m³/h","Pa") -> Pa | AR66: =IF($AQ$7=2,AN66,AM66) -> 186.1141847 | AS66: =IF($AQ$7=2,"m³/h","Pa") -> m³/h | AT66: =AT98 -> 300 | AV66: 4 | AW66: 190 | AX66: 327.7829184 | AY66: 517.7829184 | AZ66: 625.5648317 | BA66: 815.5648317 | BB66: 0 | BC66: 794.3180985 | BD66: 794.3180985 | BE66: 27.68811899 | BF66: 816 ; 518 | BG66: =IF(AV66="","",ROW(AV66)) -> 66 | BH66: =IF(COUNTIF($BG$64:$BG$72,BH65+1)=1,BH65+1,IF(COUNTIF($BG$64:$BG$72,BH65+2)=1,BH65+2,IF(COUNTIF($BG$64:$BG$72,BH65+3)=1,BH65+3,IF(COUNTIF($BG$64:$BG$72,BH65+4)=1,BH65+4,IF(COUNTIF($BG$64:$BG$72,BH65+5)=1,BH65+5,IF(COUNTIF($BG$64:$BG$72,BH65+6)=1,BH65+6,IF(COUNTIF($BG$64:$BG$72,BH65+7)=1,BH65+7,IF(COUNTIF($BG$64:$BG$72,BH65+8)=1,BH65+8,"")))))))) -> 66 | BI66: 48 | BR66: -358.2024512 | BS66: 44.75053367 | BT66: 2.483381447 | BU66: 2483381.447 | BV66: 0.5192632916 | CA66: 10.12662736 | CC66: 999.7092511
B67: 3.5 | C67: 120 | D67: =Auswertung_Leistung!C317 -> 72.49404519 | E67: 72.49404519 | F67: 120 | G67: =Auswertung_Leistung!K317 -> 97.55429496 | H67: =IFERROR(IF(OR(C67="",C67=0,Auswertung_Leistung!T317<20),"<20",Auswertung_Leistung!T317),"") -> 28.79444421 | I67: 22.29444421 | J67: -190 | K67: -252.0897655 | L67: -442.0897655 | M67: -767.2858871 | N67: -484.4334227 | O67: -674.4334227 | P67: 0 | Q67: 635.9353883 | R67: 635.9353883 | S67: 17.08038471 | T67: 8.07614324 | U67: 54.54912524 | V67: 0.4100332123 | W67: 11.10265213 | Y67: =IFERROR(V67*1000/15/60,"") -> 0.4555924581 | Z67: =IFERROR(CA67,"") -> 11.10265213 | AA67: =IFERROR(CK67,"") ->  | AB67: =Auswertung_Leistung!Q317 -> 25.20897655 | AC67: =IF($AN$11=1,AB67*Auswertung_Leistung!Y317,AB67*Auswertung_Leistung!AB317) -> 15.89838471 | AD67: =Auswertung_Leistung!R317 -> 24.22167114 | AE67: =Auswertung_Leistung!S317 -> 38.36429436 | AF67: =Auswertung_Leistung!AD317 -> 67.17039526 | AH67: =Auswertung_Leistung!AF317 -> -0.2806393354 | AI67: =Auswertung_Leistung!U317 -> 43.34961214 | AJ67: =Auswertung_Leistung!V317 -> 118.2193643 | AK67: =Auswertung_Leistung!W317 -> 45 | AL67: =Auswertung_Leistung!X317 -> 305 | AP67: =AVERAGE(AP65:AP66) -> 175 | AR67: =AVERAGE(AR65:AR66) -> 99.86634418 | AV67: 3.5 | AW67: 190 | AX67: 252.0897655 | AY67: 442.0897655 | AZ67: 484.4334227 | BA67: 674.4334227 | BB67: 0 | BC67: 635.9353883 | BD67: 635.9353883 | BE67: 28.79444421 | BF67: 674 ; 442 | BG67: =IF(AV67="","",ROW(AV67)) -> 67 | BH67: 67 | BI67: 48 | BR67: -282.8524644 | BS67: 44.75053367 | BT67: 2.483381447 | BU67: 2483381.447 | BV67: 0.4100332123 | CA67: 11.10265213 | CC67: 999.6188663
B68: 3 | C68: 120 | D68: =Auswertung_Leistung!C318 -> 47.76076314 | E68: 47.76076314 | F68: 120 | G68: =Auswertung_Leistung!K318 -> 103.1998966 | H68: =IFERROR(IF(OR(C68="",C68=0,Auswertung_Leistung!T318<20),"<20",Auswertung_Leistung!T318),"") -> 29.12495365 | I68: 22.62495365 | J68: -130 | K68: -269.7502466 | L68: -399.7502466 | M68: -817.9247669 | N68: -517.3944806 | O68: -647.3944806 | P68: 0 | Q68: 672.8155446 | R68: 672.8155446 | S68: 17.15607249 | T68: 8.217404917 | U68: 54.23300962 | V68: 0.4356596253 | W68: 10.95944771 | Y68: 0.4840662503 | Z68: 10.95944771 | AB68: =Auswertung_Leistung!Q318 -> 26.97502466 | AC68: =IF($AN$11=1,AB68*Auswertung_Leistung!Y318,AB68*Auswertung_Leistung!AB318) -> 16.82038861 | AD68: =Auswertung_Leistung!R318 -> 25.86972403 | AE68: =Auswertung_Leistung!S318 -> 40.89623834 | AF68: =Auswertung_Leistung!AD318 -> 28.79338554 | AH68: =Auswertung_Leistung!AF318 -> 0.5571058189 | AI68: =Auswertung_Leistung!U318 -> 28.35300848 | AJ68: =Auswertung_Leistung!V318 -> 78.42564611 | AK68: =Auswertung_Leistung!W318 -> 45 | AL68: =Auswertung_Leistung!X318 -> 305 | AV68: 3 | AW68: 130 | AX68: 269.7502466 | AY68: 399.7502466 | AZ68: 517.3944806 | BA68: 647.3944806 | BB68: 0 | BC68: 672.8155446 | BD68: 672.8155446 | BE68: 29.12495365 | BF68: 647 ; 400 | BG68: 68 | BH68: 68 | BI68: 48 | BR68: -300.5302863 | BS68: 44.75053367 | BT68: 2.483381447 | BU68: 2483381.447 | BV68: 0.4356596253 | CA68: 10.95944771 | CC68: 999.6329626
B69: 2.5 | C69: 120 | D69: =Auswertung_Leistung!C319 -> 60.49556812 | E69: 60.49556812 | F69: 120 | G69: =Auswertung_Leistung!K319 -> 95.37353809 | H69: =IFERROR(IF(OR(C69="",C69=0,Auswertung_Leistung!T319<20),"<20",Auswertung_Leistung!T319),"") -> 27.03953811 | I69: 20.53953811 | J69: -160 | K69: -247.2962216 | L69: -407.2962216 | M69: -753.7963144 | N69: -475.5683074 | O69: -635.5683074 | P69: 0 | Q69: 626.6262198 | R69: 626.6262198 | S69: 17.05984095 | T69: 8.038149889 | U69: 54.62891812 | V69: 0.4033294308 | W69: 11.04087244 | Y69: 0.448143812 | Z69: 11.04087244 | AB69: =Auswertung_Leistung!Q319 -> 24.72962216 | AC69: =IF($AN$11=1,AB69*Auswertung_Leistung!Y319,AB69*Auswertung_Leistung!AB319) -> 15.6656555 | AD69: =Auswertung_Leistung!R319 -> 23.77841537 | AE69: =Auswertung_Leistung!S319 -> 37.68981572 | AF69: =Auswertung_Leistung!AD319 -> 46.52314058 | AH69: =Auswertung_Leistung!AF319 -> -0.05688839648 | AI69: =Auswertung_Leistung!U319 -> 35.87824773 | AJ69: =Auswertung_Leistung!V319 -> 99.42831143 | AK69: =Auswertung_Leistung!W319 -> 45 | AL69: =Auswertung_Leistung!X319 -> 305 | AV69: 2.5 | AW69: 160 | AX69: 247.2962216 | AY69: 407.2962216 | AZ69: 475.5683074 | BA69: 635.5683074 | BB69: 0 | BC69: 626.6262198 | BD69: 626.6262198 | BE69: 27.03953811 | BF69: 636 ; 407 | BG69: 69 | BH69: 69 | BI69: 48 | BR69: -278.228007 | BS69: 44.75053367 | BT69: 2.483381447 | BU69: 2483381.447 | BV69: 0.4033294308 | CA69: 11.04087244 | CC69: 999.6249828
B70: 2 | C70: 120 | D70: =Auswertung_Leistung!C320 -> 23.56157029 | E70: 23.56157029 | F70: =IF(C70="","",IF($AQ$7=1,D70,C70)) -> 120 | G70: =Auswertung_Leistung!K320 -> 76.19616261 | H70: =IFERROR(IF(OR(C70="",C70=0,Auswertung_Leistung!T320<20),"<20",Auswertung_Leistung!T320),"") -> 21.62872734 | I70: =IFERROR(IF(C70="","",H70-6.5),"") -> 15.12872734 | J70: -60 | K70: -155.945777 | L70: -215.945777 | M70: -481.4079118 | N70: -301.8239101 | O70: -361.8239101 | P70: 0 | Q70: 411.6278114 | R70: 411.6278114 | S70: 16.66833904 | T70: 7.293531043 | U70: 56.47176162 | V70: 0.2603314955 | W70: 14.11657045 | Y70: 0.2892572173 | Z70: 14.11657045 | AB70: =Auswertung_Leistung!Q320 -> 15.5945777 | AC70: =IF($AN$11=1,AB70*Auswertung_Leistung!Y320,AB70*Auswertung_Leistung!AB320) -> 10.29069528 | AD70: =Auswertung_Leistung!R320 -> 15.09119551 | AE70: =Auswertung_Leistung!S320 -> 24.07039559 | AF70: =Auswertung_Leistung!AD320 -> 6.86082322 | AH70: =Auswertung_Leistung!AF320 -> 2.48127943 | AI70: =Auswertung_Leistung!U320 -> 13.61850368 | AJ70: =Auswertung_Leistung!V320 -> 39.6849541 | AK70: =Auswertung_Leistung!W320 -> 45 | AL70: =Auswertung_Leistung!X320 -> 305 | AV70: 2 | AW70: 60 | AX70: 155.945777 | AY70: 215.945777 | AZ70: 301.8239101 | BA70: 361.8239101 | BB70: 0 | BC70: 411.6278114 | BD70: 411.6278114 | BE70: 21.62872734 | BF70: 362 ; 216 | BG70: 70 | BH70: 70 | BI70: 48 | BR70: -179.5840017 | BS70: 44.75053367 | BT70: 2.483381447 | BU70: 2483381.447 | BV70: 0.2603314955 | CA70: 14.11657045 | CC70: 999.255585
B71: 2 | C71: =C70 -> 120 | D71: =Auswertung_Leistung!C321 -> 23.56157029 | E71: 23.56157029 | F71: =IF(C71="","",IF($AQ$7=1,D71,C71)) -> 120 | G71: =Auswertung_Leistung!K321 -> 76.19616261 | H71: =IFERROR(IF(OR(C71="",C71=0,Auswertung_Leistung!T321<20),"<20",Auswertung_Leistung!T321),"") -> 24.27690557 | I71: 17.77690557 | J71: -60 | K71: -155.945777 | L71: -215.945777 | M71: -481.4079118 | N71: -301.8239101 | O71: -361.8239101 | P71: 0 | Q71: 411.6278114 | R71: 411.6278114 | S71: 16.66833904 | T71: 7.293531043 | U71: 56.47176162 | V71: =IFERROR(BV71,"") -> 0.2603314955 | W71: 14.11657045 | Y71: 0.2892572173 | Z71: 14.11657045 | AB71: =Auswertung_Leistung!Q321 -> 15.5945777 | AC71: =IF($AN$11=1,AB71*Auswertung_Leistung!Y321,AB71*Auswertung_Leistung!AB321) -> 10.29069528 | AD71: =Auswertung_Leistung!R321 -> 15.09119551 | AE71: =Auswertung_Leistung!S321 -> 24.07039559 | AG71: =IF(C71="","",$BH$10*F71^$BI$10) -> 2.907084409e+101 | AI71: =Auswertung_Leistung!U321 -> 13.61850368 | AJ71: =Auswertung_Leistung!V321 -> 39.6849541 | AK71: =Auswertung_Leistung!W321 -> 45 | AL71: =Auswertung_Leistung!X321 -> 305 | AV71: 2 | AW71: 60 | AX71: 155.945777 | AY71: 215.945777 | AZ71: 301.8239101 | BA71: 361.8239101 | BB71: 0 | BC71: 411.6278114 | BD71: 411.6278114 | BE71: 24.27690557 | BF71: 362 ; 216 | BG71: 71 | BH71: 71 | BI71: 48 | BR71: -179.5840017 | BS71: 44.75053367 | BT71: 2.483381447 | BU71: 2483381.447 | BV71: 0.2603314955 | CA71: 14.11657045 | CC71: 999.255585
B72: 2 | C72: 120 | D72: =Auswertung_Leistung!C322 -> 23.56157029 | E72: 23.56157029 | F72: =IF(C72="","",IF($AQ$7=1,D72,C72)) -> 120 | G72: =Auswertung_Leistung!K322 -> 76.19616261 | H72: =IFERROR(IF(OR(C72="",C72=0,Auswertung_Leistung!T322<20),"<20",Auswertung_Leistung!T322),"") -> 24.27690557 | I72: 17.77690557 | J72: -60 | K72: -155.945777 | L72: -215.945777 | M72: -481.4079118 | N72: -301.8239101 | O72: -361.8239101 | P72: 0 | Q72: 411.6278114 | R72: 411.6278114 | S72: 16.66833904 | T72: 7.293531043 | U72: 56.47176162 | V72: =IFERROR(BV72,"") -> 0.2603314955 | W72: 14.11657045 | Y72: =IFERROR(V72*1000/15/60,"") -> 0.2892572173 | Z72: =IFERROR(CA72,"") -> 14.11657045 | AA72: =IFERROR(CK72,"") ->  | AB72: =Auswertung_Leistung!Q322 -> 15.5945777 | AC72: =IF($AN$11=1,AB72*Auswertung_Leistung!Y322,AB72*Auswertung_Leistung!AB322) -> 10.29069528 | AD72: =Auswertung_Leistung!R322 -> 15.09119551 | AE72: =Auswertung_Leistung!S322 -> 24.07039559 | AG72: 2.907084409e+101 | AI72: =Auswertung_Leistung!U322 -> 13.61850368 | AJ72: =Auswertung_Leistung!V322 -> 39.6849541 | AK72: =Auswertung_Leistung!W322 -> 45 | AL72: =Auswertung_Leistung!X322 -> 305 | AV72: 2 | AW72: 60 | AX72: 155.945777 | AY72: 215.945777 | AZ72: 301.8239101 | BA72: 361.8239101 | BB72: 0 | BC72: 411.6278114 | BD72: 411.6278114 | BE72: 24.27690557 | BF72: 362 ; 216 | BG72: 72 | BH72: 72 | BI72: 48 | BR72: -179.5840017 | BS72: 44.75053367 | BT72: 2.483381447 | BU72: 2483381.447 | BV72: 0.2603314955 | CA72: 14.11657045 | CC72: =999.972-7*10^(-3)*(CA72-4)^2 -> 999.255585 | CD72: =BY72/CB72*$BM$52 ->  | CE72: =BZ72/CC72*$BM$52 ->  | CF72: =BZ72+BY72 ->  | CG72: =CD72+CE72 ->  | CH72: =CF72/CG72 ->  | CI72: =BZ72/CG72/CH72 ->  | CJ72: =rf_prozent_von_T_grad_x_hf_gH2O_kg_trLuft(CA72,CI72*1000) ->  | CK72: =td_T_grad_rf_prozent(CA72,CJ72) -> 
B74: =IF(OR(C64<C75,C65<C75,C66<C75,C72<C75,C64>C76,C65>C76,C66>C76,C72>C76),"Grenzwerte","") ->  | K74: DpK = | L74: =Auswertung_Leistung!E309 -> 33.32881832 | M74: [kPa]
B75: Minimal | C75: =AP65 -> 45 | D75: =AQ65 -> Pa | K75: DpH = | L75: =Auswertung_Leistung!E310 -> 1.8 | M75: [kPa]
B76: Maximal | C76: =AP66 -> 305 | D76: =AQ66 -> Pa
B79: Baugröße 1200
B81: =L_Auslegung -> Schieberstellung | C81: =IF($AQ$7=1,$AO$1,$AN$1) -> Primärdruck | D81: =IF($AQ$7=2,$AO$1,$AN$1) -> Primärvol. | E81: =E62 -> Primärvol. | F81: =L_primaerdruck -> Primärdruck | G81: =G62 -> Sekundärvolumenstrom | H81: LWA | I81: LA18 | J81: QPK | K81: QSK1) | L81: QKges1) | M81: QTotal2) | N81: QSensibel,K2) | O81: QKges2) | P81: QPH | Q81: QSH | R81: Qhges | S81: tKWRL | T81: tKWRL2) | U81: tWWRL | V81: =V43 -> Kondensat ² | W81: =W43 -> Zulufttemp.² | Y81: Tropfen | Z81: Zulufttemp. | AA81: Taupunkt nach WT | AB81: qSK1) | AC81: qSH | AD81: qSK2) | AE81: qtotal2) | AF81: Steuerspannung (mit Filter) | AG81: dp / rho | AI81: Primärvolumenstrom Minimal | AJ81: Primärvolumenstrom Minimal | AK81: Primärdruck Minimal | AL81: Primärdruck Maximal | BQ81: Wassermenge Gesamt in der Luft | BR81: latente Leistung | BV81: Kondensatmenge | CA81: Zulufttemperatur | CK81: Taupunkt im Kasten
C82: =IF($AQ$7=1,$AO$2,$AN$2) -> [Pa] | D82: =IF($AQ$7=2,$AO$2,$AN$2) -> [m³/h] | E82: [m³/h] | F82: [Pa] | G82: [m³/h] | H82: [dB(A)] | I82: [dB(A)] | J82: [W] | K82: [W] | L82: [W] | M82: [W] | N82: [W] | O82: [W] | P82: [W] | Q82: [W] | R82: [W] | S82: [°C] | T82: [°C] | U82: [°C] | V82: [kg/h] bzw. [l / h] | W82: [°C] | Y82: [Anzahl / min] | Z82: =CA82 -> [°C] | AA82: [°C] | AB82: [W] | AC82: [W] | AD82: [W] | AE82: [W] | AF82: [V] | AG82: [(Pa*m³)/kg] | AI82: [m³/h] | AJ82: [m³/h] | AK82: [m³/h] | AL82: [m³/h] | AM82: Grenzen der Auslegung | AT82: heizen | BQ82: kg H20 / h | BR82: W bzw. J / s | BV82: kg / h bzw.l / h | CA82: [°C] | CK82: [°C]
B83: 5 | C83: =J17 -> 120 | D83: =Auswertung_Leistung!C333 -> 118.1420983 | E83: =IF(C83="","",IF($AQ$7=1,C83,D83)) -> 118.1420983 | F83: =IF(C83="","",IF($AQ$7=1,D83,C83)) -> 120 | G83: =Auswertung_Leistung!K333 -> 240.0357523 | H83: =IFERROR(IF(OR(C83="",C83=0,Auswertung_Leistung!T333<20),"<20",Auswertung_Leistung!T333),"") -> 29.93678462 | I83: =IFERROR(IF(C83="","",H83-6.5),"") -> 23.43678462 | J83: =ROUND(E83*1.2*1004.5*($J$16-$J$15)/3600,-1) -> -320 | K83: =IF(C83="","",IF(C83=0,,IFERROR((AB83*($J$7-$J$6)),""))) -> -596.5318916 | L83: =J83+K83 -> -916.5318916 | M83: =IFERROR(AE83*($J$8-$J$6),"") -> -1694.578651 | N83: =IFERROR(AD83*($J$8-$J$6),"") -> -1110.374841 | O83: =J83+N83 -> -1430.374841 | P83: =ROUND(E83*1.2*1004.5*($Q$16-$Q$15)/3600,-1) -> 0 | Q83: =IF(G83=0,,IFERROR((AC83*($Q$7-$Q$6)),"")) -> 1272.41199 | R83: =Q83+P83 -> 1272.41199 | S83: =IF(IFERROR(IF(K83=0,,$J$7-((K83/(4.2*$J$13/3.6)))),)=0,"",IFERROR(IF(K83=0,,$J$7-((K83/(4.2*$J$13/3.6)))),)) -> 18.55656525 | T83: =IF(IFERROR(IF(N83=0,,$J$8-((N83/(4.2*$J$13/3.6)))),)=0,"",IFERROR(IF(N83=0,,$J$8-((N83/(4.2*$J$13/3.6)))),)) -> 10.75874932 | U83: =IF(C83="","",IFERROR(IF(Q83=0,,($Q$7-((Q83/(4.2*$Q$13/3.6))))),)) -> 49.09361152 | V83: =IFERROR(BV83,"") -> 0.8468830762 | W83: =Z83 -> 12.12238181 | Y83: =IFERROR(V83*1000/15/60,"") -> 0.9409811958 | Z83: =IFERROR(CA83,"") -> 12.12238181 | AA83: =IFERROR(CK83,"") ->  | AB83: =Auswertung_Leistung!Q333 -> 59.65318916 | AC83: =IF($AN$11=1,AB83*Auswertung_Leistung!Y333,AB83*Auswertung_Leistung!AB333) -> 31.81029974 | AD83: =Auswertung_Leistung!R333 -> 55.51874203 | AE83: =Auswertung_Leistung!S333 -> 84.72893257 | AG83: =IF(C83="","",$BH$10*F83^$BI$10) -> 2.907084409e+101 | AI83: =Auswertung_Leistung!U333 -> 72.87378754 | AJ83: =Auswertung_Leistung!V333 -> 187.0540793 | AK83: =Auswertung_Leistung!W333 -> 45 | AL83: =Auswertung_Leistung!X333 -> 305 | AM83: =$AM$96 -> Primärdurck | AO83: =$AO$96 -> Wassermassenstrom | AT83: =AT64 -> Wassermassenstrom | BQ83: =$BM$37*(G83*$BM$28) ->  | BR83: =M83-N83 -> -584.2038109 | BS83: =50.09-0.9298*(273.15+$J$8)/1000-65.19*((273.15+$J$8)/1000)^2 -> 44.75053367 | BT83: =BS83/$BM$31 -> 2.483381447 | BU83: =BT83*1000000 -> 2483381.447 | BV83: =ABS(BR83)/BU83*3600 -> 0.8468830762 | BW83: =BQ83/$BM$53 ->  | BX83: =G83-BW83 ->  | BY83: =BX83*$BM$52 ->  | BZ83: =BQ83-BV83 ->  | CA83: =N83*3/G83+$BM$27 -> 12.12238181 | CB83: =dichteLuft(0,Torr_in_Pa($BM$26),CA83) ->  | CC83: =999.972-7*10^(-3)*(CA83-4)^2 -> 999.5101884 | CD83: =BY83/CB83*$BM$52 ->  | CE83: =BZ83/CC83*$BM$52 ->  | CF83: =BZ83+BY83 ->  | CG83: =CD83+CE83 ->  | CH83: =CF83/CG83 ->  | CI83: =BZ83/CG83/CH83 ->  | CJ83: =rf_prozent_von_T_grad_x_hf_gH2O_kg_trLuft(CA83,CI83*1000) ->  | CK83: =td_T_grad_rf_prozent(CA83,CJ83) -> 
B84: 4.5 | C84: =C83 -> 120 | D84: =Auswertung_Leistung!C334 -> 141.870523 | E84: 141.870523 | F84: =IF(C84="","",IF($AQ$7=1,D84,C84)) -> 120 | G84: =Auswertung_Leistung!K334 -> 226.6760578 | H84: =IFERROR(IF(OR(C84="",C84=0,Auswertung_Leistung!T334<20),"<20",Auswertung_Leistung!T334),"") -> 29.68328728 | I84: =IFERROR(IF(C84="","",H84-6.5),"") -> 23.18328728 | J84: =ROUND(E84*1.2*1004.5*($J$16-$J$15)/3600,-1) -> -380 | K84: -549.3045086 | L84: =J84+K84 -> -929.3045086 | M84: -1572.704955 | N84: -1025.905773 | O84: =J84+N84 -> -1405.905773 | P84: 0 | Q84: 1185.39854 | R84: =Q84+P84 -> 1185.39854 | S84: 18.35416218 | T84: 10.39673903 | U84: 49.83944108 | V84: =IFERROR(BV84,"") -> 0.7926599669 | W84: =Z84 -> 12.42239789 | Y84: =IFERROR(V84*1000/15/60,"") -> 0.8807332965 | Z84: =IFERROR(CA84,"") -> 12.42239789 | AA84: =IFERROR(CK84,"") ->  | AB84: =Auswertung_Leistung!Q334 -> 54.93045086 | AC84: =IF($AN$11=1,AB84*Auswertung_Leistung!Y334,AB84*Auswertung_Leistung!AB334) -> 29.63496351 | AD84: =Auswertung_Leistung!R334 -> 51.29528867 | AE84: =Auswertung_Leistung!S334 -> 78.63524777 | AG84: =IF(C84="","",$BH$10*F84^$BI$10) -> 2.907084409e+101 | AI84: =Auswertung_Leistung!U334 -> 86.18975599 | AJ84: =Auswertung_Leistung!V334 -> 227.89492 | AK84: =Auswertung_Leistung!W334 -> 45 | AL84: =Auswertung_Leistung!X334 -> 305 | AM84: =AM65 -> 45 | AO84: =AO65 -> 50 | AT84: =AT65 -> 50 | BR84: =M84-N84 -> -546.799182 | BS84: 44.75053367 | BT84: 2.483381447 | BU84: =BT84*1000000 -> 2483381.447 | BV84: =ABS(BR84)/BU84*3600 -> 0.7926599669 | BW84: =BQ84/$BM$53 ->  | BY84: =BX84*$BM$52 ->  | BZ84: =BQ84-BV84 ->  | CA84: 12.42239789 | CC84: =999.972-7*10^(-3)*(CA84-4)^2 -> 999.4754425 | CD84: =BY84/CB84*$BM$52 ->  | CE84: =BZ84/CC84*$BM$52 ->  | CF84: =BZ84+BY84 ->  | CG84: =CD84+CE84 ->  | CH84: =CF84/CG84 ->  | CI84: =BZ84/CG84/CH84 ->  | CJ84: =rf_prozent_von_T_grad_x_hf_gH2O_kg_trLuft(CA84,CI84*1000) ->  | CK84: =td_T_grad_rf_prozent(CA84,CJ84) -> 
B85: 4 | C85: =C84 -> 120 | D85: =Auswertung_Leistung!C335 -> 88.94671955 | E85: 88.94671955 | F85: 120 | G85: =Auswertung_Leistung!K335 -> 144.7703214 | H85: =IFERROR(IF(OR(C85="",C85=0,Auswertung_Leistung!T335<20),"<20",Auswertung_Leistung!T335),"") -> 28.56767069 | I85: =IFERROR(IF(C85="","",H85-6.5),"") -> 22.06767069 | J85: -240 | K85: -385.1681405 | L85: -625.1681405 | M85: -1155.996221 | N85: -735.0829755 | O85: -975.0829755 | P85: 0 | Q85: 926.816994 | R85: 926.816994 | S85: 17.6507206 | T85: 9.150355609 | U85: 52.05585434 | V85: =IFERROR(BV85,"") -> 0.6101711384 | W85: 10.7672582 | Y85: =IFERROR(V85*1000/15/60,"") -> 0.6779679316 | Z85: =IFERROR(CA85,"") -> 10.7672582 | AA85: =IFERROR(CK85,"") ->  | AB85: =Auswertung_Leistung!Q335 -> 38.51681405 | AC85: =IF($AN$11=1,AB85*Auswertung_Leistung!Y335,AB85*Auswertung_Leistung!AB335) -> 23.17042485 | AD85: =Auswertung_Leistung!R335 -> 36.75414878 | AE85: =Auswertung_Leistung!S335 -> 57.79981106 | AG85: 2.907084409e+101 | AI85: =Auswertung_Leistung!U335 -> 53.60605842 | AJ85: =Auswertung_Leistung!V335 -> 143.973193 | AK85: =Auswertung_Leistung!W335 -> 45 | AL85: =Auswertung_Leistung!X335 -> 305 | AM85: =AM66 -> 305 | AO85: =AO66 -> 300 | AT85: =AT66 -> 300 | BR85: -420.9132457 | BS85: 44.75053367 | BT85: 2.483381447 | BU85: 2483381.447 | BV85: 0.6101711384 | CA85: 10.7672582 | CC85: 999.6514295
B86: 3.5 | C86: 120 | D86: =Auswertung_Leistung!C336 -> 88.7682186 | E86: 88.7682186 | F86: 120 | G86: =Auswertung_Leistung!K336 -> 119.4542387 | H86: =IFERROR(IF(OR(C86="",C86=0,Auswertung_Leistung!T336<20),"<20",Auswertung_Leistung!T336),"") -> 29.67399591 | I86: 23.17399591 | J86: -240 | K86: -295.9503416 | L86: -535.9503416 | M86: -900.7843689 | N86: -568.7189903 | O86: -808.7189903 | P86: 0 | Q86: 746.7695844 | R86: 746.7695844 | S86: 17.26835861 | T86: 8.437367101 | U86: 53.59911785 | V86: 0.4813740413 | W86: 11.71706631 | Y86: =IFERROR(V86*1000/15/60,"") -> 0.5348600459 | Z86: =IFERROR(CA86,"") -> 11.71706631 | AA86: =IFERROR(CK86,"") ->  | AB86: =Auswertung_Leistung!Q336 -> 29.59503416 | AC86: =IF($AN$11=1,AB86*Auswertung_Leistung!Y336,AB86*Auswertung_Leistung!AB336) -> 18.66923961 | AD86: =Auswertung_Leistung!R336 -> 28.43594951 | AE86: =Auswertung_Leistung!S336 -> 45.03921845 | AG86: 2.907084409e+101 | AI86: =Auswertung_Leistung!U336 -> 53.08115773 | AJ86: =Auswertung_Leistung!V336 -> 144.7584052 | AK86: =Auswertung_Leistung!W336 -> 45 | AL86: =Auswertung_Leistung!X336 -> 305 | BR86: -332.0653787 | BS86: 44.75053367 | BT86: 2.483381447 | BU86: 2483381.447 | BV86: 0.4813740413 | CA86: 11.71706631 | CC86: 999.5551282
B87: 3 | C87: 120 | D87: =Auswertung_Leistung!C337 -> 58.48256711 | E87: 58.48256711 | F87: 120 | G87: =Auswertung_Leistung!K337 -> 126.3672204 | H87: =IFERROR(IF(OR(C87="",C87=0,Auswertung_Leistung!T337<20),"<20",Auswertung_Leistung!T337),"") -> 30.00450535 | I87: 23.50450535 | J87: -160 | K87: -316.7919619 | L87: -476.7919619 | M87: -960.5625754 | N87: -607.6228462 | O87: -767.6228462 | P87: 0 | Q87: 788.5399666 | R87: 788.5399666 | S87: 17.35767984 | T87: 8.604097912 | U87: 53.241086 | V87: 0.5116342585 | W87: 11.57483077 | Y87: 0.5684825095 | Z87: 11.57483077 | AB87: =Auswertung_Leistung!Q337 -> 31.67919619 | AC87: =IF($AN$11=1,AB87*Auswertung_Leistung!Y337,AB87*Auswertung_Leistung!AB337) -> 19.71349917 | AD87: =Auswertung_Leistung!R337 -> 30.38114231 | AE87: =Auswertung_Leistung!S337 -> 48.02812877 | AG87: 2.907084409e+101 | AI87: =Auswertung_Leistung!U337 -> 34.71796956 | AJ87: =Auswertung_Leistung!V337 -> 96.0314034 | AK87: =Auswertung_Leistung!W337 -> 45 | AL87: =Auswertung_Leistung!X337 -> 305 | BR87: -352.9397292 | BS87: 44.75053367 | BT87: 2.483381447 | BU87: 2483381.447 | BV87: 0.5116342585 | CA87: 11.57483077 | CC87: 999.5703536
B88: 2.5 | C88: 120 | D88: =Auswertung_Leistung!C338 -> 74.07620586 | E88: 74.07620586 | F88: 120 | G88: =Auswertung_Leistung!K338 -> 116.7839242 | H88: =IFERROR(IF(OR(C88="",C88=0,Auswertung_Leistung!T338<20),"<20",Auswertung_Leistung!T338),"") -> 27.91908981 | I88: 21.41908981 | J88: -200 | K88: -290.2918357 | L88: -490.2918357 | M88: -884.8534539 | N88: -558.251946 | O88: -758.251946 | P88: 0 | Q88: 736.4548583 | R88: 736.4548583 | S88: 17.24410787 | T88: 8.39250834 | U88: 53.68752979 | V88: 0.4734534158 | W88: 11.65936323 | Y88: 0.5260593509 | Z88: 11.65936323 | AB88: =Auswertung_Leistung!Q338 -> 29.02918357 | AC88: =IF($AN$11=1,AB88*Auswertung_Leistung!Y338,AB88*Auswertung_Leistung!AB338) -> 18.41137146 | AD88: =Auswertung_Leistung!R338 -> 27.9125973 | AE88: =Auswertung_Leistung!S338 -> 44.2426727 | AG88: 2.907084409e+101 | AI88: =Auswertung_Leistung!U338 -> 43.93254825 | AJ88: =Auswertung_Leistung!V338 -> 121.7489528 | AK88: =Auswertung_Leistung!W338 -> 45 | AL88: =Auswertung_Leistung!X338 -> 305 | BR88: -326.601508 | BS88: 44.75053367 | BT88: 2.483381447 | BU88: 2483381.447 | BV88: 0.4734534158 | CA88: 11.65936323 | CC88: 999.5613391
B89: 2 | C89: 120 | D89: =Auswertung_Leistung!C339 -> 28.85090239 | E89: 28.85090239 | F89: =IF(C89="","",IF($AQ$7=1,D89,C89)) -> 120 | G89: =Auswertung_Leistung!K339 -> 93.30142361 | H89: =IFERROR(IF(OR(C89="",C89=0,Auswertung_Leistung!T339<20),"<20",Auswertung_Leistung!T339),"") -> 22.50827904 | I89: 16.00827904 | J89: -80 | K89: -182.4758087 | L89: -262.4758087 | M89: -563.3066807 | N89: -353.1712313 | O89: -433.1712313 | P89: 0 | Q89: 486.9627329 | R89: 486.9627329 | S89: 16.78203918 | T89: 7.513590991 | U89: 55.82603372 | V89: 0.3046199845 | W89: 14.64418513 | Y89: 0.3384666495 | Z89: 14.64418513 | AB89: =Auswertung_Leistung!Q339 -> 18.24758087 | AC89: =IF($AN$11=1,AB89*Auswertung_Leistung!Y339,AB89*Auswertung_Leistung!AB339) -> 12.17406832 | AD89: =Auswertung_Leistung!R339 -> 17.65856157 | AE89: =Auswertung_Leistung!S339 -> 28.16533404 | AG89: 2.907084409e+101 | AI89: =Auswertung_Leistung!U339 -> 16.67571879 | AJ89: =Auswertung_Leistung!V339 -> 48.59382135 | AK89: =Auswertung_Leistung!W339 -> 45 | AL89: =Auswertung_Leistung!X339 -> 305 | BR89: -210.1354494 | BS89: 44.75053367 | BT89: 2.483381447 | BU89: 2483381.447 | BV89: 0.3046199845 | CA89: 14.64418513 | CC89: 999.1789093
B90: 2 | C90: 120 | D90: =Auswertung_Leistung!C340 -> 28.85090239 | E90: 28.85090239 | F90: =IF(C90="","",IF($AQ$7=1,D90,C90)) -> 120 | G90: =Auswertung_Leistung!K340 -> 93.30142361 | H90: =IFERROR(IF(OR(C90="",C90=0,Auswertung_Leistung!T340<20),"<20",Auswertung_Leistung!T340),"") -> 25.15645727 | I90: 18.65645727 | J90: -80 | K90: -182.4758087 | L90: -262.4758087 | M90: -563.3066807 | N90: -353.1712313 | O90: -433.1712313 | P90: 0 | Q90: 486.9627329 | R90: 486.9627329 | S90: 16.78203918 | T90: 7.513590991 | U90: 55.82603372 | V90: =IFERROR(BV90,"") -> 0.3046199845 | W90: 14.64418513 | Y90: 0.3384666495 | Z90: 14.64418513 | AB90: =Auswertung_Leistung!Q340 -> 18.24758087 | AC90: =IF($AN$11=1,AB90*Auswertung_Leistung!Y340,AB90*Auswertung_Leistung!AB340) -> 12.17406832 | AD90: =Auswertung_Leistung!R340 -> 17.65856157 | AE90: =Auswertung_Leistung!S340 -> 28.16533404 | AG90: 2.907084409e+101 | AI90: =Auswertung_Leistung!U340 -> 16.67571879 | AJ90: =Auswertung_Leistung!V340 -> 48.59382135 | AK90: =Auswertung_Leistung!W340 -> 45 | AL90: =Auswertung_Leistung!X340 -> 305 | BR90: -210.1354494 | BS90: 44.75053367 | BT90: 2.483381447 | BU90: 2483381.447 | BV90: 0.3046199845 | CA90: 14.64418513 | CC90: 999.1789093
B91: 2 | C91: 120 | D91: =Auswertung_Leistung!C341 -> 28.85090239 | E91: 28.85090239 | F91: =IF(C91="","",IF($AQ$7=1,D91,C91)) -> 120 | G91: =Auswertung_Leistung!K341 -> 93.30142361 | H91: =IFERROR(IF(OR(C91="",C91=0,Auswertung_Leistung!T341<20),"<20",Auswertung_Leistung!T341),"") -> 25.15645727 | I91: 18.65645727 | J91: -80 | K91: -182.4758087 | L91: -262.4758087 | M91: -563.3066807 | N91: -353.1712313 | O91: -433.1712313 | P91: 0 | Q91: 486.9627329 | R91: 486.9627329 | S91: 16.78203918 | T91: 7.513590991 | U91: 55.82603372 | V91: =IFERROR(BV91,"") -> 0.3046199845 | W91: 14.64418513 | Y91: =IFERROR(V91*1000/15/60,"") -> 0.3384666495 | Z91: =IFERROR(CA91,"") -> 14.64418513 | AA91: =IFERROR(CK91,"") ->  | AB91: =Auswertung_Leistung!Q341 -> 18.24758087 | AC91: =IF($AN$11=1,AB91*Auswertung_Leistung!Y341,AB91*Auswertung_Leistung!AB341) -> 12.17406832 | AD91: =Auswertung_Leistung!R341 -> 17.65856157 | AE91: =Auswertung_Leistung!S341 -> 28.16533404 | AG91: 2.907084409e+101 | AI91: =Auswertung_Leistung!U341 -> 16.67571879 | AJ91: =Auswertung_Leistung!V341 -> 48.59382135 | AK91: =Auswertung_Leistung!W341 -> 45 | AL91: =Auswertung_Leistung!X341 -> 305 | BR91: -210.1354494 | BS91: 44.75053367 | BT91: 2.483381447 | BU91: 2483381.447 | BV91: 0.3046199845 | CA91: 14.64418513 | CC91: 999.1789093
B93: =IF(OR(C83<C94,C84<C94,C85<C94,C91<C94,C83>C95,C84>C95,C85>C95,C91>C95),"Grenzwerte","") ->  | K93: DpK = | L93: =Auswertung_Leistung!E328 -> 37.17445121 | M93: [kPa]
B94: Minimal | C94: =AP65 -> 45 | D94: =AQ65 -> Pa | K94: DpH = | L94: =Auswertung_Leistung!E329 -> 2.109090909 | M94: [kPa]
B95: Maximal | C95: =AP66 -> 305 | D95: =AQ66 -> Pa | AM95: Grenzen der Auslegung | AT95: heizen
AM96: Primärdurck | AO96: Wassermassenstrom | AT96: Wassermassenstrom
B97: © LTG Aktiengesellschaft - 09.01.2025, EI | AM97: =Auswertung_Leistung!A238 -> 45 | AO97: =Auswertung_Leistung!C238 -> 50 | AT97: =AO97 -> 50
B98: Angaben zu Toleranzen sowie weitere Spezifikationen sind der aktuellen Bauteilmappe der LTG Aktiengesellschaft zu entnehmen. | Y98: FALSE | AM98: =Auswertung_Leistung!A239 -> 305 | AO98: =Auswertung_Leistung!C239 -> 300 | AT98: =AO98 -> 300
B99: Eine Fehlerfreiheit des Programms kann nicht zugesichert werden. Im Zweifel gelten die technischen Daten der aktuellen Bauteilmappe der LTG Aktiengesellschaft.
B100: Aus Programmierfehlern entstandener Schaden geht nicht zu Lasten der LTG Aktiengesellschaft. Technische Änderungen im Rahmen der Weiterentwicklung vorbehalten.

Sheet Legende
A2: Zellenname | B2: Deutsch | C2: Englisch | D2: Französisch | E2: Italienisch | F2: Portugues | G2: Turkish
A4: L_Kuehlfall | B4: Kühlfall: | C4: cooling mode: | D4: Mode de refroidissement: | E4: In raffescamento:
A5: L_Ansaugtemperatur_K | B5: Ansaugtemperatur: | C5: intake air temperature | D5: Température de l'air d'admission | E5: Temperatura aria in ingresso
A6: L_Kuehlwasservorlauf | B6: Kühlwasservorlauf ¹: | C6: water supply temperature ¹: | D6: Température de l'eau ¹: | E6: Temperatura acqua in ingresso ¹:
A7: L_Kuehlwasservorlauf_kon | B7: Kühlwasservorlauf kondensierender Betrieb ²: | C7: water supply temperature (condensation mode) ²: | D7: Température de l'eau (Mode de condensation) ² | E7: Temperatura acqua in ingresso ²:
A8: L_rF_kon | B8: relative Feuchte ²: | C8: relative humidity ²: | D8: humidité relative
A9: L_projektierte_Leistung_k | B9: projektierte Leistung: | C9: required capacity for design situation: | D9: Capacité requise pour la conception: | E9: Potenzialità richiesta di progetto:
A10: L_Nennkühlwassermenge_K | B10: Nennwassermenge: | C10: nominal water flow rate: | D10: quantité d'eau nominale | E10: Portata acqua nominale:
A11: L_Istkühlwassermenge_K | B11: Wassermenge Kühlen: | C11: cold water flow rate: | D11: quantité d'eau: | E11: Portata acqua refrigerata:
A12: L_Heizfall | B12: Heizfall: | C12: heating mode: | D12: Mode chauffage | E12: In riscaldamento:
A14: L_Ansaugtemperatur_H | B14: Ansaugtemperatur: | C14: intake air temperature | D14: Température de l'air d'admission | E14: Temperatura aria in ingresso
A15: L_Heizwasservorlauf | B15: Heizwasservorlauf: | C15: water supply temperature: | D15: Température de l'eau: | E15: Temperatura acqua in ingresso:
A16: L_projektierte_Leistung_h | B16: projektierte Leistung: | C16: required capacity for design situation: | D16: Capacité requise pour la conception: | E16: Potenzialità richiesta di progetto:
A17: L_Nennheizwassermenge_H | B17: Nennwassermenge: | C17: nominal water mass flow (heating): | D17: quantité d'eau nominale | E17: Portata acqua nominale:
A18: L_Istheizwassermenge_H | B18: Wassermenge Heizen: | C18: hot water flow rate: | D18: quantité d'eau: | E18: Portata acqua calda:
A20: L_Volumenstrom | B20: Volumenstrom | C20: air flow rate | D20: Debit d`air | E20: Portata aria | F20: Caudal de ar
A21: L_Drehzahl | B21: Drehzahl | C21: fan Speed | D21: nombre de révolutions | E21: Velocità del ventilatore
A22: L_Date | B22: Datum: | C22: Date: | D22: data: | E22: Data: | F22: Data: | G22: Tarih:
A23: L_Projekt | B23: Projekt: | C23: Project: | D23: Projet: | E23: Progetto: | F23: Projecto: | G23: Proje
A24: L_Bearbeiter | B24: Bearbeiter: | C24: Editor: | D24: Responsable: | E24: Responsabile: | F24: Responsável: | G24: Hazirlayan:
A25: L_Auslegung | B25: Schieberstellung | C25: slide position | D25: position de coulissement | E25: posizione slitta
A26: L_Kondensat | B26: Kondensat ² | C26: condensate ² | D26: condensé ² | E26: condensato ²
A27: L_Auslegetool | B27: Auslegetool | C27: Calculation Tool | D27: programme de calcul | E27: Risultato del dimensionamento
A28: L_mitFilter | B28: mit Filter | C28: with filter | D28: avec filtre | E28: con filtro
A29: L_ohneFilter | B29: ohne Filter | C29: without filter | D29: sans filtre | E29: senza filtro
A30: L_mit3D | B30: mit 3D-Strömung | C30: with 3D-flow-application | D30: avec 3D-courent | E30: con 3D-corrente
A31: L_ohne3D | B31: ohne 3D-Strömung | C31: without 3D-flow-application
A32: L_mitSchalld | B32: mit Schalldämmung | C32: with sound insulation
A33: L_ohneSchalld | B33: ohne Schalldämmung | C33: without Schalldämmung
A34: L_BG630 | B34: Baugröße 630 | C34: Size 630 | D34: Taille 630 | E34: Grandezza 630
A35: L_BG800 | B35: Baugröße 800 | C35: Size 800 | D35: Taille 800 | E35: Grandezza 800
A36: L_BG1000 | B36: Baugröße 1000 | C36: Size 1000 | D36: Taille 1000 | E36: Grandezza 1000
A37: L_Angabe | B37: Angaben zu Toleranzen sowie weitere Spezifikationen sind der aktuellen Bauteilmappe der LTG Aktiengesellschaft zu entnehmen. | C37: Information on tolerances as well as further specifications can be found in the current component portfolio of LTG Aktiengesellschaft | D37: Informations sur les tolérances et autres spécifications du portefeuille actuel de composants LTG se trouve dans | E37: Informazioni sui tolleranze e altre specifiche della corrente portafoglio componente LTG può essere trovato in
A38: L_Fehlerfreiheit | B38: Eine Fehlerfreiheit des Programms kann nicht zugesichert werden. Im Zweifel gelten die technischen Daten der aktuellen Bauteilmappe der LTG Aktiengesellschaft. | C38: A fault-free program can not be guaranteed. In case of doubt, the technical data of the current component portfolio of LTG Aktiengesellschaft apply. | D38: Une précision du programme ne peut pas être garantie. En cas de doute, les données techniques du portefeuille actuel de composants LTG s'appliquent. | E38: Una precisione del programma non può essere garantita. In caso di dubbio, si applicano i dati tecnici del portafoglio componente corrente LTG
A39: L_Programmierfehler | B39: Aus Programmierfehlern entstandener Schaden geht nicht zu Lasten der LTG Aktiengesellschaft. Technische Änderungen im Rahmen der Weiterentwicklung vorbehalten. | C39: Damage resulting from programming errors shall not be charged to LTG Aktiengesellschaft. We reserve the right to make technical changes within the scope of further development | D39: découlant du mal des erreurs de programmation ne sont pas au détriment de LTG. Sous réserve de modifications techniques dans le cadre du développement. | E39: derivanti da errori di programmazione danno non va a scapito della LTG. Con riserva di modifiche tecniche come parte dello sviluppo.
A40: L_Zulufttemp | B40: Zulufttemp.² | C40: supply air temp ² | D40: temp de l'air d'alimentation ² | E40: temp dell'aria di alimentazione ²
A41: L_primaervol | B41: Primärvol. | C41: primary air flow | D41: flux primaire | E41: flusso primario
A42: L_primaerdruck | B42: Primärdruck | C42: pimary pressure | D42: pression primaire | E42: pressione primaria
A43: L_sekundaervol | B43: Sekundärvolumenstrom | C43: secondary air flow | D43: flux secondaire | E43: flusso secondario
A44: L_heatexchanger | B44: Wärmetauscher: | C44: heat exchange: | D44: échangeur de chaleur: | E44: scambiatore di calore:
A45: L_Auswahl | B45: Auswahl | C45: selection | D45: sélection | E45: selezione

Sheet Legende_Abkürzungen
A1: Tel. +49 (0)711 8201-180 Fax -720 | C1: Email: | D1: Raumluft@LTG-AG.de
A2: Legende für LTG-Induktionsgeräte | E2: =Auslegetool!BK1 -> 1 | F2: Abfrage
A3: LTG Aktiengesellschaft | E3: 1 | F3: 2 | G3: 3 | H3: 4
B4: =IF($E$2=1,E4,IF($E$2=2,F4,IF($E$2=3,G4,IF($E$2=4,H4,I4)))) -> Deutsch | E4: Deutsch | F4: Englisch | G4: Französisch | H4: Italienisch
A5: Dp [Pa] | B5: statischer Luftdruck am Primärluftstutzen in Pa | E5: statischer Luftdruck am Primärluftstutzen in Pa | F5: static pressure of primary air (spigot) | G5: pression statique á la tubulure de l'air primaire | H5: pressione statica sul canotto di entrata aria primaria
A6: VP [m³/h] | B6: Primärluftvolmenstrom in m³/h pro Gerät (+/- 10%) | E6: Primärluftvolmenstrom in m³/h pro Gerät (+/- 10%) | F6: Primary air flow rate(+/- 10%) | G6: débit volume de l'air primaire (+/- 10%) | H6: portata d'aria primaria (+/-10%)
A7: LWA [dB(A)] | B7: Schallleistungspegel in dB(A) (+/- 3 dB) | E7: Schallleistungspegel in dB(A) (+/- 3 dB) | F7: Sound power level (+/- 3 dB) | G7: Niveau de puissance sonore (+/-3 dB) | H7: Livello di potenza sonora (+/- 3 dB)
A8: LA18 [dB(A)] | B8: Schalldruckpegel bei 18 m² Sabine in dB(A) (+/- 3 dB) | E8: Schalldruckpegel bei 18 m² Sabine in dB(A) (+/- 3 dB) | F8: Sound pressure level at a room absorption of 18m² Sabine(+/-3 dB) | G8: niveau de pression acoustique lors d'une absorption de la salle de 18m² Sabine | H8: Livello di pressione sonora con 18m² Sabine di assorbimento
A9: QPK [W] | B9: Kühlleistung Primärluft | E9: Kühlleistung Primärluft | F9: cooling capacity primary air | G9: puissance frigorifique de l'air primaire | H9: potenza frigorifera aria primaria
A10: QSK1) [W] | B10: Sekundärkühlleistung (sensibel) in W bei nicht kondensierendem Betrieb (+/- 5%) | E10: Sekundärkühlleistung (sensibel) in W bei nicht kondensierendem Betrieb (+/- 5%) | F10: Secondary cooling capacity - heat exchanger (not condensing) | G10: Capacité de refroidissement secondaire - sur l'échangeur thermique (sans condensation) | H10: capacità di raffreddamento secondario - scambiatore di calore (senza condensa)
A11: QKges1) [W] | B11: Gesamtkühlleistung bei nichtkondensierendem Betrieb in W | E11: Gesamtkühlleistung bei nichtkondensierendem Betrieb in W | F11: Total cooling capacity (not condensing) | G11: Capacité totale de refroidissement (sans condensation) | H11: Potenza frigorifera totale (senza condensa)
A12: QTotal2) [W] | B12: Totalleistung (sensibel + latent) in W bei kondensierendem Betrieb (+/- 5%) | E12: Totalleistung (sensibel + latent) in W bei kondensierendem Betrieb (+/- 5%) | F12: Total cooling capacity at condensation (sensetive + latent) | G12: Capacité totale de refroidissement avec condensation (sensible + latent) | H12: Potenza frigorifera totale con condensazione (sensitivo + latente)
A13: QSK2) [W] | B13: =IF($E$2=1,E13,IF($E$2=2,F13,IF($E$2=3,G13,IF($E$2=4,H13,I13)))) -> Sekundärkühlleistung (sensibel) in W bei kondensierendem Betrieb (+/- 5%) | E13: Sekundärkühlleistung (sensibel) in W bei kondensierendem Betrieb (+/- 5%) | F13: Secondary cooling capacity at condensation (sensetive) | G13: Capacité de refroidissement secondaire avec condensation (sensible) | H13: capacità di raffreddamento secondario con condensazione (sensitivo)
A14: Qsensibel, K2) [W] | B14: =IF($E$2=1,E14,IF($E$2=2,F14,IF($E$2=3,G14,IF($E$2=4,H14,I14)))) -> Sekundärkühlleistung (sensibel) in W bei kondensierendem Betrieb (+/- 5%) | E14: Sekundärkühlleistung (sensibel) in W bei kondensierendem Betrieb (+/- 5%) | F14: Secondary cooling capacity at condensation (sensetive) | G14: Capacité de refroidissement secondaire avec condensation (sensible) | H14: capacità di raffreddamento secondario con condensazione (sensitivo)
A15: QKges2) [W] | B15: Gesamtkühlleistung (sensibel + primär) bei kondensierendem Betrieb in W | E15: Gesamtkühlleistung (sensibel + primär) bei kondensierendem Betrieb in W | F15: cooling capacity at condensation (sensetive + primary) | G15: Capacité de refroidissement (sensible + primaire) | H15: capacità di raffreddamento (sensitivo + primario)
A16: QPH [W] | B16: Primärheizleistung in W (negativ = kühlen) | E16: Primärheizleistung in W (negativ = kühlen) | F16: Primary heating capacity | G16: Primary heating capacity | H16: riscaldamento primario
A17: QSH [W] | B17: Sekundärheizleistung in W (+/- 5%) | E17: Sekundärheizleistung in W (+/- 5%) | F17: Secondary heating capacity | G17: chauffage secondaire | H17: riscaldamento secondaria
A18: QHges [W] | B18: Gesamtheizleistung in W | E18: Gesamtheizleistung in W | F18: Total heating capacity | G18: puissance de chauffage totale | H18: potenza termica totale
A19: tRaum [°C] | B19: Raumtemperatur in °C | E19: Raumtemperatur in °C | F19: Room temperature: | G19: Température ambiante: | H19: Temperatura ambiente:
A20: tKWRL [°C] | B20: Kaltwasser-Rücklauftemperatur in °C | E20: Kaltwasser-Rücklauftemperatur in °C | F20: Cold water return temperature | G20: température de retour d'eau froide | H20: temperatura di ritorno dell'acqua fredda
A21: tKWRL2 [°C] | B21: =IF($E$2=1,E21,IF($E$2=2,F21,IF($E$2=3,G21,IF($E$2=4,H21,I21)))) -> Kaltwasser-Rücklauftemperatur in °C (kondensierender Betrieb) | E21: Kaltwasser-Rücklauftemperatur in °C (kondensierender Betrieb) | F21: Cold water return temperature (at condensation) | G21: température de retour d'eau froide (avec condensation) | H21: temperatura di ritorno dell'acqua fredda (con condensazione)
A22: tWWRL [°C] | B22: Warmwasser-Rücklauftemperatur in °C | E22: Warmwasser-Rücklauftemperatur in °C | F22: Hot water return temperature | G22: température de retour d'eau chaude | H22: temperatura di ritorno dell'acqua calda
A23: wOK | B23: Nennwassermenge Kühlen in kg/h | E23: Nennwassermenge Kühlen in kg/h | F23: nominal water mass flow (cooling) | G23: quantité d'eau nominale (refroidissement) | H23: Portata acqua nominale (raffreddamento)
A24: wOH | B24: Nennwassermenge Heizen in kg/h | E24: Nennwassermenge Heizen in kg/h | F24: nominal water mass flow (heating) | G24: quantité d'eau nominale (chauffage) | H24: Portata acqua nominale (riscaldamento)
A25: wK= | B25: gewählte Wassermenge Kühlen | E25: gewählte Wassermenge Kühlen | F25: Cold Water Flow Rate | G25: quantité d'eau (refroidissement) | H25: Portata acqua refrigerata
A26: wH= | B26: gewählte Wassermenge Heizen | E26: gewählte Wassermenge Heizen | F26: Hot Water Flow Rate | G26: quantité d'eau (chauffage) | H26: Portata acqua calda
A27: DpK | B27: wasserseitiger Druckverlust über Kühlregister in kPa | E27: wasserseitiger Druckverlust über Kühlregister in kPa | F27: water-side pressure loss | G27: perte de charge sur l'eau | H27: perdita di carico lato acqua
A28: DpH | B28: wasserseitiger Druckverlust Heizregister in kPa | E28: wasserseitiger Druckverlust Heizregister in kPa | F28: water-side pressure loss | G28: perte de charge sur l'eau | H28: perdita di carico lato acqua
A29: QE | B29: Eigenkonvektion bei Warmwasservorlaufttemperatur 55 °C, Raumlufttemperatur 20 °C, Nennwassermenge | E29: Eigenkonvektion bei Warmwasservorlaufttemperatur 55 °C, Raumlufttemperatur 20 °C, Nennwassermenge | F29: heating capacity by natural convection (Water supply temperature = 55°C, Roomtemp. = 20°C, nominal water mass flow) | G29: puissance calorifique de convection propre (Température de l'eau = 55°C; température ambiante = 20°C; quantité d'eau nominale) | H29: potenza calorifera a convezione naturale (Temperatura acqua in ingresso = 55°C; temperatura ambiente = 20°C ; Portata acqua)
A30: 1*) | B30: nicht kondensierender Betrieb | E30: nicht kondensierender Betrieb | F30: not condensing | G30: sans condensation | H30: senza condensa
A31: 2*) | B31: kondensierender Betrieb | E31: kondensierender Betrieb | F31: at condensation | G31: avec condensation | H31: con condensazione
A35: ã LTG Aktiengesellschaft: 12.04.2017, TT
A36: =L_Angabe -> Angaben zu Toleranzen sowie weitere Spezifikationen sind der aktuellen Bauteilmappe der LTG Aktiengesellschaft zu entnehmen.
A37: =L_Fehlerfreiheit -> Eine Fehlerfreiheit des Programms kann nicht zugesichert werden. Im Zweifel gelten die technischen Daten der aktuellen Bauteilmappe der LTG Aktiengesellschaft.
A38: =L_Programmierfehler -> Aus Programmierfehlern entstandener Schaden geht nicht zu Lasten der LTG Aktiengesellschaft. Technische Änderungen im Rahmen der Weiterentwicklung vorbehalten.

Sheet Rohdaten_Messwerte_Kühlen (hidden)
B1: Messpunkt | C1: Schieberstellung | D1: Düsenanzahl | E1: Primärdruck | F1: Wassermenge [kg/h] | G1: T Wasser Vorlauf [°C] | H1: T Wasser Rücklauf [°C] | I1: T Wasser Spreizung [K] | J1: Q Sek [W] | K1: q Sek [W/K] | L1: V Sek [m³/h] | M1: i [-] | N1: T Ansaug mean [°C] | O1: T Ausblas mean [°C] | P1: T WT in [°C] | Q1: T WT out [°C] | R1: Messstrecke | S1: Wirkdruck | T1: V Prim [m³/h] | U1: T Ansaug 1 | V1: T Ansaug 2 | W1: T Ansaug 3 | X1: T Ausblas 1 | Y1: T Ausblas 2 | Z1: T Ausblas 3 | AA1: T Primärluft | AC1: ΔΘ (T_Ansaug_mean - T_W_Mittel) [K] | AD1: ΔΘ (T_Ansaugs_mean - T_W_Vorlauf) [K] | AE1: T_W_Mittel [°C] | AG1: i_errechnet [-] | AI1: q_Sek_Mittel [W/K] | AJ1: q_Sek_Vorlauf [W/K] | AK1: Δp_Wasser [kPa] | AM1: Datum | AN1: Start Messwert | AO1: Ende Messwert
A2: 1 | B2: =A2+1 -> 2 | C2: =B2+1 -> 3 | D2: 4 | E2: =D2+1 -> 5 | F2: 6 | G2: 7 | H2: 8 | I2: 9 | J2: 10 | K2: 11 | L2: 12 | M2: 13 | N2: 14 | O2: 15 | P2: 16 | Q2: 17 | R2: 18 | S2: 19 | T2: 20 | U2: 21 | V2: 22 | W2: 23 | X2: 24 | Y2: 25 | Z2: 26 | AA2: 27 | AB2: 28 | AC2: 29 | AD2: 30 | AE2: 31 | AF2: 32 | AG2: 33 | AH2: 34 | AI2: 35 | AJ2: 36 | AK2: 37
A3: V1 | B3: (Schieberstellung 5 | 150 Pa | 200 kg/h) | C3: 5 | D3: 70 | E3: 150 | F3: 202.0501852 | G3: 16.83118182 | H3: 18.15233333 | I3: -1.321151515 | J3: -309.9449349 | K3: 45.70417512 | L3: 238.8015028 | M3: 1.916828273 | N3: 23.61282832 | O3: 18.64588376 | P3: 23.61282832 | Q3: 19.73650594 | R3: 42,18/54,67 | S3: 66.59090909 | T3: 124.5954106 | U3: 23.33424242 | V3: 23.70060606 | W3: 23.80378788 | X3: 18.72772727 | Y3: 18.51666667 | Z3: 18.6930303 | AA3: 18.14151515 | AC3: 6.121070742 | AD3: 6.7816465 | AE3: 17.49175758 | AG3: 1.597429957 | AI3: 50.63694319 | AJ3: 45.7041749 | AK3: 28.9 | AM3: 2017-05-05 | AN3: 11:26:00 | AO3: 11:41:10 | AQ3: Primärdruck | AR3: Wassermenge [kg/h] | AS3: Schieberstellungen
A4: V2 | B4: Schieberstellung 5 | Edelstahlgitter | 4L-WT | 50 Pa | 200 kg/h | C4: 5 | D4: 70 | E4: 50 | F4: 201.9774836 | G4: 16.06478788 | H4: 16.99534848 | I4: -0.9305606061 | J4: -218.2321238 | K4: 23.0326275 | L4: 103.6292848 | M4: 1.412754515 | N4: 25.53970705 | O4: 18.31794439 | P4: 25.53970705 | Q4: 19.25012733 | R4: 42,18/54,67 | S4: 22.5 | T4: 73.35265 | U4: 25.86712121 | V4: 25.64651515 | W4: 25.10560606 | X4: 18.4569697 | Y4: 18.14075758 | Z4: 18.35454545 | AA4: 18.70136364 | AC4: 9.009638864 | AD4: 9.474919167 | AE4: 16.53006818 | AG4: 1.177282677 | AI4: 24.22234366 | AJ4: 23.03262756 | AK4: 28.9 | AM4: 2017-05-05 | AN4: 13:30:10 | AO4: 13:45:20 | AS4: 1 | AT4: 1 - 2 | AU4: 2 | AV4: 2 - 3 | AW4: 3 | AX4: 3 - 4 | AY4: 4 | AZ4: 4 - 5 | BA4: 5
A5: V3 | B5: Schieberstellung 5 | Edelstahlgitter | 4L-WT | 100 Pa | 200 kg/h | C5: 5 | D5: 70 | E5: 100 | F5: 202.0240687 | G5: 16.07598507 | H5: 17.4701791 | I5: -1.39419403 | J5: -327.0380816 | K5: 36.99806655 | L5: 180.0106042 | M5: 1.744169925 | N5: 24.91531845 | O5: 18.38900496 | P5: 24.91531845 | Q5: 19.4894264 | R5: 42,18/54,67 | S5: 45.3 | T5: 103.207034 | U5: 25.18104478 | V5: 25.00776119 | W5: 24.55686567 | X5: 18.53134328 | Y5: 18.22059701 | Z5: 18.4158209 | AA5: 18.3661194 | AC5: 8.142236358 | AD5: 8.839333373 | AE5: 16.77308209 | AG5: 1.45356414 | AI5: 40.16598211 | AJ5: 36.99806639 | AK5: 28.9 | AM5: 2017-05-05 | AN5: 14:08:10 | AO5: 14:23:40 | AQ5: [Pa]
A6: V4 | B6: Schieberstellung 5 | Edelstahlgitter | 4L-WT | 150 Pa | 200 kg/h | C6: 5 | D6: 70 | E6: 150 | F6: 202.2235393 | G6: 16.08562687 | H6: 17.74177612 | I6: -1.656149254 | J6: -388.8681755 | K6: 45.27565994 | L6: 233.1756932 | M6: 1.841705015 | N6: 24.67474624 | O6: 18.51653236 | P6: 24.67474624 | Q6: 19.69391072 | R6: 42,18/54,67 | S6: 68.8 | T6: 126.608598 | U6: 24.81492537 | V6: 24.71835821 | W6: 24.49119403 | X6: 18.63791045 | Y6: 18.35701493 | Z6: 18.55537313 | AA6: 18.23835821 | AC6: 7.761044746 | AD6: 8.589119373 | AE6: 16.91370149 | AG6: 1.534763817 | AI6: 50.10706625 | AJ6: 45.27566008 | AK6: 28.9 | AM6: 2017-05-05 | AN6: 14:39:50 | AO6: 14:55:00 | AQ6: 50 | AR6: 200 | AS6: x | AT6: x | AU6: x | AV6: x | AW6: x | AX6: x | AY6: x | AZ6: x | BA6: x
A7: V5 | B7: Schieberstellung 5 | Edelstahlgitter | 4L-WT | 250 Pa | 200 kg/h | C7: 5 | D7: 70 | E7: 250 | F7: 200.3835636 | G7: 16.00033333 | H7: 17.78634848 | I7: -1.786015152 | J7: -415.5479292 | K7: 56.40017976 | L7: 329.8221147 | M7: 2.039563409 | N7: 23.36817176 | O7: 18.50936364 | P7: 23.36817176 | Q7: 19.60531735 | R7: 42,18/54,67 | S7: 108.5 | T7: 161.712116 | U7: 23.4280303 | V7: 23.45984848 | W7: 23.21606061 | X7: 18.62 | Y7: 18.42030303 | Z7: 18.48757576 | AA7: 17.92530303 | AC7: 6.474830848 | AD7: 7.367838424 | AE7: 16.89334091 | AG7: 1.69972014 | AI7: 64.17918888 | AJ7: 56.40017949 | AK7: 28.9 | AM7: 2017-05-08 | AN7: 09:12:00 | AO7: 09:27:10 | AQ7: 150 | AR7: 200 | AS7: x | AT7: x | AU7: x | AV7: x | AW7: x | AX7: x | AY7: x | AZ7: x | BA7: x
A8: V6 | B8: Schieberstellung 5 | Edelstahlgitter | 4L-WT | 300 Pa | 200 kg/h | C8: 5 | D8: 70 | E8: 300 | F8: 200.5582236 | G8: 16.00818182 | H8: 17.96916667 | I8: -1.960984848 | J8: -456.654335 | K8: 59.97148955 | L8: 360.8065661 | M8: 2.031149636 | N8: 23.6227828 | O8: 18.68209089 | P8: 23.6227828 | Q8: 19.84285409 | R8: 42,18/54,67 | S8: 131.5 | T8: 177.636624 | U8: 23.65787879 | V8: 23.71378788 | W8: 23.49575758 | X8: 18.77484848 | Y8: 18.5969697 | Z8: 18.67469697 | AA8: 17.99681818 | AC8: 6.634108561 | AD8: 7.614600985 | AE8: 16.98867424 | AG8: 1.692652066 | AI8: 68.8355648 | AJ8: 59.9714897 | AK8: 28.9 | AM8: 2017-05-08 | AN8: 09:46:40 | AO8: 10:01:50 | AR8: 50 | AS8: - | BA8: x
H9: =F8*4.18*I8/3600 -> -0.4566552904 | I9: =ABS(H9)*3600/(N8-O8)/1.004/1.2 -> 276.1774798 | J9: =J8*3/(N8-O8) -> -277.2816096 | L9: =I9/T8 -> 1.554732766 | AR9: 100 | BA9: x
A10: V7 | B10: Schieberstellung 5 | Edelstahlgitter | 4L-WT | 150 Pa | 50 kg/h | C10: 5 | D10: 70 | E10: 150 | F10: 45.68476888 | G10: 16.07537879 | H10: 19.90625758 | I10: -3.830878788 | J10: -203.2093026 | K10: 25.97099265 | L10: 248.8324793 | M10: 1.982913652 | N10: 23.89985859 | O10: 19.82649494 | P10: 23.89985859 | Q10: 21.46070141 | R10: 42,18/54,67 | S10: 64.59090909 | T10: 125.4900779 | U10: 23.77772727 | V10: 23.97984848 | W10: 23.94166667 | X10: 19.92090909 | Y10: 19.74121212 | Z10: 19.8180303 | AA10: 17.93166667 | AC10: 5.909040409 | AD10: 7.824479803 | AE10: 17.99081818 | AG10: 1.652521039 | AI10: 34.38971642 | AJ10: 25.97099263 | AK10: 1.9 | AM10: 2017-05-08 | AN10: 10:28:40 | AO10: 10:44:00 | AR10: 150 | BA10: x
A11: V8 | B11: Schieberstellung 5 | Edelstahlgitter | 4L-WT | 150 Pa | 100 kg/h | C11: 5 | D11: 70 | E11: 150 | F11: 105.849562 | G11: 15.89904545 | H11: 18.27556061 | I11: -2.376515152 | J11: -292.0784471 | K11: 38.53523267 | L11: 251.9800367 | M11: 2.009348818 | N11: 23.47866159 | O11: 18.75197471 | P11: 23.47866159 | Q11: 20.01683117 | R11: 42,18/54,67 | S11: 64.5 | T11: 125.403829 | U11: 23.30151515 | V11: 23.51818182 | W11: 23.61681818 | X11: 18.86590909 | Y11: 18.63378788 | Z11: 18.75681818 | AA11: 17.79363636 | AC11: 6.391358561 | AD11: 7.579616136 | AE11: 17.08730303 | AG11: 1.674403295 | AI11: 45.70015291 | AJ11: 38.53523282 | AK11: 8.9 | AM11: 2017-05-08 | AN11: 11:43:10 | AO11: 11:58:20 | AR11: 250 | BA11: x
A12: V9 | B12: Schieberstellung 5 | Edelstahlgitter | 4L-WT | 150 Pa | 150 kg/h | C12: 5 | D12: 70 | E12: 150 | F12: 157.6280499 | G12: 15.85221212 | H12: 17.65633333 | I12: -1.804121212 | J12: -330.195662 | K12: 43.6261687 | L12: 249.8611901 | M12: 1.992452576 | N12: 23.42094448 | O12: 18.393 | P12: 23.42094448 | Q12: 19.47414445 | R12: 42,18/54,67 | S12: 64.5 | T12: 125.403829 | U12: 23.24212121 | V12: 23.48833333 | W12: 23.53348485 | X12: 18.5030303 | Y12: 18.27590909 | Z12: 18.39954545 | AA12: 17.90833333 | AC12: 6.666671758 | AD12: 7.568732364 | AE12: 16.75427273 | AG12: 1.660413348 | AI12: 49.52953678 | AJ12: 43.62616844 | AK12: 18.3 | AM12: 2017-05-08 | AN12: 12:13:50 | AO12: 12:29:00 | AR12: 300 | BA12: x
A13: V10 | B13: Schieberstellung 5 | Edelstahlgitter | 4L-WT | 150 Pa | 250 kg/h | C13: 5 | D13: 70 | E13: 150 | F13: 251.4357467 | G13: 15.9999697 | H13: 17.18759091 | I13: -1.187621212 | J13: -346.7158551 | K13: 48.19325852 | L13: 248.1476713 | M13: 1.978788606 | N13: 23.19431318 | O13: 18.11663127 | P13: 23.19431318 | Q13: 19.02107439 | R13: 42,18/54,67 | S13: 64.5 | T13: 125.403829 | U13: 23.18878788 | V13: 23.26924242 | W13: 23.12409091 | X13: 18.2319697 | Y13: 18.00333333 | Z13: 18.115 | AA13: 18.00227273 | AC13: 6.600532879 | AD13: 7.194343485 | AE13: 16.5937803 | AG13: 1.648924196 | AI13: 52.52949403 | AJ13: 48.19325815 | AK13: 43 | AM13: 2017-05-08 | AN13: 13:03:30 | AO13: 13:18:40 | AQ13: 250 | AR13: 200 | AS13: x | AT13: x | AU13: x | AV13: x | AW13: x | AX13: x | AY13: x | AZ13: x | BA13: x
A14: V11 | B14: Schieberstellung 5 | Edelstahlgitter | 4L-WT | 150 Pa | 300 kg/h | C14: 5 | D14: 70 | E14: 150 | F14: 300.4029902 | G14: 15.9889697 | H14: 17.01413636 | I14: -1.025166667 | J14: -357.5801287 | K14: 49.56526265 | L14: 249.4550144 | M14: 1.989213697 | N14: 23.20337873 | O14: 18.0137525 | P14: 23.20337873 | Q14: 18.92220345 | R14: 42,18/54,67 | S14: 64.5 | T14: 125.403829 | U14: 23.25530303 | V14: 23.27287879 | W14: 23.08257576 | X14: 18.13424242 | Y14: 17.89924242 | Z14: 18.00878788 | AA14: 17.92742424 | AC14: 6.701825697 | AD14: 7.21440903 | AE14: 16.50155303 | AG14: 1.657634686 | AI14: 53.35673449 | AJ14: 48.19325815 | AK14: 58.8 | AM14: 2017-05-08 | AN14: 13:03:30 | AO14: 13:18:40 | AQ14: 300 | AR14: 200 | AS14: x | AT14: x | AU14: x | AV14: x | AW14: x | AX14: x | AY14: x | AZ14: x | BA14: x
A16: V12 | B16: Schieberstellung 4-5 | Edelstahlgitter | 4L-WT | 50 Pa | 200 kg/h | C16: 4.5 | D16: =23+47-(47/2/2) -> 58.25 | E16: 50 | F16: 200.0235253 | G16: 15.99866667 | H16: 16.60787879 | I16: -0.6092121212 | J16: -141.4934194 | K16: 22.91665703 | L16: 117.5620971 | M16: 1.890522258 | N16: 22.17308585 | O16: 18.04246971 | P16: 22.17308585 | Q16: 18.57720359 | R16: 42,18/54,67 | S16: 15.3 | T16: 62.184985 | U16: 22.515 | V16: 21.95060606 | W16: 22.05287879 | X16: 18.15151515 | Y16: 17.96257576 | Z16: 18.01242424 | AA16: 18.33151515 | AC16: 5.869813121 | AD16: 6.174419182 | AE16: 16.30327273 | AG16: 1.575312217 | AI16: 24.10628303 | AJ16: 22.9166571 | AK16: 28.9 | AM16: 2017-05-08 | AN16: 14:56:50 | AO16: 15:12:00
A17: V13 | B17: Schieberstellung 4-5 | Edelstahlgitter | 4L-WT | 150 Pa | 200 kg/h | C17: 4.5 | D17: =23+47-(47/2/2) -> 58.25 | E17: 150 | F17: 200.6180716 | G17: 16.00486364 | H17: 17.23034848 | I17: -1.225484848 | J17: -285.4664806 | K17: 39.95671624 | L17: 208.5166831 | M17: 1.92110853 | N17: 23.14921717 | O17: 18.11479797 | P17: 23.14921717 | Q17: 19.06039136 | R17: 42,18/54,67 | S17: 48 | T17: 108.539773 | U17: 23.32060606 | V17: 23.25439394 | W17: 22.87272727 | X17: 18.14015152 | Y17: 18.04621212 | Z17: 18.15772727 | AA17: 17.90984848 | AC17: 6.531611106 | AD17: 7.14435353 | AE17: 16.61760606 | AG17: 1.600921124 | AI17: 43.70586245 | AJ17: 39.95671621 | AK17: 28.9 | AM17: 2017-05-08 | AN17: 15:37:40 | AO17: 15:52:50
A18: V14 | B18: Schieberstellung 4-5 | Edelstahlgitter | 4L-WT | 250 Pa | 200 kg/h | C18: 4.5 | D18: 58.25 | E18: 250 | F18: 204.182831 | G18: 16.01933333 | H18: 17.3624697 | I18: -1.343136364 | J18: -318.4286597 | K18: 50.31718885 | L18: 278.4866999 | M18: 1.990966439 | N18: 22.34788385 | O18: 18.24409597 | P18: 22.34788385 | Q18: 18.93291694 | R18: 42,18/54,67 | S18: 81.5 | T18: 139.875134 | U18: 22.29045455 | V18: 22.37136364 | W18: 22.38136364 | X18: 18.21227273 | Y18: 18.16757576 | Z18: 18.35272727 | AA18: 18.23469697 | AC18: 5.656982333 | AD18: 6.328550515 | AE18: 16.69090152 | AG18: 1.6590533 | AI18: 56.29105377 | AJ18: 50.31718872 | AK18: 28.9 | AM18: 2017-05-09 | AN18: 08:09:50 | AO18: 08:25:00
A19: V15 | B19: Schieberstellung 4-5 | Edelstahlgitter | 4L-WT | 300 Pa | 200 kg/h | C19: 4.5 | D19: 58.25 | E19: 300 | F19: 204.2265889 | G19: 16.02818182 | H19: 17.51706061 | I19: -1.488878788 | J19: -353.0591525 | K19: 53.97671965 | L19: 309.6526445 | M19: 1.993331409 | N19: 22.56909092 | O19: 18.29593944 | P19: 22.56909092 | Q19: 19.16380535 | R19: 42,18/54,67 | S19: 101 | T19: 155.344283 | U19: 22.53333333 | V19: 22.63560606 | W19: 22.53863636 | X19: 18.26 | Y19: 18.22090909 | Z19: 18.40757576 | AA19: 17.98530303 | AC19: 5.796469712 | AD19: 6.540909106 | AE19: 16.77262121 | AG19: 1.661148623 | AI19: 60.90934644 | AJ19: 53.97671952 | AK19: 28.9 | AM19: 2017-05-09 | AN19: 08:34:20 | AO19: 08:49:30
A21: V16 | B21: Schieberstellung 4 | Edelstahlgitter | 4L-WT | 50 Pa | 200 kg/h | C21: 4 | D21: =23+47-(47/2) -> 46.5 | E21: 50 | F21: 204.13755 | G21: 16.01966667 | H21: 16.44577273 | I21: -0.4261060606 | J21: -100.997429 | K21: 14.6494058 | L21: 68.03500659 | M21: 1.421996561 | N21: 22.91405556 | O21: 18.10859592 | P21: 22.91405556 | Q21: 18.47997029 | R21: 42,18/54,67 | S21: 9 | T21: 47.844703 | U21: 22.58787879 | V21: 23.06181818 | W21: 23.09242424 | X21: 18.33651515 | Y21: 18.01439394 | Z21: 17.97469697 | AA21: 18.71863636 | AC21: 6.681335864 | AD21: 6.894388894 | AE21: 16.2327197 | AG21: 1.185028355 | AI21: 15.11688085 | AJ21: 14.64940584 | AK21: 28.9 | AM21: 2017-05-08 | AN21: 11:03:30 | AO21: 11:18:40
A22: V17 | B22: Schieberstellung 4 | Edelstahlgitter | 4L-WT | 150 Pa | 200 kg/h | C22: 4 | D22: =23+47-(47/2) -> 46.5 | E22: 150 | F22: 204.307691 | G22: 16.03822727 | H22: 16.85287879 | I22: -0.8146515152 | J22: -193.2534627 | K22: 29.2148195 | L22: 139.5547394 | M22: 1.639205803 | N22: 22.65331314 | O22: 17.86665661 | P22: 22.65331314 | Q22: 18.51725267 | R22: 42,18/54,67 | S22: 29.5 | T22: 85.135583 | U22: 23.03939394 | V22: 22.89409091 | W22: 22.02575758 | X22: 18.02393939 | Y22: 17.74484848 | Z22: 17.83166667 | AA22: 18.10727273 | AC22: 6.207760106 | AD22: 6.615085864 | AE22: 16.44555303 | AG22: 1.3661271 | AI22: 31.13244498 | AJ22: 29.21481947 | AK22: 28.9 | AM22: 2017-05-09 | AN22: 10:38:50 | AO22: 10:54:00
A23: V18 | B23: Schieberstellung 4 | Edelstahlgitter | 4L-WT | 250 Pa | 200 kg/h | C23: 4 | D23: 46.5 | E23: 250 | F23: 204.3686088 | G23: 16.07275758 | H23: 17.2139697 | I23: -1.141212121 | J23: -270.8055816 | K23: 37.80621086 | L23: 188.7238971 | M23: 1.716674288 | N23: 23.23575755 | O23: 18.03875252 | P23: 23.23575755 | Q23: 18.95027997 | R23: 42,18/54,67 | S23: 49.8 | T23: 109.935763 | U23: 23.39075758 | V23: 23.51863636 | W23: 22.79742424 | X23: 18.1219697 | Y23: 17.94681818 | Z23: 18.04590909 | AA23: 17.96136364 | AC23: 6.592393909 | AD23: 7.16299997 | AE23: 16.64336364 | AG23: 1.430477535 | AI23: 41.07916598 | AJ23: 37.80621098 | AK23: 28.9 | AM23: 2017-05-09 | AN23: 11:16:10 | AO23: 11:31:20
A24: V19 | B24: Schieberstellung 4 | Edelstahlgitter | 4L-WT | 300 Pa | 200 kg/h | C24: 4 | D24: 46.5 | E24: 300 | F24: 204.4184793 | G24: 16.09233333 | H24: 17.38 | I24: -1.287666667 | J24: -305.6314508 | K24: 41.45191406 | L24: 213.5406914 | M24: 1.770420152 | N24: 23.46542427 | O24: 18.18109592 | P24: 23.46542427 | Q24: 19.19080182 | R24: 42,18/54,67 | S24: 60.2 | T24: 120.615824 | U24: 23.55060606 | V24: 23.70075758 | W24: 23.14454545 | X24: 18.22636364 | Y24: 18.10621212 | Z24: 18.2119697 | AA24: 17.95227273 | AC24: 6.729257606 | AD24: 7.373090939 | AE24: 16.73616667 | AG24: 1.475424403 | AI24: 45.41828895 | AJ24: 41.45191392 | AK24: 28.9 | AM24: 2017-05-09 | AN24: 12:04:00 | AO24: 12:19:20 | AQ24: 1248 | AR24: 1313
A26: V20 | B26: Schieberstellung 3-4 | Edelstahlgitter | 4L-WT | 50 Pa | 200 kg/h | C26: 3.5 | D26: =23+(47/4) -> 34.75 | E26: 50 | F26: 200.064026 | G26: 16.07464615 | H26: 16.52426154 | I26: -0.4496153846 | J26: -104.4429929 | K26: 10.81860178 | L26: 56.91930762 | M26: 1.488687138 | N26: 25.72859997 | O26: 19.6397898 | P26: 25.72859997 | Q26: 20.24828063 | S26: 5.6 | T26: 38.234565 | U26: 25.13923077 | V26: 26.01215385 | W26: 26.03523077 | X26: 19.85646154 | Y26: 19.35984615 | Z26: 19.70492308 | AA26: 20.24476923 | AC26: 9.429146123 | AD26: 9.653953815 | AE26: 16.29945385 | AG26: 1.240502122 | AI26: 11.07658827 | AJ26: 10.81860182 | AK26: 28.9 | AM26: 2017-06-12 | AN26: 13:08:50 | AO26: 13:23:40 | AQ26: =AR26-64 -> 621 | AR26: 685
A27: V21 | B27: Schieberstellung 3-4 | Edelstahlgitter | 4L-WT | 150 Pa | 200 kg/h | C27: 3.5 | D27: =23+(47/4) -> 34.75 | E27: 150 | F27: 200.2505095 | G27: 16.08298462 | H27: 16.92544615 | I27: -0.8424615385 | J27: -195.8840908 | K27: 22.81390422 | L27: 114.8147749 | M27: 1.672557138 | N27: 24.66908722 | O27: 18.96055388 | P27: 24.66908722 | Q27: 19.57358862 | S27: 18.8 | T27: 68.646246 | U27: 24.75830769 | V27: 24.63692308 | W27: 24.61123077 | X27: 19.24553846 | Y27: 18.71923077 | Z27: 18.91723077 | AA27: 19.52615385 | AC27: 8.164871831 | AD27: 8.5861026 | AE27: 16.50421538 | AG27: 1.393835752 | AI27: 23.99119614 | AJ27: 22.81390408 | AK27: 28.9 | AM27: 2017-06-12 | AN27: 13:37:00 | AO27: 13:52:00 | AQ27: =AR27-64 -> 742 | AR27: 806
A28: V22 | B28: Schieberstellung 3-4 | Edelstahlgitter | 4L-WT | 250 Pa | 200 kg/h | C28: 3.5 | D28: 34.75 | E28: 250 | F28: 201.2171046 | G28: 16.10321538 | H28: 17.207 | I28: -1.103784615 | J28: -257.8698831 | K28: 30.00132554 | L28: 151.3116914 | M28: 1.698677815 | N28: 24.69874369 | O28: 18.87104617 | P28: 24.69874369 | Q28: 19.60858222 | S28: 32.1 | T28: 89.076155 | U28: 24.97553846 | V28: 24.72538462 | W28: 24.39523077 | X28: 19.11046154 | Y28: 18.65984615 | Z28: 18.84307692 | AA28: 19.26830769 | AC28: 8.043636 | AD28: 8.595528308 | AE28: 16.65510769 | AG28: 1.415514373 | AI28: 32.06038734 | AJ28: 30.0013252 | AK28: 28.9 | AM28: 2017-06-12 | AN28: 14:53:10 | AO28: 15:08:00 | AQ28: =AR28-64 -> 1068 | AR28: 1132
A29: V23 | B29: Schieberstellung 3-4 | Edelstahlgitter | 4L-WT | 300 Pa | 200 kg/h | C29: 3.5 | D29: 34.75 | E29: 300 | F29: 203.781415 | G29: 16.00283077 | H29: 17.26992308 | I29: -1.267092308 | J29: -299.8064188 | K29: 33.58470538 | L29: 170.6873074 | M29: 1.746881569 | N29: 24.92976406 | O29: 18.85576925 | P29: 24.92976406 | Q29: 19.68373208 | S29: 38.8 | T29: 97.709718 | U29: 24.80969231 | V29: 24.86738462 | W29: 25.11215385 | X29: 19.05723077 | Y29: 18.65907692 | Z29: 18.85123077 | AA29: 19.17784615 | AC29: 8.293387138 | AD29: 8.926933292 | AE29: 16.63637692 | AG29: 1.455737102 | AI29: 36.15291086 | AJ29: 33.5847056 | AK29: 28.9 | AM29: 2017-06-12 | AN29: 16:01:00 | AO29: 16:16:00 | AQ29: =AR29-64 -> 1359 | AR29: 1423
A31: V24 | B31: Schieberstellung 3 | Edelstahlgitter | 4L-WT | 50 Pa | 200 kg/h | C31: 3 | D31: 32 | E31: 50 | F31: 198.803387 | G31: 15.95136923 | H31: 16.32118462 | I31: -0.3698153846 | J31: -85.36618051 | K31: 11.85151094 | L31: 59.62535478 | M31: 1.860035862 | N31: 23.15413332 | O31: 18.72633848 | P31: 23.15413332 | Q31: 18.87784397 | S31: 3.9 | T31: 32.056023 | U31: 23.17676923 | V31: 23.22384615 | W31: 23.06092308 | X31: 18.77876923 | Y31: 18.588 | Z31: 18.81138462 | AA31: 19.81630769 | AC31: 7.0178564 | AD31: 7.202764092 | AE31: 16.13627692 | AG31: 1.550030909 | AI31: 12.16393647 | AJ31: 11.85151093 | AK31: 28.9 | AM31: 2017-06-13 | AN31: 08:13:20 | AO31: 08:28:20 | AQ31: =AR31-64 -> 43 | AR31: 107
A32: V25 | B32: Schieberstellung 3 | Edelstahlgitter | 4L-WT | 150 Pa | 200 kg/h | C32: 3 | D32: 32 | E32: 150 | F32: 199.2903454 | G32: 15.96232308 | H32: 16.62433846 | I32: -0.6620153846 | J32: -153.1900251 | K32: 23.98081737 | L32: 119.9210342 | M32: 2.072657308 | N32: 22.35042566 | O32: 18.31367697 | P32: 22.35042566 | Q32: 18.53512871 | S32: 13.3 | T32: 57.858592 | U32: 22.82292308 | V32: 22.31430769 | W32: 21.91415385 | X32: 18.386 | Y32: 18.15584615 | Z32: 18.39923077 | AA32: 19.24892308 | AC32: 6.057094892 | AD32: 6.388102585 | AE32: 16.29333077 | AG32: 1.727232891 | AI32: 25.29154855 | AJ32: 23.98081737 | AK32: 28.9 | AM32: 2017-06-13 | AN32: 08:41:10 | AO32: 08:56:00 | AQ32: =AR32-64 -> 162 | AR32: 226
A33: V26 | B33: Schieberstellung 3 | Edelstahlgitter | 4L-WT | 250 Pa | 200 kg/h | C33: 3 | D33: 32 | E33: 250 | F33: 199.4205629 | G33: 15.95887692 | H33: 16.82303077 | I33: -0.8641538462 | J33: -200.093917 | K33: 32.25068208 | L33: 166.1899792 | M33: 2.196671954 | N33: 22.1631334 | O33: 18.16837435 | P33: 22.1631334 | Q33: 18.56723165 | S33: 23.1 | T33: 75.655347 | U33: 22.08076923 | V33: 22.07261538 | W33: 22.33676923 | X33: 18.22015385 | Y33: 18.00892308 | Z33: 18.27446154 | AA33: 18.75461538 | AC33: 5.772179554 | AD33: 6.204256477 | AE33: 16.39095385 | AG33: 1.830571622 | AI33: 34.66512151 | AJ33: 32.25068174 | AK33: 28.9 | AM33: 2017-06-13 | AN33: 09:09:20 | AO33: 09:24:20 | AQ33: =AR33-64 -> 283 | AR33: 347
A34: V27 | B34: Schieberstellung 3 | Edelstahlgitter | 4L-WT | 300 Pa | 200 kg/h | C34: 3 | D34: 32 | E34: 300 | F34: 199.2652703 | G34: 15.96441538 | H34: 16.89921538 | I34: -0.9348 | J34: -216.2844 | K34: 34.81429477 | L34: 181.5012775 | M34: 2.188260708 | N34: 22.17693846 | O34: 18.12209745 | P34: 22.17693846 | Q34: 18.61785229 | S34: 27.9 | T34: 82.943169 | U34: 22.29553846 | V34: 22.138 | W34: 22.09769231 | X34: 18.19784615 | Y34: 17.95984615 | Z34: 18.20830769 | AA34: 18.51569231 | AC34: 5.745123077 | AD34: 6.212523077 | AE34: 16.43181538 | AG34: 1.823619666 | AI34: 37.64696775 | AJ34: 34.81429479 | AK34: 28.9 | AM34: 2017-06-13 | AN34: 10:30:50 | AO34: 10:45:50 | AQ34: =AR34-64 -> 632 | AR34: 696
A36: V28 | B36: Schieberstellung 2-3 | Edelstahlgitter | 4L-WT | 50 Pa | 200 kg/h | C36: 2.5 | D36: =23*0.75 -> 17.25 | E36: 50 | F36: 199.1451821 | G36: 15.97866154 | H36: 16.33303077 | I36: -0.3543692308 | J36: -81.94059054 | K36: 10.55555678 | L36: 53.51479366 | M36: 1.690248446 | N36: 23.7415436 | O36: 18.66735898 | P36: 23.7415436 | Q36: 19.1680476 | S36: 3.8 | T36: 31.660904 | U36: 23.80307692 | V36: 23.71384615 | W36: 23.70707692 | X36: 18.74907692 | Y36: 18.51292308 | Z36: 18.74015385 | AA36: 19.24969231 | AC36: 7.585697446 | AD36: 7.762882062 | AE36: 16.15584615 | AG36: 1.408612999 | AI36: 10.80227303 | AJ36: 10.55555682 | AK36: 28.9 | AM36: 2017-06-13 | AN36: 11:33:40 | AO36: 11:48:30 | AQ36: =AR36-64 -> 901 | AR36: 965
A37: V29 | B37: Schieberstellung 2-3 | Edelstahlgitter | 4L-WT | 150 Pa | 200 kg/h | C37: 2.5 | D37: =23*0.75 -> 17.25 | E37: 150 | F37: 199.2055565 | G37: 15.9828 | H37: 16.6306 | I37: -0.6478 | J37: -149.8344266 | K37: 22.39463906 | L37: 114.2753584 | M37: 1.989635692 | N37: 22.67390258 | O37: 18.22210255 | P37: 22.67390258 | Q37: 18.75765791 | S37: 13.1 | T37: 57.435317 | U37: 23.12476923 | V37: 22.67907692 | W37: 22.21738462 | X37: 18.31753846 | Y37: 18.03415385 | Z37: 18.31492308 | AA37: 18.63261538 | AC37: 6.367202585 | AD37: 6.691102585 | AE37: 16.3067 | AG37: 1.658083365 | AI37: 23.53424694 | AJ37: 22.39463897 | AK37: 28.9 | AM37: 2017-06-13 | AN37: 12:08:00 | AO37: 12:22:50 | AQ37: =AR37-64 -> 1048 | AR37: 1112
A38: V30 | B38: Schieberstellung 2-3 | Edelstahlgitter | 4L-WT | 250 Pa | 200 kg/h | C38: 2.5 | D38: 17.25 | E38: 250 | F38: 199.1227252 | G38: 15.98886154 | H38: 16.84350769 | I38: -0.8546461538 | J38: -197.5961449 | K38: 29.43040925 | L38: 150.9384119 | M38: 2.016444923 | N38: 22.70287689 | O38: 18.17655905 | P38: 22.70287689 | Q38: 18.7929552 | S38: 22.6 | T38: 74.853724 | U38: 23.14538462 | V38: 22.88830769 | W38: 22.07584615 | X38: 18.29138462 | Y38: 17.98661538 | Z38: 18.25184615 | AA38: 18.45446154 | AC38: 6.286692277 | AD38: 6.714015354 | AE38: 16.41618462 | AG38: 1.6804284 | AI38: 31.43122521 | AJ38: 29.43040937 | AK38: 28.9 | AM38: 2017-06-13 | AN38: 12:53:00 | AO38: 13:07:50 | AQ38: =AR38-64 -> 1241 | AR38: 1305
A39: V31 | B39: Schieberstellung 2-3 | Edelstahlgitter | 4L-WT | 300 Pa | 200 kg/h | C39: 2.5 | D39: 17.25 | E39: 300 | F39: 199.2683222 | G39: 15.99338462 | H39: 16.94673846 | I39: -0.9533538462 | J39: -220.5788219 | K39: 33.20761043 | L39: 173.0280897 | M39: 2.108325815 | N39: 22.63628715 | O39: 18.19665638 | P39: 22.63628715 | Q39: 18.82822177 | S39: 27.3 | T39: 82.068953 | U39: 22.84169231 | V39: 22.63153846 | W39: 22.43461538 | X39: 18.29184615 | Y39: 18.00523077 | Z39: 18.29230769 | AA39: 18.42446154 | AC39: 6.166225615 | AD39: 6.642902538 | AE39: 16.47006154 | AG39: 1.757073348 | AI39: 35.775871 | AJ39: 33.20761051 | AK39: 28.9 | AM39: 2017-06-13 | AN39: 13:26:50 | AO39: 13:41:40 | AQ39: =AR39-64 -> 1386 | AR39: 1450
A41: V32 | B41: Schieberstellung 2 | Edelstahlgitter | 4L-WT | 50 Pa | 200 kg/h | C41: 2 | D41: 23 | E41: 50 | F41: 199.0342748 | G41: 15.98843077 | H41: 16.21498462 | I41: -0.2265538462 | J41: -52.35656908 | K41: 7.2829364 | L41: 51.63707286 | M41: 2.325052308 | N41: 23.17728206 | O41: 19.61426162 | P41: 23.17728206 | Q41: 20.14905223 | S41: 1.8 | T41: 22.208994 | U41: 22.77615385 | V41: 23.206 | W41: 23.54984615 | X41: 19.37630769 | Y41: 19.32230769 | Z41: 20.14430769 | AA41: 19.752 | AC41: 7.075574369 | AD41: 7.188851292 | AE41: 16.10170769 | AG41: 1.93740507 | AI41: 7.399565419 | AJ41: 7.282936419 | AK41: 28.9 | AM41: 2017-06-13 | AN41: 14:15:20 | AO41: 14:30:20 | AQ41: =AR41-64 -> 1594 | AR41: 1658
A42: V33 | B42: Schieberstellung 2 | Edelstahlgitter | 4L-WT | 150 Pa | 200 kg/h | C42: 2 | D42: 23 | E42: 150 | F42: 199.2038305 | G42: 16.00833846 | H42: 16.47829231 | I42: -0.4699538462 | J42: -108.6998353 | K42: 13.47722103 | L42: 84.15246051 | M42: 2.0400682 | N42: 24.0737128 | O42: 19.31535897 | P42: 24.0737128 | Q42: 20.21584735 | S42: 6.6 | T42: 41.249827 | U42: 23.73938462 | V42: 24.18430769 | W42: 24.29707692 | X42: 18.79846154 | Y42: 18.79723077 | Z42: 20.34969231 | AA42: 19.09630769 | AC42: 7.830397415 | AD42: 8.065374338 | AE42: 16.24331538 | AG42: 1.700047689 | AI42: 13.88181162 | AJ42: 13.47722111 | AK42: 28.9 | AM42: 2017-06-13 | AN42: 14:54:30 | AO42: 15:09:30 | AQ42: =AR42-64 -> 1762 | AR42: 1826
A43: V34 | B43: Schieberstellung 2 | Edelstahlgitter | 4L-WT | 250 Pa | 200 kg/h | C43: 2 | D43: 23 | E43: 250 | F43: 199.2369548 | G43: 16.03773846 | H43: 16.71953846 | I43: -0.6818 | J43: -157.7253507 | K43: 18.99130475 | L43: 128.4063991 | M43: 2.351747985 | N43: 24.34288208 | O43: 19.61336922 | P43: 24.34288208 | Q43: 20.67436028 | S43: 11.8 | T43: 54.600408 | U43: 23.75307692 | V43: 24.33753846 | W43: 24.93876923 | X43: 18.74969231 | Y43: 18.78646154 | Z43: 21.30476923 | AA43: 18.972 | AC43: 7.964243615 | AD43: 8.305143615 | AE43: 16.37863846 | AG43: 1.959766915 | AI43: 19.80431596 | AJ43: 18.99130465 | AK43: 28.9 | AM43: 2017-06-13 | AN43: 15:41:00 | AO43: 15:56:00 | AQ43: =AR43-64 -> 1961 | AR43: 2025
A44: V35 | B44: Schieberstellung 2 | Edelstahlgitter | 4L-WT | 300 Pa | 200 kg/h | C44: 2 | D44: 23 | E44: 300 | F44: 198.7753659 | G44: 15.93735385 | H44: 16.52532308 | I44: -0.5879692308 | J44: -135.6992508 | K44: 21.329262 | L44: 151.3629887 | M44: 2.503228262 | N44: 22.29874871 | O44: 19.19426666 | P44: 22.29874871 | Q44: 19.62086917 | S44: 14.6 | T44: 60.467113 | U44: 21.98953846 | V44: 22.30923077 | W44: 22.59584615 | X44: 18.51892308 | Y44: 18.46892308 | Z44: 20.59446154 | AA44: 19.42123077 | AC44: 6.067410246 | AD44: 6.361394862 | AE44: 16.23133846 | AG44: 2.086192712 | AI44: 22.36490456 | AJ44: 21.32926203 | AK44: 28.9 | AM44: 2017-06-14 | AN44: 08:24:30 | AO44: 08:39:30 | AQ44: =AR44-64 -> 91 | AR44: 155
A46: V36 | B46: Schieberstellung 1-2 | Edelstahlgitter | 4L-WT | 50 Pa | 200 kg/h | C46: 1.5 | D46: =0.5*23 -> 11.5 | E46: 50 | F46: 198.8452367 | G46: 15.94443077 | H46: 16.04952308 | I46: -0.1050923077 | J46: -24.26441335 | K46: 4.513623092 | L46: 71.55098229 | M46: 6.484490692 | N46: 21.32047182 | O46: 20.17304103 | P46: 21.32047182 | Q46: 20.27280508 | S46: 0.4 | T46: 11.034172 | U46: 21.596 | V46: 21.09753846 | W46: 21.26938462 | X46: 20.18323077 | Y46: 20.05630769 | Z46: 20.27892308 | AA46: 20.71676923 | AC46: 5.323494892 | AD46: 5.376041046 | AE46: 15.99697692 | AG46: 5.404368291 | AI46: 4.558299938 | AJ46: 4.513623107 | AK46: 28.9 | AM46: 2017-06-14 | AN46: 08:14:20 | AO46: 08:29:10 | AQ46: =AR46-64 -> 244 | AR46: 308
A47: V37 | B47: Schieberstellung 1-2 | Edelstahlgitter | 4L-WT | 150 Pa | 200 kg/h | C47: 1.5 | D47: =0.5*23 -> 11.5 | E47: 150 | F47: 198.9439098 | G47: 15.94507692 | H47: 16.05633846 | I47: -0.1112615385 | J47: -25.70053152 | K47: 4.721667292 | L47: 109.2910265 | M47: 4.687994662 | N47: 21.38785642 | O47: 20.43730762 | P47: 21.38785642 | Q47: 20.68555717 | S47: 2 | T47: 23.312959 | U47: 21.92446154 | V47: 21.20107692 | W47: 21.03815385 | X47: 20.53784615 | Y47: 20.32830769 | Z47: 20.44507692 | AA47: 20.01661538 | AC47: 5.387148723 | AD47: 5.442779492 | AE47: 16.00070769 | AG47: 3.907105012 | AI47: 4.770512685 | AJ47: 4.721667297 | AK47: 28.9 | AM47: 2017-06-14 | AN47: 09:21:00 | AO47: 09:36:00 | AQ47: =AR47-64 -> 333 | AR47: 397
A48: V38 | B48: Schieberstellung 1-2 | Edelstahlgitter | 4L-WT | 250 Pa | 200 kg/h | C48: 1.5 | D48: 11.5 | E48: 250 | F48: 198.7648842 | G48: 15.95190769 | H48: 16.06609231 | I48: -0.1141846154 | J48: -26.35249188 | K48: 5.831103738 | L48: 504.4669269 | M48: 16.15656342 | N48: 20.47076929 | O48: 20.24900511 | P48: 20.47076929 | Q48: 20.31349292 | S48: 3.7 | T48: 31.223653 | U48: 20.89769231 | V48: 20.21753846 | W48: 20.29630769 | X48: 20.50153846 | Y48: 20.16738462 | Z48: 20.07646154 | AA48: 19.80953846 | AC48: 4.461769292 | AD48: 4.5188616 | AE48: 16.009 | AG48: 13.45994602 | AI48: 5.906071478 | AJ48: 5.831103608 | AK48: 28.9 | AM48: 2017-06-14 | AN48: 10:15:10 | AO48: 10:30:10 | AQ48: =AR48-64 -> 565 | AR48: 629
A49: V39 | B49: Schieberstellung 1-2 | Edelstahlgitter | 4L-WT | 300 Pa | 200 kg/h | C49: 1.5 | D49: 11.5 | E49: 300 | F49: 202.3164472 | G49: 15.96487692 | H49: 16.08372308 | I49: -0.1188461538 | J49: -27.91821328 | K49: 6.111205431 | L49: 472.1250443 | M49: 13.62622555 | N49: 20.53264615 | O49: 20.27830775 | P49: 20.53264615 | Q49: 20.35551075 | S49: 4.6 | T49: 34.648263 | U49: 20.94215385 | V49: 20.24907692 | W49: 20.40707692 | X49: 20.58261538 | Y49: 20.17553846 | Z49: 20.07569231 | AA49: 19.80923077 | AC49: 4.508346154 | AD49: 4.567769231 | AE49: 16.0243 | AG49: 11.35372087 | AI49: 6.192189041 | AJ49: 6.111205437 | AK49: 28.9 | AM49: 2017-06-14 | AN49: 11:00:00 | AO49: 11:15:00 | AQ49: =AR49-64 -> 757 | AR49: 821
A51: V40 | B51: Schieberstellung 1 | Edelstahlgitter | 4L-WT | 50 Pa | 200 kg/h | C51: 1 | D51: 0 | E51: 50 | F51: 202.2512661 | G51: 15.97292308 | H51: 16.08483077 | I51: -0.1119076923 | J51: -26.27949074 | K51: 4.637020677 | L51: 145.715435 | M51: 13.20583375 | N51: 21.64017434 | O51: 20.99571278 | P51: 21.64017434 | Q51: 21.1012258 | S51: 0.4 | T51: 11.034172 | U51: 21.988 | V51: 21.49953846 | W51: 21.43415385 | X51: 21.24815385 | Y51: 20.97738462 | Z51: 20.76092308 | AA51: 21.01984615 | AC51: 5.611297415 | AD51: 5.667251262 | AE51: 16.02887692 | AG51: 11.00663043 | AI51: 4.683532125 | AJ51: 4.637020798 | AK51: 28.9 | AM51: 2017-06-14 | AN51: 10:59:30 | AO51: 11:14:30 | AQ51: =AR51-64 -> 952 | AR51: 1016
A52: V41 | B52: Schieberstellung 1 | Edelstahlgitter | 4L-WT | 150 Pa | 200 kg/h | C52: 1 | D52: 0 | E52: 150 | F52: 202.3478885 | G52: 15.97838462 | H52: 16.10247692 | I52: -0.1240923077 | J52: -29.15486086 | K52: 5.048620569 | L52: 180.5061991 | M52: 7.742740908 | N52: 21.75316925 | O52: 21.05843592 | P52: 21.75316925 | Q52: 21.26974888 | S52: 2 | T52: 23.312959 | U52: 21.93353846 | V52: 21.75769231 | W52: 21.56892308 | X52: 21.08584615 | Y52: 21.11338462 | Z52: 20.97584615 | AA52: 20.322 | AC52: 5.712738477 | AD52: 5.774784631 | AE52: 16.04043077 | AG52: 6.45234483 | AI52: 5.103618452 | AJ52: 5.048620577 | AK52: 28.9 | AM52: 2017-06-14 | AN52: 12:11:40 | AO52: 12:26:40 | AQ52: =AR52-64 -> 1064 | AR52: 1128
A53: V42 | B53: Schieberstellung 1 | Edelstahlgitter | 4L-WT | 250 Pa | 200 kg/h | C53: 1 | D53: 0 | E53: 250 | F53: 202.2643878 | G53: 15.98687692 | H53: 16.11996923 | I53: -0.1330923077 | J53: -31.25672235 | K53: 6.203665908 | L53: 1320.007124 | M53: 42.83218352 | N53: 21.02551286 | O53: 20.90511277 | P53: 21.02551286 | Q53: 20.9466848 | S53: 3.6 | T53: 30.818114 | U53: 21.076 | V53: 20.92676923 | W53: 21.074 | X53: 20.87076923 | Y53: 21.064 | Z53: 20.78076923 | AA53: 20.07676923 | AC53: 4.972089785 | AD53: 5.038635938 | AE53: 16.05342308 | AG53: 35.69238763 | AI53: 6.28684841 | AJ53: 6.203665855 | AK53: 28.9 | AM53: 2017-06-14 | AN53: 13:20:40 | AO53: 13:35:40 | AQ53: =AR53-64 -> 1360 | AR53: 1424
A54: V43 | B54: Schieberstellung 1 | Edelstahlgitter | 4L-WT | 300 Pa | 200 kg/h | C54: 1 | D54: 0 | E54: 300 | F54: 202.2897584 | G54: 15.99610769 | H54: 16.13452308 | I54: -0.1384153846 | J54: -32.51096897 | K54: 6.554585215 | L54: -16439.57247 | M54: -474.4703231 | N54: 20.95588718 | O54: 20.95255382 | P54: 20.95588718 | Q54: 20.95388178 | S54: 4.6 | T54: 34.648263 | U54: 20.99 | V54: 20.83830769 | W54: 21.04107692 | X54: 20.89846154 | Y54: 21.16753846 | Z54: 20.79092308 | AA54: 19.90507692 | AC54: 4.8905718 | AD54: 4.959779492 | AE54: 16.06531538 | AG54: -395.5688889 | AI54: 6.647660043 | AJ54: 6.554585178 | AK54: 28.9 | AM54: 2017-06-14 | AN54: 13:47:30 | AO54: 14:02:30 | AQ54: =AR54-64 -> 1475 | AR54: 1539
A56: V44 | B56: Schieberstellung 5 | 50 Pa | 200 kg/h | lenkendes Alu-Lineargitter | 4L-WT | C56: 5 | E56: 50 | F56: 201.1435704 | G56: 16.0204 | H56: 16.78544615 | I56: -0.7650461538 | J56: -178.6765144 | K56: 23.35439629 | L56: 116.7231689 | M56: 1.631075 | N56: 23.67108208 | O56: 18.59488714 | P56: 23.67108208 | Q56: 19.09911138 | S56: 20.5 | T56: 71.562112 | U56: 24.15476923 | V56: 23.87584615 | W56: 22.982 | X56: 18.45369231 | Y56: 18.71153846 | Z56: 18.61784615 | AA56: 19.15184615 | AC56: 7.268159 | AD56: 7.650682077 | AE56: 16.40292308 | AG56: 1.359291837 | AI56: 24.583749 | AJ56: 23.35439627 | AK56: 28.9 | AM56: 2017-06-14 | AN56: 14:23:30 | AO56: 14:38:30 | AQ56: =AR56-64 -> 1677 | AR56: 1741 | AT56: =(AJ56-AJ4)/AJ4 -> 0.01397012597
A57: V45 | B57: Schieberstellung 5 | 100 Pa | 200 kg/h | lenkendes Alu-Lineargitter | 4L-WT | C57: 5 | E57: 100 | F57: 201.3529585 | G57: 16.03767692 | H57: 17.14747692 | I57: -1.1098 | J57: -259.4628194 | K57: 35.85567882 | L57: 191.1382325 | M57: 1.876323923 | N57: 23.2739128 | O57: 18.59971286 | P57: 23.2739128 | Q57: 19.21971794 | S57: 42.3 | T57: 101.868463 | U57: 23.86061538 | V57: 23.14169231 | W57: 22.81938462 | X57: 18.506 | Y57: 18.71246154 | Z57: 18.58076923 | AA57: 18.89861538 | AC57: 6.681335877 | AD57: 7.236235877 | AE57: 16.59257692 | AG57: 1.563490641 | AI57: 38.8341426 | AJ57: 35.85567893 | AK57: 28.9 | AM57: 2017-06-14 | AN57: 15:31:10 | AO57: 15:46:10 | AQ57: =AR57-64 -> 1919 | AR57: 1983 | AT57: =(AJ57-AJ5)/AJ5 -> -0.03087695039
A58: V46 | B58: Schieberstellung 5 | 150 Pa | 200 kg/h | lenkendes Alu-Lineargitter | 4L-WT | C58: 5 | E58: 150 | F58: 201.5188393 | G58: 16.04586154 | H58: 17.47598462 | I58: -1.430123077 | J58: -334.6279909 | K58: 44.12257231 | L58: 243.7768354 | M58: 2.290679323 | N58: 23.63000003 | O58: 18.75075378 | P58: 23.63000003 | Q58: 19.53032254 | S58: 47.4 | T58: 125.098796 | U58: 23.71984615 | V58: 23.43230769 | W58: 23.73815385 | X58: 18.65553846 | Y58: 18.84646154 | Z58: 18.74938462 | AA58: 18.82738462 | AC58: 6.869076954 | AD58: 7.584138492 | AE58: 16.76092308 | AG58: 1.621622833 | AI58: 48.71604342 | AJ58: 44.12257213 | AK58: 28.9 | AM58: 2017-06-14 | AN58: 15:50:20 | AQ58: =AR58-64 -> 2001 | AR58: 2065 | AT58: -0.02546816438
A59: V47 | B59: Schieberstellung 5 | 250 Pa | 200 kg/h | lenkendes Alu-Lineargitter | 4L-WT | C59: 5 | E59: 250 | F59: 202.0117432 | G59: 15.99452308 | H59: 17.73172308 | I59: -1.7372 | J59: -407.472953 | K59: 54.13922452 | L59: 315.2402487 | M59: 1.956052 | N59: 23.52092815 | O59: 19.23800509 | P59: 23.52092815 | Q59: 19.66039214 | S59: 108.5 | T59: 161.161483 | U59: 23.54261538 | V59: 23.61338462 | W59: 23.40584615 | X59: 19.13323077 | Y59: 19.34661538 | Z59: 19.23476923 | AA59: 19.80846154 | AC59: 6.657805077 | AD59: 7.526405077 | AE59: 16.86312308 | AG59: 1.629995506 | AI59: 61.20272259 | AJ59: 54.13922493 | AK59: 28.9 | AM59: 2017-06-16 | AN59: 07:44:20 | AO59: 07:59:10 | AQ59: =AR59-64 -> 105 | AR59: 169 | AT59: -0.04008771925
A60: V48 | B60: Schieberstellung 5 | 300 Pa | 200 kg/h | lenkendes Alu-Lineargitter | 4L-WT | C60: 5 | E60: 300 | F60: 201.9564234 | G60: 16.00606154 | H60: 17.87086154 | I60: -1.8648 | J60: -437.2838454 | K60: 58.20175563 | L60: 349.8412053 | M60: 1.9724722 | N60: 23.51928714 | O60: 19.19200511 | P60: 23.51928714 | Q60: 19.78617294 | S60: 132 | T60: 177.361791 | U60: 23.56 | V60: 23.60061538 | W60: 23.39692308 | X60: 19.08492308 | Y60: 19.30430769 | Z60: 19.18707692 | AA60: 19.44338462 | AC60: 6.5808256 | AD60: 7.5132256 | AE60: 16.93846154 | AG60: 1.643498483 | AI60: 66.44830347 | AJ60: 58.20175598 | AK60: 28.9 | AM60: 2017-06-16 | AN60: 08:39:10 | AO60: 08:54:00 | AQ60: =AR60-64 -> 340 | AR60: 404 | AT60: -0.02950958417
A62: V49 | B62: Schieberstellung 5 | 150 Pa | 200 kg/h | Edelstahlgitter | 2L-WT | C62: 5 | E62: 150 | F62: 198.9381151 | G62: 15.97843939 | H62: 18.04125758 | I62: -2.062818182 | J62: -476.4913488 | K62: 50.48775511 | L62: 274.3173871 | M62: 2.142227545 | N62: 25.41615148 | O62: 19.64083835 | P62: 25.41615148 | Q62: 20.22817238 | S62: 66.5 | T62: 128.052405 | U62: 25.07712121 | V62: 25.19939394 | W62: 25.97151515 | X62: 19.81242424 | Y62: 19.4280303 | Z62: 19.68257576 | AA62: 20.44363636 | AC62: 8.406303 | AD62: 9.437712091 | AE62: 17.00984848 | AG62: 1.785300078 | AI62: 56.68488794 | AJ62: 50.48775524 | AK62: 28.9 | AM62: 2017-06-23 | AN62: 11:25:30 | AO62: 11:40:40 | AQ62: =AR62-65 -> 733 | AR62: 798 | AT62: =(AJ62-AJ6)/AJ6 -> 0.1151191424
A64: V50 | B64: Schieberstellung 5 | 150 Pa | 200 kg/h | Edelstahlgitter | 4L-WT | MQG 0 ° | C64: 5 | E64: 150 | F64: 199.536669 | G64: 16.0114697 | H64: 17.99327273 | I64: -1.98180303 | J64: -459.1490314 | K64: 50.32379661 | L64: 243.0705137 | M64: 1.910275758 | N64: 25.13554039 | O64: 19.13398483 | P64: 25.13554039 | Q64: 19.49263979 | S64: 65 | T64: 127.243675 | U64: 24.77257576 | V64: 25.1719697 | W64: 25.46272727 | X64: 19.18409091 | Y64: 19.01575758 | Z64: 19.20166667 | AA64: 20.35954545 | AC64: 8.133169182 | AD64: 9.124070697 | AE64: 17.00237121 | AG64: 1.591783129 | AI64: 56.45877615 | AJ64: 50.32379664 | AK64: 28.9 | AM64: 2017-06-28 | AN64: 12:42:00 | AO64: 12:57:10 | AQ64: =AR64-65 -> 1161 | AR64: 1226 | AT64: =RIGHT(B64,3) -> 0 ° | AU64: =(AJ64-$AJ$64)/$AJ$64 -> 0
A65: V51 | B65: Schieberstellung 5 | 150 Pa | 200 kg/h | Edelstahlgitter | 4L-WT | MQG 15 ° | C65: 5 | E65: 150 | F65: 199.5176144 | G65: 15.99666667 | H65: 17.98298485 | I65: -1.986318182 | J65: -460.1532715 | K65: 51.94612341 | L65: 264.6578892 | M65: 2.064465288 | N65: 24.85501012 | O65: 19.29808583 | P65: 24.85501012 | Q65: 19.66210795 | S65: 66 | T65: 128.19682 | U65: 25.28772727 | V65: 24.54863636 | W65: 24.72833333 | X65: 19.34878788 | Y65: 19.19969697 | Z65: 19.34636364 | AA65: 20.45909091 | AC65: 7.865184364 | AD65: 8.858343455 | AE65: 16.98982576 | AG65: 1.72025694 | AI65: 58.50627404 | AJ65: 51.94612325 | AK65: 28.9 | AM65: 2017-06-28 | AN65: 09:12:30 | AO65: 09:27:40 | AQ65: =AR65-65 -> 264 | AR65: 329 | AT65: =RIGHT(B65,4) -> 15 ° | AU65: =(AJ65-$AJ$64)/$AJ$64 -> 0.03223776258
A66: V52 | B66: Schieberstellung 5 | 150 Pa | 200 kg/h | Edelstahlgitter | 4L-WT | MQG 30 ° | C66: 5 | E66: 150 | F66: 199.5589283 | G66: 16.00290909 | H66: 17.96762121 | I66: -1.964712121 | J66: -455.2461984 | K66: 49.58450944 | L66: 244.3346918 | M66: 1.905934045 | N66: 25.18385856 | O66: 19.32091412 | P66: 25.18385856 | Q66: 19.61923177 | S66: 66 | T66: 128.19682 | U66: 25.43636364 | V66: 25.16136364 | W66: 24.95560606 | X66: 19.40151515 | Y66: 19.17590909 | Z66: 19.38606061 | AA66: 20.61424242 | AC66: 8.198593409 | AD66: 9.18094947 | AE66: 16.98526515 | AG66: 1.588305517 | AI66: 55.52668557 | AJ66: 49.58450965 | AK66: 28.9 | AM66: 2017-06-28 | AN66: 10:15:10 | AO66: 10:30:20 | AQ66: =AR66-65 -> 532 | AR66: 597 | AT66: =RIGHT(B66,4) -> 30 ° | AU66: -0.01469060444
A67: V53 | B67: Schieberstellung 5 | 150 Pa | 200 kg/h | Edelstahlgitter | 4L-WT | MQG 45 ° | C67: 5 | E67: 150 | F67: 199.6833329 | G67: 16.00325758 | H67: 17.91878788 | I67: -1.915530303 | J67: -444.1228316 | K67: 48.02735715 | L67: 301.7957238 | M67: 2.364962985 | N67: 25.25074748 | O67: 20.13761611 | P67: 25.25074748 | Q67: 20.85297062 | S67: 65.37878788 | T67: 127.6047148 | U67: 24.96348485 | V67: 25.3980303 | W67: 25.39060606 | X67: 20.11772727 | Y67: 19.19590909 | Z67: 21.09909091 | AA67: 20.45909091 | AC67: 8.289724758 | AD67: 9.247489909 | AE67: 16.96102273 | AG67: 1.970817386 | AI67: 53.57674999 | AJ67: 48.02735707 | AK67: 28.9 | AM67: 2017-06-28 | AN67: 11:01:10 | AO67: 11:16:20 | AQ67: 729 | AR67: 794 | AT67: 45 ° | AU67: -0.04563327344
A69: V54 | B69: Schieberstellung 5 | 150 Pa | 200 kg/h | Edelstahlgitter | 4L-WT | MQG 0 ° | C69: 5 | E69: 150 | F69: 197.6052379 | G69: 15.95577273 | H69: 17.88722727 | I69: -1.931454545 | J69: -443.156097 | K69: 51.134173 | L69: 250.7237612 | M69: 1.966096182 | N69: 24.6224192 | O69: 19.31495459 | P69: 24.6224192 | Q69: 19.34337783 | S69: 65.43333333 | T69: 127.5239168 | U69: 24.36757576 | V69: 24.75651515 | W69: 24.74287879 | X69: 19.47060606 | Y69: 19.16560606 | Z69: 19.30863636 | AA69: 20.99772727 | AC69: 7.700919197 | AD69: 8.66664647 | AE69: 16.9215 | AG69: 1.638465043 | AI69: 57.54713249 | AJ69: 51.13417297 | AK69: 28.9 | AM69: 2017-06-29 | AN69: 07:53:50 | AO69: 08:09:00 | AQ69: =AR69-65 -> 178 | AR69: 243 | AT69: =RIGHT(B69,3) -> 0 ° | AU69: =(AJ69-$AJ$69)/$AJ$69 -> 0
A70: V55 | B70: Schieberstellung 5 | 150 Pa | 200 kg/h | Edelstahlgitter | 4L-WT | MQG 15 ° | C70: 5 | E70: 150 | F70: 194.9253587 | G70: 15.96509091 | H70: 17.85784848 | I70: -1.892757576 | J70: -428.38422 | K70: 51.15035533 | L70: 265.6395561 | M70: 2.082018924 | N70: 24.34018174 | O70: 19.34420706 | P70: 24.34018174 | Q70: 19.52364964 | S70: 65.5 | T70: 127.587484 | U70: 24.34257576 | V70: 24.19469697 | W70: 24.48242424 | X70: 19.58712121 | Y70: 19.14893939 | Z70: 19.29787879 | AA70: 20.70348485 | AC70: 7.428712045 | AD70: 8.375090833 | AE70: 16.9114697 | AG70: 1.735108756 | AI70: 57.66733122 | AJ70: 51.15035581 | AK70: 28.9 | AM70: 2017-06-29 | AN70: 08:26:40 | AO70: 08:41:50 | AQ70: =AR70-65 -> 319 | AR70: 384 | AT70: =RIGHT(B70,4) -> 15 ° | AU70: =(AJ70-$AJ$69)/$AJ$69 -> 0.0003164779952
A71: V56 | B71: Schieberstellung 5 | 150 Pa | 200 kg/h | Edelstahlgitter | 4L-WT | MQG 30 ° | C71: 5 | E71: 150 | F71: 193.6962948 | G71: 15.96787879 | H71: 17.87122727 | I71: -1.903348485 | J71: -428.0688119 | K71: 50.32648224 | L71: 295.8721199 | M71: 2.318974485 | N71: 24.47371215 | O71: 19.69459594 | P71: 24.47371215 | Q71: 20.15266603 | S71: 65.5 | T71: 127.587484 | U71: 24.35515152 | V71: 24.48727273 | W71: 24.57757576 | X71: 19.83409091 | Y71: 19.12530303 | Z71: 20.12606061 | AA71: 20.47924242 | AC71: 7.554159121 | AD71: 8.505833364 | AE71: 16.91955303 | AG71: 1.932491246 | AI71: 56.66688261 | AJ71: 50.32648206 | AK71: 28.9 | AM71: 2017-06-29 | AN71: 09:16:40 | AO71: 09:31:50 | AQ71: =AR71-65 -> 533 | AR71: 598 | AT71: =RIGHT(B71,4) -> 30 ° | AU71: -0.01579552121
A72: V57 | B72: Schieberstellung 5 | 150 Pa | 200 kg/h | Edelstahlgitter | 4L-WT | MQG 45 ° | C72: 5 | E72: 150 | F72: 198.3036733 | G72: 15.96625758 | H72: 17.67269697 | I72: -1.706439394 | J72: -392.895308 | K72: 47.39954089 | L72: 261.7249948 | M72: 2.055945939 | N72: 24.2554798 | O72: 19.45231818 | P72: 24.2554798 | Q72: 19.77208509 | S72: 65.2 | T72: 127.301497 | U72: 23.91969697 | V72: 24.50954545 | W72: 24.33712121 | X72: 19.36378788 | Y72: 18.93151515 | Z72: 20.06212121 | AA72: 20.44060606 | AC72: 7.43600253 | AD72: 8.289222227 | AE72: 16.81947727 | AG72: 1.713294784 | AI72: 52.83887441 | AJ72: 47.39954085 | AK72: 28.9 | AM72: 2017-06-29 | AN72: 09:45:00 | AO72: 10:00:20 | AQ72: 655 | AR72: 720 | AT72: 45 ° | AU72: -0.07303593476
H73: =F72*4.18*I72/3600 -> -0.3929121046 | I73: =ABS(H73)*3600/(N72-O72)/1.004/1.2 -> 244.4306991 | J73: =J72*3/(N72-O72) -> -245.397931 | L73: =I73/T72 -> 1.920092889
AB74: spezifische Kühlleistung (mit Vorlauftemperatur) [W/K] | AJ74: Induktionsverhältnis [-]
AA75: Schieberstellung | AB75: 50 | AC75: 150 | AD75: 250 | AE75: 300 | AF75: Pa | AI75: Schieberstellung | AJ75: 50 | AK75: 150 | AL75: 250 | AM75: 300 | AR75: 2L/lenk.Alu | AS75: =AT62*AJ58 -> 5.079352663 | AT75: W/K
AA76: 1 | AB76: =IFERROR(AJ51,"") -> 4.637020798 | AC76: =IFERROR(AJ52,"") -> 5.048620577 | AD76: =IFERROR(AJ53,"") -> 6.203665855 | AE76: =IFERROR(AJ54,"") -> 6.554585178 | AI76: 1 | AJ76: =IFERROR(AG51,"") -> 11.00663043 | AK76: =IFERROR(AG52,"") -> 6.45234483 | AL76: =IFERROR(AG53,"") -> 35.69238763 | AM76: =IFERROR(AG54,"") -> -395.5688889 | AS76: -0.8987627565
AA77: 1.5 | AB77: =IFERROR(AJ46,"") -> 4.513623107 | AC77: =IFERROR(AJ47,"") -> 4.721667297 | AD77: =IFERROR(AJ48,"") -> 5.831103608 | AE77: =IFERROR(AJ49,"") -> 6.111205437 | AI77: 1.5 | AJ77: =IFERROR(AG46,"") -> 5.404368291 | AK77: =IFERROR(AG47,"") -> 3.907105012 | AL77: =IFERROR(AG48,"") -> 13.45994602 | AM77: =IFERROR(AG49,"") -> 11.35372087
AA78: 2 | AB78: =IFERROR(AJ41,"") -> 7.282936419 | AC78: =IFERROR(AJ42,"") -> 13.47722111 | AD78: =IFERROR(AJ43,"") -> 18.99130465 | AE78: =IFERROR(AJ44,"") -> 21.32926203 | AI78: 2 | AJ78: =IFERROR(AG41,"") -> 1.93740507 | AK78: =IFERROR(AG42,"") -> 1.700047689 | AL78: =IFERROR(AG43,"") -> 1.959766915 | AM78: =IFERROR(AG44,"") -> 2.086192712
AA79: 2.5 | AB79: =IFERROR(AJ36,"") -> 10.55555682 | AC79: =IFERROR(AJ37,"") -> 22.39463897 | AD79: =IFERROR(AJ38,"") -> 29.43040937 | AE79: =IFERROR(AJ39,"") -> 33.20761051 | AI79: 2.5 | AJ79: =IFERROR(AG36,"") -> 1.408612999 | AK79: =IFERROR(AG37,"") -> 1.658083365 | AL79: =IFERROR(AG38,"") -> 1.6804284 | AM79: =IFERROR(AG39,"") -> 1.757073348
AA80: 3 | AB80: =IFERROR(AJ31,"") -> 11.85151093 | AC80: =IFERROR(AJ32,"") -> 23.98081737 | AD80: =IFERROR(AJ33,"") -> 32.25068174 | AE80: =IFERROR(AJ34,"") -> 34.81429479 | AI80: 3 | AJ80: =IFERROR(AG31,"") -> 1.550030909 | AK80: =IFERROR(AG32,"") -> 1.727232891 | AL80: =IFERROR(AG33,"") -> 1.830571622 | AM80: =IFERROR(AG34,"") -> 1.823619666
AA81: 3.5 | AB81: =IFERROR(AJ26,"") -> 10.81860182 | AC81: =IFERROR(AJ27,"") -> 22.81390408 | AD81: =IFERROR(AJ28,"") -> 30.0013252 | AE81: =IFERROR(AJ29,"") -> 33.5847056 | AI81: 3.5 | AJ81: =IFERROR(AG26,"") -> 1.240502122 | AK81: =IFERROR(AG27,"") -> 1.393835752 | AL81: =IFERROR(AG28,"") -> 1.415514373 | AM81: =IFERROR(AG29,"") -> 1.455737102
AA82: 4 | AB82: =AJ21 -> 14.64940584 | AC82: =AJ22 -> 29.21481947 | AD82: =AJ23 -> 37.80621098 | AE82: =AJ24 -> 41.45191392 | AI82: 4 | AJ82: =$AG$21 -> 1.185028355 | AK82: =$AG$22 -> 1.3661271 | AL82: =$AG$23 -> 1.430477535 | AM82: =$AG$24 -> 1.475424403
AA83: 4.5 | AB83: =AJ16 -> 22.9166571 | AC83: =AJ17 -> 39.95671621 | AD83: =AJ18 -> 50.31718872 | AE83: =AJ19 -> 53.97671952 | AI83: 4.5 | AJ83: =$AG$16 -> 1.575312217 | AK83: =$AG$17 -> 1.600921124 | AL83: =$AG$18 -> 1.6590533 | AM83: =$AG$19 -> 1.661148623
AA84: 5 | AB84: =AJ4 -> 23.03262756 | AC84: =AJ6 -> 45.27566008 | AD84: =AJ7 -> 56.40017949 | AE84: =AJ8 -> 59.9714897 | AI84: 5 | AJ84: =$AG$4 -> 1.177282677 | AK84: =$AG$5 -> 1.45356414 | AL84: =$AG$6 -> 1.534763817 | AM84: =$AG$7 -> 1.69972014
G92: Schieberstellung 5 | 200 kg/h | Edelstahlgitter
G93: q_Sek_Mittel [W/K] | H93: q_Sek_Vorlauf [W/K] | I93: Induktionsverhältnis [-]
F94: a = | G94: =TRANSPOSE(LINEST(AI4:AI8,T4:T8^{0,1,2},0,0)) -> -0.001251645026 | H94: =TRANSPOSE(LINEST(AJ4:AJ8,T4:T8^{0,1,2},0,0)) -> -0.00134496928 | I94: =TRANSPOSE(LINEST(AG4:AG8,$T$4:$T$8^{0,1,2,3},0,0)) -> 1.244368063e-07
F95: b = | G95: 0.7424832689 | H95: 0.6912633225 | I95: -8.965602138e-05
F96: c = | G96: -23.43815989 | H96: -20.34714768 | I96: 0.02128336153
F97: d = | G97: - | H97: - | I97: 0.05381577023
G98: Schieberstellung 5 | 150 Pa | Edelstahlgitter
G99: q_Sek_Mittel [W/K] | H99: q_Sek_Vorlauf [W/K] | I99: Δp_W [kPa]
F100: a = | G100: =TRANSPOSE(LINEST(AI10:AI14,F10:F14^{0,1,2},0,0)) -> -0.0004391881659 | H100: =TRANSPOSE(LINEST(AJ10:AJ14,F10:F14^{0,1,2},0,0)) -> -0.0005121235888 | I100: =TRANSPOSE(LINEST(AK10:AK14,F10:F14^{0,1,2},0,0)) -> 0.00053310781
F101: b = | G101: 0.2210096252 | H101: 0.2609365944 | I101: 0.04014838642
F102: c = | G102: 25.87288609 | H102: 15.59498952 | I102: -1.162222671
F103: d = | G103: - | H103: - | I103: -
G105: Schieberstellung 4 - 5 | 200 kg/h | Edelstahlgitter
G106: q_Sek_Mittel [W/K] | H106: q_Sek_Vorlauf [W/K] | I106: Induktionsverhältnis [-]
F107: a = | G107: =TRANSPOSE(LINEST(AI16:AI19,T16:T19^{0,1,2},0,0)) -> -0.0006664267359 | H107: =TRANSPOSE(LINEST(AJ16:AJ19,T16:T19^{0,1,2},0,0)) -> -0.0007887999894 | I107: =TRANSPOSE(LINEST(AG16:AG19,$T$16:$T$19^{0,1,2,3},0,0)) -> -5.743967776e-07
F108: b = | G108: 0.5434647441 | H108: 0.507731335 | I108: 0.0001951755686
F109: c = | G109: -7.165688853 | H109: -5.649008778 | I109: -0.01990385359
F110: d = | G110: - | H110: - | I110: 2.19641835
G112: Schieberstellung 4 | 200 kg/h | Edelstahlgitter
G113: q_Sek_Mittel [W/K] | H113: q_Sek_Vorlauf [W/K] | I113: Induktionsverhältnis [-]
F114: a = | G114: =TRANSPOSE(LINEST(AI21:AI24,T21:T24^{0,1,2},0,0)) -> -0.0003532255389 | H114: =TRANSPOSE(LINEST(AJ21:AJ24,T21:T24^{0,1,2},0,0)) -> -0.0006132568127 | I114: =TRANSPOSE(LINEST(AG26:AG29,$T$21:$T$24^{0,1,2,3},0,0)) -> 1.836649213e-06
F115: b = | G115: 0.4750922386 | H115: 0.470864069 | I115: -0.0004982958715
F116: c = | G116: -6.796946908 | H116: -6.467373055 | I116: 0.04537769544
F117: d = | G117: - | H117: - | I117: 0.008923018317
G119: Schieberstellung 3 - 4 | 200 kg/h | Edelstahlgitter
G120: q_Sek_Mittel [W/K] | H120: q_Sek_Vorlauf [W/K] | I120: Induktionsverhältnis [-]
F121: a = | G121: =TRANSPOSE(LINEST(AI26:AI29,T26:T29^{0,1,2},0,0)) -> -2.174041591e-05 | H121: =TRANSPOSE(LINEST(AJ26:AJ29,T26:T29^{0,1,2},0,0)) -> -0.0003253934449 | I121: =TRANSPOSE(LINEST(AG26:AG29,$T$26:$T$29^{0,1,2,3},0,0)) -> 3.397855519e-06
F122: b = | G122: 0.4209649344 | H122: 0.4237185575 | I122: -0.0007441317635
F123: c = | G123: -4.95700095 | H123: -4.878999855 | I123: 0.05467812284
F124: d = | G124: - | H124: - | I124: 0.04781951561
G126: Schieberstellung 3 | 200 kg/h | Edelstahlgitter
G127: q_Sek_Mittel [W/K] | H127: q_Sek_Vorlauf [W/K] | I127: Induktionsverhältnis [-]
F128: a = | G128: =TRANSPOSE(LINEST(AI31:AI34,T31:T34^{0,1,2},0,0)) -> -0.0004437449658 | H128: =TRANSPOSE(LINEST(AJ31:AJ34,T31:T34^{0,1,2},0,0)) -> -0.0008580817147 | I128: =TRANSPOSE(LINEST(AG31:AG34,$T$31:$T$34^{0,1,2,3},0,0)) -> -4.817987944e-06
F129: b = | G129: 0.5566603348 | H129: 0.5540971799 | I129: 0.0007733787319
F130: c = | G130: -5.258925454 | H130: -5.058543652 | I130: -0.03265475356
F131: d = | G131: - | H131: - | I131: 1.960803733
G133: Schieberstellung 2 - 3 | 200 kg/h | Edelstahlgitter
G134: q_Sek_Mittel [W/K] | H134: q_Sek_Vorlauf [W/K] | I134: Induktionsverhältnis [-]
F135: a = | G135: =TRANSPOSE(LINEST(AI36:AI39,T36:T39^{0,1,2},0,0)) -> 0.0002260422223 | H135: =TRANSPOSE(LINEST(AJ36:AJ39,T36:T39^{0,1,2},0,0)) -> -0.0002574260081 | I135: =TRANSPOSE(LINEST(AG36:AG39,$T$36:$T$39^{0,1,2,3},0,0)) -> 1.137788276e-05
F136: b = | G136: 0.4632433029 | H136: 0.4729552582 | I136: -0.002059790948
F137: c = | G137: -4.04606193 | H137: -4.121061106 | I137: 0.1235695522
F138: d = | G138: - | H138: - | I138: -0.8000530723
G140: Schieberstellung 2 | 200 kg/h | Edelstahlgitter
G141: q_Sek_Mittel [W/K] | H141: q_Sek_Vorlauf [W/K] | I141: Induktionsverhältnis [-]
F142: a = | G142: =TRANSPOSE(LINEST(AI41:AI44,T41:T44^{0,1,2},0,0)) -> 0.002528555124 | H142: =TRANSPOSE(LINEST(AJ41:AJ44,T41:T44^{0,1,2},0,0)) -> 0.00206849417 | I142: =TRANSPOSE(LINEST(AG41:AG44,$T$41:$T$44^{0,1,2,3},0,0)) -> -2.290664814e-05
F143: b = | G143: 0.1847528623 | H143: 0.1986972905 | I143: 0.003689771513
F144: c = | G144: 2.033619649 | H144: 1.834634322 | I144: -0.1753538519
F145: d = | G145: - | H145: - | I145: 4.262824443
G147: Schieberstellung 1 - 2 | 200 kg/h | Edelstahlgitter
G148: q_Sek_Mittel [W/K] | H148: q_Sek_Vorlauf [W/K] | I148: Induktionsverhältnis [-]
F149: a = | G149: =TRANSPOSE(LINEST(AI46:AI49,T46:T49^{0,1,2},0,0)) -> 0.004303483021 | H149: =TRANSPOSE(LINEST(AJ46:AJ49,T46:T49^{0,1,2},0,0)) -> 0.004204557843 | I149: =TRANSPOSE(LINEST(AG46:AG49,$T$46:$T$49^{0,1,2,3},0,0)) -> -0.009597790323
F150: b = | G150: -0.122552072 | H150: -0.1196893429 | I150: 0.6951869842
F151: c = | G151: 5.371092158 | H151: 5.30725208 | I151: -15.14578823
F152: d = | G152: - | H152: - | I152: 100.7786177
G154: Schieberstellung 1 | 200 kg/h | Edelstahlgitter
G155: q_Sek_Mittel [W/K] | H155: q_Sek_Vorlauf [W/K] | I155: Induktionsverhältnis [-]
F156: a = | G156: =TRANSPOSE(LINEST(AI51:AI54,T51:T54^{0,1,2},0,0)) -> 0.003934305705 | H156: =TRANSPOSE(LINEST(AJ51:AJ54,T51:T54^{0,1,2},0,0)) -> 0.00382973055 | I156: =TRANSPOSE(LINEST(AG51:AG54,$T$51:$T$54^{0,1,2,3},0,0)) -> -0.4443378879
F157: b = | G157: -0.09166160979 | H157: -0.08896295421 | I157: 29.17106231
F158: c = | G158: 5.198416833 | H158: 5.135242584 | I158: -592.4176319
F159: d = | G159: - | H159: - | I159: 3593.124365
G161: Schieberstellung 5 | 200 kg/h | lenkendes Alu-Lineargitter
G162: q_Sek_Mittel [W/K] | H162: q_Sek_Vorlauf [W/K] | I162: Induktionsverhältnis [-]
F163: a = | G163: =TRANSPOSE(LINEST(AI56:AI60,T56:T60^{0,1,2},0,0)) -> -0.001020240527 | H163: =TRANSPOSE(LINEST(AJ56:AJ60,U56:U60^{0,1,2},0,0)) -> 35.38968973 | I163: =TRANSPOSE(LINEST(AG56:AG60,$T$56:$T$60^{0,1,2,3},0,0)) -> 5.455327253e-07
F164: b = | G164: 0.648451789 | H164: -1742.541121 | I164: -0.0002458656936
F165: c = | G165: -16.58836774 | H165: 21465.75793 | I165: 0.03700566716
F166: d = | G166: - | H166: - | I166: -0.2300304834

Sheet Auswertung_Leistung (hidden)
A1: Wassermengenvariation | E1: Abfrage | F1: =Auslegetool!AQ7 -> 2 | G1: Druck oder Volumenstrom | K1: Grenzewerte Primädruck
A2: HFBsf; HL; 4L; Schieberstellung 5; mit Edelstahlgitter | E2: Vorgabe ==> | F2: =Q2 -> 150 | G2: =IF($F$1=1, "m³/h", "Pa") -> Pa | H2: =IF($F$1=1, "Primärvolumenstrom", "Primärdruck") -> Primärdruck | J2: min | K2: 45 | Q2: 150
A3: Wassermenge kühlen | B3: =Auslegetool!J13 -> 200 | C3: kg/h | J3: max | K3: 305
A4: Wassermenge heizen | B4: =Auslegetool!Q13 -> 100 | C4: kg/h
A5: Nennwassermenge | B5: 200 | C5: kg/h
G6: Wassermengenvariation 1 | N6: Wassermengenvariation 2 | U6: Wassermengenvariation 3
H7: 1 | I7: 5 | J7: 20 | K7: 6 | L7: 11 | M7: 37
G8: =CONCATENATE("Wassermassenstromvariation (bei Primädruck von ", ROUND(AVERAGE(I11:I14),0), " Pa)") -> Wassermassenstromvariation (bei Primädruck von 150 Pa) | N8: =CONCATENATE("Wassermassenstromvariation (bei Primädruck von ", ROUND(AVERAGE(P11:P14),0), " Pa)") -> Wassermassenstromvariation (bei Primädruck von 150 Pa) | U8: =CONCATENATE("Wassermassenstromvariation (bei Primädruck von ", ROUND(AVERAGE(W11:W14),0), " Pa)") -> Wassermassenstromvariation (bei Primädruck von 150 Pa)
G9: Messung | H9: Messung | I9: Primärdruck [Pa] | J9: Primärvolumenstrom[m³/h] | K9: Wasser-Massenstrom | L9: spez. Kühlleistung | M9: Druckverlust wassers. | N9: Messung | O9: Messung | P9: Primärdruck [Pa] | Q9: Primärvolumenstrom[m³/h] | R9: Wasser-Massenstrom | S9: spez. Kühlleistung | T9: Druckverlust wassers. | U9: Messung | V9: Messung | W9: Primärdruck [Pa] | X9: Primärvolumenstrom[m³/h] | Y9: Wasser-Massenstrom | Z9: spez. Kühlleistung | AA9: Druckverlust wassers.
I10: Pa | J10: m³/h | K10: kg/h | L10: W/K | M10: kPa | P10: Pa | Q10: m³/h | R10: kg/h | S10: W/K | T10: kPa | W10: Pa | X10: m³/h | Y10: kg/h | Z10: W/K | AA10: kPa
G11: V7 | H11: =VLOOKUP(G11,Matrix_Rohdaten,$H$7,0) -> V7 | I11: =VLOOKUP(G11,Matrix_Rohdaten,$I$7,0) -> 150 | J11: =VLOOKUP(G11,Matrix_Rohdaten,$J$7,0)/$D$73*$D$77 -> 89.63576994 | K11: =VLOOKUP(G11,Matrix_Rohdaten,$K$7,0) -> 45.68476888 | L11: =VLOOKUP(G11,Matrix_Rohdaten,$L$7,0) -> 25.97099265 | M11: =VLOOKUP(G11,Matrix_Rohdaten,$M$7,0) -> 1.9 | N11: V7 | O11: =VLOOKUP(N11,Matrix_Rohdaten,$H$7,0) -> V7 | P11: =VLOOKUP(N11,Matrix_Rohdaten,$I$7,0) -> 150 | Q11: =VLOOKUP(N11,Matrix_Rohdaten,$J$7,0)/$D$73*$D$77 -> 89.63576994 | R11: =VLOOKUP(N11,Matrix_Rohdaten,$K$7,0) -> 45.68476888 | S11: =VLOOKUP(N11,Matrix_Rohdaten,$L$7,0) -> 25.97099265 | T11: =VLOOKUP(N11,Matrix_Rohdaten,$M$7,0) -> 1.9 | U11: V7 | V11: =VLOOKUP(U11,Matrix_Rohdaten,$H$7,0) -> V7 | W11: =VLOOKUP(U11,Matrix_Rohdaten,$I$7,0) -> 150 | X11: =VLOOKUP(U11,Matrix_Rohdaten,$J$7,0)/$D$73*$D$77 -> 89.63576994 | Y11: =VLOOKUP(U11,Matrix_Rohdaten,$K$7,0) -> 45.68476888 | Z11: =VLOOKUP(U11,Matrix_Rohdaten,$L$7,0) -> 25.97099265 | AA11: =VLOOKUP(U11,Matrix_Rohdaten,$M$7,0) -> 1.9
G12: V8 | H12: =VLOOKUP(G12,Matrix_Rohdaten,$H$7,0) -> V8 | I12: =VLOOKUP(G12,Matrix_Rohdaten,$I$7,0) -> 150 | J12: =VLOOKUP(G12,Matrix_Rohdaten,$J$7,0)/$D$73*$D$77 -> 89.57416357 | K12: =VLOOKUP(G12,Matrix_Rohdaten,$K$7,0) -> 105.849562 | L12: =VLOOKUP(G12,Matrix_Rohdaten,$L$7,0) -> 38.53523267 | M12: =VLOOKUP(G12,Matrix_Rohdaten,$M$7,0) -> 8.9 | N12: V8 | O12: =VLOOKUP(N12,Matrix_Rohdaten,$H$7,0) -> V8 | P12: =VLOOKUP(N12,Matrix_Rohdaten,$I$7,0) -> 150 | Q12: =VLOOKUP(N12,Matrix_Rohdaten,$J$7,0)/$D$73*$D$77 -> 89.57416357 | R12: =VLOOKUP(N12,Matrix_Rohdaten,$K$7,0) -> 105.849562 | S12: =VLOOKUP(N12,Matrix_Rohdaten,$L$7,0) -> 38.53523267 | T12: =VLOOKUP(N12,Matrix_Rohdaten,$M$7,0) -> 8.9 | U12: V8 | V12: =VLOOKUP(U12,Matrix_Rohdaten,$H$7,0) -> V8 | W12: =VLOOKUP(U12,Matrix_Rohdaten,$I$7,0) -> 150 | X12: =VLOOKUP(U12,Matrix_Rohdaten,$J$7,0)/$D$73*$D$77 -> 89.57416357 | Y12: =VLOOKUP(U12,Matrix_Rohdaten,$K$7,0) -> 105.849562 | Z12: =VLOOKUP(U12,Matrix_Rohdaten,$L$7,0) -> 38.53523267 | AA12: =VLOOKUP(U12,Matrix_Rohdaten,$M$7,0) -> 8.9
G13: V10 | H13: =VLOOKUP(G13,Matrix_Rohdaten,$H$7,0) -> V10 | I13: =VLOOKUP(G13,Matrix_Rohdaten,$I$7,0) -> 150 | J13: =VLOOKUP(G13,Matrix_Rohdaten,$J$7,0)/$D$73*$D$77 -> 89.57416357 | K13: =VLOOKUP(G13,Matrix_Rohdaten,$K$7,0) -> 251.4357467 | L13: =VLOOKUP(G13,Matrix_Rohdaten,$L$7,0) -> 48.19325852 | M13: =VLOOKUP(G13,Matrix_Rohdaten,$M$7,0) -> 43 | N13: V10 | O13: =VLOOKUP(N13,Matrix_Rohdaten,$H$7,0) -> V10 | P13: =VLOOKUP(N13,Matrix_Rohdaten,$I$7,0) -> 150 | Q13: =VLOOKUP(N13,Matrix_Rohdaten,$J$7,0)/$D$73*$D$77 -> 89.57416357 | R13: =VLOOKUP(N13,Matrix_Rohdaten,$K$7,0) -> 251.4357467 | S13: =VLOOKUP(N13,Matrix_Rohdaten,$L$7,0) -> 48.19325852 | T13: =VLOOKUP(N13,Matrix_Rohdaten,$M$7,0) -> 43 | U13: V10 | V13: =VLOOKUP(U13,Matrix_Rohdaten,$H$7,0) -> V10 | W13: =VLOOKUP(U13,Matrix_Rohdaten,$I$7,0) -> 150 | X13: =VLOOKUP(U13,Matrix_Rohdaten,$J$7,0)/$D$73*$D$77 -> 89.57416357 | Y13: =VLOOKUP(U13,Matrix_Rohdaten,$K$7,0) -> 251.4357467 | Z13: =VLOOKUP(U13,Matrix_Rohdaten,$L$7,0) -> 48.19325852 | AA13: =VLOOKUP(U13,Matrix_Rohdaten,$M$7,0) -> 43
G14: V11 | H14: =VLOOKUP(G14,Matrix_Rohdaten,$H$7,0) -> V11 | I14: =VLOOKUP(G14,Matrix_Rohdaten,$I$7,0) -> 150 | J14: =VLOOKUP(G14,Matrix_Rohdaten,$J$7,0)/$D$73*$D$77 -> 89.57416357 | K14: =VLOOKUP(G14,Matrix_Rohdaten,$K$7,0) -> 300.4029902 | L14: =VLOOKUP(G14,Matrix_Rohdaten,$L$7,0) -> 49.56526265 | M14: =VLOOKUP(G14,Matrix_Rohdaten,$M$7,0) -> 58.8 | N14: V11 | O14: =VLOOKUP(N14,Matrix_Rohdaten,$H$7,0) -> V11 | P14: =VLOOKUP(N14,Matrix_Rohdaten,$I$7,0) -> 150 | Q14: =VLOOKUP(N14,Matrix_Rohdaten,$J$7,0)/$D$73*$D$77 -> 89.57416357 | R14: =VLOOKUP(N14,Matrix_Rohdaten,$K$7,0) -> 300.4029902 | S14: =VLOOKUP(N14,Matrix_Rohdaten,$L$7,0) -> 49.56526265 | T14: =VLOOKUP(N14,Matrix_Rohdaten,$M$7,0) -> 58.8 | U14: V11 | V14: =VLOOKUP(U14,Matrix_Rohdaten,$H$7,0) -> V11 | W14: =VLOOKUP(U14,Matrix_Rohdaten,$I$7,0) -> 150 | X14: =VLOOKUP(U14,Matrix_Rohdaten,$J$7,0)/$D$73*$D$77 -> 89.57416357 | Y14: =VLOOKUP(U14,Matrix_Rohdaten,$K$7,0) -> 300.4029902 | Z14: =VLOOKUP(U14,Matrix_Rohdaten,$L$7,0) -> 49.56526265 | AA14: =VLOOKUP(U14,Matrix_Rohdaten,$M$7,0) -> 58.8
G17: Wassermengenvariation | N17: Wassermengenvariation | U17: Wassermengenvariation
G18: =CONCATENATE($A$2,"; ", "Primärdruck", " = ",L27, " ", L26,"; m_w=", ROUND(G24,0), " kg/h") -> HFBsf; HL; 4L; Schieberstellung 5; mit Edelstahlgitter; Primärdruck = 150 Pa; m_w=200 kg/h | N18: =CONCATENATE($A$2,"; ", "Primärdruck", " = ",S27, " ", S26,"; m_w=", ROUND(N24,0), " kg/h") -> HFBsf; HL; 4L; Schieberstellung 5; mit Edelstahlgitter; Primärdruck = 150 Pa; m_w=200 kg/h | U18: =CONCATENATE($A$2,"; ", "Primärdruck", " = ",Z27, " ", Z26,"; m_w=", ROUND(U24,0), " kg/h") -> HFBsf; HL; 4L; Schieberstellung 5; mit Edelstahlgitter; Primärdruck = 150 Pa; m_w=200 kg/h
G20: wok | H20: spez. Leistung bei wok | K20: Druckverlust bei wok | N20: wok | O20: spez. Leistung bei wok | R20: Druckverlust bei wok | U20: wok | V20: spez. Leistung bei wok | Y20: Druckverlust bei wok
G21: =B5 -> 200 | H21: =G39*G21^G38+H39*G21^H38+I39*G21^I38+J39*G21^J38+K39 -> 46.68089836 | K21: =H$44*G21^I$44 -> 28.20130781 | N21: =G21 -> 200 | O21: =N39*N21^N38+O39*N21^O38+P39*N21^P38+Q39*N21^Q38+R39 -> 46.68089836 | R21: =O$44*N21^P$44 -> 28.20130781 | U21: =G21 -> 200 | V21: =U39*U21^U38+V39*U21^V38+W39*U21^W38+X39*U21^X38+Y39 -> 46.68089836 | Y21: =V$44*U21^W$44 -> 28.20130781
G23: w_soll | N23: w_soll | U23: w_soll
G24: =B3 -> 200 | I24: =G24/G21 -> 1 | J24: =G$51*I24^G$50+H$51*I24^H$50+I$51*I24^I$50+J$51*I24^J$50+K$51 -> 1 | K24: =H$44*G24^I$44 -> 28.20130781 | N24: =B3 -> 200 | P24: =N24/N21 -> 1 | Q24: =N$51*P24^N$50+O$51*P24^O$50+P$51*P24^P$50+Q$51*P24^Q$50+R$51 -> 1 | R24: =O$44*N24^P$44 -> 28.20130781 | U24: =B3 -> 200 | W24: =U24/U21 -> 1 | X24: =U$51*W24^U$50+V$51*W24^V$50+W$51*W24^W$50+X$51*W24^X$50+Y$51 -> 1 | Y24: =V$44*U24^W$44 -> 28.20130781
G25: Wassermenge | H25: spez. Leistung | I25: Faktor: Wassermenge zu Nennwassermenge | J25: Kühlleistung Korrekturfaktor für w_soll ≠ w_ok | K25: wasserseit. Druckverlust - kühlen | L25: Primärdruck [Pa] | M25: Primärvolumenstrom[m³/h] | N25: Wassermenge | O25: spez. Leistung | P25: Faktor: Wassermenge zu Nennwassermenge | Q25: Kühlleistung Korrekturfaktor für w_soll ≠ w_ok | R25: wasserseit. Druckverlust - kühlen | S25: Primärdruck [Pa] | T25: Primärvolumenstrom[m³/h] | U25: Wassermenge | V25: spez. Leistung | W25: Faktor: Wassermenge zu Nennwassermenge | X25: Kühlleistung Korrekturfaktor für w_soll ≠ w_ok | Y25: wasserseit. Druckverlust - kühlen | Z25: Primärdruck [Pa] | AA25: Primärvolumenstrom[m³/h]
G26: [kg/h] | H26: [W/K] | I26: [-] | J26: [-] | K26: [kPa] | L26: Pa | M26: m³/h | N26: [kg/h] | O26: [W/K] | P26: [-] | Q26: [-] | R26: [kPa] | S26: Pa | T26: m³/h | U26: [kg/h] | V26: [W/K] | W26: [-] | X26: [-] | Y26: [kPa] | Z26: Pa | AA26: m³/h
G27: =K11 -> 45.68476888 | H27: =L11 -> 25.97099265 | I27: =G27/G$21 -> 0.2284238444 | J27: 0.5563516034 | K27: =M11 -> 1.9 | L27: =I11 -> 150 | M27: =J11 -> 89.63576994 | N27: =R11 -> 45.68476888 | O27: 25.97099265 | P27: =N27/N$21 -> 0.2284238444 | Q27: 0.5563516034 | R27: =T11 -> 1.9 | S27: =P11 -> 150 | T27: =Q11 -> 89.63576994 | U27: =Y11 -> 45.68476888 | V27: 25.97099265 | W27: =U27/U$21 -> 0.2284238444 | X27: 0.5563516034 | Y27: =AA11 -> 1.9 | Z27: =W11 -> 150 | AA27: =X11 -> 89.63576994
G28: 105.849562 | H28: 38.53523267 | I28: 0.5292478101 | J28: 0.8255032362 | K28: =M12 -> 8.9 | L28: =I12 -> 150 | M28: =J12 -> 89.57416357 | N28: 105.849562 | O28: 38.53523267 | P28: 0.5292478101 | Q28: 0.8255032362 | R28: =T12 -> 8.9 | S28: =P12 -> 150 | T28: =Q12 -> 89.57416357 | U28: 105.849562 | V28: 38.53523267 | W28: 0.5292478101 | X28: 0.8255032362 | Y28: =AA12 -> 8.9 | Z28: =W12 -> 150 | AA28: 89.57416357
G29: 251.4357467 | H29: 48.19325852 | I29: 1.257178733 | J29: 1.032397837 | K29: =M13 -> 43 | L29: =I13 -> 150 | M29: =J13 -> 89.57416357 | N29: 251.4357467 | O29: 48.19325852 | P29: =N29/N$21 -> 1.257178733 | Q29: =O29/O$21 -> 1.032397837 | R29: =T13 -> 43 | S29: =P13 -> 150 | T29: 89.57416357 | U29: 251.4357467 | V29: 48.19325852 | W29: 1.257178733 | X29: 1.032397837 | Y29: =AA13 -> 43 | Z29: =W13 -> 150 | AA29: 89.57416357
G30: 300.4029902 | H30: 49.56526265 | I30: 1.502014951 | J30: 1.061788963 | K30: =M14 -> 58.8 | L30: =I14 -> 150 | M30: 89.57416357 | N30: 300.4029902 | O30: 49.56526265 | P30: 1.502014951 | Q30: 1.061788963 | R30: =T14 -> 58.8 | S30: =P14 -> 150 | T30: 89.57416357 | U30: 300.4029902 | V30: 49.56526265 | W30: 1.502014951 | X30: 1.061788963 | Y30: =AA14 -> 58.8 | Z30: =W14 -> 150 | AA30: 89.57416357
G33: y = qk x = wk | N33: y = qk x = wk | U33: y = qk x = wk
G35: y = | H35: axn+bx(n-1)+...+nx+m | N35: y = | O35: axn+bx(n-1)+...+nx+m | U35: y = | V35: axn+bx(n-1)+...+nx+m
G36: Polynom | H36: =G38 -> 3 | I36: Ordnung | N36: Polynom | O36: 750 | P36: Ordnung | U36: Polynom | V36: =U38 -> 3 | W36: Ordnung
G37: a = | H37: b = | I37: c = | J37: m = | N37: a = | O37: 750 | P37: c = | Q37: m = | U37: a = | V37: b = | W37: c = | X37: m =
G38: 3 | H38: 2 | I38: 1 | J38: 0 | N38: 3 | O38: 2 | P38: 1 | Q38: 0 | U38: 3 | V38: 2 | W38: 1 | X38: 0
G39: =LINEST(H27:H30,G27:G30^{0,1,2,3},0,0) -> 1.945598709e-06 | H39: -0.001476561779 | I39: 0.3973124854 | J39: 10.71608277 | N39: =LINEST(O27:O30,N27:N30^{0,1,2,3},0,0) -> 1.945598709e-06 | O39: -0.001476561779 | P39: 0.3973124854 | Q39: 10.71608277 | U39: =LINEST(V27:V30,U27:U30^{0,1,2,3},0,0) -> 1.945598709e-06 | V39: -0.001476561779 | W39: 0.3973124854 | X39: 10.71608277
G40: y = Druck dp [kPa] x = Wasserm. wk | N40: y = Druck dp [kPa] x = Wasserm. wk | U40: y = Druck dp [kPa] x = Wasserm. wk
G42: y = | H42: mxb | N42: y = | O42: mxb | U42: y = | V42: mxb
H43: m | I43: b | J43: R2 | O43: m | P43: b | Q43: R2 | V43: m | W43: b | X43: R2
H44: =INDEX(LOGEST(K27:K30,LN(G27:G30),,TRUE),1,2) -> 0.001792277359 | I44: =LN(INDEX(LOGEST(K27:K30,LN(G27:G30),,TRUE),1,1)) -> 1.823906702 | J44: =INDEX(LOGEST(K27:K30,LN(G27:G30),,TRUE),3,1) -> 0.999980949 | O44: =INDEX(LOGEST(R27:R30,LN(N27:N30),,TRUE),1,2) -> 0.001792277359 | P44: =LN(INDEX(LOGEST(R27:R30,LN(N27:N30),,TRUE),1,1)) -> 1.823906702 | Q44: =INDEX(LOGEST(R27:R30,LN(N27:N30),,TRUE),3,1) -> 0.999980949 | V44: =INDEX(LOGEST(Y27:Y30,LN(U27:U30),,TRUE),1,2) -> 0.001792277359 | W44: =LN(INDEX(LOGEST(Y27:Y30,LN(U27:U30),,TRUE),1,1)) -> 1.823906702 | X44: =INDEX(LOGEST(Y27:Y30,LN(U27:U30),,TRUE),3,1) -> 0.999980949
G45: y = qk in % x = wk in % | N45: y = qk in % x = wk in % | U45: y = qk in % x = wk in %
G47: y = | H47: axn+bx(n-1)+...+nx+m | N47: y = | O47: axn+bx(n-1)+...+nx+m | U47: y = | V47: axn+bx(n-1)+...+nx+m
G48: Polynom | H48: =G50 -> 3 | I48: Ordnung | N48: Polynom | O48: =N50 -> 3 | P48: Ordnung | U48: Polynom | V48: =U50 -> 3 | W48: Ordnung
G49: a = | H49: b = | I49: c = | J49: m = | N49: a = | O49: b = | P49: c = | Q49: m = | U49: a = | V49: b = | W49: c = | X49: m =
G50: 3 | H50: 2 | I50: 1 | J50: 0 | N50: 3 | O50: 2 | P50: 1 | Q50: 0 | U50: 3 | V50: 2 | W50: 1 | X50: 0
G51: =LINEST(J27:J30,I27:I30^{0,1,2,3},0,0) -> 0.333429523 | H51: -1.265238529 | I51: 1.702248668 | J51: 0.2295603373 | N51: =LINEST(Q27:Q30,P27:P30^{0,1,2,3},0,0) -> 0.333429523 | O51: -1.265238529 | P51: 1.702248668 | Q51: 0.2295603373 | U51: =LINEST(X27:X30,W27:W30^{0,1,2,3},0,0) -> 0.333429523 | V51: -1.265238529 | W51: 1.702248668 | X51: 0.2295603373
A56: Basisdaten - Leistung | V56: Wird nicht verwendet
P57: 1 | Q57: Einheiten
A58: Primärvolumenstrom | B58: =F2 -> 150 | C58: m³/h | P58: 1.5 | R58: 1 | S58: Primärvolumenstrom | T58: [m³/h]
A59: Primärdruck | B59: =F2 -> 150 | C59: Pa | P59: 2 | R59: 2 | S59: Primärdruck | T59: [Pa]
J60: CER/Ei; 23.03.2023 | P60: 2.5 | R60: =F1 -> 2 | S60: =IF($F$1=1,S58,S59) -> Primärdruck | T60: =IF($F$1=1,T58,T59) -> [Pa] | V60: Polynom y = | W60: axn+bx(n-1)+...+nx+m | X60: Ordnung
A61: Datenübergabe AUS WASSERMENGENVARIATION | J61: Anpassungen von HFBsf-HL (Adidas) zu HFBsf: | P61: 3 | R61: =IF(F1=1,2,1) -> 1 | S61: =IF($F$1=2,S58,S59) -> Primärvolumenstrom | T61: =IF($F$1=2,T58,T59) -> [m³/h] | V61: a = | W61: b = | X61: m =
A62: Wassermenge kühlen | B62: =B3 -> 200 | C62: kg/h | J62: statt 3x25 Düsen sind 2x25 Düsen vorhanden | P62: 3.5 | V62: 2 | W62: 1 | X62: 0
A63: Wassermenge heizen | B63: =B4 -> 100 | C63: kg/h | J63: Primärluftvolumenstrom wurde dasher um den Faktor (z.B. 50/70) angepasst | P63: 4 | V63: =LINEST(N73:N76,H73:H76^{0,1,2},0,0) -> 0 | W63: 0 | X63: 0
A64: Nennwassermenge | B64: =B5 -> 200 | C64: kg/h | J64: Geringe Abweichungen der latentan Leistung sind durch deutlich geringere Sekundärluftsolumenströme zu erklären | P64: 4.5 | V64: Abweichung Auslegung 1 | W64: =V63*R74^V62+W63*R74^W62+X63*R74^X62 -> 0 | X64: =IF(W64>=0, CONCATENATE("+", ROUND(AVERAGE(W64)*100,0), " % Kühlleistung bei ", ROUND($B$62,0), " kg/h"),CONCATENATE(ROUND(AVERAGE(W64)*100,0), " % Kühlleistung bei ", ROUND($B$62,0), " kg/h")) -> +0 % Kühlleistung bei 200 kg/h
A65: Polynom Wassermenge | B65: =G50 -> 3 | C65: 2 | D65: 1 | E65: 0 | F65: 0 | G65: Primärdruck | H65: Primärvolumenstrom | J65: WÜT sind identisch (VKB) und haben dieselbe Breite, daher sind Kühlleistungen ebenfalls identisch; durch Messungen verifiziert. | P65: 5 | V65: Abweichung Auslegung 2 | W65: =V63*T76^V62+W63*T76^W62+X63*T76^X62 -> 0 | X65: =IF(W65>=0, CONCATENATE("+", ROUND(AVERAGE(W65)*100,0), " % Kühlleistung bei ", ROUND($B$62,0), " kg/h"),CONCATENATE(ROUND(AVERAGE(W65)*100,0), " % Kühlleistung bei ", ROUND($B$62,0), " kg/h")) -> +0 % Kühlleistung bei 200 kg/h
A66: Wassermengenvar. 1 | B66: 0.333429523 | C66: -1.265238529 | D66: 1.702248668 | E66: 0.2295603373 | F66: 0 | G66: =$L$27 -> 150 | H66: =AVERAGE($M$27:$M$30) -> 89.58956516
A67: Wassermengenvar. 2 | B67: =N51 -> 0.333429523 | C67: =O51 -> -1.265238529 | D67: =P51 -> 1.702248668 | E67: =Q51 -> 0.2295603373 | F67: =R51 -> 0 | G67: =IFERROR(IF($S$27=0,G66,$S$27),G66) -> 150 | H67: =IFERROR(IF($T$27=0,H66,$T$27),H66) -> 89.63576994
A68: Wassermengenvar. 3 | B68: =U51 -> 0.333429523 | C68: =V51 -> -1.265238529 | D68: =W51 -> 1.702248668 | E68: =X51 -> 0.2295603373 | F68: =Y51 -> 0 | G68: =IFERROR(IF($Z$27=0,G66,$Z$27),G66) -> 150 | H68: =IFERROR(IF($AA$27=0,H66,$AA$27),H66) -> 89.63576994
AO69: Heizen
A70: HFBsf; HL; 4L; mit Edelstahlgitter | AO70: 20
B71: 1 | C71: 3 | D71: 4 | E71: 6 | F71: 5 | G71: 11 | H71: 20 | I71: 33 | P71: 1 | Q71: 2 | R71: 3 | S71: 4 | T71: 5 | U71: 6 | V71: 7 | W71: 8 | X71: 9 | Y71: 10 | Z71: 11 | AA71: 12 | AB71: 13 | AC71: 14 | AD71: 15 | AE71: 16 | AF71: 17 | AG71: 18 | AH71: 19 | AI71: 20 | AJ71: 21 | AK71: 22 | AL71: 23 | AM71: 24 | AN71: 25 | AO71: 26 | AP71: 27 | AQ71: 28 | AR71: 29
A72: Messreihe 1 | B72: Messung (Kontrolle) | C72: Schieberstellung | D72: Anzahl Düsen | E72: Wasser- menge [kg/h] | F72: Primärdruck [Pa] | G72: spez. Kühlleistung q Sek [W/K] | H72: Primärvolumenstrom [m³/h] | I72: Induktionsverhältnis i [-] | J72: Kühlleistung Korrekturfaktor für w_soll ≠ w_ok | K72: =CONCATENATE("q Sek [W/K] bei wok ", $B$64, " kg/h") -> q Sek [W/K] bei wok 200 kg/h | L72: =CONCATENATE("Korrektur bei ", ROUND(AVERAGE($B$62),0), " kg/h (Mittelwert)") -> Korrektur bei 200 kg/h (Mittelwert) | M72: =CONCATENATE("q Sek [W/K] bei w_soll ", ROUND($B$62,0), " kg/h") -> q Sek [W/K] bei w_soll 200 kg/h | N72: =CONCATENATE("q Sek Abweichung von Nennwassermenge bei ", $B$62, " kg/h") -> q Sek Abweichung von Nennwassermenge bei 200 kg/h | O72: Sekundärvolumenstrom [m³/h] | R72: x - Achse | S72: y - Achse | T72: y - Achse | U72: y - Achse | AO72: Primärvolumenstrom [m³/h] | AP72: =K72 -> q Sek [W/K] bei wok 200 kg/h | AQ72: =CONCATENATE("Korrektur bei ", ROUND(AVERAGE($B$63),0), " kg/h (Mittelwert)") -> Korrektur bei 100 kg/h (Mittelwert) | AR72: =CONCATENATE("q Sek [W/K] bei w_soll ", ROUND($B$63,0), " kg/h") -> q Sek [W/K] bei w_soll 100 kg/h | AS72: Korrektur kühlen heizen bei gleichem Wärmetauscher
A73: V2 | B73: =VLOOKUP(A73,Matrix_Rohdaten,$B$71,0) -> V2 | C73: =VLOOKUP(A73,Matrix_Rohdaten,$C$71,0) -> 5 | D73: =VLOOKUP(A73,Matrix_Rohdaten,$D$71,0) -> 70 | E73: =VLOOKUP(A73,Matrix_Rohdaten,$E$71,0) -> 201.9774836 | F73: =VLOOKUP(A73,Matrix_Rohdaten,$F$71,0) -> 50 | G73: =VLOOKUP(A73,Matrix_Rohdaten,$G$71,0) -> 23.0326275 | H73: =VLOOKUP(A73,Matrix_Rohdaten,$H$71,0)/D73*D$77 -> 52.39475 | I73: =VLOOKUP(A73,Matrix_Rohdaten,$I$71,0)/$D$77*D73 -> 1.648195748 | J73: =IF(G78=G79,G78,E83*H73^E82+F83*H73^F82+G83*H73^G82) -> 1.00109523 | K73: =G73/J73 -> 23.00742907 | L73: =IF(L78=L79,L78,J83*H73^J82+K83*H73^K82+L83*H73^L82) -> 1 | M73: =K73*L73 -> 23.00742907 | N73: =1/K73*M73-1 -> 0 | O73: =I73*H73 -> 86.35680417 | P73: =CONCATENATE(A72,": Auslegung1") -> Messreihe 1: Auslegung1 | Q73: 1 | R73: V_Prim soll [m³/h] | S73: q sek [W/K] Auslegung 1 | T73: Primärdruck [Pa] | U73: Induktionsverhältnis | V73: Titel für Diagramme: | AF73: Akustikmessung: | AO73: =VLOOKUP(A73,Matrix_Rohdaten,$AO$70,0)/$D$76*$D$77 -> 52.39475 | AP73: =K73 -> 23.00742907 | AQ73: =IF(AQ78=AQ79,AQ78,AO83*AO73^AO82+AP83*AO73^AP82+AQ83*AO73^AQ82) -> 0.8060537297 | AR73: =AP73*AQ73 -> 18.54522401 | AS73: =1/M73*AR73 -> 0.8060537297
A74: V4 | B74: =VLOOKUP(A74,Matrix_Rohdaten,$B$71,0) -> V4 | C74: =VLOOKUP(A74,Matrix_Rohdaten,$C$71,0) -> 5 | D74: =VLOOKUP(A74,Matrix_Rohdaten,$D$71,0) -> 70 | E74: =VLOOKUP(A74,Matrix_Rohdaten,$E$71,0) -> 202.2235393 | F74: =VLOOKUP(A74,Matrix_Rohdaten,$F$71,0) -> 150 | G74: =VLOOKUP(A74,Matrix_Rohdaten,$G$71,0) -> 45.27565994 | H74: =VLOOKUP(A74,Matrix_Rohdaten,$H$71,0)/D74*D$77 -> 90.43471286 | I74: =VLOOKUP(A74,Matrix_Rohdaten,$I$71,0)/$D$77*D74 -> 2.148669344 | J74: =IF(G78=G79,G78,E83*H74^E82+F83*H74^F82+G83*H74^G82) -> 1.00109523 | K74: =G74/J74 -> 45.22612691 | L74: =IF(L78=L79,L78,J83*H74^J82+K83*H74^K82+L83*H74^L82) -> 1 | M74: =K74*L74 -> 45.22612691 | N74: =1/K74*M74-1 -> 0 | O74: =I74*H74 -> 194.3142951 | Q74: 1 | R74: 91 | S74: =R80*R74^R79+S80*R74^S79+T80*R74^T79+U80*R74^U79 -> 45.4320018 | T74: =V80*R74^W80 -> 153.0211568 | U74: =X80*R74^X79+Y80*R74^Y79+Z80*R74^Z79 -> 2.170739199 | V74: =CONCATENATE($A$70, " ; ",K72) -> HFBsf; HL; 4L; mit Edelstahlgitter ; q Sek [W/K] bei wok 200 kg/h | AF74: \\file\Daten\M\r\PM\Luft-Wasser-Systeme\Induktion\HFBsf\Messungen\Akustik\HFBsf_Akustik_1mm_Schieber_HFI.xlsx | AO74: =VLOOKUP(A74,Matrix_Rohdaten,$AO$70,0)/$D$76*$D$77 -> 90.43471286 | AP74: =K74 -> 45.22612691 | AQ74: =IF(AQ78=AQ79,AQ78,AO83*AO74^AO82+AP83*AO74^AP82+AQ83*AO74^AQ82) -> 0.8060537297 | AR74: =AP74*AQ74 -> 36.45468828 | AS74: =1/M74*AR74 -> 0.8060537297
A75: V5 | B75: =VLOOKUP(A75,Matrix_Rohdaten,$B$71,0) -> V5 | C75: =VLOOKUP(A75,Matrix_Rohdaten,$C$71,0) -> 5 | D75: =VLOOKUP(A75,Matrix_Rohdaten,$D$71,0) -> 70 | E75: =VLOOKUP(A75,Matrix_Rohdaten,$E$71,0) -> 200.3835636 | F75: =VLOOKUP(A75,Matrix_Rohdaten,$F$71,0) -> 250 | G75: =VLOOKUP(A75,Matrix_Rohdaten,$G$71,0) -> 56.40017976 | H75: =VLOOKUP(A75,Matrix_Rohdaten,$H$71,0)/D75*D$77 -> 115.5086543 | I75: =VLOOKUP(A75,Matrix_Rohdaten,$I$71,0)/$D$77*D75 -> 2.379608197 | J75: =IF(G78=G79,G78,E83*H75^E82+F83*H75^F82+G83*H75^G82) -> 1.00109523 | K75: =G75/J75 -> 56.33847615 | L75: =IF(L78=L79,L78,J83*H75^J82+K83*H75^K82+L83*H75^L82) -> 1 | M75: =K75*L75 -> 56.33847615 | N75: =1/K75*M75-1 -> 0 | O75: =I75*H75 -> 274.8653405 | P75: =CONCATENATE(A72,": Auslegung2") -> Messreihe 1: Auslegung2 | Q75: 2 | R75: Primärdruck Soll [Pa] | S75: q sek [W/K] Auslegung 2 | T75: V_Prim soll [m³/h] Auslegung 2 | U75: Induktionsverhältnis | V75: =CONCATENATE($A$70, " ; ",M72) -> HFBsf; HL; 4L; mit Edelstahlgitter ; q Sek [W/K] bei w_soll 200 kg/h | AO75: =VLOOKUP(A75,Matrix_Rohdaten,$AO$70,0)/$D$76*$D$77 -> 115.5086543 | AP75: =K75 -> 56.33847615 | AQ75: =IF(AQ78=AQ79,AQ78,AO83*AO75^AO82+AP83*AO75^AP82+AQ83*AO75^AQ82) -> 0.8060537297 | AR75: =AP75*AQ75 -> 45.41183883 | AS75: =1/M75*AR75 -> 0.8060537297
A76: V6 | B76: =VLOOKUP(A76,Matrix_Rohdaten,$B$71,0) -> V6 | C76: =VLOOKUP(A76,Matrix_Rohdaten,$C$71,0) -> 5 | D76: =VLOOKUP(A76,Matrix_Rohdaten,$D$71,0) -> 70 | E76: =VLOOKUP(A76,Matrix_Rohdaten,$E$71,0) -> 200.5582236 | F76: =VLOOKUP(A76,Matrix_Rohdaten,$F$71,0) -> 300 | G76: =VLOOKUP(A76,Matrix_Rohdaten,$G$71,0) -> 59.97148955 | H76: =VLOOKUP(A76,Matrix_Rohdaten,$H$71,0)/D76*D$77 -> 126.8833029 | I76: =VLOOKUP(A76,Matrix_Rohdaten,$I$71,0)/$D$77*D76 -> 2.369712893 | J76: =IF(G78=G79,G78,E83*H76^E82+F83*H76^F82+G83*H76^G82) -> 1.00109523 | K76: =G76/J76 -> 59.90587881 | L76: =IF(L78=L79,L78,J83*H76^J82+K83*H76^K82+L83*H76^L82) -> 1 | M76: =K76*L76 -> 59.90587881 | N76: =1/K76*M76-1 -> 0 | O76: 300.6769987 | Q76: 2 | R76: 77.3 | S76: =R83*R76^R82+S83*R76^S82+T83*R76^T82+U83*R76^U82 -> 31.10688447 | T76: =V83*R76^W83 -> 65.00538159 | U76: =X83*R76^X82+Y83*R76^Y82+Z83*R76^Z82 -> 1.813681563 | V76: =CONCATENATE("im Mittel ", ROUND(AVERAGE(N73:N76)*100,0), " % Kühlleistung bei ", ROUND($B$62,0), " kg/h") -> im Mittel 0 % Kühlleistung bei 200 kg/h | AO76: =VLOOKUP(A76,Matrix_Rohdaten,$AO$70,0)/$D$76*$D$77 -> 126.8833029 | AP76: =K76 -> 59.90587881 | AQ76: =IF(AQ78=AQ79,AQ78,AO83*AO76^AO82+AP83*AO76^AP82+AQ83*AO76^AQ82) -> 0.8060537297 | AR76: =AP76*AQ76 -> 48.28735705 | AS76: =1/M76*AR76 -> 0.8060537297
C77: Düsenanzahl HFBsf-Standard (2x25 Düsen je 6,8mm) | D77: =25+25 -> 50 | E77: =CONCATENATE("w_mess = ", ROUND(E78,0)," kg/h") -> w_mess = 201 kg/h | F77: Faktor: Wassermenge zu Nennwassermenge [-] | G77: Kühlleistung Korrekturfaktor für w_soll ≠ w_ok [-] | H77: Primärdruck [Pa] bei Wassermengenvariation (muss identisch sein) | I77: Primärvolumenstrom Wassermengenvariation [m³/h] | J77: =CONCATENATE("w_soll = ", ROUND($B$62,0)," kg/h") -> w_soll = 200 kg/h | K77: Faktor: Wassermenge zu Nennwassermenge [-] | L77: Kühlleistung Korrekturfaktor für w_soll ≠ w_ok [-] | M77: Primärdruck [Pa] | N77: Primärvolumenstrom[m³/h] | R77: Polynom y = | S77: axn+bx(n-1)+...+nx+m | V77: Umrechnung: Druck D Volumenstrom | X77: y = | Y77: axn+bx(n-1)+...+nx+m | AO77: =CONCATENATE("w_soll = ", ROUND($B$63,0)," kg/h") -> w_soll = 100 kg/h | AP77: Faktor: Wassermenge zu Nennwassermenge [-] | AQ77: Kühlleistung Korrekturfaktor für w_soll ≠ w_ok [-] | AR77: Primärdruck [Pa] | AS77: Primärvolumenstrom[m³/h]
E78: =AVERAGE(E73:E76) -> 201.2857025 | F78: =E78/$B$64 -> 1.006428513 | G78: =$B$66*F78^$B$65+$C$66*F78^$C$65+$D$66*F78^$D$65+$E$66*F78^$E$65+$F$66 -> 1.00109523 | H78: =$G$66 -> 150 | I78: =$H$66 -> 89.58956516 | J78: =$B$62 -> 200 | K78: =J78/$B$64 -> 1 | L78: =$B$66*K78^$B$65+$C$66*K78^$C$65+$D$66*K78^$D$65+$E$66*K78^$E$65+$F$66 -> 1 | M78: =$G$66 -> 150 | N78: =$H$66 -> 89.58956516 | R78: a = | S78: b = | T78: c = | U78: m = | V78: y = | W78: mxb | X78: a = | Y78: b = | Z78: m = | AO78: =$B$63 -> 100 | AP78: =AO78/$B$64 -> 0.5 | AQ78: =$B$66*AP78^$B$65+$C$66*AP78^$C$65+$D$66*AP78^$D$65+$E$66*AP78^$E$65+$F$66 -> 0.8060537297 | AR78: =$G$66 -> 150 | AS78: =$H$66 -> 89.58956516
E79: =AVERAGE(E73:E76) -> 201.2857025 | F79: =E79/$B$64 -> 1.006428513 | G79: =IFERROR($B$67*F79^$B$65+$C$67*F79^$C$65+$D$67*F79^$D$65+$E$67*F79^$E$65+$F$67,G78) -> 1.00109523 | H79: =$G$67 -> 150 | I79: =$H$67 -> 89.63576994 | J79: =$B$62 -> 200 | K79: =J79/$B$64 -> 1 | L79: =IFERROR($B$67*K79^$B$65+$C$67*K79^$C$65+$D$67*K79^$D$65+$E$67*K79^$E$65+$F$67,L78) -> 1 | M79: =$G$67 -> 150 | N79: =$H$67 -> 89.63576994 | Q79: 1 | R79: 3 | S79: 2 | T79: 1 | U79: 0 | X79: 2 | Y79: 1 | Z79: 0 | AO79: =$B$63 -> 100 | AP79: =AO79/$B$64 -> 0.5 | AQ79: =IFERROR($B$67*AP79^$B$65+$C$67*AP79^$C$65+$D$67*AP79^$D$65+$E$67*AP79^$E$65+$F$67,AQ78) -> 0.8060537297 | AR79: =$G$67 -> 150 | AS79: =$H$67 -> 89.63576994
E80: =AVERAGE(E73:E76) -> 201.2857025 | F80: =E80/$B$64 -> 1.006428513 | G80: =IFERROR($B$68*F80^$B$65+$C$68*F80^$C$65+$D$68*F80^$D$65+$E$68*F80^$E$65+$F$68,G78) -> 1.00109523 | H80: =$G$68 -> 150 | I80: =$H$68 -> 89.63576994 | J80: =$B$62 -> 200 | K80: =J80/$B$64 -> 1 | L80: =IFERROR($B$68*K80^$B$65+$C$68*K80^$C$65+$D$68*K80^$D$65+$E$68*K80^$E$65+$F$68,L78) -> 1 | M80: =$G$68 -> 150 | N80: =$H$68 -> 89.63576994 | Q80: 1 | R80: =LINEST(M73:M76,H73:H76^{1,2,3},0,0) -> -3.10711633e-05 | S80: 0.005997431659 | T80: 0.2107867894 | U80: 0 | V80: =INDEX(LOGEST(Auswertung_Leistung!F73:F76,LN(Auswertung_Leistung!H73:H76),,TRUE),1,2) -> 0.01614536484 | W80: =LN(INDEX(LOGEST(F73:F76,LN(H73:H76),,TRUE),1,1)) -> 2.029923223 | X80: =LINEST(I73:I76,$H$73:$H$76^{0,1,2},0,0) -> -0.0001014196934 | Y80: 0.02816195399 | Z80: 0.4478578671 | AC80: Für Vergleich mit "ohne Schieber" | AF80: Akustik | AO80: =$B$63 -> 100 | AP80: =AO80/$B$64 -> 0.5 | AQ80: =IFERROR($B$68*AP80^$B$65+$C$68*AP80^$C$65+$D$68*AP80^$D$65+$E$68*AP80^$E$65+$F$68,AQ78) -> 0.8060537297 | AR80: =$G$68 -> 150 | AS80: =$H$68 -> 89.63576994
E81: a = | F81: b = | G81: m = | J81: a = | K81: b = | L81: m = | N81: Korrektur Wassermenge | R81: a = | S81: b = | T81: c = | U81: m = | V81: y = | W81: mxb | X81: a = | Y81: b = | Z81: m = | AF81: Druckverlust [Pa] → Schallleistung [dBA] | AO81: a = | AP81: b = | AQ81: m =
E82: 2 | F82: 1 | G82: 0 | J82: 2 | K82: 1 | L82: 0 | M82: Auslegung 1 | N82: =J83*R74^2+K83*R74+L83 -> 0.9997603917 | Q82: 2 | R82: 3 | S82: 2 | T82: 1 | U82: 0 | X82: 2 | Y82: 1 | Z82: 0 | AC82: Umrechnung: Druck _Volumenstrom | AO82: 2 | AP82: 1 | AQ82: 0
E83: =LINEST(G78:G80,I78:I80^{0,1,2},0,0) -> -0.0001246627234 | F83: 0.02234271837 | G83: 0 | J83: =LINEST(L78:L80,N78:N80^{0,1,2},0,0) -> -0.0001245263384 | K83: 0.02231827472 | L83: 0 | M83: Auslegung 2 | N83: =J83*T76^2+K83*T76+L83 -> 0.9245970621 | Q83: 2 | R83: =LINEST(M73:M76,F73:F76^{1,2,3},0,0) -> 2.727770864e-06 | S83: -0.001934734783 | T83: 0.5356734283 | U83: 0 | V83: =INDEX(LOGEST(Auswertung_Leistung!H73:H76,LN(Auswertung_Leistung!F73:F76),,TRUE),1,2) -> 7.635316389 | W83: =LN(INDEX(LOGEST(H73:H76,LN(F73:F76),,TRUE),1,1)) -> 0.4926026774 | X83: =LINEST(I73:I76,$F$73:$F$76^{0,1,2},0,0) -> -1.440436495e-05 | Y83: 0.00794907822 | Z83: 1.285288074 | AC83: y = | AD83: mxb | AF83: m | AG83: b | AO83: =LINEST(AQ78:AQ80,AS78:AS80^{0,1,2},0,0) -> -0.0001003749195 | AP83: 0.01798972858 | AQ83: 0
P84: =CONCATENATE("H",P85) -> H5 | Q84: =$F$1 -> 2 | R84: =R82 -> 3 | S84: 2 | T84: 1 | U84: 0 | X84: =X82 -> 2 | Y84: =Y82 -> 1 | Z84: 0 | AA84: V_Prim Min [m³/h] | AB84: V_Prim Max [m³/h] | AF84: y = m∙LN(x) + b | AO84: Korrekturfaktor Mittel
P85: =C73 -> 5 | Q85: =$F$1 -> 2 | R85: =R83 -> 2.727770864e-06 | S85: =S83 -> -0.001934734783 | T85: 0.5356734283 | U85: 0 | V85: =IF(Q85=1,V80,V83) -> 7.635316389 | W85: =IF(Q85=1,W80,W83) -> 0.4926026774 | X85: =X83 -> -1.440436495e-05 | Y85: =Y83 -> 0.00794907822 | Z85: 1.285288074 | AA85: =V83*$K$2^W83 -> 49.79708815 | AB85: =V83*$K$3^W83 -> 127.8202875 | AC85: =V80 -> 0.01614536484 | AD85: =W80 -> 2.029923223 | AE85: Schieberstellung 5 | AF85: 15.46202229 | AG85: -44.279913 | AO85: =AVERAGE(AS73:AS76) -> 0.8060537297
A87: Messreihe 2 | B87: Messung (Kontrolle) | C87: Schieberstellung | D87: Anzahl Düsen | E87: Wasser- menge [kg/h] | F87: Primärdruck [Pa] | G87: spez. Kühlleistung q Sek [W/K] | H87: Primärvolumenstrom [m³/h] | I87: Induktionsverhältnis i [-] | J87: Kühlleistung Korrekturfaktor für w_soll ≠ w_ok | K87: =CONCATENATE("q Sek [W/K] bei wok ", G$21, " kg/h") -> q Sek [W/K] bei wok 200 kg/h | L87: =CONCATENATE("Korrektur bei ", ROUND(AVERAGE($B$62),0), " kg/h (Mittelwert)") -> Korrektur bei 200 kg/h (Mittelwert) | M87: =CONCATENATE("q Sek [W/K] bei w_soll ", ROUND($B$62,0), " kg/h") -> q Sek [W/K] bei w_soll 200 kg/h | N87: =CONCATENATE("q Sek Abweichung von Nennwassermenge bei ", $B$62, " kg/h") -> q Sek Abweichung von Nennwassermenge bei 200 kg/h | O87: Sekundärvolumenstrom [m³/h] | R87: x - Achse | S87: y - Achse | T87: y - Achse | U87: y - Achse | AO87: Primärvolumenstrom [m³/h] | AP87: =K87 -> q Sek [W/K] bei wok 200 kg/h | AQ87: =CONCATENATE("Korrektur bei ", ROUND(AVERAGE($B$63),0), " kg/h (Mittelwert)") -> Korrektur bei 100 kg/h (Mittelwert) | AR87: =CONCATENATE("q Sek [W/K] bei w_soll ", ROUND($B$63,0), " kg/h") -> q Sek [W/K] bei w_soll 100 kg/h | AS87: Korrektur kühlen heizen bei gleichem Wärmetauscher
A88: V12 | B88: =VLOOKUP(A88,Matrix_Rohdaten,$B$71,0) -> V12 | C88: =VLOOKUP(A88,Matrix_Rohdaten,$C$71,0) -> 4.5 | D88: =VLOOKUP(A88,Matrix_Rohdaten,$D$71,0) -> 58.25 | E88: =VLOOKUP(A88,Matrix_Rohdaten,$E$71,0) -> 200.0235253 | F88: =VLOOKUP(A88,Matrix_Rohdaten,$F$71,0) -> 50 | G88: =VLOOKUP(A88,Matrix_Rohdaten,$G$71,0) -> 22.91665703 | H88: =VLOOKUP(A88,Matrix_Rohdaten,$H$71,0) -> 62.184985 | I88: =VLOOKUP(A88,Matrix_Rohdaten,$I$71,0) -> 1.575312217 | J88: =IF(G93=G94,G93,E98*H88^E97+F98*H88^F97+G98*H88^G97) -> 1.001913218 | K88: =G88/J88 -> 22.87289619 | L88: =IF(L93=L94,L93,J98*H88^J97+K98*H88^K97+L98*H88^L97) -> 1 | M88: =K88*L88 -> 22.87289619 | N88: =1/K88*M88-1 -> 0 | O88: =I88*H88 -> 97.96076659 | P88: =CONCATENATE(A87,": Auslegung1") -> Messreihe 2: Auslegung1 | Q88: 1 | R88: V_Prim soll [m³/h] | S88: q sek [W/K] Auslegung 1 | T88: Primärdruck [Pa] | U88: Induktionsverhältnis | V88: Titel für Diagramme: | AO88: =VLOOKUP(A88,Matrix_Rohdaten,$AO$70,0) -> 62.184985 | AP88: =K88 -> 22.87289619 | AQ88: =IF(AQ93=AQ94,AQ93,AO98*AO88^AO97+AP98*AO88^AP97+AQ98*AO88^AQ97) -> 0.8060537297 | AR88: =AP88*AQ88 -> 18.43678328 | AS88: =1/M88*AR88 -> 0.8060537297
A89: V13 | B89: =VLOOKUP(A89,Matrix_Rohdaten,$B$71,0) -> V13 | C89: =VLOOKUP(A89,Matrix_Rohdaten,$C$71,0) -> 4.5 | D89: =VLOOKUP(A89,Matrix_Rohdaten,$D$71,0) -> 58.25 | E89: =VLOOKUP(A89,Matrix_Rohdaten,$E$71,0) -> 200.6180716 | F89: =VLOOKUP(A89,Matrix_Rohdaten,$F$71,0) -> 150 | G89: =VLOOKUP(A89,Matrix_Rohdaten,$G$71,0) -> 39.95671624 | H89: =VLOOKUP(A89,Matrix_Rohdaten,$H$71,0) -> 108.539773 | I89: =VLOOKUP(A89,Matrix_Rohdaten,$I$71,0) -> 1.600921124 | J89: =IF(G93=G94,G93,E98*H89^E97+F98*H89^F97+G98*H89^G97) -> 1.001913218 | K89: =G89/J89 -> 39.8804163 | L89: =IF(L93=L94,L93,J98*H89^J97+K98*H89^K97+L98*H89^L97) -> 1 | M89: =K89*L89 -> 39.8804163 | N89: =1/K89*M89-1 -> 0 | O89: =I89*H89 -> 173.7636154 | Q89: 1 | R89: =$B$58 -> 150 | S89: =R95*R89^R94+S95*R89^S94+T95*R89^T94+U95*R89^U94 -> 52.68577959 | T89: =V95*R89^W95 -> 283.2872432 | U89: =X95*R89^X94+Y95*R89^Y94+Z95*R89^Z94 -> 1.721954973 | V89: =CONCATENATE($A$70, " ; ",K87) -> HFBsf; HL; 4L; mit Edelstahlgitter ; q Sek [W/K] bei wok 200 kg/h | AO89: =VLOOKUP(A89,Matrix_Rohdaten,$AO$70,0) -> 108.539773 | AP89: =K89 -> 39.8804163 | AQ89: =IF(AQ93=AQ94,AQ93,AO98*AO89^AO97+AP98*AO89^AP97+AQ98*AO89^AQ97) -> 0.8060537297 | AR89: =AP89*AQ89 -> 32.1457583 | AS89: =1/M89*AR89 -> 0.8060537297
A90: V14 | B90: =VLOOKUP(A90,Matrix_Rohdaten,$B$71,0) -> V14 | C90: =VLOOKUP(A90,Matrix_Rohdaten,$C$71,0) -> 4.5 | D90: =VLOOKUP(A90,Matrix_Rohdaten,$D$71,0) -> 58.25 | E90: =VLOOKUP(A90,Matrix_Rohdaten,$E$71,0) -> 204.182831 | F90: =VLOOKUP(A90,Matrix_Rohdaten,$F$71,0) -> 250 | G90: =VLOOKUP(A90,Matrix_Rohdaten,$G$71,0) -> 50.31718885 | H90: =VLOOKUP(A90,Matrix_Rohdaten,$H$71,0) -> 139.875134 | I90: =VLOOKUP(A90,Matrix_Rohdaten,$I$71,0) -> 1.6590533 | J90: =IF(G93=G94,G93,E98*H90^E97+F98*H90^F97+G98*H90^G97) -> 1.001913218 | K90: =G90/J90 -> 50.22110491 | L90: =IF(L93=L94,L93,J98*H90^J97+K98*H90^K97+L98*H90^L97) -> 1 | M90: =K90*L90 -> 50.22110491 | N90: =1/K90*M90-1 -> 0 | O90: 232.0603027 | P90: =CONCATENATE(A87,": Auslegung2") -> Messreihe 2: Auslegung2 | Q90: 2 | R90: Primärdruck Soll [Pa] | S90: q sek [W/K] Auslegung 2 | T90: V_Prim soll [m³/h] Auslegung 2 | U90: Induktionsverhältnis | V90: =CONCATENATE($A$70, " ; ",M87) -> HFBsf; HL; 4L; mit Edelstahlgitter ; q Sek [W/K] bei w_soll 200 kg/h | AO90: =VLOOKUP(A90,Matrix_Rohdaten,$AO$70,0) -> 139.875134 | AP90: =K90 -> 50.22110491 | AQ90: =IF(AQ93=AQ94,AQ93,AO98*AO90^AO97+AP98*AO90^AP97+AQ98*AO90^AQ97) -> 0.8060537297 | AR90: =AP90*AQ90 -> 40.48090892 | AS90: =1/M90*AR90 -> 0.8060537297
A91: V15 | B91: =VLOOKUP(A91,Matrix_Rohdaten,$B$71,0) -> V15 | C91: =VLOOKUP(A91,Matrix_Rohdaten,$C$71,0) -> 4.5 | D91: =VLOOKUP(A91,Matrix_Rohdaten,$D$71,0) -> 58.25 | E91: =VLOOKUP(A91,Matrix_Rohdaten,$E$71,0) -> 204.2265889 | F91: =VLOOKUP(A91,Matrix_Rohdaten,$F$71,0) -> 300 | G91: =VLOOKUP(A91,Matrix_Rohdaten,$G$71,0) -> 53.97671965 | H91: =VLOOKUP(A91,Matrix_Rohdaten,$H$71,0) -> 155.344283 | I91: =VLOOKUP(A91,Matrix_Rohdaten,$I$71,0) -> 1.661148623 | J91: =IF(G93=G94,G93,E98*H91^E97+F98*H91^F97+G98*H91^G97) -> 1.001913218 | K91: =G91/J91 -> 53.8736476 | L91: =IF(L93=L94,L93,J98*H91^J97+K98*H91^K97+L98*H91^L97) -> 1 | M91: =K91*L91 -> 53.8736476 | N91: =1/K91*M91-1 -> 0 | O91: 258.0499418 | Q91: 2 | R91: =$B$59 -> 150 | S91: =R98*R91^R97+S98*R91^S97+T98*R91^T97+U98*R91^U97 -> 41.44686437 | T91: =V98*R91^W98 -> 108.5838321 | U91: =X98*R91^X97+Y98*R91^Y97+Z98*R91^Z97 -> 1.608793886 | V91: =CONCATENATE("im Mittel ", ROUND(AVERAGE(N88:N91)*100,0), " % Kühlleistung bei ", ROUND($B$62,0), " kg/h") -> im Mittel 0 % Kühlleistung bei 200 kg/h | AO91: =VLOOKUP(A91,Matrix_Rohdaten,$AO$70,0) -> 155.344283 | AP91: =K91 -> 53.8736476 | AQ91: =IF(AQ93=AQ94,AQ93,AO98*AO91^AO97+AP98*AO91^AP97+AQ98*AO91^AQ97) -> 0.8060537297 | AR91: =AP91*AQ91 -> 43.42505458 | AS91: =1/M91*AR91 -> 0.8060537297
E92: =CONCATENATE("w_mess = ", ROUND(E93,0)," kg/h") -> w_mess = 202 kg/h | F92: Faktor: Wassermenge zu Nennwassermenge [-] | G92: Kühlleistung Korrekturfaktor für w_soll ≠ w_ok [-] | H92: Primärdruck [Pa] | I92: Primärvolumenstrom[m³/h] | J92: =CONCATENATE("w_soll = ", ROUND($B$62,0)," kg/h") -> w_soll = 200 kg/h | K92: Faktor: Wassermenge zu Nennwassermenge [-] | L92: Kühlleistung Korrekturfaktor für w_soll ≠ w_ok [-] | M92: Primärdruck [Pa] | N92: Primärvolumenstrom[m³/h] | R92: Polynom y = | S92: axn+bx(n-1)+...+nx+m | V92: Umrechnung: Druck D Volumenstrom | X92: y = | Y92: axn+bx(n-1)+...+nx+m | AO92: =CONCATENATE("w_soll = ", ROUND($B$63,0)," kg/h") -> w_soll = 100 kg/h | AP92: Faktor: Wassermenge zu Nennwassermenge [-] | AQ92: Kühlleistung Korrekturfaktor für w_soll ≠ w_ok [-] | AR92: Primärdruck [Pa] | AS92: Primärvolumenstrom[m³/h]
E93: =AVERAGE(E88:E91) -> 202.2627542 | F93: =E93/$B$64 -> 1.011313771 | G93: =$B$66*F93^$B$65+$C$66*F93^$C$65+$D$66*F93^$D$65+$E$66*F93^$E$65+$F$66 -> 1.001913218 | H93: =$G$66 -> 150 | I93: =$H$66 -> 89.58956516 | J93: =$B$62 -> 200 | K93: =J93/$B$64 -> 1 | L93: =$B$66*K93^$B$65+$C$66*K93^$C$65+$D$66*K93^$D$65+$E$66*K93^$E$65+$F$66 -> 1 | M93: =$G$66 -> 150 | N93: =$H$66 -> 89.58956516 | R93: a = | S93: b = | T93: c = | U93: m = | V93: y = | W93: mxb | X93: a = | Y93: b = | Z93: m = | AO93: =$B$63 -> 100 | AP93: =AO93/$B$64 -> 0.5 | AQ93: =$B$66*AP93^$B$65+$C$66*AP93^$C$65+$D$66*AP93^$D$65+$E$66*AP93^$E$65+$F$66 -> 0.8060537297 | AR93: =$G$66 -> 150 | AS93: =$H$66 -> 89.58956516
E94: =AVERAGE(E88:E91) -> 202.2627542 | F94: =E94/$B$64 -> 1.011313771 | G94: =IFERROR($B$67*F94^$B$65+$C$67*F94^$C$65+$D$67*F94^$D$65+$E$67*F94^$E$65+$F$67,G93) -> 1.001913218 | H94: =$G$67 -> 150 | I94: =$H$67 -> 89.63576994 | J94: =$B$62 -> 200 | K94: =J94/$B$64 -> 1 | L94: =IFERROR($B$67*K94^$B$65+$C$67*K94^$C$65+$D$67*K94^$D$65+$E$67*K94^$E$65+$F$67,L93) -> 1 | M94: =$G$67 -> 150 | N94: =$H$67 -> 89.63576994 | Q94: 1 | R94: 3 | S94: 2 | T94: 1 | U94: 0 | X94: 2 | Y94: 1 | Z94: 0 | AO94: =$B$63 -> 100 | AP94: =AO94/$B$64 -> 0.5 | AQ94: =IFERROR($B$67*AP94^$B$65+$C$67*AP94^$C$65+$D$67*AP94^$D$65+$E$67*AP94^$E$65+$F$67,AQ93) -> 0.8060537297 | AR94: =$G$67 -> 150 | AS94: =$H$67 -> 89.63576994
E95: =AVERAGE(E88:E91) -> 202.2627542 | F95: =E95/$B$64 -> 1.011313771 | G95: =IFERROR($B$68*F95^$B$65+$C$68*F95^$C$65+$D$68*F95^$D$65+$E$68*F95^$E$65+$F$68,G93) -> 1.001913218 | H95: =$G$68 -> 150 | I95: =$H$68 -> 89.63576994 | J95: =$B$62 -> 200 | K95: =J95/$B$64 -> 1 | L95: =IFERROR($B$68*K95^$B$65+$C$68*K95^$C$65+$D$68*K95^$D$65+$E$68*K95^$E$65+$F$68,L93) -> 1 | M95: =$G$68 -> 150 | N95: =$H$68 -> 89.63576994 | Q95: 1 | R95: =LINEST(M88:M91,H88:H91^{1,2,3},0,0) -> -5.424590454e-06 | S95: 0.0009734372216 | T95: 0.3272762326 | U95: 0 | V95: =INDEX(LOGEST(Auswertung_Leistung!F88:F91,LN(Auswertung_Leistung!H88:H91),,TRUE),1,2) -> 0.01479480896 | W95: =LN(INDEX(LOGEST(F88:F91,LN(H88:H91),,TRUE),1,1)) -> 1.967802425 | X95: =LINEST(I88:I91,$H$73:$H$76^{0,1,2},0,0) -> 1.069003188e-05 | Y95: -0.0006481662624 | Z95: 1.578654195 | AC95: Für Vergleich mit "ohne Schieber" | AF95: Akustik | AO95: =$B$63 -> 100 | AP95: =AO95/$B$64 -> 0.5 | AQ95: =IFERROR($B$68*AP95^$B$65+$C$68*AP95^$C$65+$D$68*AP95^$D$65+$E$68*AP95^$E$65+$F$68,AQ93) -> 0.8060537297 | AR95: =$G$68 -> 150 | AS95: =$H$68 -> 89.63576994
E96: a = | F96: b = | G96: m = | J96: a = | K96: b = | L96: m = | N96: Korrektur Wassermenge | R96: a = | S96: b = | T96: c = | U96: m = | V96: y = | W96: mxb | X96: a = | Y96: b = | Z96: m = | AF96: Druckverlust [Pa] → Schallleistung [dBA] | AO96: a = | AP96: b = | AQ96: m =
E97: 2 | F97: 1 | G97: 0 | J97: 2 | K97: 1 | L97: 0 | M97: Auslegung 1 | N97: =J98*P89^2+K98*P89+L98 -> 0 | Q97: 2 | R97: 3 | S97: 2 | T97: 1 | U97: 0 | X97: 2 | Y97: 1 | Z97: 0 | AC97: Umrechnung: Druck _Volumenstrom | AO97: 2 | AP97: 1 | AQ97: 0
E98: =LINEST(G93:G95,I93:I95^{0,1,2},0,0) -> -0.0001247645844 | F98: 0.02236097446 | G98: 0 | J98: =LINEST(L93:L95,N93:N95^{0,1,2},0,0) -> -0.0001245263384 | K98: 0.02231827472 | L98: 0 | M98: Auslegung 2 | N98: =J98*R91^2+K98*R91+L98 -> 0.5458985951 | Q98: 2 | R98: =LINEST(M88:M91,F88:F91^{1,2,3},0,0) -> 3.594110332e-06 | S98: -0.002248316359 | T98: 0.5326924005 | U98: 0 | V98: =INDEX(LOGEST(Auswertung_Leistung!H88:H91,LN(Auswertung_Leistung!F88:F91),,TRUE),1,2) -> 8.513026219 | W98: =LN(INDEX(LOGEST(H88:H91,LN(F88:F91),,TRUE),1,1)) -> 0.5081042392 | X98: =LINEST(I88:I91,$F$73:$F$76^{0,1,2},0,0) -> 1.303386695e-07 | Y98: 0.0003323672426 | Z98: 1.55600618 | AC98: y = | AD98: mxb | AF98: m | AG98: b | AO98: =LINEST(AQ93:AQ95,AS93:AS95^{0,1,2},0,0) -> -0.0001003749195 | AP98: 0.01798972858 | AQ98: 0
P99: =CONCATENATE("H",P100) -> H4,5 | Q99: =$F$1 -> 2 | R99: =R97 -> 3 | S99: 2 | T99: 1 | U99: 0 | X99: =X97 -> 2 | Y99: =Y97 -> 1 | Z99: 0 | AA99: V_Prim Min [m³/h] | AB99: V_Prim Max [m³/h] | AF99: y = m∙LN(x) + b | AO99: Korrekturfaktor Mittel
P100: =C88 -> 4.5 | Q100: =$F$1 -> 2 | R100: =R98 -> 3.594110332e-06 | S100: -0.002248316359 | T100: 0.5326924005 | U100: 0 | V100: =IF(Q100=1,V95,V98) -> 8.513026219 | W100: =IF(Q100=1,W95,W98) -> 0.5081042392 | X100: =X98 -> 1.303386695e-07 | Y100: =Y98 -> 0.0003323672426 | Z100: 1.55600618 | AA100: =V98*$K$2^W98 -> 58.89633326 | AB100: =V98*$K$3^W98 -> 155.7281953 | AC100: =V95 -> 0.01479480896 | AD100: =W95 -> 1.967802425 | AE100: Schieberstellung 4.2 | AF100: 15.98462755 | AG100: -48.49665907 | AO100: =AVERAGE(AS88:AS91) -> 0.8060537297
A102: Messreihe 3 | B102: Messung (Kontrolle) | C102: Schieberstellung | D102: Anzahl Düsen | E102: Wasser- menge [kg/h] | F102: Primärdruck [Pa] | G102: spez. Kühlleistung q Sek [W/K] | H102: Primärvolumenstrom [m³/h] | I102: Induktionsverhältnis i [-] | J102: Kühlleistung Korrekturfaktor für w_soll ≠ w_ok | K102: =CONCATENATE("q Sek [W/K] bei wok ", G$21, " kg/h") -> q Sek [W/K] bei wok 200 kg/h | L102: =CONCATENATE("Korrektur bei ", ROUND(AVERAGE($B$62),0), " kg/h (Mittelwert)") -> Korrektur bei 200 kg/h (Mittelwert) | M102: =CONCATENATE("q Sek [W/K] bei w_soll ", ROUND($B$62,0), " kg/h") -> q Sek [W/K] bei w_soll 200 kg/h | N102: =CONCATENATE("q Sek Abweichung von Nennwassermenge bei ", $B$62, " kg/h") -> q Sek Abweichung von Nennwassermenge bei 200 kg/h | O102: Sekundärvolumenstrom [m³/h] | R102: x - Achse | S102: y - Achse | T102: y - Achse | U102: y - Achse | AO102: Primärvolumenstrom [m³/h] | AP102: =K102 -> q Sek [W/K] bei wok 200 kg/h | AQ102: =CONCATENATE("Korrektur bei ", ROUND(AVERAGE($B$63),0), " kg/h (Mittelwert)") -> Korrektur bei 100 kg/h (Mittelwert) | AR102: =CONCATENATE("q Sek [W/K] bei w_soll ", ROUND($B$63,0), " kg/h") -> q Sek [W/K] bei w_soll 100 kg/h | AS102: Korrektur kühlen heizen bei gleichem Wärmetauscher
A103: V16 | B103: =VLOOKUP(A103,Matrix_Rohdaten,$B$71,0) -> V16 | C103: =VLOOKUP(A103,Matrix_Rohdaten,$C$71,0) -> 4 | D103: =VLOOKUP(A103,Matrix_Rohdaten,$D$71,0) -> 46.5 | E103: =VLOOKUP(A103,Matrix_Rohdaten,$E$71,0) -> 204.13755 | F103: =VLOOKUP(A103,Matrix_Rohdaten,$F$71,0) -> 50 | G103: =VLOOKUP(A103,Matrix_Rohdaten,$G$71,0) -> 14.6494058 | H103: =VLOOKUP(A103,Matrix_Rohdaten,$H$71,0)/D103*D$107 -> 38.5844379 | I103: =VLOOKUP(A103,Matrix_Rohdaten,$I$71,0)/$D$107*D103 -> 1.46943516 | J103: =IF(G108=G109,G108,E113*H103^E112+F113*H103^F112+G113*H103^G112) -> 1.003586646 | K103: =G103/J103 -> 14.59705135 | L103: =IF(L108=L109,L108,J113*H103^J112+K113*H103^K112+L113*H103^L112) -> 1 | M103: =K103*L103 -> 14.59705135 | N103: =1/K103*M103-1 -> 0 | O103: =I103*H103 -> 56.6973297 | P103: =CONCATENATE(A102,": Auslegung1") -> Messreihe 3: Auslegung1 | Q103: 1 | R103: V_Prim soll [m³/h] | S103: q sek [W/K] Auslegung 1 | T103: Primärdruck [Pa] | U103: Induktionsverhältnis | V103: Titel für Diagramme: | AO103: =VLOOKUP(A103,Matrix_Rohdaten,$AO$70,0)/$D$106*$D$107 -> 38.5844379 | AP103: =K103 -> 14.59705135 | AQ103: =IF(AQ108=AQ109,AQ108,AO113*AO103^AO112+AP113*AO103^AP112+AQ113*AO103^AQ112) -> 0.8060537297 | AR103: =AP103*AQ103 -> 11.76600769 | AS103: =1/M103*AR103 -> 0.8060537297
A104: V17 | B104: =VLOOKUP(A104,Matrix_Rohdaten,$B$71,0) -> V17 | C104: =VLOOKUP(A104,Matrix_Rohdaten,$C$71,0) -> 4 | D104: =VLOOKUP(A104,Matrix_Rohdaten,$D$71,0) -> 46.5 | E104: =VLOOKUP(A104,Matrix_Rohdaten,$E$71,0) -> 204.307691 | F104: =VLOOKUP(A104,Matrix_Rohdaten,$F$71,0) -> 150 | G104: =VLOOKUP(A104,Matrix_Rohdaten,$G$71,0) -> 29.2148195 | H104: =VLOOKUP(A104,Matrix_Rohdaten,$H$71,0)/D104*D$107 -> 68.65772823 | I104: =VLOOKUP(A104,Matrix_Rohdaten,$I$71,0)/$D$107*D104 -> 1.693997604 | J104: =IF(G108=G109,G108,E113*H104^E112+F113*H104^F112+G113*H104^G112) -> 1.003586646 | K104: =G104/J104 -> 29.11041077 | L104: =IF(L108=L109,L108,J113*H104^J112+K113*H104^K112+L113*H104^L112) -> 1 | M104: =K104*L104 -> 29.11041077 | N104: =1/K104*M104-1 -> 0 | O104: =I104*H104 -> 116.3060271 | Q104: 1 | R104: =$B$58 -> 150 | S104: =R110*R104^R109+S110*R104^S109+T110*R104^T109+U110*R104^U109 -> 48.88955515 | T104: =V110*R104^W110 -> 690.2886353 | U104: =X110*R104^X109+Y110*R104^Y109+Z110*R104^Z109 -> 1.870285343 | V104: =CONCATENATE($A$70, " ; ",K102) -> HFBsf; HL; 4L; mit Edelstahlgitter ; q Sek [W/K] bei wok 200 kg/h | AO104: =VLOOKUP(A104,Matrix_Rohdaten,$AO$70,0) -> 85.135583 | AP104: =K104 -> 29.11041077 | AQ104: =IF(AQ108=AQ109,AQ108,AO113*AO104^AO112+AP113*AO104^AP112+AQ113*AO104^AQ112) -> 0.8060537297 | AR104: =AP104*AQ104 -> 23.46455518 | AS104: =1/M104*AR104 -> 0.8060537297
A105: V18 | B105: =VLOOKUP(A105,Matrix_Rohdaten,$B$71,0) -> V18 | C105: =VLOOKUP(A105,Matrix_Rohdaten,$C$71,0) -> 4 | D105: =VLOOKUP(A105,Matrix_Rohdaten,$D$71,0) -> 46.5 | E105: =VLOOKUP(A105,Matrix_Rohdaten,$E$71,0) -> 204.3686088 | F105: =VLOOKUP(A105,Matrix_Rohdaten,$F$71,0) -> 250 | G105: =VLOOKUP(A105,Matrix_Rohdaten,$G$71,0) -> 37.80621086 | H105: =VLOOKUP(A105,Matrix_Rohdaten,$H$71,0)/D105*D$107 -> 88.65787339 | I105: =VLOOKUP(A105,Matrix_Rohdaten,$I$71,0)/$D$107*D105 -> 1.773792143 | J105: =IF(G108=G109,G108,E113*H105^E112+F113*H105^F112+G113*H105^G112) -> 1.003586646 | K105: =G105/J105 -> 37.67109799 | L105: =IF(L108=L109,L108,J113*H105^J112+K113*H105^K112+L113*H105^L112) -> 1 | M105: =K105*L105 -> 37.67109799 | N105: =1/K105*M105-1 -> 0 | O105: 157.2606393 | P105: =CONCATENATE(A102,": Auslegung2") -> Messreihe 3: Auslegung2 | Q105: 2 | R105: Primärdruck Soll [Pa] | S105: q sek [W/K] Auslegung 2 | T105: V_Prim soll [m³/h] Auslegung 2 | U105: Induktionsverhältnis | V105: =CONCATENATE($A$70, " ; ",M102) -> HFBsf; HL; 4L; mit Edelstahlgitter ; q Sek [W/K] bei w_soll 200 kg/h | AO105: =VLOOKUP(A105,Matrix_Rohdaten,$AO$70,0) -> 109.935763 | AP105: =K105 -> 37.67109799 | AQ105: =IF(AQ108=AQ109,AQ108,AO113*AO105^AO112+AP113*AO105^AP112+AQ113*AO105^AQ112) -> 0.8060537297 | AR105: =AP105*AQ105 -> 30.36492904 | AS105: =1/M105*AR105 -> 0.8060537297
A106: V19 | B106: =VLOOKUP(A106,Matrix_Rohdaten,$B$71,0) -> V19 | C106: =VLOOKUP(A106,Matrix_Rohdaten,$C$71,0) -> 4 | D106: =VLOOKUP(A106,Matrix_Rohdaten,$D$71,0) -> 46.5 | E106: =VLOOKUP(A106,Matrix_Rohdaten,$E$71,0) -> 204.4184793 | F106: =VLOOKUP(A106,Matrix_Rohdaten,$F$71,0) -> 300 | G106: =VLOOKUP(A106,Matrix_Rohdaten,$G$71,0) -> 41.45191406 | H106: =VLOOKUP(A106,Matrix_Rohdaten,$H$71,0)/D106*D$107 -> 97.27082581 | I106: =VLOOKUP(A106,Matrix_Rohdaten,$I$71,0)/$D$107*D106 -> 1.82952626 | J106: =IF(G108=G109,G108,E113*H106^E112+F113*H106^F112+G113*H106^G112) -> 1.003586646 | K106: =G106/J106 -> 41.30377207 | L106: =IF(L108=L109,L108,J113*H106^J112+K113*H106^K112+L113*H106^L112) -> 1 | M106: =K106*L106 -> 41.30377207 | N106: =1/K106*M106-1 -> 0 | O106: 177.9595301 | Q106: 2 | R106: =$B$59 -> 150 | S106: =R113*R106^R112+S113*R106^S112+T113*R106^T112+U113*R106^U112 -> 29.61739452 | T106: =V113*R106^W113 -> 68.20159686 | U106: =X113*R106^X112+Y113*R106^Y112+Z113*R106^Z112 -> 1.679902165 | V106: =CONCATENATE("im Mittel ", ROUND(AVERAGE(N103:N106)*100,0), " % Kühlleistung bei ", ROUND($B$62,0), " kg/h") -> im Mittel 0 % Kühlleistung bei 200 kg/h | AO106: =VLOOKUP(A106,Matrix_Rohdaten,$AO$70,0) -> 120.615824 | AP106: =K106 -> 41.30377207 | AQ106: =IF(AQ108=AQ109,AQ108,AO113*AO106^AO112+AP113*AO106^AP112+AQ113*AO106^AQ112) -> 0.8060537297 | AR106: =AP106*AQ106 -> 33.29305953 | AS106: =1/M106*AR106 -> 0.8060537297
C107: Düsenanzahl HFBsf-Standard (2x25 Düsen je 6,8mm) | D107: =25+25/2 -> 37.5 | E107: =CONCATENATE("w_mess = ", ROUND(E108,0)," kg/h") -> w_mess = 204 kg/h | F107: Faktor: Wassermenge zu Nennwassermenge [-] | G107: Kühlleistung Korrekturfaktor für w_soll ≠ w_ok [-] | H107: Primärdruck [Pa] | I107: Primärvolumenstrom[m³/h] | J107: =CONCATENATE("w_soll = ", ROUND($B$62,0)," kg/h") -> w_soll = 200 kg/h | K107: Faktor: Wassermenge zu Nennwassermenge [-] | L107: Kühlleistung Korrekturfaktor für w_soll ≠ w_ok [-] | M107: Primärdruck [Pa] | N107: Primärvolumenstrom[m³/h] | R107: Polynom y = | S107: axn+bx(n-1)+...+nx+m | V107: Umrechnung: Druck D Volumenstrom | X107: y = | Y107: axn+bx(n-1)+...+nx+m | AO107: =CONCATENATE("w_soll = ", ROUND($B$63,0)," kg/h") -> w_soll = 100 kg/h | AP107: Faktor: Wassermenge zu Nennwassermenge [-] | AQ107: Kühlleistung Korrekturfaktor für w_soll ≠ w_ok [-] | AR107: Primärdruck [Pa] | AS107: Primärvolumenstrom[m³/h]
E108: =AVERAGE(E103:E106) -> 204.3080823 | F108: =E108/$B$64 -> 1.021540411 | G108: =$B$66*F108^$B$65+$C$66*F108^$C$65+$D$66*F108^$D$65+$E$66*F108^$E$65+$F$66 -> 1.003586646 | H108: =$G$66 -> 150 | I108: =$H$66 -> 89.58956516 | J108: =$B$62 -> 200 | K108: =J108/$B$64 -> 1 | L108: =$B$66*K108^$B$65+$C$66*K108^$C$65+$D$66*K108^$D$65+$E$66*K108^$E$65+$F$66 -> 1 | M108: =$G$66 -> 150 | N108: =$H$66 -> 89.58956516 | R108: a = | S108: b = | T108: c = | U108: m = | V108: y = | W108: mxb | X108: a = | Y108: b = | Z108: m = | AO108: =$B$63 -> 100 | AP108: =AO108/$B$64 -> 0.5 | AQ108: =$B$66*AP108^$B$65+$C$66*AP108^$C$65+$D$66*AP108^$D$65+$E$66*AP108^$E$65+$F$66 -> 0.8060537297 | AR108: =$G$66 -> 150 | AS108: =$H$66 -> 89.58956516
E109: =AVERAGE(E103:E106) -> 204.3080823 | F109: =E109/$B$64 -> 1.021540411 | G109: =IFERROR($B$67*F109^$B$65+$C$67*F109^$C$65+$D$67*F109^$D$65+$E$67*F109^$E$65+$F$67,G108) -> 1.003586646 | H109: =$G$67 -> 150 | I109: =$H$67 -> 89.63576994 | J109: =$B$62 -> 200 | K109: =J109/$B$64 -> 1 | L109: =IFERROR($B$67*K109^$B$65+$C$67*K109^$C$65+$D$67*K109^$D$65+$E$67*K109^$E$65+$F$67,L108) -> 1 | M109: =$G$67 -> 150 | N109: =$H$67 -> 89.63576994 | Q109: 1 | R109: 3 | S109: 2 | T109: 1 | U109: 0 | X109: 2 | Y109: 1 | Z109: 0 | AO109: =$B$63 -> 100 | AP109: =AO109/$B$64 -> 0.5 | AQ109: =IFERROR($B$67*AP109^$B$65+$C$67*AP109^$C$65+$D$67*AP109^$D$65+$E$67*AP109^$E$65+$F$67,AQ108) -> 0.8060537297 | AR109: =$G$67 -> 150 | AS109: =$H$67 -> 89.63576994
E110: =AVERAGE(E103:E106) -> 204.3080823 | F110: =E110/$B$64 -> 1.021540411 | G110: =IFERROR($B$68*F110^$B$65+$C$68*F110^$C$65+$D$68*F110^$D$65+$E$68*F110^$E$65+$F$68,G108) -> 1.003586646 | H110: =$G$68 -> 150 | I110: =$H$68 -> 89.63576994 | J110: =$B$62 -> 200 | K110: =J110/$B$64 -> 1 | L110: =IFERROR($B$68*K110^$B$65+$C$68*K110^$C$65+$D$68*K110^$D$65+$E$68*K110^$E$65+$F$68,L108) -> 1 | M110: =$G$68 -> 150 | N110: =$H$68 -> 89.63576994 | Q110: 1 | R110: =LINEST(M103:M106,H103:H106^{1,2,3},0,0) -> -2.335122306e-05 | S110: 0.00392322062 | T110: 0.2628497936 | U110: 0 | V110: =INDEX(LOGEST(Auswertung_Leistung!F103:F106,LN(Auswertung_Leistung!H103:H106),,TRUE),1,2) -> 0.04212287023 | W110: =LN(INDEX(LOGEST(F103:F106,LN(H103:H106),,TRUE),1,1)) -> 1.936735305 | X110: =LINEST(I103:I106,$H$73:$H$76^{0,1,2},0,0) -> -2.671485651e-05 | Y110: 0.009499899506 | Z110: 1.046384689 | AC110: Für Vergleich mit "ohne Schieber" | AF110: Akustik | AO110: =$B$63 -> 100 | AP110: =AO110/$B$64 -> 0.5 | AQ110: =IFERROR($B$68*AP110^$B$65+$C$68*AP110^$C$65+$D$68*AP110^$D$65+$E$68*AP110^$E$65+$F$68,AQ108) -> 0.8060537297 | AR110: =$G$68 -> 150 | AS110: =$H$68 -> 89.63576994
E111: a = | F111: b = | G111: m = | J111: a = | K111: b = | L111: m = | N111: Korrektur Wassermenge | R111: a = | S111: b = | T111: c = | U111: m = | V111: y = | W111: mxb | X111: a = | Y111: b = | Z111: m = | AF111: Druckverlust [Pa] → Schallleistung [dBA] | AO111: a = | AP111: b = | AQ111: m =
E112: 2 | F112: 1 | G112: 0 | J112: 2 | K112: 1 | L112: 0 | M112: Auslegung 1 | N112: =J113*P104^2+K113*P104+L113 -> 0 | Q112: 2 | R112: 3 | S112: 2 | T112: 1 | U112: 0 | X112: 2 | Y112: 1 | Z112: 0 | AC112: Umrechnung: Druck _Volumenstrom | AO112: 2 | AP112: 1 | AQ112: 0
E113: =LINEST(G108:G110,I108:I110^{0,1,2},0,0) -> -0.0001249729702 | F113: 0.02239832246 | G113: 0 | J113: =LINEST(L108:L110,N108:N110^{0,1,2},0,0) -> -0.0001245263384 | K113: 0.02231827472 | L113: 0 | M113: Auslegung 2 | N113: =J113*R106^2+K113*R106+L113 -> 0.5458985951 | Q113: 2 | R113: =LINEST(M103:M106,F103:F106^{1,2,3},0,0) -> 1.838798831e-06 | S113: -0.001221419995 | T113: 0.3392893224 | U113: 0 | V113: =INDEX(LOGEST(Auswertung_Leistung!H103:H106,LN(Auswertung_Leistung!F103:F106),,TRUE),1,2) -> 5.132605287 | W113: =LN(INDEX(LOGEST(H103:H106,LN(F103:F106),,TRUE),1,1)) -> 0.5162727765 | X113: =LINEST(I103:I106,$F$73:$F$76^{0,1,2},0,0) -> -4.560261756e-06 | Y113: 0.002974436078 | Z113: 1.336342643 | AC113: y = | AD113: mxb | AF113: m | AG113: b | AO113: =LINEST(AQ108:AQ110,AS108:AS110^{0,1,2},0,0) -> -0.0001003749195 | AP113: 0.01798972858 | AQ113: 0
P114: =CONCATENATE("H",P115) -> H4 | Q114: =$F$1 -> 2 | R114: =R112 -> 3 | S114: 2 | T114: 1 | U114: 0 | X114: =X112 -> 2 | Y114: =Y112 -> 1 | Z114: 0 | AA114: V_Prim Min [m³/h] | AB114: V_Prim Max [m³/h] | AF114: y = m∙LN(x) + b | AO114: Korrekturfaktor Mittel
P115: =C103 -> 4 | Q115: =$F$1 -> 2 | R115: =R113 -> 1.838798831e-06 | S115: -0.001221419995 | T115: 0.3392893224 | U115: 0 | V115: =IF(Q115=1,V110,V113) -> 5.132605287 | W115: =IF(Q115=1,W110,W113) -> 0.5162727765 | X115: =X113 -> -4.560261756e-06 | Y115: =Y113 -> 0.002974436078 | Z115: 1.336342643 | AA115: =V113*$K$2^W113 -> 36.63080659 | AB115: =V113*$K$3^W113 -> 98.38168189 | AC115: =V110 -> 0.04212287023 | AD115: =W110 -> 1.936735305 | AE115: Schieberstelung 4 | AF115: 15.74924536 | AG115: -47.55116853 | AO115: =AVERAGE(AS103:AS106) -> 0.8060537297
A117: Messreihe 4 | B117: Messung (Kontrolle) | C117: Schieberstellung | D117: Anzahl Düsen | E117: Wasser- menge [kg/h] | F117: Primärdruck [Pa] | G117: spez. Kühlleistung q Sek [W/K] | H117: Primärvolumenstrom [m³/h] | I117: Induktionsverhältnis i [-] | J117: Kühlleistung Korrekturfaktor für w_soll ≠ w_ok | K117: =CONCATENATE("q Sek [W/K] bei wok ", G$21, " kg/h") -> q Sek [W/K] bei wok 200 kg/h | L117: =CONCATENATE("Korrektur bei ", ROUND(AVERAGE($B$62),0), " kg/h (Mittelwert)") -> Korrektur bei 200 kg/h (Mittelwert) | M117: =CONCATENATE("q Sek [W/K] bei w_soll ", ROUND($B$62,0), " kg/h") -> q Sek [W/K] bei w_soll 200 kg/h | N117: =CONCATENATE("q Sek Abweichung von Nennwassermenge bei ", $B$62, " kg/h") -> q Sek Abweichung von Nennwassermenge bei 200 kg/h | R117: x - Achse | S117: y - Achse | T117: y - Achse | U117: y - Achse | AO117: Primärvolumenstrom [m³/h] | AP117: =K117 -> q Sek [W/K] bei wok 200 kg/h | AQ117: =CONCATENATE("Korrektur bei ", ROUND(AVERAGE($B$63),0), " kg/h (Mittelwert)") -> Korrektur bei 100 kg/h (Mittelwert) | AR117: =CONCATENATE("q Sek [W/K] bei w_soll ", ROUND($B$63,0), " kg/h") -> q Sek [W/K] bei w_soll 100 kg/h | AS117: Korrektur kühlen heizen bei gleichem Wärmetauscher
A118: V20 | B118: =VLOOKUP(A118,Matrix_Rohdaten,$B$71,0) -> V20 | C118: =VLOOKUP(A118,Matrix_Rohdaten,$C$71,0) -> 3.5 | D118: =VLOOKUP(A118,Matrix_Rohdaten,$D$71,0) -> 34.75 | E118: =VLOOKUP(A118,Matrix_Rohdaten,$E$71,0) -> 200.064026 | F118: =VLOOKUP(A118,Matrix_Rohdaten,$F$71,0) -> 50 | G118: =VLOOKUP(A118,Matrix_Rohdaten,$G$71,0) -> 10.81860178 | H118: =VLOOKUP(A118,Matrix_Rohdaten,$H$71,0) -> 38.234565 | I118: =VLOOKUP(A118,Matrix_Rohdaten,$I$71,0) -> 1.240502122 | J118: =IF(G123=G124,G123,E128*H118^E127+F128*H118^F127+G128*H118^G127) -> 1.001131118 | K118: =G118/J118 -> 10.8063785 | L118: =IF(L123=L124,L123,J128*H118^J127+K128*H118^K127+L128*H118^L127) -> 1 | M118: =K118*L118 -> 10.8063785 | N118: =1/K118*M118-1 -> 0 | P118: =CONCATENATE(A117,": Auslegung1") -> Messreihe 4: Auslegung1 | Q118: 1 | R118: V_Prim soll [m³/h] | S118: q sek [W/K] Auslegung 1 | T118: Primärdruck [Pa] | U118: Induktionsverhältnis | V118: Titel für Diagramme: | AO118: =VLOOKUP(A118,Matrix_Rohdaten,$AO$70,0) -> 38.234565 | AP118: =K118 -> 10.8063785 | AQ118: =IF(AQ123=AQ124,AQ123,AO128*AO118^AO127+AP128*AO118^AP127+AQ128*AO118^AQ127) -> 0.8060537297 | AR118: =AP118*AQ118 -> 8.710521691 | AS118: =1/M118*AR118 -> 0.8060537297
A119: V21 | B119: =VLOOKUP(A119,Matrix_Rohdaten,$B$71,0) -> V21 | C119: =VLOOKUP(A119,Matrix_Rohdaten,$C$71,0) -> 3.5 | D119: =VLOOKUP(A119,Matrix_Rohdaten,$D$71,0) -> 34.75 | E119: =VLOOKUP(A119,Matrix_Rohdaten,$E$71,0) -> 200.2505095 | F119: =VLOOKUP(A119,Matrix_Rohdaten,$F$71,0) -> 150 | G119: =VLOOKUP(A119,Matrix_Rohdaten,$G$71,0) -> 22.81390422 | H119: =VLOOKUP(A119,Matrix_Rohdaten,$H$71,0) -> 68.646246 | I119: =VLOOKUP(A119,Matrix_Rohdaten,$I$71,0) -> 1.393835752 | J119: =IF(G123=G124,G123,E128*H119^E127+F128*H119^F127+G128*H119^G127) -> 1.001131118 | K119: =G119/J119 -> 22.78812815 | L119: =IF(L123=L124,L123,J128*H119^J127+K128*H119^K127+L128*H119^L127) -> 1 | M119: =K119*L119 -> 22.78812815 | N119: =1/K119*M119-1 -> 0 | Q119: 1 | R119: =$B$58 -> 150 | S119: =R125*R119^R124+S125*R119^S124+T125*R119^T124+U125*R119^U124 -> 43.88736535 | T119: =V125*R119^W125 -> 674.7128312 | U119: =X125*R119^X124+Y125*R119^Y124+Z125*R119^Z124 -> 1.44530178 | V119: =CONCATENATE($A$70, " ; ",K117) -> HFBsf; HL; 4L; mit Edelstahlgitter ; q Sek [W/K] bei wok 200 kg/h | AO119: =VLOOKUP(A119,Matrix_Rohdaten,$AO$70,0) -> 68.646246 | AP119: =K119 -> 22.78812815 | AQ119: =IF(AQ123=AQ124,AQ123,AO128*AO119^AO127+AP128*AO119^AP127+AQ128*AO119^AQ127) -> 0.8060537297 | AR119: =AP119*AQ119 -> 18.36845569 | AS119: =1/M119*AR119 -> 0.8060537297
A120: V22 | B120: =VLOOKUP(A120,Matrix_Rohdaten,$B$71,0) -> V22 | C120: =VLOOKUP(A120,Matrix_Rohdaten,$C$71,0) -> 3.5 | D120: =VLOOKUP(A120,Matrix_Rohdaten,$D$71,0) -> 34.75 | E120: =VLOOKUP(A120,Matrix_Rohdaten,$E$71,0) -> 201.2171046 | F120: =VLOOKUP(A120,Matrix_Rohdaten,$F$71,0) -> 250 | G120: =VLOOKUP(A120,Matrix_Rohdaten,$G$71,0) -> 30.00132554 | H120: =VLOOKUP(A120,Matrix_Rohdaten,$H$71,0) -> 89.076155 | I120: =VLOOKUP(A120,Matrix_Rohdaten,$I$71,0) -> 1.415514373 | J120: =IF(G123=G124,G123,E128*H120^E127+F128*H120^F127+G128*H120^G127) -> 1.001131118 | K120: =G120/J120 -> 29.96742884 | L120: =IF(L123=L124,L123,J128*H120^J127+K128*H120^K127+L128*H120^L127) -> 1 | M120: =K120*L120 -> 29.96742884 | N120: =1/K120*M120-1 -> 0 | P120: =CONCATENATE(A117,": Auslegung2") -> Messreihe 4: Auslegung2 | Q120: 2 | R120: Primärdruck Soll [Pa] | S120: q sek [W/K] Auslegung 2 | T120: V_Prim soll [m³/h] Auslegung 2 | U120: Induktionsverhältnis | V120: =CONCATENATE($A$70, " ; ",M117) -> HFBsf; HL; 4L; mit Edelstahlgitter ; q Sek [W/K] bei w_soll 200 kg/h | AO120: =VLOOKUP(A120,Matrix_Rohdaten,$AO$70,0) -> 89.076155 | AP120: =K120 -> 29.96742884 | AQ120: =IF(AQ123=AQ124,AQ123,AO128*AO120^AO127+AP128*AO120^AP127+AQ128*AO120^AQ127) -> 0.8060537297 | AR120: =AP120*AQ120 -> 24.15535779 | AS120: =1/M120*AR120 -> 0.8060537297
A121: V23 | B121: =VLOOKUP(A121,Matrix_Rohdaten,$B$71,0) -> V23 | C121: =VLOOKUP(A121,Matrix_Rohdaten,$C$71,0) -> 3.5 | D121: =VLOOKUP(A121,Matrix_Rohdaten,$D$71,0) -> 34.75 | E121: =VLOOKUP(A121,Matrix_Rohdaten,$E$71,0) -> 203.781415 | F121: =VLOOKUP(A121,Matrix_Rohdaten,$F$71,0) -> 300 | G121: =VLOOKUP(A121,Matrix_Rohdaten,$G$71,0) -> 33.58470538 | H121: =VLOOKUP(A121,Matrix_Rohdaten,$H$71,0) -> 97.709718 | I121: =VLOOKUP(A121,Matrix_Rohdaten,$I$71,0) -> 1.455737102 | J121: =IF(G123=G124,G123,E128*H121^E127+F128*H121^F127+G128*H121^G127) -> 1.001131118 | K121: =G121/J121 -> 33.54676004 | L121: =IF(L123=L124,L123,J128*H121^J127+K128*H121^K127+L128*H121^L127) -> 1 | M121: =K121*L121 -> 33.54676004 | N121: =1/K121*M121-1 -> 0 | Q121: 2 | R121: =$B$59 -> 150 | S121: =R128*R121^R127+S128*R121^S127+T128*R121^T127+U128*R121^U127 -> 22.96424126 | T121: =V128*R121^W128 -> 68.18610298 | U121: =X128*R121^X127+Y128*R121^Y127+Z128*R121^Z127 -> 1.378005793 | V121: =CONCATENATE("im Mittel ", ROUND(AVERAGE(N118:N121)*100,0), " % Kühlleistung bei ", ROUND($B$62,0), " kg/h") -> im Mittel 0 % Kühlleistung bei 200 kg/h | AO121: =VLOOKUP(A121,Matrix_Rohdaten,$AO$70,0) -> 97.709718 | AP121: =K121 -> 33.54676004 | AQ121: =IF(AQ123=AQ124,AQ123,AO128*AO121^AO127+AP128*AO121^AP127+AQ128*AO121^AQ127) -> 0.8060537297 | AR121: =AP121*AQ121 -> 27.04049105 | AS121: =1/M121*AR121 -> 0.8060537297
E122: =CONCATENATE("w_mess = ", ROUND(E123,0)," kg/h") -> w_mess = 201 kg/h | F122: Faktor: Wassermenge zu Nennwassermenge [-] | G122: Kühlleistung Korrekturfaktor für w_soll ≠ w_ok [-] | H122: Primärdruck [Pa] | I122: Primärvolumenstrom[m³/h] | J122: =CONCATENATE("w_soll = ", ROUND($B$62,0)," kg/h") -> w_soll = 200 kg/h | K122: Faktor: Wassermenge zu Nennwassermenge [-] | L122: Kühlleistung Korrekturfaktor für w_soll ≠ w_ok [-] | M122: Primärdruck [Pa] | N122: Primärvolumenstrom[m³/h] | R122: Polynom y = | S122: axn+bx(n-1)+...+nx+m | V122: Umrechnung: Druck D Volumenstrom | X122: y = | Y122: axn+bx(n-1)+...+nx+m | AO122: =CONCATENATE("w_soll = ", ROUND($B$63,0)," kg/h") -> w_soll = 100 kg/h | AP122: Faktor: Wassermenge zu Nennwassermenge [-] | AQ122: Kühlleistung Korrekturfaktor für w_soll ≠ w_ok [-] | AR122: Primärdruck [Pa] | AS122: Primärvolumenstrom[m³/h]
E123: =AVERAGE(E118:E121) -> 201.3282638 | F123: =E123/$B$64 -> 1.006641319 | G123: =$B$66*F123^$B$65+$C$66*F123^$C$65+$D$66*F123^$D$65+$E$66*F123^$E$65+$F$66 -> 1.001131118 | H123: =$G$66 -> 150 | I123: =$H$66 -> 89.58956516 | J123: =$B$62 -> 200 | K123: =J123/$B$64 -> 1 | L123: =$B$66*K123^$B$65+$C$66*K123^$C$65+$D$66*K123^$D$65+$E$66*K123^$E$65+$F$66 -> 1 | M123: =$G$66 -> 150 | N123: =$H$66 -> 89.58956516 | R123: a = | S123: b = | T123: c = | U123: m = | V123: y = | W123: mxb | X123: a = | Y123: b = | Z123: m = | AO123: =$B$63 -> 100 | AP123: =AO123/$B$64 -> 0.5 | AQ123: =$B$66*AP123^$B$65+$C$66*AP123^$C$65+$D$66*AP123^$D$65+$E$66*AP123^$E$65+$F$66 -> 0.8060537297 | AR123: =$G$66 -> 150 | AS123: =$H$66 -> 89.58956516
E124: =AVERAGE(E118:E121) -> 201.3282638 | F124: =E124/$B$64 -> 1.006641319 | G124: =IFERROR($B$67*F124^$B$65+$C$67*F124^$C$65+$D$67*F124^$D$65+$E$67*F124^$E$65+$F$67,G123) -> 1.001131118 | H124: =$G$67 -> 150 | I124: =$H$67 -> 89.63576994 | J124: =$B$62 -> 200 | K124: =J124/$B$64 -> 1 | L124: =IFERROR($B$67*K124^$B$65+$C$67*K124^$C$65+$D$67*K124^$D$65+$E$67*K124^$E$65+$F$67,L123) -> 1 | M124: =$G$67 -> 150 | N124: =$H$67 -> 89.63576994 | Q124: 1 | R124: 3 | S124: 2 | T124: 1 | U124: 0 | X124: 2 | Y124: 1 | Z124: 0 | AO124: =$B$63 -> 100 | AP124: =AO124/$B$64 -> 0.5 | AQ124: =IFERROR($B$67*AP124^$B$65+$C$67*AP124^$C$65+$D$67*AP124^$D$65+$E$67*AP124^$E$65+$F$67,AQ123) -> 0.8060537297 | AR124: =$G$67 -> 150 | AS124: =$H$67 -> 89.63576994
E125: =AVERAGE(E118:E121) -> 201.3282638 | F125: =E125/$B$64 -> 1.006641319 | G125: =IFERROR($B$68*F125^$B$65+$C$68*F125^$C$65+$D$68*F125^$D$65+$E$68*F125^$E$65+$F$68,G123) -> 1.001131118 | H125: =$G$68 -> 150 | I125: =$H$68 -> 89.63576994 | J125: =$B$62 -> 200 | K125: =J125/$B$64 -> 1 | L125: =IFERROR($B$68*K125^$B$65+$C$68*K125^$C$65+$D$68*K125^$D$65+$E$68*K125^$E$65+$F$68,L123) -> 1 | M125: =$G$68 -> 150 | N125: =$H$68 -> 89.63576994 | Q125: 1 | R125: =LINEST(M118:M121,H118:H121^{1,2,3},0,0) -> -1.683850451e-05 | S125: 0.003239358275 | T125: 0.1855450459 | U125: 0 | V125: =INDEX(LOGEST(Auswertung_Leistung!F118:F121,LN(Auswertung_Leistung!H118:H121),,TRUE),1,2) -> 0.04773261679 | W125: =LN(INDEX(LOGEST(F118:F121,LN(H118:H121),,TRUE),1,1)) -> 1.90722871 | X125: =LINEST(I118:I121,$H$73:$H$76^{0,1,2},0,0) -> -2.773153149e-05 | Y125: 0.007691944321 | Z125: 0.9154695901 | AC125: Für Vergleich mit "ohne Schieber" | AF125: Akustik | AO125: =$B$63 -> 100 | AP125: =AO125/$B$64 -> 0.5 | AQ125: =IFERROR($B$68*AP125^$B$65+$C$68*AP125^$C$65+$D$68*AP125^$D$65+$E$68*AP125^$E$65+$F$68,AQ123) -> 0.8060537297 | AR125: =$G$68 -> 150 | AS125: =$H$68 -> 89.63576994
E126: a = | F126: b = | G126: m = | J126: a = | K126: b = | L126: m = | N126: Korrektur Wassermenge | R126: a = | S126: b = | T126: c = | U126: m = | V126: y = | W126: mxb | X126: a = | Y126: b = | Z126: m = | AF126: Druckverlust [Pa] → Schallleistung [dBA] | AO126: a = | AP126: b = | AQ126: m =
E127: 2 | F127: 1 | G127: 0 | J127: 2 | K127: 1 | L127: 0 | M127: Auslegung 1 | N127: =J128*P119^2+K128*P119+L128 -> 0 | Q127: 2 | R127: 3 | S127: 2 | T127: 1 | U127: 0 | X127: 2 | Y127: 1 | Z127: 0 | AC127: Umrechnung: Druck _Volumenstrom | AO127: 2 | AP127: 1 | AQ127: 0
E128: =LINEST(G123:G125,I123:I125^{0,1,2},0,0) -> -0.0001246671924 | F128: 0.02234351932 | G128: 0 | J128: =LINEST(L123:L125,N123:N125^{0,1,2},0,0) -> -0.0001245263384 | K128: 0.02231827472 | L128: 0 | M128: Auslegung 2 | N128: =J128*R121^2+K128*R121+L128 -> 0.5458985951 | Q128: 2 | R128: =LINEST(M118:M121,F118:F121^{1,2,3},0,0) -> 1.300167937e-06 | S128: -0.0008586595104 | T128: 0.2526400897 | U128: 0 | V128: =INDEX(LOGEST(Auswertung_Leistung!H118:H121,LN(Auswertung_Leistung!F118:F121),,TRUE),1,2) -> 4.930201275 | W128: =LN(INDEX(LOGEST(H118:H121,LN(F118:F121),,TRUE),1,1)) -> 0.5242570667 | X128: =LINEST(I118:I121,$F$73:$F$76^{0,1,2},0,0) -> -3.575058217e-06 | Y128: 0.002042558474 | Z128: 1.152060832 | AC128: y = | AD128: mxb | AF128: m | AG128: b | AO128: =LINEST(AQ123:AQ125,AS123:AS125^{0,1,2},0,0) -> -0.0001003749195 | AP128: 0.01798972858 | AQ128: 0
P129: =CONCATENATE("H",P130) -> H3,5 | Q129: =$F$1 -> 2 | R129: =R127 -> 3 | S129: 2 | T129: 1 | U129: 0 | X129: =X127 -> 2 | Y129: =Y127 -> 1 | Z129: 0 | AA129: V_Prim Min [m³/h] | AB129: V_Prim Max [m³/h] | AF129: y = m∙LN(x) + b | AO129: Korrekturfaktor Mittel
P130: =C118 -> 3.5 | Q130: =$F$1 -> 2 | R130: =R128 -> 1.300167937e-06 | S130: -0.0008586595104 | T130: 0.2526400897 | U130: 0 | V130: =IF(Q130=1,V125,V128) -> 4.930201275 | W130: =IF(Q130=1,W125,W128) -> 0.5242570667 | X130: =X128 -> -3.575058217e-06 | Y130: =Y128 -> 0.002042558474 | Z130: 1.152060832 | AA130: =V128*$K$2^W128 -> 36.27212445 | AB130: =V128*$K$3^W128 -> 98.91824358 | AC130: =V125 -> 0.04773261679 | AD130: =W125 -> 1.90722871 | AE130: Schieberstellung 3.2 | AF130: 13.41114923 | AG130: -36.18544422 | AO130: =AVERAGE(AS118:AS121) -> 0.8060537297
A132: Messreihe 5 | B132: Messung (Kontrolle) | C132: Schieberstellung | D132: Anzahl Düsen | E132: Wasser- menge [kg/h] | F132: Primärdruck [Pa] | G132: spez. Kühlleistung q Sek [W/K] | H132: Primärvolumenstrom [m³/h] | I132: Induktionsverhältnis i [-] | J132: Kühlleistung Korrekturfaktor für w_soll ≠ w_ok | K132: =CONCATENATE("q Sek [W/K] bei wok ", G$21, " kg/h") -> q Sek [W/K] bei wok 200 kg/h | L132: =CONCATENATE("Korrektur bei ", ROUND(AVERAGE($B$62),0), " kg/h (Mittelwert)") -> Korrektur bei 200 kg/h (Mittelwert) | M132: =CONCATENATE("q Sek [W/K] bei w_soll ", ROUND($B$62,0), " kg/h") -> q Sek [W/K] bei w_soll 200 kg/h | N132: =CONCATENATE("q Sek Abweichung von Nennwassermenge bei ", $B$62, " kg/h") -> q Sek Abweichung von Nennwassermenge bei 200 kg/h | O132: Sekundärvolumenstrom [m³/h] | R132: x - Achse | S132: y - Achse | T132: y - Achse | U132: y - Achse | AO132: Primärvolumenstrom [m³/h] | AP132: =K132 -> q Sek [W/K] bei wok 200 kg/h | AQ132: =CONCATENATE("Korrektur bei ", ROUND(AVERAGE($B$63),0), " kg/h (Mittelwert)") -> Korrektur bei 100 kg/h (Mittelwert) | AR132: =CONCATENATE("q Sek [W/K] bei w_soll ", ROUND($B$63,0), " kg/h") -> q Sek [W/K] bei w_soll 100 kg/h | AS132: Korrektur kühlen heizen bei gleichem Wärmetauscher
A133: V24 | B133: =VLOOKUP(A133,Matrix_Rohdaten,$B$71,0) -> V24 | C133: =VLOOKUP(A133,Matrix_Rohdaten,$C$71,0) -> 3 | D133: =VLOOKUP(A133,Matrix_Rohdaten,$D$71,0) -> 32 | E133: =VLOOKUP(A133,Matrix_Rohdaten,$E$71,0) -> 198.803387 | F133: =VLOOKUP(A133,Matrix_Rohdaten,$F$71,0) -> 50 | G133: =VLOOKUP(A133,Matrix_Rohdaten,$G$71,0) -> 11.85151094 | H133: =VLOOKUP(A133,Matrix_Rohdaten,$H$71,0)/D133*D$137 -> 25.04376797 | I133: =VLOOKUP(A133,Matrix_Rohdaten,$I$71,0)/$D$137*D133 -> 1.984039563 | J133: =IF(G138=G139,G138,E143*H133^E142+F143*H133^F142+G143*H133^G142) -> 0.9993030491 | K133: =G133/J133 -> 11.85977662 | L133: =IF(L138=L139,L138,J143*H133^J142+K143*H133^K142+L143*H133^L142) -> 1 | M133: =K133*L133 -> 11.85977662 | N133: =1/K133*M133-1 -> 0 | O133: =I133*H133 -> 49.68782646 | P133: =CONCATENATE(A132,": Auslegung1") -> Messreihe 5: Auslegung1 | Q133: 1 | R133: V_Prim soll [m³/h] | S133: q sek [W/K] Auslegung 1 | T133: Primärdruck [Pa] | U133: Induktionsverhältnis | V133: Titel für Diagramme: | AO133: =VLOOKUP(A133,Matrix_Rohdaten,$AO$70,0)/$D$136*$D$137 -> 25.04376797 | AP133: =K133 -> 11.85977662 | AQ133: =IF(AQ138=AQ139,AQ138,AO143*AO133^AO142+AP143*AO133^AP142+AQ143*AO133^AQ142) -> 0.8060537297 | AR133: =AP133*AQ133 -> 9.559617179 | AS133: =1/M133*AR133 -> 0.8060537297
A134: V25 | B134: =VLOOKUP(A134,Matrix_Rohdaten,$B$71,0) -> V25 | C134: =VLOOKUP(A134,Matrix_Rohdaten,$C$71,0) -> 3 | D134: =VLOOKUP(A134,Matrix_Rohdaten,$D$71,0) -> 32 | E134: =VLOOKUP(A134,Matrix_Rohdaten,$E$71,0) -> 199.2903454 | F134: =VLOOKUP(A134,Matrix_Rohdaten,$F$71,0) -> 150 | G134: =VLOOKUP(A134,Matrix_Rohdaten,$G$71,0) -> 23.98081737 | H134: =VLOOKUP(A134,Matrix_Rohdaten,$H$71,0)/D134*D$137 -> 45.202025 | I134: =VLOOKUP(A134,Matrix_Rohdaten,$I$71,0)/$D$137*D134 -> 2.2108581 | J134: =IF(G138=G139,G138,E143*H134^E142+F143*H134^F142+G143*H134^G142) -> 0.9993030491 | K134: =G134/J134 -> 23.99754248 | L134: =IF(L138=L139,L138,J143*H134^J142+K143*H134^K142+L143*H134^L142) -> 1 | M134: =K134*L134 -> 23.99754248 | N134: =1/K134*M134-1 -> 0 | O134: =I134*H134 -> 99.93526312 | Q134: 1 | R134: =$B$58 -> 150 | S134: =R140*R134^R139+S140*R134^S139+T140*R134^T139+U140*R134^U139 -> -8.374774558 | T134: =V140*R134^W140 -> 1443.95341 | U134: =X140*R134^X139+Y140*R134^Y139+Z140*R134^Z139 -> 2.37310371 | V134: =CONCATENATE($A$70, " ; ",K132) -> HFBsf; HL; 4L; mit Edelstahlgitter ; q Sek [W/K] bei wok 200 kg/h | AO134: =VLOOKUP(A134,Matrix_Rohdaten,$AO$70,0)/$D$136*$D$137 -> 45.202025 | AP134: =K134 -> 23.99754248 | AQ134: =IF(AQ138=AQ139,AQ138,AO143*AO134^AO142+AP143*AO134^AP142+AQ143*AO134^AQ142) -> 0.8060537297 | AR134: =AP134*AQ134 -> 19.34330862 | AS134: =1/M134*AR134 -> 0.8060537297
A135: V26 | B135: =VLOOKUP(A135,Matrix_Rohdaten,$B$71,0) -> V26 | C135: =VLOOKUP(A135,Matrix_Rohdaten,$C$71,0) -> 3 | D135: =VLOOKUP(A135,Matrix_Rohdaten,$D$71,0) -> 32 | E135: =VLOOKUP(A135,Matrix_Rohdaten,$E$71,0) -> 199.4205629 | F135: =VLOOKUP(A135,Matrix_Rohdaten,$F$71,0) -> 250 | G135: =VLOOKUP(A135,Matrix_Rohdaten,$G$71,0) -> 32.25068208 | H135: =VLOOKUP(A135,Matrix_Rohdaten,$H$71,0)/D135*D$137 -> 59.10573984 | I135: =VLOOKUP(A135,Matrix_Rohdaten,$I$71,0)/$D$137*D135 -> 2.343131677 | J135: =IF(G138=G139,G138,E143*H135^E142+F143*H135^F142+G143*H135^G142) -> 0.9993030491 | K135: =G135/J135 -> 32.2731749 | L135: =IF(L138=L139,L138,J143*H135^J142+K143*H135^K142+L143*H135^L142) -> 1 | M135: =K135*L135 -> 32.2731749 | N135: =1/K135*M135-1 -> 0 | O135: 138.4925313 | P135: =CONCATENATE(A132,": Auslegung2") -> Messreihe 5: Auslegung2 | Q135: 2 | R135: Primärdruck Soll [Pa] | S135: q sek [W/K] Auslegung 2 | T135: V_Prim soll [m³/h] Auslegung 2 | U135: Induktionsverhältnis | V135: =CONCATENATE($A$70, " ; ",M132) -> HFBsf; HL; 4L; mit Edelstahlgitter ; q Sek [W/K] bei w_soll 200 kg/h | AO135: =VLOOKUP(A135,Matrix_Rohdaten,$AO$70,0)/$D$136*$D$137 -> 59.10573984 | AP135: =K135 -> 32.2731749 | AQ135: =IF(AQ138=AQ139,AQ138,AO143*AO135^AO142+AP143*AO135^AP142+AQ143*AO135^AQ142) -> 0.8060537297 | AR135: =AP135*AQ135 -> 26.013913 | AS135: =1/M135*AR135 -> 0.8060537297
A136: V27 | B136: =VLOOKUP(A136,Matrix_Rohdaten,$B$71,0) -> V27 | C136: =VLOOKUP(A136,Matrix_Rohdaten,$C$71,0) -> 3 | D136: =VLOOKUP(A136,Matrix_Rohdaten,$D$71,0) -> 32 | E136: =VLOOKUP(A136,Matrix_Rohdaten,$E$71,0) -> 199.2652703 | F136: =VLOOKUP(A136,Matrix_Rohdaten,$F$71,0) -> 300 | G136: =VLOOKUP(A136,Matrix_Rohdaten,$G$71,0) -> 34.81429477 | H136: =VLOOKUP(A136,Matrix_Rohdaten,$H$71,0)/D136*D$137 -> 64.79935078 | I136: =VLOOKUP(A136,Matrix_Rohdaten,$I$71,0)/$D$137*D136 -> 2.334233173 | J136: =IF(G138=G139,G138,E143*H136^E142+F143*H136^F142+G143*H136^G142) -> 0.9993030491 | K136: =G136/J136 -> 34.83857555 | L136: =IF(L138=L139,L138,J143*H136^J142+K143*H136^K142+L143*H136^L142) -> 1 | M136: =K136*L136 -> 34.83857555 | N136: =1/K136*M136-1 -> 0 | O136: 151.2567942 | Q136: 2 | R136: =$B$59 -> 150 | S136: =R143*R136^R142+S143*R136^S142+T143*R136^T142+U143*R136^U142 -> 24.64023445 | T136: =V143*R136^W143 -> 44.99689741 | U136: =X143*R136^X142+Y143*R136^Y142+Z143*R136^Z142 -> 2.218814067 | V136: =CONCATENATE("im Mittel ", ROUND(AVERAGE(N133:N136)*100,0), " % Kühlleistung bei ", ROUND($B$62,0), " kg/h") -> im Mittel 0 % Kühlleistung bei 200 kg/h | AO136: =VLOOKUP(A136,Matrix_Rohdaten,$AO$70,0)/$D$136*$D$137 -> 64.79935078 | AP136: =K136 -> 34.83857555 | AQ136: =IF(AQ138=AQ139,AQ138,AO143*AO136^AO142+AP143*AO136^AP142+AQ143*AO136^AQ142) -> 0.8060537297 | AR136: =AP136*AQ136 -> 28.08176376 | AS136: =1/M136*AR136 -> 0.8060537297
C137: Düsenanzahl HFBsf-Standard (2x25 Düsen je 6,8mm) | D137: =25+0 -> 25 | E137: =CONCATENATE("w_mess = ", ROUND(E138,0)," kg/h") -> w_mess = 199 kg/h | F137: Faktor: Wassermenge zu Nennwassermenge [-] | G137: Kühlleistung Korrekturfaktor für w_soll ≠ w_ok [-] | H137: Primärdruck [Pa] | I137: Primärvolumenstrom[m³/h] | J137: =CONCATENATE("w_soll = ", ROUND($B$62,0)," kg/h") -> w_soll = 200 kg/h | K137: Faktor: Wassermenge zu Nennwassermenge [-] | L137: Kühlleistung Korrekturfaktor für w_soll ≠ w_ok [-] | M137: Primärdruck [Pa] | N137: Primärvolumenstrom[m³/h] | R137: Polynom y = | S137: axn+bx(n-1)+...+nx+m | V137: Umrechnung: Druck D Volumenstrom | X137: y = | Y137: axn+bx(n-1)+...+nx+m | AO137: =CONCATENATE("w_soll = ", ROUND($B$63,0)," kg/h") -> w_soll = 100 kg/h | AP137: Faktor: Wassermenge zu Nennwassermenge [-] | AQ137: Kühlleistung Korrekturfaktor für w_soll ≠ w_ok [-] | AR137: Primärdruck [Pa] | AS137: Primärvolumenstrom[m³/h]
E138: =AVERAGE(E133:E136) -> 199.1948914 | F138: =E138/$B$64 -> 0.995974457 | G138: =$B$66*F138^$B$65+$C$66*F138^$C$65+$D$66*F138^$D$65+$E$66*F138^$E$65+$F$66 -> 0.9993030491 | H138: =$G$66 -> 150 | I138: =$H$66 -> 89.58956516 | J138: =$B$62 -> 200 | K138: =J138/$B$64 -> 1 | L138: =$B$66*K138^$B$65+$C$66*K138^$C$65+$D$66*K138^$D$65+$E$66*K138^$E$65+$F$66 -> 1 | M138: =$G$66 -> 150 | N138: =$H$66 -> 89.58956516 | R138: a = | S138: b = | T138: c = | U138: m = | V138: y = | W138: mxb | X138: a = | Y138: b = | Z138: m = | AO138: =$B$63 -> 100 | AP138: =AO138/$B$64 -> 0.5 | AQ138: =$B$66*AP138^$B$65+$C$66*AP138^$C$65+$D$66*AP138^$D$65+$E$66*AP138^$E$65+$F$66 -> 0.8060537297 | AR138: =$G$66 -> 150 | AS138: =$H$66 -> 89.58956516
E139: =AVERAGE(E133:E136) -> 199.1948914 | F139: =E139/$B$64 -> 0.995974457 | G139: =IFERROR($B$67*F139^$B$65+$C$67*F139^$C$65+$D$67*F139^$D$65+$E$67*F139^$E$65+$F$67,G138) -> 0.9993030491 | H139: =$G$67 -> 150 | I139: =$H$67 -> 89.63576994 | J139: =$B$62 -> 200 | K139: =J139/$B$64 -> 1 | L139: =IFERROR($B$67*K139^$B$65+$C$67*K139^$C$65+$D$67*K139^$D$65+$E$67*K139^$E$65+$F$67,L138) -> 1 | M139: =$G$67 -> 150 | N139: =$H$67 -> 89.63576994 | Q139: 1 | R139: 3 | S139: 2 | T139: 1 | U139: 0 | X139: 2 | Y139: 1 | Z139: 0 | AO139: =$B$63 -> 100 | AP139: =AO139/$B$64 -> 0.5 | AQ139: =IFERROR($B$67*AP139^$B$65+$C$67*AP139^$C$65+$D$67*AP139^$D$65+$E$67*AP139^$E$65+$F$67,AQ138) -> 0.8060537297 | AR139: =$G$67 -> 150 | AS139: =$H$67 -> 89.63576994
E140: =AVERAGE(E133:E136) -> 199.1948914 | F140: =E140/$B$64 -> 0.995974457 | G140: =IFERROR($B$68*F140^$B$65+$C$68*F140^$C$65+$D$68*F140^$D$65+$E$68*F140^$E$65+$F$68,G138) -> 0.9993030491 | H140: =$G$68 -> 150 | I140: =$H$68 -> 89.63576994 | J140: =$B$62 -> 200 | K140: =J140/$B$64 -> 1 | L140: =IFERROR($B$68*K140^$B$65+$C$68*K140^$C$65+$D$68*K140^$D$65+$E$68*K140^$E$65+$F$68,L138) -> 1 | M140: =$G$68 -> 150 | N140: =$H$68 -> 89.63576994 | Q140: 1 | R140: =LINEST(M133:M136,H133:H136^{1,2,3},0,0) -> -6.942929001e-05 | S140: 0.007929853772 | T140: 0.3168491291 | U140: 0 | V140: =INDEX(LOGEST(Auswertung_Leistung!F133:F136,LN(Auswertung_Leistung!H133:H136),,TRUE),1,2) -> 0.1166452811 | W140: =LN(INDEX(LOGEST(F133:F136,LN(H133:H136),,TRUE),1,1)) -> 1.88075109 | X140: =LINEST(I133:I136,$H$73:$H$76^{0,1,2},0,0) -> -3.911219453e-05 | Y140: 0.01192612218 | Z140: 1.46420976 | AC140: Für Vergleich mit "ohne Schieber" | AF140: Akustik | AO140: =$B$63 -> 100 | AP140: =AO140/$B$64 -> 0.5 | AQ140: =IFERROR($B$68*AP140^$B$65+$C$68*AP140^$C$65+$D$68*AP140^$D$65+$E$68*AP140^$E$65+$F$68,AQ138) -> 0.8060537297 | AR140: =$G$68 -> 150 | AS140: =$H$68 -> 89.63576994
E141: a = | F141: b = | G141: m = | J141: a = | K141: b = | L141: m = | N141: Korrektur Wassermenge | R141: a = | S141: b = | T141: c = | U141: m = | V141: y = | W141: mxb | X141: a = | Y141: b = | Z141: m = | AF141: Druckverlust [Pa] → Schallleistung [dBA] | AO141: a = | AP141: b = | AQ141: m =
E142: 2 | F142: 1 | G142: 0 | J142: 2 | K142: 1 | L142: 0 | M142: Auslegung 1 | N142: =J143*P134^2+K143*P134+L143 -> 0 | Q142: 2 | R142: 3 | S142: 2 | T142: 1 | U142: 0 | X142: 2 | Y142: 1 | Z142: 0 | AC142: Umrechnung: Druck _Volumenstrom | AO142: 2 | AP142: 1 | AQ142: 0
E143: =LINEST(G138:G140,I138:I140^{0,1,2},0,0) -> -0.0001244395496 | F143: 0.02230271998 | G143: 0 | J143: =LINEST(L138:L140,N138:N140^{0,1,2},0,0) -> -0.0001245263384 | K143: 0.02231827472 | L143: 0 | M143: Auslegung 2 | N143: =J143*R136^2+K143*R136+L143 -> 0.5458985951 | Q143: 2 | R143: =LINEST(M133:M136,F133:F136^{1,2,3},0,0) -> 1.193481312e-06 | S143: -0.0008522847362 | T143: 0.2652576105 | U143: 0 | V143: =INDEX(LOGEST(Auswertung_Leistung!H133:H136,LN(Auswertung_Leistung!F133:F136),,TRUE),1,2) -> 3.134973342 | W143: =LN(INDEX(LOGEST(H133:H136,LN(F133:F136),,TRUE),1,1)) -> 0.5316636941 | X143: =LINEST(I133:I136,$F$73:$F$76^{0,1,2},0,0) -> -6.238881607e-06 | Y143: 0.003619389252 | Z143: 1.816280515 | AC143: y = | AD143: mxb | AF143: m | AG143: b | AO143: =LINEST(AQ138:AQ140,AS138:AS140^{0,1,2},0,0) -> -0.0001003749195 | AP143: 0.01798972858 | AQ143: 0
P144: =CONCATENATE("H",P145) -> H3 | Q144: =$F$1 -> 2 | R144: =R142 -> 3 | S144: 2 | T144: 1 | U144: 0 | X144: =X142 -> 2 | Y144: =Y142 -> 1 | Z144: 0 | AA144: V_Prim Min [m³/h] | AB144: V_Prim Max [m³/h] | AF144: y = m∙LN(x) + b | AO144: Korrekturfaktor Mittel
P145: =C133 -> 3 | Q145: =$F$1 -> 2 | R145: =R143 -> 1.193481312e-06 | S145: -0.0008522847362 | T145: 0.2652576105 | U145: 0 | V145: =IF(Q145=1,V140,V143) -> 3.134973342 | W145: =IF(Q145=1,W140,W143) -> 0.5316636941 | X145: =X143 -> -6.238881607e-06 | Y145: =Y143 -> 0.003619389252 | Z145: 1.816280515 | AA145: =V143*$K$2^W143 -> 23.72394587 | AB145: =V143*$K$3^W143 -> 65.62145899 | AC145: =V140 -> 0.1166452811 | AD145: =W140 -> 1.88075109 | AE145: Schieberstellung 3 | AF145: 13.40386857 | AG145: -34.74797899 | AO145: =AVERAGE(AS133:AS136) -> 0.8060537297
A147: Messreihe 6 | B147: Messung (Kontrolle) | C147: Schieberstellung | D147: Anzahl Düsen | E147: Wasser- menge [kg/h] | F147: Primärdruck [Pa] | G147: spez. Kühlleistung q Sek [W/K] | H147: Primärvolumenstrom [m³/h] | I147: Induktionsverhältnis i [-] | J147: Kühlleistung Korrekturfaktor für w_soll ≠ w_ok | K147: =CONCATENATE("q Sek [W/K] bei wok ", G$21, " kg/h") -> q Sek [W/K] bei wok 200 kg/h | L147: =CONCATENATE("Korrektur bei ", ROUND(AVERAGE($B$62),0), " kg/h (Mittelwert)") -> Korrektur bei 200 kg/h (Mittelwert) | M147: =CONCATENATE("q Sek [W/K] bei w_soll ", ROUND($B$62,0), " kg/h") -> q Sek [W/K] bei w_soll 200 kg/h | N147: =CONCATENATE("q Sek Abweichung von Nennwassermenge bei ", $B$62, " kg/h") -> q Sek Abweichung von Nennwassermenge bei 200 kg/h | O147: Sekundärvolumenstrom [m³/h] | R147: x - Achse | S147: y - Achse | T147: y - Achse | U147: y - Achse | AO147: Primärvolumenstrom [m³/h] | AP147: =K147 -> q Sek [W/K] bei wok 200 kg/h | AQ147: =CONCATENATE("Korrektur bei ", ROUND(AVERAGE($B$63),0), " kg/h (Mittelwert)") -> Korrektur bei 100 kg/h (Mittelwert) | AR147: =CONCATENATE("q Sek [W/K] bei w_soll ", ROUND($B$63,0), " kg/h") -> q Sek [W/K] bei w_soll 100 kg/h | AS147: Korrektur kühlen heizen bei gleichem Wärmetauscher
A148: V28 | B148: =VLOOKUP(A148,Matrix_Rohdaten,$B$71,0) -> V28 | C148: =VLOOKUP(A148,Matrix_Rohdaten,$C$71,0) -> 2.5 | D148: =VLOOKUP(A148,Matrix_Rohdaten,$D$71,0) -> 17.25 | E148: =VLOOKUP(A148,Matrix_Rohdaten,$E$71,0) -> 199.1451821 | F148: =VLOOKUP(A148,Matrix_Rohdaten,$F$71,0) -> 50 | G148: =VLOOKUP(A148,Matrix_Rohdaten,$G$71,0) -> 10.55555678 | H148: =VLOOKUP(A148,Matrix_Rohdaten,$H$71,0) -> 31.660904 | I148: =VLOOKUP(A148,Matrix_Rohdaten,$I$71,0) -> 1.408612999 | J148: =IF(G153=G154,G153,E158*H148^E157+F158*H148^F157+G158*H148^G157) -> 0.9992948215 | K148: =G148/J148 -> 10.56300559 | L148: =IF(L153=L154,L153,J158*H148^J157+K158*H148^K157+L158*H148^L157) -> 1 | M148: =K148*L148 -> 10.56300559 | N148: =1/K148*M148-1 -> 0 | O148: =I148*H148 -> 44.59796094 | P148: =CONCATENATE(A147,": Auslegung1") -> Messreihe 6: Auslegung1 | Q148: 1 | R148: V_Prim soll [m³/h] | S148: q sek [W/K] Auslegung 1 | T148: Primärdruck [Pa] | U148: Induktionsverhältnis | V148: Titel für Diagramme: | AO148: =VLOOKUP(A148,Matrix_Rohdaten,$AO$70,0) -> 31.660904 | AP148: =K148 -> 10.56300559 | AQ148: =IF(AQ153=AQ154,AQ153,AO158*AO148^AO157+AP158*AO148^AP157+AQ158*AO148^AQ157) -> 0.8060537297 | AR148: =AP148*AQ148 -> 8.514350052 | AS148: =1/M148*AR148 -> 0.8060537297
A149: V29 | B149: =VLOOKUP(A149,Matrix_Rohdaten,$B$71,0) -> V29 | C149: =VLOOKUP(A149,Matrix_Rohdaten,$C$71,0) -> 2.5 | D149: =VLOOKUP(A149,Matrix_Rohdaten,$D$71,0) -> 17.25 | E149: =VLOOKUP(A149,Matrix_Rohdaten,$E$71,0) -> 199.2055565 | F149: =VLOOKUP(A149,Matrix_Rohdaten,$F$71,0) -> 150 | G149: =VLOOKUP(A149,Matrix_Rohdaten,$G$71,0) -> 22.39463906 | H149: =VLOOKUP(A149,Matrix_Rohdaten,$H$71,0) -> 57.435317 | I149: =VLOOKUP(A149,Matrix_Rohdaten,$I$71,0) -> 1.658083365 | J149: =IF(G153=G154,G153,E158*H149^E157+F158*H149^F157+G158*H149^G157) -> 0.9992948215 | K149: =G149/J149 -> 22.41044242 | L149: =IF(L153=L154,L153,J158*H149^J157+K158*H149^K157+L158*H149^L157) -> 1 | M149: =K149*L149 -> 22.41044242 | N149: =1/K149*M149-1 -> 0 | O149: =I149*H149 -> 95.23254368 | Q149: 1 | R149: =$B$58 -> 150 | S149: =R155*R149^R154+S155*R149^S154+T155*R149^T154+U155*R149^U154 -> 45.20808815 | T149: =V155*R149^W155 -> 922.102951 | U149: =X155*R149^X154+Y155*R149^Y154+Z155*R149^Z154 -> 1.735501703 | V149: =CONCATENATE($A$70, " ; ",K147) -> HFBsf; HL; 4L; mit Edelstahlgitter ; q Sek [W/K] bei wok 200 kg/h | AO149: =VLOOKUP(A149,Matrix_Rohdaten,$AO$70,0) -> 57.435317 | AP149: =K149 -> 22.41044242 | AQ149: =IF(AQ153=AQ154,AQ153,AO158*AO149^AO157+AP158*AO149^AP157+AQ158*AO149^AQ157) -> 0.8060537297 | AR149: =AP149*AQ149 -> 18.0640207 | AS149: =1/M149*AR149 -> 0.8060537297
A150: V30 | B150: =VLOOKUP(A150,Matrix_Rohdaten,$B$71,0) -> V30 | C150: =VLOOKUP(A150,Matrix_Rohdaten,$C$71,0) -> 2.5 | D150: =VLOOKUP(A150,Matrix_Rohdaten,$D$71,0) -> 17.25 | E150: =VLOOKUP(A150,Matrix_Rohdaten,$E$71,0) -> 199.1227252 | F150: =VLOOKUP(A150,Matrix_Rohdaten,$F$71,0) -> 250 | G150: =VLOOKUP(A150,Matrix_Rohdaten,$G$71,0) -> 29.43040925 | H150: =VLOOKUP(A150,Matrix_Rohdaten,$H$71,0) -> 74.853724 | I150: =VLOOKUP(A150,Matrix_Rohdaten,$I$71,0) -> 1.6804284 | J150: =IF(G153=G154,G153,E158*H150^E157+F158*H150^F157+G158*H150^G157) -> 0.9992948215 | K150: =G150/J150 -> 29.45117758 | L150: =IF(L153=L154,L153,J158*H150^J157+K158*H150^K157+L158*H150^L157) -> 1 | M150: =K150*L150 -> 29.45117758 | N150: =1/K150*M150-1 -> 0 | O150: 125.7863237 | P150: =CONCATENATE(A147,": Auslegung2") -> Messreihe 6: Auslegung2 | Q150: 2 | R150: Primärdruck Soll [Pa] | S150: q sek [W/K] Auslegung 2 | T150: V_Prim soll [m³/h] Auslegung 2 | U150: Induktionsverhältnis | V150: =CONCATENATE($A$70, " ; ",M147) -> HFBsf; HL; 4L; mit Edelstahlgitter ; q Sek [W/K] bei w_soll 200 kg/h | AO150: =VLOOKUP(A150,Matrix_Rohdaten,$AO$70,0) -> 74.853724 | AP150: =K150 -> 29.45117758 | AQ150: =IF(AQ153=AQ154,AQ153,AO158*AO150^AO157+AP158*AO150^AP157+AQ158*AO150^AQ157) -> 0.8060537297 | AR150: =AP150*AQ150 -> 23.73923154 | AS150: =1/M150*AR150 -> 0.8060537297
A151: V31 | B151: =VLOOKUP(A151,Matrix_Rohdaten,$B$71,0) -> V31 | C151: =VLOOKUP(A151,Matrix_Rohdaten,$C$71,0) -> 2.5 | D151: =VLOOKUP(A151,Matrix_Rohdaten,$D$71,0) -> 17.25 | E151: =VLOOKUP(A151,Matrix_Rohdaten,$E$71,0) -> 199.2683222 | F151: =VLOOKUP(A151,Matrix_Rohdaten,$F$71,0) -> 300 | G151: =VLOOKUP(A151,Matrix_Rohdaten,$G$71,0) -> 33.20761043 | H151: =VLOOKUP(A151,Matrix_Rohdaten,$H$71,0) -> 82.068953 | I151: =VLOOKUP(A151,Matrix_Rohdaten,$I$71,0) -> 1.757073348 | J151: =IF(G153=G154,G153,E158*H151^E157+F158*H151^F157+G158*H151^G157) -> 0.9992948215 | K151: =G151/J151 -> 33.23104425 | L151: =IF(L153=L154,L153,J158*H151^J157+K158*H151^K157+L158*H151^L157) -> 1 | M151: =K151*L151 -> 33.23104425 | N151: =1/K151*M151-1 -> 0 | O151: 144.20117 | Q151: 2 | R151: =$B$59 -> 150 | S151: =R158*R151^R157+S158*R151^S157+T158*R151^T157+U158*R151^U157 -> 22.52191895 | T151: =V158*R151^W158 -> 57.00730038 | U151: =X158*R151^X157+Y158*R151^Y157+Z158*R151^Z157 -> 1.627803078 | V151: =CONCATENATE("im Mittel ", ROUND(AVERAGE(N148:N151)*100,0), " % Kühlleistung bei ", ROUND($B$62,0), " kg/h") -> im Mittel 0 % Kühlleistung bei 200 kg/h | AO151: =VLOOKUP(A151,Matrix_Rohdaten,$AO$70,0) -> 82.068953 | AP151: =K151 -> 33.23104425 | AQ151: =IF(AQ153=AQ154,AQ153,AO158*AO151^AO157+AP158*AO151^AP157+AQ158*AO151^AQ157) -> 0.8060537297 | AR151: =AP151*AQ151 -> 26.78600716 | AS151: =1/M151*AR151 -> 0.8060537297
E152: =CONCATENATE("w_mess = ", ROUND(E153,0)," kg/h") -> w_mess = 199 kg/h | F152: Faktor: Wassermenge zu Nennwassermenge [-] | G152: Kühlleistung Korrekturfaktor für w_soll ≠ w_ok [-] | H152: Primärdruck [Pa] | I152: Primärvolumenstrom[m³/h] | J152: =CONCATENATE("w_soll = ", ROUND($B$62,0)," kg/h") -> w_soll = 200 kg/h | K152: Faktor: Wassermenge zu Nennwassermenge [-] | L152: Kühlleistung Korrekturfaktor für w_soll ≠ w_ok [-] | M152: Primärdruck [Pa] | N152: Primärvolumenstrom[m³/h] | R152: Polynom y = | S152: axn+bx(n-1)+...+nx+m | V152: Umrechnung: Druck D Volumenstrom | X152: y = | Y152: axn+bx(n-1)+...+nx+m | AO152: =CONCATENATE("w_soll = ", ROUND($B$63,0)," kg/h") -> w_soll = 100 kg/h | AP152: Faktor: Wassermenge zu Nennwassermenge [-] | AQ152: Kühlleistung Korrekturfaktor für w_soll ≠ w_ok [-] | AR152: Primärdruck [Pa] | AS152: Primärvolumenstrom[m³/h]
E153: =AVERAGE(E148:E151) -> 199.1854465 | F153: =E153/$B$64 -> 0.9959272325 | G153: =$B$66*F153^$B$65+$C$66*F153^$C$65+$D$66*F153^$D$65+$E$66*F153^$E$65+$F$66 -> 0.9992948215 | H153: =$G$66 -> 150 | I153: =$H$66 -> 89.58956516 | J153: =$B$62 -> 200 | K153: =J153/$B$64 -> 1 | L153: =$B$66*K153^$B$65+$C$66*K153^$C$65+$D$66*K153^$D$65+$E$66*K153^$E$65+$F$66 -> 1 | M153: =$G$66 -> 150 | N153: =$H$66 -> 89.58956516 | R153: a = | S153: b = | T153: c = | U153: m = | V153: y = | W153: mxb | X153: a = | Y153: b = | Z153: m = | AO153: =$B$63 -> 100 | AP153: =AO153/$B$64 -> 0.5 | AQ153: =$B$66*AP153^$B$65+$C$66*AP153^$C$65+$D$66*AP153^$D$65+$E$66*AP153^$E$65+$F$66 -> 0.8060537297 | AR153: =$G$66 -> 150 | AS153: =$H$66 -> 89.58956516
E154: =AVERAGE(E148:E151) -> 199.1854465 | F154: =E154/$B$64 -> 0.9959272325 | G154: =IFERROR($B$67*F154^$B$65+$C$67*F154^$C$65+$D$67*F154^$D$65+$E$67*F154^$E$65+$F$67,G153) -> 0.9992948215 | H154: =$G$67 -> 150 | I154: =$H$67 -> 89.63576994 | J154: =$B$62 -> 200 | K154: =J154/$B$64 -> 1 | L154: =IFERROR($B$67*K154^$B$65+$C$67*K154^$C$65+$D$67*K154^$D$65+$E$67*K154^$E$65+$F$67,L153) -> 1 | M154: =$G$67 -> 150 | N154: =$H$67 -> 89.63576994 | Q154: 1 | R154: 3 | S154: 2 | T154: 1 | U154: 0 | X154: 2 | Y154: 1 | Z154: 0 | AO154: =$B$63 -> 100 | AP154: =AO154/$B$64 -> 0.5 | AQ154: =IFERROR($B$67*AP154^$B$65+$C$67*AP154^$C$65+$D$67*AP154^$D$65+$E$67*AP154^$E$65+$F$67,AQ153) -> 0.8060537297 | AR154: =$G$67 -> 150 | AS154: =$H$67 -> 89.63576994
E155: =AVERAGE(E148:E151) -> 199.1854465 | F155: =E155/$B$64 -> 0.9959272325 | G155: =IFERROR($B$68*F155^$B$65+$C$68*F155^$C$65+$D$68*F155^$D$65+$E$68*F155^$E$65+$F$68,G153) -> 0.9992948215 | H155: =$G$68 -> 150 | I155: =$H$68 -> 89.63576994 | J155: =$B$62 -> 200 | K155: =J155/$B$64 -> 1 | L155: =IFERROR($B$68*K155^$B$65+$C$68*K155^$C$65+$D$68*K155^$D$65+$E$68*K155^$E$65+$F$68,L153) -> 1 | M155: =$G$68 -> 150 | N155: =$H$68 -> 89.63576994 | Q155: 1 | R155: =LINEST(M148:M151,H148:H151^{1,2,3},0,0) -> -2.333046246e-05 | S155: 0.003936992693 | T155: 0.2357737557 | U155: 0 | V155: =INDEX(LOGEST(Auswertung_Leistung!F148:F151,LN(Auswertung_Leistung!H148:H151),,TRUE),1,2) -> 0.07586219931 | W155: =LN(INDEX(LOGEST(F148:F151,LN(H148:H151),,TRUE),1,1)) -> 1.877106011 | X155: =LINEST(I148:I151,$H$73:$H$76^{0,1,2},0,0) -> -4.432138355e-05 | Y155: 0.01228096701 | Z155: 0.8905877812 | AC155: Für Vergleich mit "ohne Schieber" | AF155: Akustik | AO155: =$B$63 -> 100 | AP155: =AO155/$B$64 -> 0.5 | AQ155: =IFERROR($B$68*AP155^$B$65+$C$68*AP155^$C$65+$D$68*AP155^$D$65+$E$68*AP155^$E$65+$F$68,AQ153) -> 0.8060537297 | AR155: =$G$68 -> 150 | AS155: =$H$68 -> 89.63576994
E156: a = | F156: b = | G156: m = | J156: a = | K156: b = | L156: m = | N156: Korrektur Wassermenge | R156: a = | S156: b = | T156: c = | U156: m = | V156: y = | W156: mxb | X156: a = | Y156: b = | Z156: m = | AF156: Druckverlust [Pa] → Schallleistung [dBA] | AO156: a = | AP156: b = | AQ156: m =
E157: 2 | F157: 1 | G157: 0 | J157: 2 | K157: 1 | L157: 0 | M157: Auslegung 1 | N157: =J158*P149^2+K158*P149+L158 -> 0 | Q157: 2 | R157: 3 | S157: 2 | T157: 1 | U157: 0 | X157: 2 | Y157: 1 | Z157: 0 | AC157: Umrechnung: Druck _Volumenstrom | AO157: 2 | AP157: 1 | AQ157: 0
E158: =LINEST(G153:G155,I153:I155^{0,1,2},0,0) -> -0.0001244385251 | F158: 0.02230253635 | G158: 0 | J158: =LINEST(L153:L155,N153:N155^{0,1,2},0,0) -> -0.0001245263384 | K158: 0.02231827472 | L158: 0 | M158: Auslegung 2 | N158: =J158*R151^2+K158*R151+L158 -> 0.5458985951 | Q158: 2 | R158: =LINEST(M148:M151,F148:F151^{1,2,3},0,0) -> 1.318233831e-06 | S158: -0.0008547208469 | T158: 0.2486939921 | U158: 0 | V158: =INDEX(LOGEST(Auswertung_Leistung!H148:H151,LN(Auswertung_Leistung!F148:F151),,TRUE),1,2) -> 3.952164438 | W158: =LN(INDEX(LOGEST(H148:H151,LN(F148:F151),,TRUE),1,1)) -> 0.5326502114 | X158: =LINEST(I148:I151,$F$73:$F$76^{0,1,2},0,0) -> -5.603011954e-06 | Y158: 0.003221662314 | Z158: 1.2706215 | AC158: y = | AD158: mxb | AF158: m | AG158: b | AO158: =LINEST(AQ153:AQ155,AS153:AS155^{0,1,2},0,0) -> -0.0001003749195 | AP158: 0.01798972858 | AQ158: 0
P159: =CONCATENATE("H",P160) -> H2,5 | Q159: =$F$1 -> 2 | R159: =R157 -> 3 | S159: 2 | T159: 1 | U159: 0 | X159: =X157 -> 2 | Y159: =Y157 -> 1 | Z159: 0 | AA159: V_Prim Min [m³/h] | AB159: V_Prim Max [m³/h] | AF159: y = m∙LN(x) + b | AO159: Korrekturfaktor Mittel
P160: =C148 -> 2.5 | Q160: =$F$1 -> 2 | R160: =R158 -> 1.318233831e-06 | S160: -0.0008547208469 | T160: 0.2486939921 | U160: 0 | V160: =IF(Q160=1,V155,V158) -> 3.952164438 | W160: =IF(Q160=1,W155,W158) -> 0.5326502114 | X160: =X158 -> -5.603011954e-06 | Y160: =Y158 -> 0.003221662314 | Z160: 1.2706215 | AA160: =V158*$K$2^W158 -> 30.02057463 | AB160: =V158*$K$3^W158 -> 83.19511773 | AC160: =V155 -> 0.07586219931 | AD160: =W155 -> 1.877106011 | AE160: Schieberstellung 2.2 | AF160: 14.00002949 | AG160: -40.75960973 | AO160: =AVERAGE(AS148:AS151) -> 0.8060537297
A162: Messreihe 7 | B162: Messung (Kontrolle) | C162: Schieberstellung | D162: Anzahl Düsen | E162: Wasser- menge [kg/h] | F162: Primärdruck [Pa] | G162: spez. Kühlleistung q Sek [W/K] | H162: Primärvolumenstrom [m³/h] | I162: Induktionsverhältnis i [-] | J162: Kühlleistung Korrekturfaktor für w_soll ≠ w_ok | K162: =CONCATENATE("q Sek [W/K] bei wok ", G$21, " kg/h") -> q Sek [W/K] bei wok 200 kg/h | L162: =CONCATENATE("Korrektur bei ", ROUND(AVERAGE($B$62),0), " kg/h (Mittelwert)") -> Korrektur bei 200 kg/h (Mittelwert) | M162: =CONCATENATE("q Sek [W/K] bei w_soll ", ROUND($B$62,0), " kg/h") -> q Sek [W/K] bei w_soll 200 kg/h | N162: =CONCATENATE("q Sek Abweichung von Nennwassermenge bei ", $B$62, " kg/h") -> q Sek Abweichung von Nennwassermenge bei 200 kg/h | O162: Sekundärvolumenstrom [m³/h] | R162: x - Achse | S162: y - Achse | T162: y - Achse | U162: y - Achse | AO162: Primärvolumenstrom [m³/h] | AP162: =K162 -> q Sek [W/K] bei wok 200 kg/h | AQ162: =CONCATENATE("Korrektur bei ", ROUND(AVERAGE($B$63),0), " kg/h (Mittelwert)") -> Korrektur bei 100 kg/h (Mittelwert) | AR162: =CONCATENATE("q Sek [W/K] bei w_soll ", ROUND($B$63,0), " kg/h") -> q Sek [W/K] bei w_soll 100 kg/h | AS162: Korrektur kühlen heizen bei gleichem Wärmetauscher
A163: V32 | B163: =VLOOKUP(A163,Matrix_Rohdaten,$B$71,0) -> V32 | C163: =VLOOKUP(A163,Matrix_Rohdaten,$C$71,0) -> 2 | D163: =VLOOKUP(A163,Matrix_Rohdaten,$D$71,0) -> 23 | E163: =VLOOKUP(A163,Matrix_Rohdaten,$E$71,0) -> 199.0342748 | F163: =VLOOKUP(A163,Matrix_Rohdaten,$F$71,0) -> 50 | G163: =VLOOKUP(A163,Matrix_Rohdaten,$G$71,0) -> 7.2829364 | H163: =VLOOKUP(A163,Matrix_Rohdaten,$H$71,0)/D163*D$167 -> 12.07010543 | I163: =VLOOKUP(A163,Matrix_Rohdaten,$I$71,0)/$D$167*D163 -> 3.564825329 | J163: =IF(G168=G169,G168,E173*H163^E172+F173*H163^F172+G173*H163^G172) -> 0.9991877049 | K163: =G163/J163 -> 7.288857103 | L163: =IF(L168=L169,L168,J173*H163^J172+K173*H163^K172+L173*H163^L172) -> 1 | M163: =K163*L163 -> 7.288857103 | N163: =1/K163*M163-1 -> 0 | O163: =I163*H163 -> 43.02781758 | P163: =CONCATENATE(A162,": Auslegung1") -> Messreihe 7: Auslegung1 | Q163: 1 | R163: V_Prim soll [m³/h] | S163: q sek [W/K] Auslegung 1 | T163: Primärdruck [Pa] | U163: Induktionsverhältnis | V163: Titel für Diagramme: | AO163: =VLOOKUP(A163,Matrix_Rohdaten,$AO$70,0)/$D$166*$D$167 -> 12.07010543 | AP163: =K163 -> 7.288857103 | AQ163: =IF(AQ168=AQ169,AQ168,AO173*AO163^AO172+AP173*AO163^AP172+AQ173*AO163^AQ172) -> 0.8060537297 | AR163: =AP163*AQ163 -> 5.875210454 | AS163: =1/M163*AR163 -> 0.8060537297
A164: V33 | B164: =VLOOKUP(A164,Matrix_Rohdaten,$B$71,0) -> V33 | C164: =VLOOKUP(A164,Matrix_Rohdaten,$C$71,0) -> 2 | D164: =VLOOKUP(A164,Matrix_Rohdaten,$D$71,0) -> 23 | E164: =VLOOKUP(A164,Matrix_Rohdaten,$E$71,0) -> 199.2038305 | F164: =VLOOKUP(A164,Matrix_Rohdaten,$F$71,0) -> 150 | G164: =VLOOKUP(A164,Matrix_Rohdaten,$G$71,0) -> 13.47722103 | H164: =VLOOKUP(A164,Matrix_Rohdaten,$H$71,0)/D164*D$167 -> 22.41838424 | I164: =VLOOKUP(A164,Matrix_Rohdaten,$I$71,0)/$D$167*D164 -> 3.128087749 | J164: =IF(G168=G169,G168,E173*H164^E172+F173*H164^F172+G173*H164^G172) -> 0.9991877049 | K164: =G164/J164 -> 13.48817741 | L164: =IF(L168=L169,L168,J173*H164^J172+K173*H164^K172+L173*H164^L172) -> 1 | M164: =K164*L164 -> 13.48817741 | N164: =1/K164*M164-1 -> 0 | O164: =I164*H164 -> 70.12667308 | Q164: 1 | R164: =$B$58 -> 150 | S164: =R170*R164^R169+S170*R164^S169+T170*R164^T169+U170*R164^U169 -> 568.1053279 | T164: =V170*R164^W170 -> 4528.71229 | U164: =X170*R164^X169+Y170*R164^Y169+Z170*R164^Z169 -> 4.885534773 | V164: =CONCATENATE($A$70, " ; ",K162) -> HFBsf; HL; 4L; mit Edelstahlgitter ; q Sek [W/K] bei wok 200 kg/h | AO164: =VLOOKUP(A164,Matrix_Rohdaten,$AO$70,0)/$D$166*$D$167 -> 22.41838424 | AP164: =K164 -> 13.48817741 | AQ164: =IF(AQ168=AQ169,AQ168,AO173*AO164^AO172+AP173*AO164^AP172+AQ173*AO164^AQ172) -> 0.8060537297 | AR164: =AP164*AQ164 -> 10.87219571 | AS164: =1/M164*AR164 -> 0.8060537297
A165: V34 | B165: =VLOOKUP(A165,Matrix_Rohdaten,$B$71,0) -> V34 | C165: =VLOOKUP(A165,Matrix_Rohdaten,$C$71,0) -> 2 | D165: =VLOOKUP(A165,Matrix_Rohdaten,$D$71,0) -> 23 | E165: =VLOOKUP(A165,Matrix_Rohdaten,$E$71,0) -> 199.2369548 | F165: =VLOOKUP(A165,Matrix_Rohdaten,$F$71,0) -> 250 | G165: =VLOOKUP(A165,Matrix_Rohdaten,$G$71,0) -> 18.99130475 | H165: =VLOOKUP(A165,Matrix_Rohdaten,$H$71,0)/D165*D$167 -> 29.67413478 | I165: =VLOOKUP(A165,Matrix_Rohdaten,$I$71,0)/$D$167*D165 -> 3.605971124 | J165: =IF(G168=G169,G168,E173*H165^E172+F173*H165^F172+G173*H165^G172) -> 0.9991877049 | K165: =G165/J165 -> 19.00674384 | L165: =IF(L168=L169,L168,J173*H165^J172+K173*H165^K172+L173*H165^L172) -> 1 | M165: =K165*L165 -> 19.00674384 | N165: =1/K165*M165-1 -> 0 | O165: 107.0040732 | P165: =CONCATENATE(A162,": Auslegung2") -> Messreihe 7: Auslegung2 | Q165: 2 | R165: Primärdruck Soll [Pa] | S165: q sek [W/K] Auslegung 2 | T165: V_Prim soll [m³/h] Auslegung 2 | U165: Induktionsverhältnis | V165: =CONCATENATE($A$70, " ; ",M162) -> HFBsf; HL; 4L; mit Edelstahlgitter ; q Sek [W/K] bei w_soll 200 kg/h | AO165: =VLOOKUP(A165,Matrix_Rohdaten,$AO$70,0)/$D$166*$D$167 -> 29.67413478 | AP165: =K165 -> 19.00674384 | AQ165: =IF(AQ168=AQ169,AQ168,AO173*AO165^AO172+AP173*AO165^AP172+AQ173*AO165^AQ172) -> 0.8060537297 | AR165: =AP165*AQ165 -> 15.32045676 | AS165: =1/M165*AR165 -> 0.8060537297
A166: V35 | B166: =VLOOKUP(A166,Matrix_Rohdaten,$B$71,0) -> V35 | C166: =VLOOKUP(A166,Matrix_Rohdaten,$C$71,0) -> 2 | D166: =VLOOKUP(A166,Matrix_Rohdaten,$D$71,0) -> 23 | E166: =VLOOKUP(A166,Matrix_Rohdaten,$E$71,0) -> 198.7753659 | F166: =VLOOKUP(A166,Matrix_Rohdaten,$F$71,0) -> 300 | G166: =VLOOKUP(A166,Matrix_Rohdaten,$G$71,0) -> 21.329262 | H166: =VLOOKUP(A166,Matrix_Rohdaten,$H$71,0)/D166*D$167 -> 32.86256141 | I166: =VLOOKUP(A166,Matrix_Rohdaten,$I$71,0)/$D$167*D166 -> 3.838594589 | J166: =IF(G168=G169,G168,E173*H166^E172+F173*H166^F172+G173*H166^G172) -> 0.9991877049 | K166: =G166/J166 -> 21.34660174 | L166: =IF(L168=L169,L168,J173*H166^J172+K173*H166^K172+L173*H166^L172) -> 1 | M166: =K166*L166 -> 21.34660174 | N166: =1/K166*M166-1 -> 0 | O166: 126.1460504 | Q166: 2 | R166: =$B$59 -> 150 | S166: =R173*R166^R172+S173*R166^S172+T173*R166^T172+U173*R166^U172 -> 14.07782588 | T166: =V173*R166^W173 -> 22.33341942 | U166: =X173*R166^X172+Y173*R166^Y172+Z173*R166^Z172 -> 3.198299021 | V166: =CONCATENATE("im Mittel ", ROUND(AVERAGE(N163:N166)*100,0), " % Kühlleistung bei ", ROUND($B$62,0), " kg/h") -> im Mittel 0 % Kühlleistung bei 200 kg/h | AO166: =VLOOKUP(A166,Matrix_Rohdaten,$AO$70,0)/$D$166*$D$167 -> 32.86256141 | AP166: =K166 -> 21.34660174 | AQ166: =IF(AQ168=AQ169,AQ168,AO173*AO166^AO172+AP173*AO166^AP172+AQ173*AO166^AQ172) -> 0.8060537297 | AR166: =AP166*AQ166 -> 17.20650795 | AS166: =1/M166*AR166 -> 0.8060537297
C167: Düsenanzahl HFBsf-Standard (2x25 Düsen je 6,8mm) | D167: =25/2+0 -> 12.5 | E167: =CONCATENATE("w_mess = ", ROUND(E168,0)," kg/h") -> w_mess = 199 kg/h | F167: Faktor: Wassermenge zu Nennwassermenge [-] | G167: Kühlleistung Korrekturfaktor für w_soll ≠ w_ok [-] | H167: Primärdruck [Pa] | I167: Primärvolumenstrom[m³/h] | J167: =CONCATENATE("w_soll = ", ROUND($B$62,0)," kg/h") -> w_soll = 200 kg/h | K167: Faktor: Wassermenge zu Nennwassermenge [-] | L167: Kühlleistung Korrekturfaktor für w_soll ≠ w_ok [-] | M167: Primärdruck [Pa] | N167: Primärvolumenstrom[m³/h] | R167: Polynom y = | S167: axn+bx(n-1)+...+nx+m | V167: Umrechnung: Druck D Volumenstrom | X167: y = | Y167: axn+bx(n-1)+...+nx+m | AO167: =CONCATENATE("w_soll = ", ROUND($B$63,0)," kg/h") -> w_soll = 100 kg/h | AP167: Faktor: Wassermenge zu Nennwassermenge [-] | AQ167: Kühlleistung Korrekturfaktor für w_soll ≠ w_ok [-] | AR167: Primärdruck [Pa] | AS167: Primärvolumenstrom[m³/h]
E168: =AVERAGE(E163:E166) -> 199.0626065 | F168: =E168/$B$64 -> 0.9953130325 | G168: =$B$66*F168^$B$65+$C$66*F168^$C$65+$D$66*F168^$D$65+$E$66*F168^$E$65+$F$66 -> 0.9991877049 | H168: =$G$66 -> 150 | I168: =$H$66 -> 89.58956516 | J168: =$B$62 -> 200 | K168: =J168/$B$64 -> 1 | L168: =$B$66*K168^$B$65+$C$66*K168^$C$65+$D$66*K168^$D$65+$E$66*K168^$E$65+$F$66 -> 1 | M168: =$G$66 -> 150 | N168: =$H$66 -> 89.58956516 | R168: a = | S168: b = | T168: c = | U168: m = | V168: y = | W168: mxb | X168: a = | Y168: b = | Z168: m = | AO168: =$B$63 -> 100 | AP168: =AO168/$B$64 -> 0.5 | AQ168: =$B$66*AP168^$B$65+$C$66*AP168^$C$65+$D$66*AP168^$D$65+$E$66*AP168^$E$65+$F$66 -> 0.8060537297 | AR168: =$G$66 -> 150 | AS168: =$H$66 -> 89.58956516
E169: =AVERAGE(E163:E166) -> 199.0626065 | F169: =E169/$B$64 -> 0.9953130325 | G169: =IFERROR($B$67*F169^$B$65+$C$67*F169^$C$65+$D$67*F169^$D$65+$E$67*F169^$E$65+$F$67,G168) -> 0.9991877049 | H169: =$G$67 -> 150 | I169: =$H$67 -> 89.63576994 | J169: =$B$62 -> 200 | K169: =J169/$B$64 -> 1 | L169: =IFERROR($B$67*K169^$B$65+$C$67*K169^$C$65+$D$67*K169^$D$65+$E$67*K169^$E$65+$F$67,L168) -> 1 | M169: =$G$67 -> 150 | N169: =$H$67 -> 89.63576994 | Q169: 1 | R169: 3 | S169: 2 | T169: 1 | U169: 0 | X169: 2 | Y169: 1 | Z169: 0 | AO169: =$B$63 -> 100 | AP169: =AO169/$B$64 -> 0.5 | AQ169: =IFERROR($B$67*AP169^$B$65+$C$67*AP169^$C$65+$D$67*AP169^$D$65+$E$67*AP169^$E$65+$F$67,AQ168) -> 0.8060537297 | AR169: =$G$67 -> 150 | AS169: =$H$67 -> 89.63576994
E170: =AVERAGE(E163:E166) -> 199.0626065 | F170: =E170/$B$64 -> 0.9953130325 | G170: =IFERROR($B$68*F170^$B$65+$C$68*F170^$C$65+$D$68*F170^$D$65+$E$68*F170^$E$65+$F$68,G168) -> 0.9991877049 | H170: =$G$68 -> 150 | I170: =$H$68 -> 89.63576994 | J170: =$B$62 -> 200 | K170: =J170/$B$64 -> 1 | L170: =IFERROR($B$68*K170^$B$65+$C$68*K170^$C$65+$D$68*K170^$D$65+$E$68*K170^$E$65+$F$68,L168) -> 1 | M170: =$G$68 -> 150 | N170: =$H$68 -> 89.63576994 | Q170: 1 | R170: =LINEST(M163:M166,H163:H166^{1,2,3},0,0) -> 0.0001757428269 | S170: -0.005373966111 | T170: 0.6392501642 | U170: 0 | V170: =INDEX(LOGEST(Auswertung_Leistung!F163:F166,LN(Auswertung_Leistung!H163:H166),,TRUE),1,2) -> 0.5788789059 | W170: =LN(INDEX(LOGEST(F163:F166,LN(H163:H166),,TRUE),1,1)) -> 1.789165317 | X170: =LINEST(I163:I166,$H$73:$H$76^{0,1,2},0,0) -> 0.000402895474 | Y170: -0.06794415078 | Z170: 6.012009225 | AC170: Für Vergleich mit "ohne Schieber" | AF170: Akustik | AO170: =$B$63 -> 100 | AP170: =AO170/$B$64 -> 0.5 | AQ170: =IFERROR($B$68*AP170^$B$65+$C$68*AP170^$C$65+$D$68*AP170^$D$65+$E$68*AP170^$E$65+$F$68,AQ168) -> 0.8060537297 | AR170: =$G$68 -> 150 | AS170: =$H$68 -> 89.63576994
E171: a = | F171: b = | G171: m = | J171: a = | K171: b = | L171: m = | N171: Korrektur Wassermenge | R171: a = | S171: b = | T171: c = | U171: m = | V171: y = | W171: mxb | X171: a = | Y171: b = | Z171: m = | AF171: Druckverlust [Pa] → Schallleistung [dBA] | AO171: a = | AP171: b = | AQ171: m =
E172: 2 | F172: 1 | G172: 0 | J172: 2 | K172: 1 | L172: 0 | M172: Auslegung 1 | N172: =J173*P164^2+K173*P164+L173 -> 0 | Q172: 2 | R172: 3 | S172: 2 | T172: 1 | U172: 0 | X172: 2 | Y172: 1 | Z172: 0 | AC172: Umrechnung: Druck _Volumenstrom | AO172: 2 | AP172: 1 | AQ172: 0
E173: =LINEST(G168:G170,I168:I170^{0,1,2},0,0) -> -0.0001244251862 | F173: 0.0223001457 | G173: 0 | J173: =LINEST(L168:L170,N168:N170^{0,1,2},0,0) -> -0.0001245263384 | K173: 0.02231827472 | L173: 0 | M173: Auslegung 2 | N173: =J173*R166^2+K173*R166+L173 -> 0.5458985951 | Q173: 2 | R173: =LINEST(M163:M166,F163:F166^{1,2,3},0,0) -> 1.068168273e-06 | S173: -0.0006267466257 | T173: 0.1638303802 | U173: 0 | V173: =INDEX(LOGEST(Auswertung_Leistung!H163:H166,LN(Auswertung_Leistung!F163:F166),,TRUE),1,2) -> 1.357479085 | W173: =LN(INDEX(LOGEST(H163:H166,LN(F163:F166),,TRUE),1,1)) -> 0.5589021463 | X173: =LINEST(I163:I166,$F$73:$F$76^{0,1,2},0,0) -> 3.239090602e-05 | Y173: -0.009932810468 | Z173: 3.959425206 | AC173: y = | AD173: mxb | AF173: m | AG173: b | AO173: =LINEST(AQ168:AQ170,AS168:AS170^{0,1,2},0,0) -> -0.0001003749195 | AP173: 0.01798972858 | AQ173: 0
P174: =CONCATENATE("H",P175) -> H2 | Q174: =$F$1 -> 2 | R174: =R172 -> 3 | S174: 2 | T174: 1 | U174: 0 | X174: =X172 -> 2 | Y174: =Y172 -> 1 | Z174: 0 | AA174: V_Prim Min [m³/h] | AB174: V_Prim Max [m³/h] | AF174: y = m∙LN(x) + b | AO174: Korrekturfaktor Mittel
P175: =C163 -> 2 | Q175: =$F$1 -> 2 | R175: =R173 -> 1.068168273e-06 | S175: -0.0006267466257 | T175: 0.1638303802 | U175: 0 | V175: =IF(Q175=1,V170,V173) -> 1.357479085 | W175: =IF(Q175=1,W170,W173) -> 0.5589021463 | X175: =X173 -> 3.239090602e-05 | Y175: =Y173 -> -0.009932810468 | Z175: 3.959425206 | AA175: =V173*$K$2^W173 -> 11.3950745 | AB175: =V173*$K$3^W173 -> 33.20577792 | AC175: =V170 -> 0.5788789059 | AD175: =W170 -> 1.789165317 | AE175: Schieberstellung 2 | AF175: 16.83078457 | AG175: -57.07445881 | AO175: =AVERAGE(AS163:AS166) -> 0.8060537297
A177: Messreihe 8 | B177: Messung (Kontrolle) | C177: Schieberstellung | D177: Anzahl Düsen | E177: Wasser- menge [kg/h] | F177: Primärdruck [Pa] | G177: spez. Kühlleistung q Sek [W/K] | H177: Primärvolumenstrom [m³/h] | I177: Induktionsverhältnis i [-] | J177: Kühlleistung Korrekturfaktor für w_soll ≠ w_ok | K177: =CONCATENATE("q Sek [W/K] bei wok ", G$21, " kg/h") -> q Sek [W/K] bei wok 200 kg/h | L177: =CONCATENATE("Korrektur bei ", ROUND(AVERAGE($B$62),0), " kg/h (Mittelwert)") -> Korrektur bei 200 kg/h (Mittelwert) | M177: =CONCATENATE("q Sek [W/K] bei w_soll ", ROUND($B$62,0), " kg/h") -> q Sek [W/K] bei w_soll 200 kg/h | N177: =CONCATENATE("q Sek Abweichung von Nennwassermenge bei ", $B$62, " kg/h") -> q Sek Abweichung von Nennwassermenge bei 200 kg/h | O177: Sekundärvolumenstrom [m³/h] | R177: x - Achse | S177: y - Achse | T177: y - Achse | U177: y - Achse | AO177: Primärvolumenstrom [m³/h] | AP177: =K177 -> q Sek [W/K] bei wok 200 kg/h | AQ177: =CONCATENATE("Korrektur bei ", ROUND(AVERAGE($B$63),0), " kg/h (Mittelwert)") -> Korrektur bei 100 kg/h (Mittelwert) | AR177: =CONCATENATE("q Sek [W/K] bei w_soll ", ROUND($B$63,0), " kg/h") -> q Sek [W/K] bei w_soll 100 kg/h | AS177: Korrektur kühlen heizen bei gleichem Wärmetauscher
A178: V36 | B178: =VLOOKUP(A178,Matrix_Rohdaten,$B$71,0) -> V36 | C178: =VLOOKUP(A178,Matrix_Rohdaten,$C$71,0) -> 1.5 | D178: =VLOOKUP(A178,Matrix_Rohdaten,$D$71,0) -> 11.5 | E178: =VLOOKUP(A178,Matrix_Rohdaten,$E$71,0) -> 198.8452367 | F178: =VLOOKUP(A178,Matrix_Rohdaten,$F$71,0) -> 50 | G178: =VLOOKUP(A178,Matrix_Rohdaten,$G$71,0) -> 4.513623092 | H178: =VLOOKUP(A178,Matrix_Rohdaten,$H$71,0) -> 11.034172 | I178: =VLOOKUP(A178,Matrix_Rohdaten,$I$71,0) -> 5.404368291 | J178: =IF(G183=G184,G183,E188*H178^E187+F188*H178^F187+G188*H178^G187) -> 0.9997565387 | K178: =G178/J178 -> 4.514722253 | L178: =IF(L183=L184,L183,J188*H178^J187+K188*H178^K187+L188*H178^L187) -> 1 | M178: =K178*L178 -> 4.514722253 | N178: =1/K178*M178-1 -> 0 | O178: =I178*H178 -> 59.63272927 | P178: =CONCATENATE(A177,": Auslegung1") -> Messreihe 8: Auslegung1 | Q178: 1 | R178: V_Prim soll [m³/h] | S178: q sek [W/K] Auslegung 1 | T178: Primärdruck [Pa] | U178: Induktionsverhältnis | V178: Titel für Diagramme: | AO178: =VLOOKUP(A178,Matrix_Rohdaten,$AO$70,0) -> 11.034172 | AP178: =K178 -> 4.514722253 | AQ178: =IF(AQ183=AQ184,AQ183,AO188*AO178^AO187+AP188*AO178^AP187+AQ188*AO178^AQ187) -> 0.8060537297 | AR178: =AP178*AQ178 -> 3.63910871 | AS178: =1/M178*AR178 -> 0.8060537297
A179: V37 | B179: =VLOOKUP(A179,Matrix_Rohdaten,$B$71,0) -> V37 | C179: =VLOOKUP(A179,Matrix_Rohdaten,$C$71,0) -> 1.5 | D179: =VLOOKUP(A179,Matrix_Rohdaten,$D$71,0) -> 11.5 | E179: =VLOOKUP(A179,Matrix_Rohdaten,$E$71,0) -> 198.9439098 | F179: =VLOOKUP(A179,Matrix_Rohdaten,$F$71,0) -> 150 | G179: =VLOOKUP(A179,Matrix_Rohdaten,$G$71,0) -> 4.721667292 | H179: =VLOOKUP(A179,Matrix_Rohdaten,$H$71,0) -> 23.312959 | I179: =VLOOKUP(A179,Matrix_Rohdaten,$I$71,0) -> 3.907105012 | J179: =IF(G183=G184,G183,E188*H179^E187+F188*H179^F187+G188*H179^G187) -> 0.9997565387 | K179: =G179/J179 -> 4.722817116 | L179: =IF(L183=L184,L183,J188*H179^J187+K188*H179^K187+L188*H179^L187) -> 1 | M179: =K179*L179 -> 4.722817116 | N179: =1/K179*M179-1 -> 0 | O179: =I179*H179 -> 91.08617895 | Q179: 1 | R179: =$B$58 -> 150 | S179: =R185*R179^R184+S185*R179^S184+T185*R179^T184+U185*R179^U184 -> 1161.272326 | T179: =V185*R179^W185 -> 2861.01084 | U179: =X185*R179^X184+Y185*R179^Y184+Z185*R179^Z184 -> 21.76303562 | V179: =CONCATENATE($A$70, " ; ",K177) -> HFBsf; HL; 4L; mit Edelstahlgitter ; q Sek [W/K] bei wok 200 kg/h | AO179: =VLOOKUP(A179,Matrix_Rohdaten,$AO$70,0) -> 23.312959 | AP179: =K179 -> 4.722817116 | AQ179: =IF(AQ183=AQ184,AQ183,AO188*AO179^AO187+AP188*AO179^AP187+AQ188*AO179^AQ187) -> 0.8060537297 | AR179: =AP179*AQ179 -> 3.806844351 | AS179: =1/M179*AR179 -> 0.8060537297
A180: V38 | B180: =VLOOKUP(A180,Matrix_Rohdaten,$B$71,0) -> V38 | C180: =VLOOKUP(A180,Matrix_Rohdaten,$C$71,0) -> 1.5 | D180: =VLOOKUP(A180,Matrix_Rohdaten,$D$71,0) -> 11.5 | E180: =VLOOKUP(A180,Matrix_Rohdaten,$E$71,0) -> 198.7648842 | F180: =VLOOKUP(A180,Matrix_Rohdaten,$F$71,0) -> 250 | G180: =VLOOKUP(A180,Matrix_Rohdaten,$G$71,0) -> 5.831103738 | H180: =VLOOKUP(A180,Matrix_Rohdaten,$H$71,0) -> 31.223653 | I180: =VLOOKUP(A180,Matrix_Rohdaten,$I$71,0) -> 13.45994602 | J180: =IF(G183=G184,G183,E188*H180^E187+F188*H180^F187+G188*H180^G187) -> 0.9997565387 | K180: =G180/J180 -> 5.832523732 | L180: =IF(L183=L184,L183,J188*H180^J187+K188*H180^K187+L188*H180^L187) -> 1 | M180: =K180*L180 -> 5.832523732 | N180: =1/K180*M180-1 -> 0 | O180: 420.2686838 | P180: =CONCATENATE(A177,": Auslegung2") -> Messreihe 8: Auslegung2 | Q180: 2 | R180: Primärdruck Soll [Pa] | S180: q sek [W/K] Auslegung 2 | T180: V_Prim soll [m³/h] Auslegung 2 | U180: Induktionsverhältnis | V180: =CONCATENATE($A$70, " ; ",M177) -> HFBsf; HL; 4L; mit Edelstahlgitter ; q Sek [W/K] bei w_soll 200 kg/h | AO180: =VLOOKUP(A180,Matrix_Rohdaten,$AO$70,0) -> 31.223653 | AP180: =K180 -> 5.832523732 | AQ180: =IF(AQ183=AQ184,AQ183,AO188*AO180^AO187+AP188*AO180^AP187+AQ188*AO180^AQ187) -> 0.8060537297 | AR180: =AP180*AQ180 -> 4.701327508 | AS180: =1/M180*AR180 -> 0.8060537297
A181: V39 | B181: =VLOOKUP(A181,Matrix_Rohdaten,$B$71,0) -> V39 | C181: =VLOOKUP(A181,Matrix_Rohdaten,$C$71,0) -> 1.5 | D181: =VLOOKUP(A181,Matrix_Rohdaten,$D$71,0) -> 11.5 | E181: =VLOOKUP(A181,Matrix_Rohdaten,$E$71,0) -> 202.3164472 | F181: =VLOOKUP(A181,Matrix_Rohdaten,$F$71,0) -> 300 | G181: =VLOOKUP(A181,Matrix_Rohdaten,$G$71,0) -> 6.111205431 | H181: =VLOOKUP(A181,Matrix_Rohdaten,$H$71,0) -> 34.648263 | I181: =VLOOKUP(A181,Matrix_Rohdaten,$I$71,0) -> 11.35372087 | J181: =IF(G183=G184,G183,E188*H181^E187+F188*H181^F187+G188*H181^G187) -> 0.9997565387 | K181: =G181/J181 -> 6.112693635 | L181: =IF(L183=L184,L183,J188*H181^J187+K188*H181^K187+L188*H181^L187) -> 1 | M181: =K181*L181 -> 6.112693635 | N181: =1/K181*M181-1 -> 0 | O181: 393.3867066 | Q181: 2 | R181: =$B$59 -> 150 | S181: =R188*R181^R187+S188*R181^S187+T188*R181^T187+U188*R181^U187 -> 5.494265611 | T181: =V188*R181^W188 -> 22.58354741 | U181: =X188*R181^X187+Y188*R181^Y187+Z188*R181^Z187 -> 6.123473808 | V181: =CONCATENATE("im Mittel ", ROUND(AVERAGE(N178:N181)*100,0), " % Kühlleistung bei ", ROUND($B$62,0), " kg/h") -> im Mittel 0 % Kühlleistung bei 200 kg/h | AO181: =VLOOKUP(A181,Matrix_Rohdaten,$AO$70,0) -> 34.648263 | AP181: =K181 -> 6.112693635 | AQ181: =IF(AQ183=AQ184,AQ183,AO188*AO181^AO187+AP188*AO181^AP187+AQ188*AO181^AQ187) -> 0.8060537297 | AR181: =AP181*AQ181 -> 4.927159503 | AS181: =1/M181*AR181 -> 0.8060537297
E182: =CONCATENATE("w_mess = ", ROUND(E183,0)," kg/h") -> w_mess = 200 kg/h | F182: Faktor: Wassermenge zu Nennwassermenge [-] | G182: Kühlleistung Korrekturfaktor für w_soll ≠ w_ok [-] | H182: Primärdruck [Pa] | I182: Primärvolumenstrom[m³/h] | J182: =CONCATENATE("w_soll = ", ROUND($B$62,0)," kg/h") -> w_soll = 200 kg/h | K182: Faktor: Wassermenge zu Nennwassermenge [-] | L182: Kühlleistung Korrekturfaktor für w_soll ≠ w_ok [-] | M182: Primärdruck [Pa] | N182: Primärvolumenstrom[m³/h] | R182: Polynom y = | S182: axn+bx(n-1)+...+nx+m | V182: Umrechnung: Druck D Volumenstrom | X182: y = | Y182: axn+bx(n-1)+...+nx+m | AO182: =CONCATENATE("w_soll = ", ROUND($B$63,0)," kg/h") -> w_soll = 100 kg/h | AP182: Faktor: Wassermenge zu Nennwassermenge [-] | AQ182: Kühlleistung Korrekturfaktor für w_soll ≠ w_ok [-] | AR182: Primärdruck [Pa] | AS182: Primärvolumenstrom[m³/h]
E183: =AVERAGE(E178:E181) -> 199.7176195 | F183: =E183/$B$64 -> 0.9985880974 | G183: =$B$66*F183^$B$65+$C$66*F183^$C$65+$D$66*F183^$D$65+$E$66*F183^$E$65+$F$66 -> 0.9997565387 | H183: =$G$66 -> 150 | I183: =$H$66 -> 89.58956516 | J183: =$B$62 -> 200 | K183: =J183/$B$64 -> 1 | L183: =$B$66*K183^$B$65+$C$66*K183^$C$65+$D$66*K183^$D$65+$E$66*K183^$E$65+$F$66 -> 1 | M183: =$G$66 -> 150 | N183: =$H$66 -> 89.58956516 | R183: a = | S183: b = | T183: c = | U183: m = | V183: y = | W183: mxb | X183: a = | Y183: b = | Z183: m = | AO183: =$B$63 -> 100 | AP183: =AO183/$B$64 -> 0.5 | AQ183: =$B$66*AP183^$B$65+$C$66*AP183^$C$65+$D$66*AP183^$D$65+$E$66*AP183^$E$65+$F$66 -> 0.8060537297 | AR183: =$G$66 -> 150 | AS183: =$H$66 -> 89.58956516
E184: =AVERAGE(E178:E181) -> 199.7176195 | F184: =E184/$B$64 -> 0.9985880974 | G184: =IFERROR($B$67*F184^$B$65+$C$67*F184^$C$65+$D$67*F184^$D$65+$E$67*F184^$E$65+$F$67,G183) -> 0.9997565387 | H184: =$G$67 -> 150 | I184: =$H$67 -> 89.63576994 | J184: =$B$62 -> 200 | K184: =J184/$B$64 -> 1 | L184: =IFERROR($B$67*K184^$B$65+$C$67*K184^$C$65+$D$67*K184^$D$65+$E$67*K184^$E$65+$F$67,L183) -> 1 | M184: =$G$67 -> 150 | N184: =$H$67 -> 89.63576994 | Q184: 1 | R184: 3 | S184: 2 | T184: 1 | U184: 0 | X184: 2 | Y184: 1 | Z184: 0 | AO184: =$B$63 -> 100 | AP184: =AO184/$B$64 -> 0.5 | AQ184: =IFERROR($B$67*AP184^$B$65+$C$67*AP184^$C$65+$D$67*AP184^$D$65+$E$67*AP184^$E$65+$F$67,AQ183) -> 0.8060537297 | AR184: =$G$67 -> 150 | AS184: =$H$67 -> 89.63576994
E185: =AVERAGE(E178:E181) -> 199.7176195 | F185: =E185/$B$64 -> 0.9985880974 | G185: =IFERROR($B$68*F185^$B$65+$C$68*F185^$C$65+$D$68*F185^$D$65+$E$68*F185^$E$65+$F$68,G183) -> 0.9997565387 | H185: =$G$68 -> 150 | I185: =$H$68 -> 89.63576994 | J185: =$B$62 -> 200 | K185: =J185/$B$64 -> 1 | L185: =IFERROR($B$68*K185^$B$65+$C$68*K185^$C$65+$D$68*K185^$D$65+$E$68*K185^$E$65+$F$68,L183) -> 1 | M185: =$G$68 -> 150 | N185: =$H$68 -> 89.63576994 | Q185: 1 | R185: =LINEST(M178:M181,H178:H181^{1,2,3},0,0) -> 0.0005385679348 | S185: -0.03390478837 | T185: 0.7097552322 | U185: 0 | V185: =INDEX(LOGEST(Auswertung_Leistung!F178:F181,LN(Auswertung_Leistung!H178:H181),,TRUE),1,2) -> 1.16980177 | W185: =LN(INDEX(LOGEST(F178:F181,LN(H178:H181),,TRUE),1,1)) -> 1.557107137 | X185: =LINEST(I178:I181,$H$73:$H$76^{0,1,2},0,0) -> 0.002627209215 | Y185: -0.3607148379 | Z185: 16.75805398 | AC185: Für Vergleich mit "ohne Schieber" | AF185: Akustik | AO185: =$B$63 -> 100 | AP185: =AO185/$B$64 -> 0.5 | AQ185: =IFERROR($B$68*AP185^$B$65+$C$68*AP185^$C$65+$D$68*AP185^$D$65+$E$68*AP185^$E$65+$F$68,AQ183) -> 0.8060537297 | AR185: =$G$68 -> 150 | AS185: =$H$68 -> 89.63576994
E186: a = | F186: b = | G186: m = | J186: a = | K186: b = | L186: m = | N186: Korrektur Wassermenge | R186: a = | S186: b = | T186: c = | U186: m = | V186: y = | W186: mxb | X186: a = | Y186: b = | Z186: m = | AF186: Druckverlust [Pa] → Schallleistung [dBA] | AO186: a = | AP186: b = | AQ186: m =
E187: 2 | F187: 1 | G187: 0 | J187: 2 | K187: 1 | L187: 0 | M187: Auslegung 1 | N187: =J188*P179^2+K188*P179+L188 -> 0 | Q187: 2 | R187: 3 | S187: 2 | T187: 1 | U187: 0 | X187: 2 | Y187: 1 | Z187: 0 | AC187: Umrechnung: Druck _Volumenstrom | AO187: 2 | AP187: 1 | AQ187: 0
E188: =LINEST(G183:G185,I183:I185^{0,1,2},0,0) -> -0.000124496021 | F188: 0.02231284109 | G188: 0 | J188: =LINEST(L183:L185,N183:N185^{0,1,2},0,0) -> -0.0001245263384 | K188: 0.02231827472 | L188: 0 | M188: Auslegung 2 | N188: =J188*R181^2+K188*R181+L188 -> 0.5458985951 | Q188: 2 | R188: =LINEST(M178:M181,F178:F181^{1,2,3},0,0) -> 1.185218884e-06 | S188: -0.000634843124 | T188: 0.1051874811 | U188: 0 | V188: =INDEX(LOGEST(Auswertung_Leistung!H178:H181,LN(Auswertung_Leistung!F178:F181),,TRUE),1,2) -> 0.9094289578 | W188: =LN(INDEX(LOGEST(H178:H181,LN(F178:F181),,TRUE),1,1)) -> 0.6410684189 | X188: =LINEST(I178:I181,$F$73:$F$76^{0,1,2},0,0) -> 0.000131395143 | Y188: -0.01243886704 | Z188: 5.032913146 | AC188: y = | AD188: mxb | AF188: m | AG188: b | AO188: =LINEST(AQ183:AQ185,AS183:AS185^{0,1,2},0,0) -> -0.0001003749195 | AP188: 0.01798972858 | AQ188: 0
P189: =CONCATENATE("H",P190) -> H1,5 | Q189: =$F$1 -> 2 | R189: =R187 -> 3 | S189: 2 | T189: 1 | U189: 0 | X189: =X187 -> 2 | Y189: =Y187 -> 1 | Z189: 0 | AA189: V_Prim Min [m³/h] | AB189: V_Prim Max [m³/h] | AF189: y = m∙LN(x) + b | AO189: Korrekturfaktor Mittel
P190: =C178 -> 1.5 | Q190: =$F$1 -> 2 | R190: =R188 -> 1.185218884e-06 | S190: -0.000634843124 | T190: 0.1051874811 | U190: 0 | V190: =IF(Q190=1,V185,V188) -> 0.9094289578 | W190: =IF(Q190=1,W185,W188) -> 0.6410684189 | X190: =X188 -> 0.000131395143 | Y190: =Y188 -> -0.01243886704 | Z190: 5.032913146 | AA190: =V188*$K$2^W188 -> 10.43737076 | AB190: =V188*$K$3^W188 -> 35.5938486 | AC190: =V185 -> 1.16980177 | AD190: =W185 -> 1.557107137 | AE190: Schieberstellung 1.2 | AF190: 15.08427929 | AG190: -48.76486976 | AO190: =AVERAGE(AS178:AS181) -> 0.8060537297
A192: Messreihe 9 | B192: Messung (Kontrolle) | C192: Schieberstellung | D192: Anzahl Düsen | E192: Wasser- menge [kg/h] | F192: Primärdruck [Pa] | G192: spez. Kühlleistung q Sek [W/K] | H192: Primärvolumenstrom [m³/h] | I192: Induktionsverhältnis i [-] | J192: Kühlleistung Korrekturfaktor für w_soll ≠ w_ok | K192: =CONCATENATE("q Sek [W/K] bei wok ", G$21, " kg/h") -> q Sek [W/K] bei wok 200 kg/h | L192: =CONCATENATE("Korrektur bei ", ROUND(AVERAGE($B$62),0), " kg/h (Mittelwert)") -> Korrektur bei 200 kg/h (Mittelwert) | M192: =CONCATENATE("q Sek [W/K] bei w_soll ", ROUND($B$62,0), " kg/h") -> q Sek [W/K] bei w_soll 200 kg/h | N192: =CONCATENATE("q Sek Abweichung von Nennwassermenge bei ", $B$62, " kg/h") -> q Sek Abweichung von Nennwassermenge bei 200 kg/h | O192: Sekundärvolumenstrom [m³/h] | R192: x - Achse | S192: y - Achse | T192: y - Achse | U192: y - Achse | AO192: Primärvolumenstrom [m³/h] | AP192: =K192 -> q Sek [W/K] bei wok 200 kg/h | AQ192: =CONCATENATE("Korrektur bei ", ROUND(AVERAGE($B$63),0), " kg/h (Mittelwert)") -> Korrektur bei 100 kg/h (Mittelwert) | AR192: =CONCATENATE("q Sek [W/K] bei w_soll ", ROUND($B$63,0), " kg/h") -> q Sek [W/K] bei w_soll 100 kg/h | AS192: Korrektur kühlen heizen bei gleichem Wärmetauscher
A193: V40 | B193: =VLOOKUP(A193,Matrix_Rohdaten,$B$71,0) -> V40 | C193: =VLOOKUP(A193,Matrix_Rohdaten,$C$71,0) -> 1 | D193: =VLOOKUP(A193,Matrix_Rohdaten,$D$71,0) -> 0 | E193: =VLOOKUP(A193,Matrix_Rohdaten,$E$71,0) -> 202.2512661 | F193: =VLOOKUP(A193,Matrix_Rohdaten,$F$71,0) -> 50 | G193: =VLOOKUP(A193,Matrix_Rohdaten,$G$71,0) -> 4.637020677 | H193: =H163/D163*$D$197 -> 0.5247871928 | I193: =VLOOKUP(A193,Matrix_Rohdaten,$I$71,0)/$D$197*D193 -> 0 | J193: =IF(G198=G199,G198,E203*H193^E202+F203*H193^F202+G203*H193^G202) -> 1.001929194 | K193: =G193/J193 -> 4.628092189 | L193: =IF(L198=L199,L198,J203*H193^J202+K203*H193^K202+L203*H193^L202) -> 1 | M193: =K193*L193 -> 4.628092189 | N193: =1/K193*M193-1 -> 0 | O193: =I193*H193 -> 0 | P193: =CONCATENATE(A192,": Auslegung1") -> Messreihe 9: Auslegung1 | Q193: 1 | R193: V_Prim soll [m³/h] | S193: q sek [W/K] Auslegung 1 | T193: Primärdruck [Pa] | U193: Induktionsverhältnis | V193: Titel für Diagramme: | AO193: =H193 -> 0.5247871928 | AP193: =K193 -> 4.628092189 | AQ193: =IF(AQ198=AQ199,AQ198,AO203*AO193^AO202+AP203*AO193^AP202+AQ203*AO193^AQ202) -> 0.8060537297 | AR193: =AP193*AQ193 -> 3.73049097 | AS193: =1/M193*AR193 -> 0.8060537297
A194: V41 | B194: =VLOOKUP(A194,Matrix_Rohdaten,$B$71,0) -> V41 | C194: =VLOOKUP(A194,Matrix_Rohdaten,$C$71,0) -> 1 | D194: =VLOOKUP(A194,Matrix_Rohdaten,$D$71,0) -> 0 | E194: =VLOOKUP(A194,Matrix_Rohdaten,$E$71,0) -> 202.3478885 | F194: =VLOOKUP(A194,Matrix_Rohdaten,$F$71,0) -> 150 | G194: =VLOOKUP(A194,Matrix_Rohdaten,$G$71,0) -> 5.048620569 | H194: =H164/D164*$D$197 -> 0.9747123582 | I194: =VLOOKUP(A194,Matrix_Rohdaten,$I$71,0)/$D$197*D194 -> 0 | J194: =IF(G198=G199,G198,E203*H194^E202+F203*H194^F202+G203*H194^G202) -> 1.001929194 | K194: =G194/J194 -> 5.038899554 | L194: =IF(L198=L199,L198,J203*H194^J202+K203*H194^K202+L203*H194^L202) -> 1 | M194: =K194*L194 -> 5.038899554 | N194: =1/K194*M194-1 -> 0 | O194: =I194*H194 -> 0 | Q194: 1 | R194: =$B$58 -> 150 | S194: =R200*R194^R199+S200*R194^S199+T200*R194^T199+U200*R194^U199 -> 18421217.59 | T194: =V200*R194^W200 -> 674977.5727 | U194: =X200*R194^X199+Y200*R194^Y199+Z200*R194^Z199 -> 0 | V194: =CONCATENATE($A$70, " ; ",K192) -> HFBsf; HL; 4L; mit Edelstahlgitter ; q Sek [W/K] bei wok 200 kg/h | AO194: =H194 -> 0.9747123582 | AP194: =K194 -> 5.038899554 | AQ194: =IF(AQ198=AQ199,AQ198,AO203*AO194^AO202+AP203*AO194^AP202+AQ203*AO194^AQ202) -> 0.8060537297 | AR194: =AP194*AQ194 -> 4.061623779 | AS194: =1/M194*AR194 -> 0.8060537297
A195: V42 | B195: =VLOOKUP(A195,Matrix_Rohdaten,$B$71,0) -> V42 | C195: =VLOOKUP(A195,Matrix_Rohdaten,$C$71,0) -> 1 | D195: =VLOOKUP(A195,Matrix_Rohdaten,$D$71,0) -> 0 | E195: =VLOOKUP(A195,Matrix_Rohdaten,$E$71,0) -> 202.2643878 | F195: =VLOOKUP(A195,Matrix_Rohdaten,$F$71,0) -> 250 | G195: =VLOOKUP(A195,Matrix_Rohdaten,$G$71,0) -> 6.203665908 | H195: 1.290179773 | I195: =VLOOKUP(A195,Matrix_Rohdaten,$I$71,0)/$D$197*D195 -> 0 | J195: =IF(G198=G199,G198,E203*H195^E202+F203*H195^F202+G203*H195^G202) -> 1.001929194 | K195: =G195/J195 -> 6.191720876 | L195: =IF(L198=L199,L198,J203*H195^J202+K203*H195^K202+L203*H195^L202) -> 1 | M195: =K195*L195 -> 6.191720876 | N195: =1/K195*M195-1 -> 0 | O195: 0 | P195: =CONCATENATE(A192,": Auslegung2") -> Messreihe 9: Auslegung2 | Q195: 2 | R195: Primärdruck Soll [Pa] | S195: q sek [W/K] Auslegung 2 | T195: V_Prim soll [m³/h] Auslegung 2 | U195: Induktionsverhältnis | V195: =CONCATENATE($A$70, " ; ",M192) -> HFBsf; HL; 4L; mit Edelstahlgitter ; q Sek [W/K] bei w_soll 200 kg/h | AO195: 1.290179773 | AP195: =K195 -> 6.191720876 | AQ195: =IF(AQ198=AQ199,AQ198,AO203*AO195^AO202+AP203*AO195^AP202+AQ203*AO195^AQ202) -> 0.8060537297 | AR195: =AP195*AQ195 -> 4.990859706 | AS195: =1/M195*AR195 -> 0.8060537297
A196: V42 | B196: =VLOOKUP(A196,Matrix_Rohdaten,$B$71,0) -> V42 | C196: =VLOOKUP(A196,Matrix_Rohdaten,$C$71,0) -> 1 | D196: =VLOOKUP(A196,Matrix_Rohdaten,$D$71,0) -> 0 | E196: =VLOOKUP(A196,Matrix_Rohdaten,$E$71,0) -> 202.2643878 | F196: =VLOOKUP(A196,Matrix_Rohdaten,$F$71,0) -> 250 | G196: =VLOOKUP(A196,Matrix_Rohdaten,$G$71,0) -> 6.203665908 | H196: =H166/D166*$D$197 -> 1.428807018 | I196: =VLOOKUP(A196,Matrix_Rohdaten,$I$71,0)/$D$197*D196 -> 0 | J196: =IF(G198=G199,G198,E203*H196^E202+F203*H196^F202+G203*H196^G202) -> 1.001929194 | K196: =G196/J196 -> 6.191720876 | L196: =IF(L198=L199,L198,J203*H196^J202+K203*H196^K202+L203*H196^L202) -> 1 | M196: =K196*L196 -> 6.191720876 | N196: =1/K196*M196-1 -> 0 | O196: 0 | Q196: 2 | R196: =$B$59 -> 150 | S196: =R203*R196^R202+S203*R196^S202+T203*R196^T202+U203*R196^U202 -> 5.038899554 | T196: =V203*R196^W203 -> 0.9966744626 | U196: =X203*R196^X202+Y203*R196^Y202+Z203*R196^Z202 -> 0 | V196: =CONCATENATE("im Mittel ", ROUND(AVERAGE(N193:N196)*100,0), " % Kühlleistung bei ", ROUND($B$62,0), " kg/h") -> im Mittel 0 % Kühlleistung bei 200 kg/h | AO196: 1.428807018 | AP196: =K196 -> 6.191720876 | AQ196: =IF(AQ198=AQ199,AQ198,AO203*AO196^AO202+AP203*AO196^AP202+AQ203*AO196^AQ202) -> 0.8060537297 | AR196: =AP196*AQ196 -> 4.990859706 | AS196: =1/M196*AR196 -> 0.8060537297
C197: Düsenanzahl HFBsf-Standard (2x25 Düsen je 6,8mm) | D197: =1+0 -> 1 | E197: =CONCATENATE("w_mess = ", ROUND(E198,0)," kg/h") -> w_mess = 202 kg/h | F197: Faktor: Wassermenge zu Nennwassermenge [-] | G197: Kühlleistung Korrekturfaktor für w_soll ≠ w_ok [-] | H197: Primärdruck [Pa] | I197: Primärvolumenstrom[m³/h] | J197: =CONCATENATE("w_soll = ", ROUND($B$62,0)," kg/h") -> w_soll = 200 kg/h | K197: Faktor: Wassermenge zu Nennwassermenge [-] | L197: Kühlleistung Korrekturfaktor für w_soll ≠ w_ok [-] | M197: Primärdruck [Pa] | N197: Primärvolumenstrom[m³/h] | R197: Polynom y = | S197: axn+bx(n-1)+...+nx+m | V197: Umrechnung: Druck D Volumenstrom | X197: y = | Y197: axn+bx(n-1)+...+nx+m | AO197: =CONCATENATE("w_soll = ", ROUND($B$63,0)," kg/h") -> w_soll = 100 kg/h | AP197: Faktor: Wassermenge zu Nennwassermenge [-] | AQ197: Kühlleistung Korrekturfaktor für w_soll ≠ w_ok [-] | AR197: Primärdruck [Pa] | AS197: Primärvolumenstrom[m³/h]
E198: =AVERAGE(E193:E196) -> 202.2819826 | F198: =E198/$B$64 -> 1.011409913 | G198: =$B$66*F198^$B$65+$C$66*F198^$C$65+$D$66*F198^$D$65+$E$66*F198^$E$65+$F$66 -> 1.001929194 | H198: =$G$66 -> 150 | I198: =$H$66 -> 89.58956516 | J198: =$B$62 -> 200 | K198: =J198/$B$64 -> 1 | L198: =$B$66*K198^$B$65+$C$66*K198^$C$65+$D$66*K198^$D$65+$E$66*K198^$E$65+$F$66 -> 1 | M198: =$G$66 -> 150 | N198: =$H$66 -> 89.58956516 | R198: a = | S198: b = | T198: c = | U198: m = | V198: y = | W198: mxb | X198: a = | Y198: b = | Z198: m = | AO198: =$B$63 -> 100 | AP198: =AO198/$B$64 -> 0.5 | AQ198: =$B$66*AP198^$B$65+$C$66*AP198^$C$65+$D$66*AP198^$D$65+$E$66*AP198^$E$65+$F$66 -> 0.8060537297 | AR198: =$G$66 -> 150 | AS198: =$H$66 -> 89.58956516
E199: =AVERAGE(E193:E196) -> 202.2819826 | F199: =E199/$B$64 -> 1.011409913 | G199: =IFERROR($B$67*F199^$B$65+$C$67*F199^$C$65+$D$67*F199^$D$65+$E$67*F199^$E$65+$F$67,G198) -> 1.001929194 | H199: =$G$67 -> 150 | I199: =$H$67 -> 89.63576994 | J199: =$B$62 -> 200 | K199: =J199/$B$64 -> 1 | L199: =IFERROR($B$67*K199^$B$65+$C$67*K199^$C$65+$D$67*K199^$D$65+$E$67*K199^$E$65+$F$67,L198) -> 1 | M199: =$G$67 -> 150 | N199: =$H$67 -> 89.63576994 | Q199: 1 | R199: 3 | S199: 2 | T199: 1 | U199: 0 | X199: 2 | Y199: 1 | Z199: 0 | AO199: =$B$63 -> 100 | AP199: =AO199/$B$64 -> 0.5 | AQ199: =IFERROR($B$67*AP199^$B$65+$C$67*AP199^$C$65+$D$67*AP199^$D$65+$E$67*AP199^$E$65+$F$67,AQ198) -> 0.8060537297 | AR199: =$G$67 -> 150 | AS199: =$H$67 -> 89.63576994
E200: =AVERAGE(E193:E196) -> 202.2819826 | F200: =E200/$B$64 -> 1.011409913 | G200: =IFERROR($B$68*F200^$B$65+$C$68*F200^$C$65+$D$68*F200^$D$65+$E$68*F200^$E$65+$F$68,G198) -> 1.001929194 | H200: =$G$68 -> 150 | I200: =$H$68 -> 89.63576994 | J200: =$B$62 -> 200 | K200: =J200/$B$64 -> 1 | L200: =IFERROR($B$68*K200^$B$65+$C$68*K200^$C$65+$D$68*K200^$D$65+$E$68*K200^$E$65+$F$68,L198) -> 1 | M200: =$G$68 -> 150 | N200: =$H$68 -> 89.63576994 | Q200: 1 | R200: =LINEST(M193:M196,H193:H196^{1,2,3},0,0) -> 5.560616364 | S200: -15.47317093 | T200: 15.22474757 | U200: 0 | V200: =INDEX(LOGEST(Auswertung_Leistung!F193:F196,LN(Auswertung_Leistung!H193:H196),,TRUE),1,2) -> 150.8126062 | W200: =LN(INDEX(LOGEST(F193:F196,LN(H193:H196),,TRUE),1,1)) -> 1.67771075 | X200: =LINEST(I193:I196,$H$73:$H$76^{0,1,2},0,0) -> 0 | Y200: 0 | Z200: 0 | AC200: Für Vergleich mit "ohne Schieber" | AF200: Akustik | AO200: =$B$63 -> 100 | AP200: =AO200/$B$64 -> 0.5 | AQ200: =IFERROR($B$68*AP200^$B$65+$C$68*AP200^$C$65+$D$68*AP200^$D$65+$E$68*AP200^$E$65+$F$68,AQ198) -> 0.8060537297 | AR200: =$G$68 -> 150 | AS200: =$H$68 -> 89.63576994
E201: a = | F201: b = | G201: m = | J201: a = | K201: b = | L201: m = | N201: Korrektur Wassermenge | R201: a = | S201: b = | T201: c = | U201: m = | V201: y = | W201: mxb | X201: a = | Y201: b = | Z201: m = | AF201: Druckverlust [Pa] → Schallleistung [dBA] | AO201: a = | AP201: b = | AQ201: m =
E202: 2 | F202: 1 | G202: 0 | J202: 2 | K202: 1 | L202: 0 | M202: Auslegung 1 | N202: =J203*P194^2+K203*P194+L203 -> 0 | Q202: 2 | R202: 3 | S202: 2 | T202: 1 | U202: 0 | X202: 2 | Y202: 1 | Z202: 0 | AC202: Umrechnung: Druck _Volumenstrom | AO202: 2 | AP202: 1 | AQ202: 0
E203: =LINEST(G198:G200,I198:I200^{0,1,2},0,0) -> -0.0001247665738 | F203: 0.02236133101 | G203: 0 | J203: =LINEST(L198:L200,N198:N200^{0,1,2},0,0) -> -0.0001245263384 | K203: 0.02231827472 | L203: 0 | M203: Auslegung 2 | N203: =J203*R196^2+K203*R196+L203 -> 0.5458985951 | Q203: 2 | R203: =LINEST(M193:M196,F193:F196^{1,2,3},0,0) -> 2.507169995e-06 | S203: -0.0010911258 | T203: 0.1408502088 | U203: 0 | V203: =INDEX(LOGEST(Auswertung_Leistung!H193:H196,LN(Auswertung_Leistung!F193:F196),,TRUE),1,2) -> 0.05176321593 | W203: =LN(INDEX(LOGEST(H193:H196,LN(F193:F196),,TRUE),1,1)) -> 0.5902932954 | X203: =LINEST(I193:I196,$F$73:$F$76^{0,1,2},0,0) -> 0 | Y203: 0 | Z203: 0 | AC203: y = | AD203: mxb | AF203: m | AG203: b | AO203: =LINEST(AQ198:AQ200,AS198:AS200^{0,1,2},0,0) -> -0.0001003749195 | AP203: 0.01798972858 | AQ203: 0
P204: =CONCATENATE("H",P205) -> H1 | Q204: =$F$1 -> 2 | R204: =R202 -> 3 | S204: 2 | T204: 1 | U204: 0 | X204: =X202 -> 2 | Y204: =Y202 -> 1 | Z204: 0 | AA204: V_Prim Min [m³/h] | AB204: V_Prim Max [m³/h] | AF204: y = m∙LN(x) + b | AO204: Korrekturfaktor Mittel
P205: =C193 -> 1 | Q205: =$F$1 -> 2 | R205: =R203 -> 2.507169995e-06 | S205: -0.0010911258 | T205: 0.1408502088 | U205: 0 | V205: =IF(Q205=1,V200,V203) -> 0.05176321593 | W205: =IF(Q205=1,W200,W203) -> 0.5902932954 | X205: =X203 -> 0 | Y205: =Y203 -> 0 | Z205: 0 | AA205: =V203*$K$2^W203 -> 0.4896677625 | AB205: =V203*$K$3^W203 -> 1.51525871 | AC205: =V200 -> 150.8126062 | AD205: =W200 -> 1.67771075 | AE205: Schieberstellung 1 | AF205: 12.55595247 | AG205: -31.78236929 | AO205: =AVERAGE(AS193:AS196) -> 0.8060537297
A209: BG | B209: WT bzw. Laufradlänge | C209: Verhältnis
A210: Baugröße 800 | B210: =VLOOKUP(A210,A212:C215,2,0) -> 820 | C210: =VLOOKUP(A210,A212:C215,3,0) -> 1
H211: DpK, Messung= | I211: =H44*J224^I44 -> 28.20130781 | J211: kPa | K211: 2- Leiter Druckverlust Wasserseitig
A212: Baugröße 630 | B212: 590 | C212: =B212/$B$210 -> 0.7195121951 | G212: manuell einstellen | H212: mit = 1 ; ohne = 2 Eurocoil Korrektur | I212: 2 | J212: - | K212: aus VKB Auslegetool
A213: Baugröße 800 | B213: 820 | C213: =B213/$B$210 -> 1 | H213: Korrekturfaktor | I213: =IF(I212=2,1,I219/I211) -> 1
A214: Baugröße 1000 | B214: 980 | C214: =B214/$B$210 -> 1.195121951 | D214: WT-Länge von 1020 mm korrigiert, da nicht 62 Düsen, sondern 60 Düsen auf BG1000 | H214: 2L = 1 ; 4L = 2 | I214: =C351 -> 2
A215: Baugröße 1200 | B215: 1200 | C215: =B215/$B$210 -> 1.463414634 | D215: nicht vorhanden
M216: 4 - Leiter | N216: 4 - Leiter | O216: 2 - Leiter (aus VKB Auslegetool) | P216: 2 - Leiter (aus VKB Auslegetool)
M217: kühlen | N217: heizen | O217: kühlen | P217: heizen
I218: DpK, Eurocoil = | J218: Verhältnis | K218: DpK, Eurocoil = | L218: Verhältnis | M218: DpK, Auslegung = | N218: DpH, Auslegung = | O218: DpK, Auslegung = | P218: DpH, Auslegung =
H219: =A210 -> Baugröße 800 | I219: ='BG;WT2,5;k'!G2 -> 22 | J219: ='BG;WT2,5;k'!H2 -> 1 | K219: ='BG;WT2,5;h'!G2 -> 2 | L219: ='BG;WT2,5;h'!H2 -> 1 | M219: =H44*B3^I44*I213 -> 28.20130781 | N219: =H44*B4^I44*I213 -> 7.96560235 | O219: =O221 -> 4.24829091 | P219: =P221 -> 1.303105112
A220: Grenzwerte für Auslegung | H220: =A212 -> Baugröße 630 | I220: ='BG;WT2,5;k'!G3 -> 18 | J220: ='BG;WT2,5;k'!H3 -> 0.8181818182 | K220: ='BG;WT2,5;h'!G3 -> 1 | L220: ='BG;WT2,5;h'!H3 -> 0.5 | M220: =$M$219*J220 -> 23.0737973 | N220: =(1.3/(100^1.802884))*B4^1.802884 -> 1.3 | O220: =((7/(300^1.757224))*B3^1.757224) -> 3.432940319 | P220: =((7/(300^1.757224))*B4^1.757224) -> 1.015521495
H221: =A213 -> Baugröße 800 | I221: ='BG;WT2,5;k'!G4 -> 22 | J221: ='BG;WT2,5;k'!H4 -> 1 | K221: ='BG;WT2,5;h'!G4 -> 2 | L221: ='BG;WT2,5;h'!H4 -> 1 | M221: =$M$219*J221 -> 28.20130781 | N221: =((1.6/(100^1.788496))*B4^1.788496) -> 1.6 | O221: =((8.45/(300^1.704291))*B3^1.7049291) -> 4.24829091 | P221: =((8.45/(300^1.704291))*B4^1.7049291) -> 1.303105112
H222: Baugröße 1000 | I222: ='BG;WT2,5;k'!G5 -> 26 | J222: ='BG;WT2,5;k'!H5 -> 1.181818182 | K222: ='BG;WT2,5;h'!G5 -> 2 | L222: ='BG;WT2,5;h'!H5 -> 1 | M222: =$M$219*J222 -> 33.32881832 | N222: =((1.8/(100^1.769775))*B4^1.769775) -> 1.8 | O222: =((9.85/(300^1.775618))*B3^1.775618) -> 4.794743966 | P222: =((9.85/(300^1.775618))*B4^1.775618) -> 1.400396906
H223: Baugröße 1200 | I223: ='BG;WT2,5;k'!G6 -> 29 | J223: ='BG;WT2,5;k'!H6 -> 1.318181818 | K223: ='BG;WT2,5;h'!G6 -> 2 | L223: ='BG;WT2,5;h'!H6 -> 1 | M223: =$M$219*J223 -> 37.17445121 | N223: =N221*J223 -> 2.109090909 | O223: =O221*J223 -> 5.600019835 | P223: =P221*J223 -> 1.717729466
I224: ='BG;WT2,5;k'!G7 -> Wassermenge = | J224: ='BG;WT2,5;k'!H7 -> 200 | K224: ='BG;WT2,5;h'!G7 -> Wassermenge = | L224: ='BG;WT2,5;h'!H7 -> 100
... 104 more rows

Sheet BG;WT2,5;k (hidden)
A1: TT | C1: Master auswählen -> | D1: BG | E1: WT | F1: Verhältnis | G1: DpK = | H1: Verhältnis | I1: =CONCATENATE("Polynom 6 Ordnung - ",A3) -> Polynom 6 Ordnung - BG;WT2,5;k | J1: 6 | K1: 5 | L1: 4 | M1: 3 | N1: 2 | O1: 1 | P1: 0
A2: 2017-08-14 | D2: BG 800 | E2: =VLOOKUP(D2,D3:F6,2,0) -> 820 | F2: =VLOOKUP(D2,D3:F6,3,0) -> 1 | G2: =VLOOKUP(D2,D3:G6,4,0) -> 22 | H2: =VLOOKUP(E2,E3:H6,4,0) -> 1 | I2: =D2 -> BG 800 | J2: =VLOOKUP($I2,$I$3:$P$6,2,0) -> 4.600779561e-16 | K2: =VLOOKUP($I2,$I$3:$P$6,3,0) -> -1.369590931e-12 | L2: =VLOOKUP($I2,$I$3:$P$6,4,0) -> 1.414843416e-09 | M2: =VLOOKUP($I2,$I$3:$P$6,5,0) -> -4.231351053e-07 | N2: =VLOOKUP($I2,$I$3:$P$6,6,0) -> -0.0002914062293 | O2: =VLOOKUP($I2,$I$3:$P$6,7,0) -> 0.3401583545 | P2: =VLOOKUP($I2,$I$3:$P$6,8,0) -> 0 | AS2: Datentabelle aus Eurocoil entnehmen
A3: =MID(CELL("dateiname",A1),FIND("]",CELL("dateiname",A1))+1,255) -> BG;WT2,5;k | D3: BG 630 | E3: 590 | F3: =E3/$E$2 -> 0.7195121951 | G3: =BI18 -> 18 | H3: =G3/$G$2 -> 0.8181818182 | I3: =D3 -> BG 630 | J3: =LINEST(AS18:AS117,AU18:AU117^{1,2,3,4,5,6},0,0) -> 4.075411687e-17 | K3: 2.453874671e-14 | L3: -3.785168497e-10 | M3: 6.885048903e-07 | N3: -0.0006119985611 | O3: 0.352957025 | P3: 0
D4: BG 800 | E4: 820 | F4: =E4/$E$2 -> 1 | G4: =CA18 -> 22 | H4: =G4/$G$2 -> 1 | I4: =D4 -> BG 800 | J4: =LINEST(BK18:BK117,BM18:BM117^{1,2,3,4,5,6},0,0) -> 4.600779561e-16 | K4: -1.369590931e-12 | L4: 1.414843416e-09 | M4: -4.231351053e-07 | N4: -0.0002914062293 | O4: 0.3401583545 | P4: 0
A5: WT 4L | B5: 2.5 | C5: mm | D5: BG 1000 | E5: 1020 | F5: =E5/$E$2 -> 1.243902439 | G5: =CS18 -> 26 | H5: =G5/$G$2 -> 1.181818182 | I5: =D5 -> BG 1000 | J5: =LINEST(CC18:CC117,CE18:CE117^{1,2,3,4,5,6},0,0) -> 3.864326061e-16 | K5: -1.213180633e-12 | L5: 1.358964763e-09 | M5: -5.05971094e-07 | N5: -0.0002277576479 | O5: 0.3418940744 | P5: 0
A6: Länge | B6: 820 | C6: mm | D6: BG 1200 | E6: 1200 | F6: =E6/$E$2 -> 1.463414634 | G6: =DK18 -> 29 | H6: =G6/$G$2 -> 1.318181818 | I6: =D6 -> BG 1200 | J6: =LINEST(CU18:CU116,CW18:CW116^{1,2,3,4,5,6},0,0) -> 5.690766094e-16 | K6: -1.78921443e-12 | L6: 2.07156366e-09 | M6: -9.430276711e-07 | N6: -9.697433048e-05 | O6: 0.3363155759 | P6: 0
A7: Rohrreihen | B7: 3 | G7: Wassermenge = | H7: =DF18 -> 200
I8: =CONCATENATE("Korrekturfaktoren - ",A3) -> Korrekturfaktoren - BG;WT2,5;k | J8: 6 | K8: 5 | L8: 4 | M8: 3 | N8: 2 | O8: 1 | P8: 0
I9: =D3 -> BG 630 | J9: =LINEST(G18:G117,C18:C117^{0,1,2,3,4,5,6},0,0) -> 3.481623382e-13 | K9: -1.256347461e-10 | L9: 1.625174274e-08 | M9: -9.356817002e-07 | N9: 3.434846914e-05 | O9: -0.001116036369 | P9: 0.7473476078
A10: Grenzen | I10: =D4 -> BG 800 | J10: =LINEST(J18:J117,C18:C117^{0,1,2,3,4,5,6},0,0) -> 1.047534645e-26 | K10: -4.895516856e-24 | L10: 8.462972976e-22 | M10: -6.885481997e-20 | N10: 2.722599087e-18 | O10: -4.566794796e-17 | P10: 1
A11: Maximum | B11: =MAX(B18:B117) -> 1000 | C11: m³/h | I11: =D5 -> BG 1000 | J11: =LINEST(M18:M97,C18:C97^{0,1,2,3,4,5,6},0,0) -> 7.869316598e-15 | K11: -2.935344341e-11 | L11: 7.661484403e-09 | M11: -6.698756486e-07 | N11: 1.525204034e-05 | O11: -0.0002749934536 | P11: 1.25171812
I12: =D6 -> BG 1200 | J12: =LINEST(P18:P84,C18:C84^{0,1,2,3,4,5,6},0,0) -> -4.732472732e-13 | K12: 8.307235795e-11 | L12: -6.734399779e-10 | M12: -2.842166185e-07 | N12: -2.636502086e-05 | O12: 0.00147531521 | P12: 1.4483517 | AC12: 1 | AD12: 2 | AE12: 3 | AF12: 4 | AG12: 5 | AH12: 6 | AI12: 7 | AJ12: 8 | AK12: 9 | AL12: 10 | AM12: 11 | AN12: 12 | AO12: 13 | AP12: 14 | AQ12: 15 | AU12: 1 | AV12: 2 | AW12: 3 | AX12: 4 | AY12: 5 | AZ12: 6 | BA12: 7 | BB12: 8 | BC12: 9 | BD12: 10 | BE12: 11 | BF12: 12 | BG12: 13 | BH12: 14 | BI12: 15 | BM12: 1 | BN12: 2 | BO12: 3 | BP12: 4 | BQ12: 5 | BR12: 6 | BS12: 7 | BT12: 8 | BU12: 9 | BV12: 10 | BW12: 11 | BX12: 12 | BY12: 13 | BZ12: 14 | CA12: 15 | CE12: 1 | CF12: 2 | CG12: 3 | CH12: 4 | CI12: 5 | CJ12: 6 | CK12: 7 | CL12: 8 | CM12: 9 | CN12: 10 | CO12: 11 | CP12: 12 | CQ12: 13 | CR12: 14 | CS12: 15 | CW12: 1 | CX12: 2 | CY12: 3 | CZ12: 4 | DA12: 5 | DB12: 6 | DC12: 7 | DD12: 8 | DE12: 9 | DF12: 10 | DG12: 11 | DH12: 12 | DI12: 13 | DJ12: 14 | DK12: 15
B13: =CONCATENATE("Master - ",AA13) -> Master - BG 800 | E13: =AS13 -> BG630 | H13: =BK13 -> BG 800 | K13: =CC13 -> BG1000 | N13: =CU13 -> BG1200 | AA13: =D2 -> BG 800 | AS13: BG630 | BK13: BG 800 | CC13: BG1000 | CU13: BG1200
B14: Volumen-nstrom | C14: spez. Leistung | D14: Korrektur-faktor | E14: Volumen-nstrom | F14: spez. Leistung | G14: Korrektur-faktor | H14: Volumen-nstrom | I14: spez. Leistung | J14: Korrektur-faktor | K14: Volumen-nstrom | L14: spez. Leistung | M14: Korrektur-faktor | N14: Volumen-nstrom | O14: spez. Leistung | P14: Korrektur-faktor | AA14: =IF($AA$13=$AS$13,AS14,IF($AA$13=$BK$13,BK14,IF($AA$13=$CC$13,CC14,IF($AA$13=$CU$13,CU14,"-")))) -> q sensibel | AB14: =IF($AA$13=$AS$13,AT14,IF($AA$13=$BK$13,BL14,IF($AA$13=$CC$13,CD14,IF($AA$13=$CU$13,CV14,"-")))) -> S | AC14: =IF($AA$13=$AS$13,AU14,IF($AA$13=$BK$13,BM14,IF($AA$13=$CC$13,CE14,IF($AA$13=$CU$13,CW14,"-")))) -> QA | AD14: =IF($AA$13=$AS$13,AV14,IF($AA$13=$BK$13,BN14,IF($AA$13=$CC$13,CF14,IF($AA$13=$CU$13,CX14,"-")))) -> VA | AE14: =IF($AA$13=$AS$13,AW14,IF($AA$13=$BK$13,BO14,IF($AA$13=$CC$13,CG14,IF($AA$13=$CU$13,CY14,"-")))) -> DPA | AF14: =IF($AA$13=$AS$13,AX14,IF($AA$13=$BK$13,BP14,IF($AA$13=$CC$13,CH14,IF($AA$13=$CU$13,CZ14,"-")))) -> TAI | AG14: =IF($AA$13=$AS$13,AY14,IF($AA$13=$BK$13,BQ14,IF($AA$13=$CC$13,CI14,IF($AA$13=$CU$13,DA14,"-")))) -> UR | AH14: =IF($AA$13=$AS$13,AZ14,IF($AA$13=$BK$13,BR14,IF($AA$13=$CC$13,CJ14,IF($AA$13=$CU$13,DB14,"-")))) -> TAO | AI14: =IF($AA$13=$AS$13,BA14,IF($AA$13=$BK$13,BS14,IF($AA$13=$CC$13,CK14,IF($AA$13=$CU$13,DC14,"-")))) -> UR | AJ14: =IF($AA$13=$AS$13,BB14,IF($AA$13=$BK$13,BT14,IF($AA$13=$CC$13,CL14,IF($AA$13=$CU$13,DD14,"-")))) -> PT | AK14: =IF($AA$13=$AS$13,BC14,IF($AA$13=$BK$13,BU14,IF($AA$13=$CC$13,CM14,IF($AA$13=$CU$13,DE14,"-")))) -> PS | AL14: =IF($AA$13=$AS$13,BD14,IF($AA$13=$BK$13,BV14,IF($AA$13=$CC$13,CN14,IF($AA$13=$CU$13,DF14,"-")))) -> QW | AM14: =IF($AA$13=$AS$13,BE14,IF($AA$13=$BK$13,BW14,IF($AA$13=$CC$13,CO14,IF($AA$13=$CU$13,DG14,"-")))) -> VW | AN14: =IF($AA$13=$AS$13,BF14,IF($AA$13=$BK$13,BX14,IF($AA$13=$CC$13,CP14,IF($AA$13=$CU$13,DH14,"-")))) -> TWI | AO14: =IF($AA$13=$AS$13,BG14,IF($AA$13=$BK$13,BY14,IF($AA$13=$CC$13,CQ14,IF($AA$13=$CU$13,DI14,"-")))) -> TWO | AQ14: =IF($AA$13=$AS$13,BI14,IF($AA$13=$BK$13,CA14,IF($AA$13=$CC$13,CS14,IF($AA$13=$CU$13,DK14,"-")))) -> DPW | AS14: q sensibel | AT14: S | AU14: QA | AV14: VA | AW14: DPA | AX14: TAI | AY14: UR | AZ14: TAO | BA14: UR | BB14: PT | BC14: PS | BD14: QW | BE14: VW | BF14: TWI | BG14: TWO | BI14: DPW | BK14: q sensibel | BL14: S | BM14: QA | BN14: VA | BO14: DPA | BP14: TAI | BQ14: UR | BR14: TAO | BS14: UR | BT14: PT | BU14: PS | BV14: QW | BW14: VW | BX14: TWI | BY14: TWO | CA14: DPW | CC14: q sensibel | CD14: S | CE14: QA | CF14: VA | CG14: DPA | CH14: TAI | CI14: UR | CJ14: TAO | CK14: UR | CL14: PT | CM14: PS | CN14: QW | CO14: VW | CP14: TWI | CQ14: TWO | CS14: DPW | CU14: q sensibel | CV14: S | CW14: QA | CX14: VA | CY14: DPA | CZ14: TAI | DA14: UR | DB14: TAO | DC14: UR | DD14: PT | DE14: PS | DF14: QW | DG14: VW | DH14: TWI | DI14: TWO | DK14: DPW
B15: [m³/h] | C15: [W/K] | D15: [-] | E15: [m³/h] | F15: [W/K] | G15: [-] | H15: [m³/h] | I15: [W/K] | J15: [-] | K15: [m³/h] | L15: [W/K] | M15: [-] | N15: [m³/h] | O15: [W/K] | P15: [-] | AA15: W/K | AB15: 0 | AC15: m3/h | AD15: m/s | AE15: Pa | AF15: °C | AG15: % | AH15: °C | AI15: % | AJ15: kW | AK15: kW | AL15: l/h | AM15: m/s | AN15: °C | AO15: °C | AQ15: kPa | AS15: W/K | AU15: m3/h | AV15: m/s | AW15: Pa | AX15: °C | AY15: % | AZ15: °C | BA15: % | BB15: kW | BC15: kW | BD15: l/h | BE15: m/s | BF15: °C | BG15: °C | BI15: kPa | BK15: W/K | BM15: m3/h | BN15: m/s | BO15: Pa | BP15: °C | BQ15: % | BR15: °C | BS15: % | BT15: kW | BU15: kW | BV15: l/h | BW15: m/s | BX15: °C | BY15: °C | CA15: kPa | CC15: W/K | CE15: m3/h | CF15: m/s | CG15: Pa | CH15: °C | CI15: % | CJ15: °C | CK15: % | CL15: kW | CM15: kW | CN15: l/h | CO15: m/s | CP15: °C | CQ15: °C | CS15: kPa | CU15: W/K | CW15: m3/h | CX15: m/s | CY15: Pa | CZ15: °C | DA15: % | DB15: °C | DC15: % | DD15: kW | DE15: kW | DF15: l/h | DG15: m/s | DH15: °C | DI15: °C | DK15: kPa
AA16: 0 | AB16: S | AC16: QA | AD16: VA | AE16: DPA | AF16: TAI | AG16: RH | AH16: TAO | AI16: RH | AJ16: QTOT | AK16: QSEN | AL16: QW | AM16: VW | AN16: TWI | AO16: TWO | AQ16: DPW | AT16: S | AU16: QA | AV16: VA | AW16: DPA | AX16: TAI | AY16: RH | AZ16: TAO | BA16: RH | BB16: QTOT | BC16: QSEN | BD16: QW | BE16: VW | BF16: TWI | BG16: TWO | BH16: GLI | BI16: DPW | BL16: S | BM16: QA | BN16: VA | BO16: DPA | BP16: TAI | BQ16: RH | BR16: TAO | BS16: RH | BT16: QTOT | BU16: QSEN | BV16: QW | BW16: VW | BX16: TWI | BY16: TWO | BZ16: GLI | CA16: DPW | CD16: S | CE16: QA | CF16: VA | CG16: DPA | CH16: TAI | CI16: RH | CJ16: TAO | CK16: RH | CL16: QTOT | CM16: QSEN | CN16: QW | CO16: VW | CP16: TWI | CQ16: TWO | CR16: GLI | CS16: DPW | CV16: S | CW16: QA | CX16: VA | CY16: DPA | CZ16: TAI | DA16: RH | DB16: TAO | DC16: RH | DD16: QTOT | DE16: QSEN | DF16: QW | DG16: VW | DH16: TWI | DI16: TWO | DJ16: GLI | DK16: DPW
AA17: 0 | AB17: 0 | AC17: m3/h | AD17: m/s | AE17: Pa | AF17: °C | AG17: % | AH17: °C | AI17: % | AJ17: kW | AK17: kW | AL17: l/h | AM17: m/s | AN17: °C | AO17: °C | AQ17: kPa | AU17: m3/h | AV17: m/s | AW17: Pa | AX17: °C | AY17: % | AZ17: °C | BA17: % | BB17: kW | BC17: kW | BD17: l/h | BE17: m/s | BF17: °C | BG17: °C | BH17: % | BI17: kPa | BM17: m3/h | BN17: m/s | BO17: Pa | BP17: °C | BQ17: % | BR17: °C | BS17: % | BT17: kW | BU17: kW | BV17: l/h | BW17: m/s | BX17: °C | BY17: °C | BZ17: % | CA17: kPa | CE17: m3/h | CF17: m/s | CG17: Pa | CH17: °C | CI17: % | CJ17: °C | CK17: % | CL17: kW | CM17: kW | CN17: l/h | CO17: m/s | CP17: °C | CQ17: °C | CR17: % | CS17: kPa | CW17: m3/h | CX17: m/s | CY17: Pa | CZ17: °C | DA17: % | DB17: °C | DC17: % | DD17: kW | DE17: kW | DF17: l/h | DG17: m/s | DH17: °C | DI17: °C | DJ17: % | DK17: kPa
